Workbook

Sheet KEY (hidden)
A1: Tab No. | B1: 2019 WasteCalc Master Workbook | C1: Update (Y/N) | D1: Update Frequency | E1: Source of Information | F1: Notes
B2: KEY
B3: User Workbooks
A4: 1 | B4: Introduction | C4: N
A5: 2 | B5: 2019 WasteCalc Input | C5: Y
A6: 3 | B6: 2019 WasteCalc Results | C6: N
A7: 4 | B7: SMM Inputs | C7: Y | D7: Can be updated to incorporate more SMM elements.
A8: 5 | B8: SMM Results | C8: Y
A9: 6 | B9: LCI Factors | C9: Y
B10: Programming
A11: 7 | B11: Mass Data for SMM | C11: Y | D11: Updated for more accurate mass distribution
A12: 8 | B12: LCI Data Compilation | C12: Y | D12: Updated for more LCI impact factors
A13: 9 | B13: Source Reduced Mass Method | C13: N
A14: 10 | B14: 2019 WasteCalc Program | C14: N | F14: Green boxes in TOTAL row: This indicates the values are correct according to input values. Red boxes NOT in TOTAL row: This indicates negative numbers needing correction. Orange Boxes: This indicates the material tonnages used for correction. A percenage of each value (seen in the 2a and 2b table), is subtacted to correct the negative value. In the LANDFILLED TONS table, C&D debris and white goods are bold because 100% of the remainder tons for those materials (Column L in pink)are assumed to go to the landfill. In the NET COMBUSTED WTE and NET COMBUSTED RENEWABLE ENERGY tables, C&D debris and white goods is zero becuase it is assumed these materials would be removed and sent to the landfill before combustion.
A15: 11 | B15: 2019 WasteCalc County Factor | C15: Y | D15: New county factors should be developed when new waste compositon studies are performed.
A16: 12 | B16: 2019 WasteCalc US PCD | C16: Y | D16: New US PCD factors should be calculated when new EPA reports are released. | E16: US EPA Advancing Sustainable materials Management: [Year]
B17: Calculating US Data Factors
A18: 13 | B18: 2017 US Mass Estimates | C18: N | E18: US EPA Advancing Sustainable materials Management: [Year]
A19: 14 | B19: 2017 US PCD Calculations | C19: N | E19: US EPA Advancing Sustainable materials Management: [Year]
A20: 15 | B20: 2017 US PCD Dry to Wet Tons | C20: N | E20: "WasteCalc: An Advanced Waste Composition Model" | F20: Table 2.3 Average Waste Compositoin Percent Moisture Analysis
B21: Calculating County Factors
A22: 16 | B22: County Factor Key | C22: N
A23: 17 | B23: Aucilla Landfill Data | C23: N | D23: Data from the waste compostion study | F23: Highlands County is it's own tab color to represent that data reported from the county was unrepresentative and unconfirmed by FDEP .
A24: 18-85 | B24: Counties with Waste Composition Studies | C24: Y | D24: Once new waste compositon studies are completed, all county factors should be recalculated. | F24: See notes on page 21
B25: Grouping 1- High Population Density | F25: See notes on page 21
B26: Grouping 2- Upper Medium Populatin Density | F26: See notes on page 21
B27: Grouping 3- Medium Population Density with NO Combustion | F27: See notes on page 21
B28: Grouping 3- Medium Population Density WITH Combustion | F28: See notes on page 21
B29: Grouping 4- Lower Medium Population Density with NO Combustion | F29: See notes on page 21
B30: Grouping 4- Lower Medium Population Density WITH Combustion | F30: See notes on page 21
B31: Grouping 5- Low Population Density with NO Combustion | F31: See notes on page 21
B32: Grouping 5- Low Population Density WITH Combustion | F32: See notes on page 21
B33: Password: Chomp

Sheet 1 Introduction
C2: An Integrated Tool for Local Government to Track Materials Management and Progress toward Sustainability Goals
C5: Welcome to the Hinkley Center for Solid and Hazardous Waste Management Funded SMM and WasteCalc Workbook Tool!
C6: This tool is an outcome of the Hinkley Center funded project titled, "An Integrated Tool for Local Government to Track Materials Management and Progress toward Sustainability Goals". In a previous Hinkley Center project titled, "Florida Solid Waste Management: State of the State", researchers from the University of Florida (UF) estimated the material mass flow for the Florida solid waste stream and conducted a comprehensive analysis on the economic costs and environmental footprints associated with the 2016 waste stream. The researchers also conducted an evaluation of alternative waste management strategies upon the recycling rate, economic costs, and environmental footprint. The alternative waste management strategies were based on the concept of sustainable materials management (SMM). SMM originated in a 2002 EPA publication entitled “Beyond RCRA: Waste and Materials Management in the Year 2020.” In 2009, EPA further developed the idea in “Sustainable Materials Management: The Road Ahead,” which presented a roadmap for moving toward SMM. In these and other documents, SMM is characterized as a varying set of resource-efficient actions to be taken across the entire lifecycle of a material or product — from extraction through refinement, manufacturing, assembly, distribution, use, and end-of-life management. SMM, then, focuses on identifying best material management practices based on environmental, economic, and social impacts. Lifecycle assessment (LCA) models are tools that measure those impacts, and policymakers use LCA results to make SMM-informed decisions. In effort to continue this research, University of Florida researchers evaluated various US-developed LCA models and literature to create lifecycle impact (LCI) factors that can be used to measure the impacts of a community's waste management practices as part of the Hinkley Center project titled "Looking beyond Florida’s 75% Recycling Goal: Development of a Methodology and Tool for Assessing Sustainable Materials Management Recycling Rates in Florida". In another project the UF researchers worked with the Florida Department of Environmental Protection (FDEP) to update the Florida’s Waste Composition Calculation Model (WasteCalc) , which is an online tool used to estimate the composition of municipal solid waste (MSW) generated in Florida counties. It is a useful tool for recycling coordinators when preparing annual reports when actual waste composition data for a particular county is not available. In this tool users will be able to have both functionalities of WasteCalc and LCI factors project.
C8: What's New?
C9: This tools includes the 2019 WasteCalc Model but it also now includes:
C10: - A breakdown of the landfill and combusted composition
C11: - The ability to measure source reduction
C12: - The ability to measure nine different life cycle impact indicators
C14: To read more on the scope of this project and documentation of this tool please visit:
C15: https://faculty.eng.ufl.edu/timothy-townsend/research/florida-solid-waste-issues/tool-to-track-progress-toward-smm-goals/
C17: To read more about the previous projects please visit:
C18: https://faculty.eng.ufl.edu/timothy-townsend/research/florida-solid-waste-issues/florida-solid-waste-management/
C19: https://faculty.eng.ufl.edu/timothy-townsend/research/florida-solid-waste-issues/looking-beyond-floridas-75-recycling-goal/
C21: To read more about SMM please visit:
C22: https://www.epa.gov/smm
C24: To read more about what other states are doing please visit:
C25: https://www.oregon.gov/deq/mm/Documents/mmFramework2020.pdf
C27: This workbook tool provides local government and other users the opportunity to measure the impacts of their solid waste management practices. Below is a description of the components of this workbook tool.
C28: Tab No. | D28: Tab Title | E28: Tab Description
C29: 1 | D29: Introduction | E29: Background of tool and SMM concept.
C30: 2 | D30: 2019 WasteCalc Input | E30: Users input data needed for the 2019 WasteCalc model.
C31: 3 | D31: 2019 WasteCalc Results | E31: Results produced using the 2019 WasteCalc model.
C32: 4 | D32: SMM Input | E32: Users can select from seven models, which are used to estimate LCI factors.
C33: 5 | D33: SMM Results | E33: The environmental and social footprints associated with waste management.
C34: 6 | D34: LCI Factors | E34: The summary LCI factors used to measure the footprints.
C37: For any questions regarding this tool please contact Dr. Tim Townsend at ttown@ufl.edu and Dr. Malak Anshassi at manshassi@ufl.edu or manshassi@floridapoly.edu

Sheet 2 2019 WasteCalc Input
B1: User Directions: Follow instructions below to estimate MSW composition. ONLY INPUT DATA INTO GREEN CELLS. GREY CELLS ARE LOCKED. 1) The model here refers to the 2019 WasteCalc model. 2) Data year is item 1 and refers to the data year for the most recent EPA published dataset. 3) Type the current year in item 2 referring to your County's data year. 4) Select County from the drop-down menu in item 3. 5) Enter County population for the current year in item 4. 6) Enter landfilled tons PLUS landfilled combustor ash in tons in item 5. 7) Collected C&D in tons is entered in item 6. Collected C&D Tons = certified C&D landfilled Tons + uncertified and certified C&D recycled Tons 8) MSW Net Combusted by Waste-to-Energy (WTE) in tons is entered in item 7. 9) MSW Net Combusted by Renewable Energy (not WTE) in tons is entered in item 8. 10) Recycling data (in tons) is entered into items 9-27. The sum total is added in item 29. 11) Item 29 is the reported tonnage total (sum of landfilled, combusted (WTE and Renewable Energy), and recycled). 12) For the number entered in item 23 for recycled C&D debris, please enter the material breakdown based on the categories in items 30-34. 13) Enter a previous year in item 36 where you are interested in the source reduced mass relative to the year entered in item 2. The year in item 36 must be less than the year in item 2. 14) Enter the collected data (in tons) in items 37-55 corresponding to the year in item 35. 15) Enter donated data (in tons) into items 56-60.
B13: Item # | D13: 2019 WasteCalc
B14: 1 | D14: Select Method of Calculation for MSW Composition | E14: New WasteCalc
B15: 1 | D15: Data Year (LOCKED): | E15: =IF(E14="US EPA Waste Composition Model", 2017, IF(E14="New WasteCalc",2017,2000) ) -> 2017
B16: 2 | D16: Current Year: | E16: 2019
B17: 3 | D17: Select County: | E17: Alachua
B18: 4 | D18: Enter County Population: | E18: 267306
B19: 5 | D19: MSW Landfilled (in tons) | E19: 252755
B20: 6 | D20: Collected C&D (in tons) | E20: 171838
B21: 7 | D21: MSW Net Combusted by WTE (in tons)
B22: 8 | D22: MSW Net Combusted by Renewable Energy (not WTE) (in tons) | E22: 94371
B23: Recycling Data (in tons)(from "Recycling Credits")
B24: 9 | D24: =IF(E14="US EPA Waste Composition Model", "Newspaper", "Newspaper") -> Newspaper | E24: 3043
B25: 10 | D25: =IF(E14="US EPA Waste Composition Model", "Glass", "Glass") -> Glass | E25: 4072
B26: 11 | D26: =IF(E14="US EPA Waste Composition Model", "Aluminum Cans", "Aluminum Cans") -> Aluminum Cans | E26: 413
B27: 12 | D27: =IF(E14="US EPA Waste Composition Model", "Plastic Bottles", "Plastic Bottles") -> Plastic Bottles | E27: 1063
B28: 13 | D28: =IF(E14="US EPA Waste Composition Model", "Steel Cans", "Steel Cans") -> Steel Cans | E28: 334
B29: 14 | D29: =IF(E14="US EPA Waste Composition Model", "Corrugated Boxes", "Corrugated Boxes") -> Corrugated Boxes | E29: 27363
B30: 15 | D30: =IF(E14="US EPA Waste Composition Model", "Office Paper", "Office Paper") -> Office Paper | E30: 2657
B31: 16 | D31: =IF(E14="US EPA Waste Composition Model", "Yard Trash", "Yard Trash") -> Yard Trash | E31: 47826
B32: 17 | D32: =IF(E14="US EPA Waste Composition Model", "Other Plastics", "Other Plastics") -> Other Plastics | E32: 965
B33: 18 | D33: =IF(E14="US EPA Waste Composition Model", "Ferrous Metals", "Ferrous Metals") -> Ferrous Metals | E33: 13912
B34: 19 | D34: =IF(E14="US EPA Waste Composition Model", "White Goods", "White Goods") -> White Goods | E34: 2712
B35: 20 | D35: =IF(E14="US EPA Waste Composition Model", "Non Ferrous Metals", "Non Ferrous Metals") -> Non Ferrous Metals | E35: 1455
B36: 21 | D36: =IF(E14="US EPA Waste Composition Model", "Other Paper", "Other Paper") -> Other Paper | E36: 989
B37: 22 | D37: =IF(E14="US EPA Waste Composition Model", "Textiles", "Textiles") -> Textiles | E37: 4125
B38: 23 | D38: =IF(E14="US EPA Waste Composition Model", "C&D Debris", "C&D Debris") -> C&D Debris | E38: 104770
B39: 24 | D39: =IF(E14="US EPA Waste Composition Model", "Food Waste", "Food Waste") -> Food Waste | E39: 1323
B40: 25 | D40: =IF(E14="US EPA Waste Composition Model", "Miscellaneous", "Miscellaneous") -> Miscellaneous | E40: 635
B41: 26 | D41: =IF(E14="US EPA Waste Composition Model", "Tires", "Tires") -> Tires | E41: 2042
B42: 27 | D42: Process Fuel
B43: 28 | D43: TOTAL RECYCLED TONNAGE | E43: =SUM(E24:E42) -> 219699
B44: 29 | D44: Reported Total (in tons) | E44: =SUM(E43,E21:E22,Landfilled) -> 566825
B45: Recyled C&D Debris Breakdown Mass Data (in tons)
B46: 30 | D46: Wood Products | E46: 3000
B47: 31 | D47: Asphalt Shingles | E47: 200
B48: 32 | D48: Gypsum Drywall | E48: 100
B49: 33 | D49: Concrete | E49: 5000
B50: 34 | D50: Reclaimed Asphalt Pavement | E50: 6000
B51: 35 | D51: Other C&D (LOCKED) | E51: =CD_DebrisEntered-SUM(E46:E50) -> 90470
B52: Collected Mass Data (in tons)(from older reports)
B53: 36 | D53: Previous Year: | E53: 2013
B54: 37 | D54: Newspaper | E54: 10017
B55: 38 | D55: Glass | E55: 7686
B56: 39 | D56: Aluminum Cans | E56: 1001
B57: 40 | D57: Plastic Bottles | E57: 2507
B58: 41 | D58: Steel Cans | E58: 1174
B59: 42 | D59: Corrugated Boxes | E59: 46260
B60: 43 | D60: Office Paper | E60: 4487
B61: 44 | D61: Yard Trash | E61: 60257
B62: 45 | D62: Other Plastics | E62: 25742
B63: 46 | D63: Ferrous Metals | E63: 15082
B64: 47 | D64: White Goods | E64: 321
B65: 48 | D65: Non Ferrous Metals | E65: 1923
B66: 49 | D66: Other Paper | E66: 33718
B67: 50 | D67: Textiles | E67: 5868
B68: 51 | D68: C&D Debris | E68: 108360
B69: 52 | D69: Food Waste | E69: 24573
B70: 53 | D70: Miscellaneous | E70: 41554
B71: 54 | D71: Tires
B72: 55 | D72: Process Fuel
B73: Donated (in tons)
B74: 56 | D74: Textiles (e.g., clothing and footwear) | E74: 500
B75: 57 | D75: Furniture | E75: 400
B76: 58 | D76: Electronics (e.g., white goods, phones, computers, small appliances) | E76: 300
B77: 59 | D77: Food | E77: 700
B78: 60 | D78: Books (e.g., textbooks, paper-back books, hard-back books) | E78: 100

Sheet 3 2019 WasteCalc Results
B5: Material | C5: Recycled (Tons) | D5: Landfilled (Tons) | E5: Net Combusted (Tons) | F5: Total Collected Material (Tons) | G5: Total Collected Material Composition | H5: Source Reduced/ Generated (Tons)
B6: Newspaper | C6: =IF(Method="New WasteCalc",'10 2019 WasteCalc Program'!B13,0) -> 3043 | D6: =IF(Method="New WasteCalc",'10 2019 WasteCalc Program'!F13,0) -> 284.8535932 | E6: =IF(Method="New WasteCalc",'10 2019 WasteCalc Program'!J13+'10 2019 WasteCalc Program'!P13,0) -> 0 | F6: =SUM(C6:E6) -> 3327.853593 | G6: =IF(Method="New WasteCalc",'10 2019 WasteCalc Program'!U13,IF(Method="Old WasteCalc",#REF!,IF(Method="US EPA Waste Composition Model",#REF!,0))) -> 0.005871042373 | H6: =IF('2 2019 WasteCalc Input'!E53=0,0,'9 Source Reduction Mass Method'!D6) -> -6689.146407
B7: Glass | C7: =IF(Method="New WasteCalc",'10 2019 WasteCalc Program'!B14,0) -> 4072 | D7: =IF(Method="New WasteCalc",'10 2019 WasteCalc Program'!F14,0) -> 3031.545985 | E7: =IF(Method="New WasteCalc",'10 2019 WasteCalc Program'!J14+'10 2019 WasteCalc Program'!P14,0) -> 0 | F7: =SUM(C7:E7) -> 7103.545985 | G7: =IF(Method="New WasteCalc",'10 2019 WasteCalc Program'!U14,IF(Method="Old WasteCalc",#REF!,IF(Method="US EPA Waste Composition Model",#REF!,0))) -> 0.01253216775 | H7: =IF('2 2019 WasteCalc Input'!E54=0,0,'9 Source Reduction Mass Method'!D7) -> -582.4540154
B8: Aluminum Cans | C8: =IF(Method="New WasteCalc",'10 2019 WasteCalc Program'!B15,0) -> 413 | D8: =IF(Method="New WasteCalc",'10 2019 WasteCalc Program'!F15,0) -> 621.9151038 | E8: =IF(Method="New WasteCalc",'10 2019 WasteCalc Program'!J15+'10 2019 WasteCalc Program'!P15,0) -> 0 | F8: 1034.915104 | G8: =IF(Method="New WasteCalc",'10 2019 WasteCalc Program'!U15,IF(Method="Old WasteCalc",#REF!,IF(Method="US EPA Waste Composition Model",#REF!,0))) -> 0.001825810619 | H8: =IF('2 2019 WasteCalc Input'!E55=0,0,'9 Source Reduction Mass Method'!D8) -> 33.91510385
B9: Plastic Bottles | C9: =IF(Method="New WasteCalc",'10 2019 WasteCalc Program'!B16,0) -> 1063 | D9: =IF(Method="New WasteCalc",'10 2019 WasteCalc Program'!F16,0) -> 2417.879058 | E9: =IF(Method="New WasteCalc",'10 2019 WasteCalc Program'!J16+'10 2019 WasteCalc Program'!P16,0) -> 0 | F9: 3480.879058 | G9: =IF(Method="New WasteCalc",'10 2019 WasteCalc Program'!U16,IF(Method="Old WasteCalc",#REF!,IF(Method="US EPA Waste Composition Model",#REF!,0))) -> 0.006141011878 | H9: =IF('2 2019 WasteCalc Input'!E56=0,0,'9 Source Reduction Mass Method'!D9) -> 973.8790577
B10: Steel Cans | C10: =IF(Method="New WasteCalc",'10 2019 WasteCalc Program'!B17,0) -> 334 | D10: =IF(Method="New WasteCalc",'10 2019 WasteCalc Program'!F17,0) -> 954.1490331 | E10: =IF(Method="New WasteCalc",'10 2019 WasteCalc Program'!J17+'10 2019 WasteCalc Program'!P17,0) -> 0 | F10: 1288.149033 | G10: =IF(Method="New WasteCalc",'10 2019 WasteCalc Program'!U17,IF(Method="Old WasteCalc",#REF!,IF(Method="US EPA Waste Composition Model",#REF!,0))) -> 0.002272569193 | H10: =IF('2 2019 WasteCalc Input'!E57=0,0,'9 Source Reduction Mass Method'!D10) -> 114.1490331
B11: Corrugated Boxes | C11: =IF(Method="New WasteCalc",'10 2019 WasteCalc Program'!B18,0) -> 27363 | D11: =IF(Method="New WasteCalc",'10 2019 WasteCalc Program'!F18,0) -> 12022.23925 | E11: =IF(Method="New WasteCalc",'10 2019 WasteCalc Program'!J18+'10 2019 WasteCalc Program'!P18,0) -> 0 | F11: 39385.23925 | G11: =IF(Method="New WasteCalc",'10 2019 WasteCalc Program'!U18,IF(Method="Old WasteCalc",#REF!,IF(Method="US EPA Waste Composition Model",#REF!,0))) -> 0.06948394875 | H11: =IF('2 2019 WasteCalc Input'!E58=0,0,'9 Source Reduction Mass Method'!D11) -> -6874.760752
B12: Office Paper | C12: =IF(Method="New WasteCalc",'10 2019 WasteCalc Program'!B19,0) -> 2657 | D12: =IF(Method="New WasteCalc",'10 2019 WasteCalc Program'!F19,0) -> 1309.813306 | E12: =IF(Method="New WasteCalc",'10 2019 WasteCalc Program'!J19+'10 2019 WasteCalc Program'!P19,0) -> 0 | F12: 3966.813306 | G12: =IF(Method="New WasteCalc",'10 2019 WasteCalc Program'!U19,IF(Method="Old WasteCalc",#REF!,IF(Method="US EPA Waste Composition Model",#REF!,0))) -> 0.006998303368 | H12: =IF('2 2019 WasteCalc Input'!E59=0,0,'9 Source Reduction Mass Method'!D12) -> -520.1866937
B13: Yard Trash | C13: =IF(Method="New WasteCalc",'10 2019 WasteCalc Program'!B20,0) -> 47826 | D13: =IF(Method="New WasteCalc",'10 2019 WasteCalc Program'!F20,0) -> 1611.837322 | E13: =IF(Method="New WasteCalc",'10 2019 WasteCalc Program'!J20+'10 2019 WasteCalc Program'!P20,0) -> 94371 | F13: =SUM(C13:E13)+C24 -> 143808.8373 | G13: =IF(Method="New WasteCalc",'10 2019 WasteCalc Program'!U20,IF(Method="Old WasteCalc",#REF!,IF(Method="US EPA Waste Composition Model",#REF!,0))) -> 0.2537094118 | H13: =IF('2 2019 WasteCalc Input'!E60=0,0,'9 Source Reduction Mass Method'!D13) -> 83551.83732
B14: Other Plastics | C14: =IF(Method="New WasteCalc",'10 2019 WasteCalc Program'!B21,0) -> 965 | D14: =IF(Method="New WasteCalc",'10 2019 WasteCalc Program'!F21,0) -> 21763.41663 | E14: =IF(Method="New WasteCalc",'10 2019 WasteCalc Program'!J21+'10 2019 WasteCalc Program'!P21,0) -> 0 | F14: 22728.41663 | G14: =IF(Method="New WasteCalc",'10 2019 WasteCalc Program'!U21,IF(Method="Old WasteCalc",#REF!,IF(Method="US EPA Waste Composition Model",#REF!,0))) -> 0.04009776674 | H14: =IF('2 2019 WasteCalc Input'!E61=0,0,'9 Source Reduction Mass Method'!D14) -> -3013.583368
B15: Ferrous Metals | C15: =IF(Method="New WasteCalc",'10 2019 WasteCalc Program'!B22,0) -> 13912 | D15: =IF(Method="New WasteCalc",'10 2019 WasteCalc Program'!F22,0) -> 2470.300373 | E15: =IF(Method="New WasteCalc",'10 2019 WasteCalc Program'!J22+'10 2019 WasteCalc Program'!P22,0) -> 0 | F15: 16382.30037 | G15: =IF(Method="New WasteCalc",'10 2019 WasteCalc Program'!U22,IF(Method="Old WasteCalc",#REF!,IF(Method="US EPA Waste Composition Model",#REF!,0))) -> 0.02890186631 | H15: =IF('2 2019 WasteCalc Input'!E62=0,0,'9 Source Reduction Mass Method'!D15) -> 1300.300373
B16: White Goods | C16: =IF(Method="New WasteCalc",'10 2019 WasteCalc Program'!B23,0) -> 2712 | D16: =IF(Method="New WasteCalc",'10 2019 WasteCalc Program'!F23,0) -> 881.7741004 | E16: =IF(Method="New WasteCalc",'10 2019 WasteCalc Program'!J23+'10 2019 WasteCalc Program'!P23,0) -> 0 | F16: 3593.7741 | G16: =IF(Method="New WasteCalc",'10 2019 WasteCalc Program'!U23,IF(Method="Old WasteCalc",#REF!,IF(Method="US EPA Waste Composition Model",#REF!,0))) -> 0.006340182773 | H16: =IF('2 2019 WasteCalc Input'!E63=0,0,'9 Source Reduction Mass Method'!D16) -> 3272.7741
B17: Non Ferrous Metals | C17: =IF(Method="New WasteCalc",'10 2019 WasteCalc Program'!B24,0) -> 1455 | D17: =IF(Method="New WasteCalc",'10 2019 WasteCalc Program'!F24,0) -> 159.4419064 | E17: =IF(Method="New WasteCalc",'10 2019 WasteCalc Program'!J24+'10 2019 WasteCalc Program'!P24,0) -> 0 | F17: 1614.441906 | G17: =IF(Method="New WasteCalc",'10 2019 WasteCalc Program'!U24,IF(Method="Old WasteCalc",#REF!,IF(Method="US EPA Waste Composition Model",#REF!,0))) -> 0.002848219303 | H17: =IF('2 2019 WasteCalc Input'!E64=0,0,'9 Source Reduction Mass Method'!D17) -> -308.5580936
B18: Other Paper | C18: =IF(Method="New WasteCalc",'10 2019 WasteCalc Program'!B25,0) -> 989 | D18: =IF(Method="New WasteCalc",'10 2019 WasteCalc Program'!F25,0) -> 38688.67846 | E18: =IF(Method="New WasteCalc",'10 2019 WasteCalc Program'!J25+'10 2019 WasteCalc Program'!P25,0) -> 0 | F18: 39677.67846 | G18: =IF(Method="New WasteCalc",'10 2019 WasteCalc Program'!U25,IF(Method="Old WasteCalc",#REF!,IF(Method="US EPA Waste Composition Model",#REF!,0))) -> 0.06999987379 | H18: =IF('2 2019 WasteCalc Input'!E65=0,0,'9 Source Reduction Mass Method'!D18) -> 5959.678462
B19: Textiles | C19: =IF(Method="New WasteCalc",'10 2019 WasteCalc Program'!B26,0) -> 4125 | D19: =IF(Method="New WasteCalc",'10 2019 WasteCalc Program'!F26,0) -> 4912.037837 | E19: =IF(Method="New WasteCalc",'10 2019 WasteCalc Program'!J26+'10 2019 WasteCalc Program'!P26,0) -> 0 | F19: 9037.037837 | G19: =IF(Method="New WasteCalc",'10 2019 WasteCalc Program'!U26,IF(Method="Old WasteCalc",#REF!,IF(Method="US EPA Waste Composition Model",#REF!,0))) -> 0.0159432591 | H19: =IF('2 2019 WasteCalc Input'!E66=0,0,'9 Source Reduction Mass Method'!D19) -> 3169.037837
B20: C&D Debris | C20: =IF(Method="New WasteCalc",'10 2019 WasteCalc Program'!B27,0) -> 104770 | D20: =IF(Method="New WasteCalc",'10 2019 WasteCalc Program'!F27,0) -> 85771.87 | E20: =IF(Method="New WasteCalc",'10 2019 WasteCalc Program'!J27+'10 2019 WasteCalc Program'!P27,0) -> 0 | F20: 190541.87 | G20: =IF(Method="New WasteCalc",'10 2019 WasteCalc Program'!U27,IF(Method="Old WasteCalc",#REF!,IF(Method="US EPA Waste Composition Model",#REF!,0))) -> 0.3361564328 | H20: =IF('2 2019 WasteCalc Input'!E67=0,0,'9 Source Reduction Mass Method'!D20) -> 82181.87
B21: Food Waste | C21: =IF(Method="New WasteCalc",'10 2019 WasteCalc Program'!B28,0) -> 1323 | D21: =IF(Method="New WasteCalc",'10 2019 WasteCalc Program'!F28,0) -> 25554.41784 | E21: =IF(Method="New WasteCalc",'10 2019 WasteCalc Program'!J28+'10 2019 WasteCalc Program'!P28,0) -> 0 | F21: 26877.41784 | G21: =IF(Method="New WasteCalc",'10 2019 WasteCalc Program'!U28,IF(Method="Old WasteCalc",#REF!,IF(Method="US EPA Waste Composition Model",#REF!,0))) -> 0.04741748836 | H21: =IF('2 2019 WasteCalc Input'!E68=0,0,'9 Source Reduction Mass Method'!D21) -> 2304.417838
B22: Miscellaneous | C22: =IF(Method="New WasteCalc",'10 2019 WasteCalc Program'!B29,0) -> 635 | D22: =IF(Method="New WasteCalc",'10 2019 WasteCalc Program'!F29,0) -> 49611.1948 | E22: =IF(Method="New WasteCalc",'10 2019 WasteCalc Program'!J29+'10 2019 WasteCalc Program'!P29,0) -> 0 | F22: 50246.1948 | G22: =IF(Method="New WasteCalc",'10 2019 WasteCalc Program'!U29,IF(Method="Old WasteCalc",#REF!,IF(Method="US EPA Waste Composition Model",#REF!,0))) -> 0.08864498708 | H22: =IF('2 2019 WasteCalc Input'!E69=0,0,'9 Source Reduction Mass Method'!D22) -> 8692.194803
B23: Tires | C23: =IF(Method="New WasteCalc",'10 2019 WasteCalc Program'!B30,0) -> 2042 | D23: =IF(Method="New WasteCalc",'10 2019 WasteCalc Program'!F30,0) -> 687.6353981 | E23: =IF(Method="New WasteCalc",'10 2019 WasteCalc Program'!J30+'10 2019 WasteCalc Program'!P30,0) -> 0 | F23: 2729.635398 | G23: =IF(Method="New WasteCalc",'10 2019 WasteCalc Program'!U30,IF(Method="Old WasteCalc",#REF!,IF(Method="US EPA Waste Composition Model",#REF!,0))) -> 0.004815658092 | H23: =IF('2 2019 WasteCalc Input'!E70=0,0,'9 Source Reduction Mass Method'!D23) -> 2729.635398
B24: Process Fuel | C24: =IF(Method="New WasteCalc",'10 2019 WasteCalc Program'!B31,0) -> 0 | H24: ='9 Source Reduction Mass Method'!D24 -> 0
B25: Total | C25: =SUM(C6:C24) -> 219699 | D25: 252755 | E25: 94371 | F25: =SUM(F6:F24) -> 566825 | G25: =SUM(G6:G24) -> 1 | H25: =SUM(H6:H24) -> 176295

Sheet 4 SMM Input
B2: User Directions:
B3: 1) From the drop-down window to the right select the model preference. | E3: MSWDST (FL)
B4: 2) If food waste is recycled in your county, from the drop-down window to the right select the main recycling method. If food is donated then enter data in "2019 WasteCalc Input" Tab, Item 53. | E4: Composted
B5: 3) If yard trash is recycled in your county, from the drop-down window to the right select the main recycling method. | E5: Mulched
B7: Note: See below for a description of each model. All models are US-based LCA models specifcally created for US LCA study use. For some material categories, the selected model does not measure the environmental impacts so that mass associated with that material will not have an associated environmental footprint. For those materials you can find them in the LCI Factors tab and they will have an associated "NA". For example, MSWDST does not measure book recycling so the mass associated with recycled books will have no measured environmental footprint in the SMM Results tab.
C8: Model | D8: Description of LCI Factors That Can be Estimated When Selecting Model
C9: MSWDST (FL) | D9: 5 LCI factors: climate change, human toxicity, marine ecotoxicity, acidification potential, eutrophication potential. Factors were created using Florida-specific electricity grid.
C10: SWOLF (FL) | D10: 7 LCI factors: climate change, energy use, water use, human toxicity, marine ecotoxicity, acidification potential, eutrophication potential. Factors were created using Florida-specific electricity grid.
C11: SWOLF (US) | D11: 7 LCI factors: climate change, energy use, water use, human toxicity, marine ecotoxicity, acidification potential, eutrophication potential. Factors were created using US national average-specific electricity grid.
C12: WARM (FL) | D12: 2 LCI factors: climate change and energy use. Factors were created using Florida-specific electricty grid.
C13: WARM (US) | D13: 2 LCI factors: climate change and energy use. Factors were created using US national average-specific electricity grid.
C14: Literature | D14: Uses data from peer-reviewed published studies and LCA study reports. The LCI factors vary depending upon the material. Note: For the two LCI factors, Jobs Produced and Landfill Space Use, the user must select this model to receive the outputs, also to recieve outputs for furniture waste management and any donations.
B16: Note: You will notice there are more material categories in Tab 5 SMM Input and Tab 6 LCI Factors than in Tab 3 2019 WasteCalc Results. We applied several assumptions to breakup some of the material categories into subcategories. The new subcategories are below.
C19: Original FDEP Category | D19: New Subcategories
C20: Newspaper | D20: No change.
C21: Glass | D21: No change.
C22: Aluminum Cans | D22: No change.
C23: Plastic Bottles | D23: HDPE and PET
C24: Steel Cans | D24: No change.
C25: Corrugated Boxes | D25: No change.
C26: Office Paper | D26: No change.
C27: Yard Trash | D27: No change.
C28: Other Plastics | D28: Name change to mixed plastic.
C29: Ferrous Metals | D29: Combined with nonferrous metals and called mixed metals.
C30: White Goods | D30: Combined with a percentage of miscellaneous associated with electronics and called electronics.
C31: Non Ferrous Metals | D31: See ferrous metals note.
C32: Other Paper | D32: Magazines/third-class mail, books, and mixed paper.
C33: Textiles | D33: Name change to clothing and footwear.
C34: C&D Debris | D34: Wood products, asphalt shingles, gypsum drywall, concrete, reclaimed asphalt pavement.
C35: Food Waste | D35: No change.
C36: Miscellaneous | D36: Furniture, electronics, and mixed MSW.
C37: Tires | D37: No change.

Sheet 5 SMM Results
B2: Summary Output: All output units are in parenthesis next to the table label and LCI factor category name. A negative value indicates a savings (or avoidance) of emissions/resources use.
B4: Output data:
B5: Table 1.
B6: Climate Change (tCO2eq.): Greenhouse gases (GHG) absorb energy and slow energy from escaping into space which causes the Earth to get warmer. GHG are expressed as units of tCO2eq.of material to allow for comparison of global warming impacts of different gases relative to CO2. This is a measure of how much energy the emission of 1 ton of gas will absorb over a given period of time, relative to the emissions of 1 ton of CO2.
B7: Material Category | C7: Item No. | D7: Material Type | E7: Source Reduced/ Generated | F7: Donated | G7: Produced | H7: Collection | I7: Recycling | J7: Composting | K7: Anaerobic Digestion | L7: Landfill | M7: Combustion | N7: Lifecycle Total | O7: Waste Management Total
B8: MSW | C8: 1 | D8: Mixed MSW | E8: =IFERROR('6 LCI Factors'!E5*'7 Mass Data for SMM'!E5,0) -> 0 | F8: =IFERROR('6 LCI Factors'!F5*'7 Mass Data for SMM'!F5,0) -> 0 | G8: =IFERROR('6 LCI Factors'!E5*'7 Mass Data for SMM'!G5,0) -> 0 | H8: =IFERROR('6 LCI Factors'!G5*'7 Mass Data for SMM'!G5,0) -> 268.9124611 | I8: =IFERROR('6 LCI Factors'!H5*'7 Mass Data for SMM'!H5,0) -> 0 | J8: =IFERROR('6 LCI Factors'!I5*'7 Mass Data for SMM'!I5,0) -> 0 | K8: =IFERROR('6 LCI Factors'!J5*'7 Mass Data for SMM'!J5,0) -> 0 | L8: =IFERROR('6 LCI Factors'!K5*'7 Mass Data for SMM'!K5,0) -> -8698.250231 | M8: =IFERROR('6 LCI Factors'!L5*'7 Mass Data for SMM'!L5,0) -> 0 | N8: =SUMIF(E8:M8,"<>#value!") -> -8429.33777 | O8: =SUMIF(H8:M8,"<>#value!") -> -8429.33777
B9: Paper | C9: 2 | D9: Newspaper | E9: =IFERROR('6 LCI Factors'!E6*'7 Mass Data for SMM'!E6,0) -> 0 | F9: =IFERROR('6 LCI Factors'!F6*'7 Mass Data for SMM'!F6,0) -> 0 | G9: =IFERROR('6 LCI Factors'!E6*'7 Mass Data for SMM'!G6,0) -> 0 | H9: =IFERROR('6 LCI Factors'!G6*'7 Mass Data for SMM'!G6,0) -> 18.81029131 | I9: =IFERROR('6 LCI Factors'!H6*'7 Mass Data for SMM'!H6,0) -> -2526.795016 | J9: =IFERROR('6 LCI Factors'!I6*'7 Mass Data for SMM'!I6,0) -> 0 | K9: =IFERROR('6 LCI Factors'!J6*'7 Mass Data for SMM'!J6,0) -> 0 | L9: =IFERROR('6 LCI Factors'!K6*'7 Mass Data for SMM'!K6,0) -> -385.6104995 | M9: =IFERROR('6 LCI Factors'!L6*'7 Mass Data for SMM'!L6,0) -> 0 | N9: =SUMIF(E9:M9,"<>#value!") -> -2893.595224 | O9: =SUMIF(H9:M9,"<>#value!") -> -2893.595224
C10: 3 | D10: Corrugated Cardboard (OCC) | E10: =IFERROR('6 LCI Factors'!E7*'7 Mass Data for SMM'!E7,0) -> 0 | F10: =IFERROR('6 LCI Factors'!F7*'7 Mass Data for SMM'!F7,0) -> 0 | G10: =IFERROR('6 LCI Factors'!E7*'7 Mass Data for SMM'!G7,0) -> 0 | H10: =IFERROR('6 LCI Factors'!G7*'7 Mass Data for SMM'!G7,0) -> 222.6203176 | I10: =IFERROR('6 LCI Factors'!H7*'7 Mass Data for SMM'!H7,0) -> 5214.323387 | J10: =IFERROR('6 LCI Factors'!I7*'7 Mass Data for SMM'!I7,0) -> 0 | K10: =IFERROR('6 LCI Factors'!J7*'7 Mass Data for SMM'!J7,0) -> 0 | L10: =IFERROR('6 LCI Factors'!K7*'7 Mass Data for SMM'!K7,0) -> -9309.236369 | M10: =IFERROR('6 LCI Factors'!L7*'7 Mass Data for SMM'!L7,0) -> 0 | N10: -3872.292665 | O10: -3872.292665
C11: 4 | D11: High Grade Paper (Office Type Paper) | E11: =IFERROR('6 LCI Factors'!E8*'7 Mass Data for SMM'!E8,0) -> 0 | F11: =IFERROR('6 LCI Factors'!F8*'7 Mass Data for SMM'!F8,0) -> 0 | G11: =IFERROR('6 LCI Factors'!E8*'7 Mass Data for SMM'!G8,0) -> 0 | H11: =IFERROR('6 LCI Factors'!G8*'7 Mass Data for SMM'!G8,0) -> 22.42193408 | I11: =IFERROR('6 LCI Factors'!H8*'7 Mass Data for SMM'!H8,0) -> 936.6982535 | J11: =IFERROR('6 LCI Factors'!I8*'7 Mass Data for SMM'!I8,0) -> 0 | K11: =IFERROR('6 LCI Factors'!J8*'7 Mass Data for SMM'!J8,0) -> 0 | L11: =IFERROR('6 LCI Factors'!K8*'7 Mass Data for SMM'!K8,0) -> 143.7965715 | M11: =IFERROR('6 LCI Factors'!L8*'7 Mass Data for SMM'!L8,0) -> 0 | N11: 1102.916759 | O11: 1102.916759
C12: 5 | D12: Magazines/third-class mail | E12: =IFERROR('6 LCI Factors'!E9*'7 Mass Data for SMM'!E9,0) -> 0 | F12: =IFERROR('6 LCI Factors'!F9*'7 Mass Data for SMM'!F9,0) -> 0 | G12: =IFERROR('6 LCI Factors'!E9*'7 Mass Data for SMM'!G9,0) -> 0 | H12: =IFERROR('6 LCI Factors'!G9*'7 Mass Data for SMM'!G9,0) -> 51.58285784 | I12: =IFERROR('6 LCI Factors'!H9*'7 Mass Data for SMM'!H9,0) -> 12.87417417 | J12: =IFERROR('6 LCI Factors'!I9*'7 Mass Data for SMM'!I9,0) -> 0 | K12: =IFERROR('6 LCI Factors'!J9*'7 Mass Data for SMM'!J9,0) -> 0 | L12: =IFERROR('6 LCI Factors'!K9*'7 Mass Data for SMM'!K9,0) -> -4167.681017 | M12: =IFERROR('6 LCI Factors'!L9*'7 Mass Data for SMM'!L9,0) -> 0 | N12: -4103.223985 | O12: -4103.223985
C13: 6 | D13: Books | E13: =IFERROR('6 LCI Factors'!E10*'7 Mass Data for SMM'!E10,0) -> 0 | F13: =IFERROR('6 LCI Factors'!F10*'7 Mass Data for SMM'!F10,0) -> 0 | G13: =IFERROR('6 LCI Factors'!E10*'7 Mass Data for SMM'!G10,0) -> 0 | H13: =IFERROR('6 LCI Factors'!G10*'7 Mass Data for SMM'!G10,0) -> 5.050703846 | I13: =IFERROR('6 LCI Factors'!H10*'7 Mass Data for SMM'!H10,0) -> 0 | J13: =IFERROR('6 LCI Factors'!I10*'7 Mass Data for SMM'!I10,0) -> 0 | K13: =IFERROR('6 LCI Factors'!J10*'7 Mass Data for SMM'!J10,0) -> 0 | L13: =IFERROR('6 LCI Factors'!K10*'7 Mass Data for SMM'!K10,0) -> 74.51085808 | M13: =IFERROR('6 LCI Factors'!L10*'7 Mass Data for SMM'!L10,0) -> 0 | N13: 79.56156193 | O13: 79.56156193
C14: 7 | D14: Mixed Paper | E14: =IFERROR('6 LCI Factors'!E11*'7 Mass Data for SMM'!E11,0) -> 0 | F14: =IFERROR('6 LCI Factors'!F11*'7 Mass Data for SMM'!F11,0) -> 0 | G14: =IFERROR('6 LCI Factors'!E11*'7 Mass Data for SMM'!G11,0) -> 0 | H14: =IFERROR('6 LCI Factors'!G11*'7 Mass Data for SMM'!G11,0) -> 167.6397333 | I14: =IFERROR('6 LCI Factors'!H11*'7 Mass Data for SMM'!H11,0) -> -37.00731459 | J14: =IFERROR('6 LCI Factors'!I11*'7 Mass Data for SMM'!I11,0) -> 0 | K14: =IFERROR('6 LCI Factors'!J11*'7 Mass Data for SMM'!J11,0) -> 0 | L14: =IFERROR('6 LCI Factors'!K11*'7 Mass Data for SMM'!K11,0) -> -18038.31954 | M14: =IFERROR('6 LCI Factors'!L11*'7 Mass Data for SMM'!L11,0) -> 0 | N14: -17907.68712 | O14: -17907.68712
B15: Plastic | C15: 8 | D15: HDPE | E15: =IFERROR('6 LCI Factors'!E12*'7 Mass Data for SMM'!E12,0) -> 0 | F15: =IFERROR('6 LCI Factors'!F12*'7 Mass Data for SMM'!F12,0) -> 0 | G15: =IFERROR('6 LCI Factors'!E12*'7 Mass Data for SMM'!G12,0) -> 0 | H15: =IFERROR('6 LCI Factors'!G12*'7 Mass Data for SMM'!G12,0) -> 7.437861721 | I15: =IFERROR('6 LCI Factors'!H12*'7 Mass Data for SMM'!H12,0) -> -457.8568094 | J15: =IFERROR('6 LCI Factors'!I12*'7 Mass Data for SMM'!I12,0) -> 0 | K15: =IFERROR('6 LCI Factors'!J12*'7 Mass Data for SMM'!J12,0) -> 0 | L15: =IFERROR('6 LCI Factors'!K12*'7 Mass Data for SMM'!K12,0) -> 3.564231564 | M15: =IFERROR('6 LCI Factors'!L12*'7 Mass Data for SMM'!L12,0) -> 0 | N15: -446.8547161 | O15: -446.8547161
C16: 9 | D16: PET | E16: =IFERROR('6 LCI Factors'!E13*'7 Mass Data for SMM'!E13,0) -> 0 | F16: =IFERROR('6 LCI Factors'!F13*'7 Mass Data for SMM'!F13,0) -> 0 | G16: =IFERROR('6 LCI Factors'!E13*'7 Mass Data for SMM'!G13,0) -> 0 | H16: =IFERROR('6 LCI Factors'!G13*'7 Mass Data for SMM'!G13,0) -> 12.23738759 | I16: =IFERROR('6 LCI Factors'!H13*'7 Mass Data for SMM'!H13,0) -> -978.9952743 | J16: =IFERROR('6 LCI Factors'!I13*'7 Mass Data for SMM'!I13,0) -> 0 | K16: =IFERROR('6 LCI Factors'!J13*'7 Mass Data for SMM'!J13,0) -> 0 | L16: =IFERROR('6 LCI Factors'!K13*'7 Mass Data for SMM'!K13,0) -> 5.864169668 | M16: =IFERROR('6 LCI Factors'!L13*'7 Mass Data for SMM'!L13,0) -> 0 | N16: -960.8937171 | O16: -960.8937171
C17: 10 | D17: Mixed Plastic | E17: =IFERROR('6 LCI Factors'!E14*'7 Mass Data for SMM'!E14,0) -> 0 | F17: =IFERROR('6 LCI Factors'!F14*'7 Mass Data for SMM'!F14,0) -> 0 | G17: =IFERROR('6 LCI Factors'!E14*'7 Mass Data for SMM'!G14,0) -> 0 | H17: =IFERROR('6 LCI Factors'!G14*'7 Mass Data for SMM'!G14,0) -> 128.4696354 | I17: =IFERROR('6 LCI Factors'!H14*'7 Mass Data for SMM'!H14,0) -> -1264.20794 | J17: =IFERROR('6 LCI Factors'!I14*'7 Mass Data for SMM'!I14,0) -> 0 | K17: =IFERROR('6 LCI Factors'!J14*'7 Mass Data for SMM'!J14,0) -> 0 | L17: =IFERROR('6 LCI Factors'!K14*'7 Mass Data for SMM'!K14,0) -> 84.86537966 | M17: =IFERROR('6 LCI Factors'!L14*'7 Mass Data for SMM'!L14,0) -> 0 | N17: -1050.872925 | O17: -1050.872925
B18: Glass | C18: 11 | D18: Glass | E18: =IFERROR('6 LCI Factors'!E15*'7 Mass Data for SMM'!E15,0) -> 0 | F18: =IFERROR('6 LCI Factors'!F15*'7 Mass Data for SMM'!F15,0) -> 0 | G18: =IFERROR('6 LCI Factors'!E15*'7 Mass Data for SMM'!G15,0) -> 0 | H18: =IFERROR('6 LCI Factors'!G15*'7 Mass Data for SMM'!G15,0) -> 40.15193745 | I18: =IFERROR('6 LCI Factors'!H15*'7 Mass Data for SMM'!H15,0) -> -1220.729193 | J18: =IFERROR('6 LCI Factors'!I15*'7 Mass Data for SMM'!I15,0) -> 0 | K18: =IFERROR('6 LCI Factors'!J15*'7 Mass Data for SMM'!J15,0) -> 0 | L18: =IFERROR('6 LCI Factors'!K15*'7 Mass Data for SMM'!K15,0) -> 11.82136543 | M18: =IFERROR('6 LCI Factors'!L15*'7 Mass Data for SMM'!L15,0) -> 0 | N18: -1168.75589 | O18: -1168.75589
B19: Metals | C19: 12 | D19: Aluminum Cans | E19: =IFERROR('6 LCI Factors'!E16*'7 Mass Data for SMM'!E16,0) -> 0 | F19: =IFERROR('6 LCI Factors'!F16*'7 Mass Data for SMM'!F16,0) -> 0 | G19: =IFERROR('6 LCI Factors'!E16*'7 Mass Data for SMM'!G16,0) -> 0 | H19: =IFERROR('6 LCI Factors'!G16*'7 Mass Data for SMM'!G16,0) -> 5.849732881 | I19: =IFERROR('6 LCI Factors'!H16*'7 Mass Data for SMM'!H16,0) -> -4070.998274 | J19: =IFERROR('6 LCI Factors'!I16*'7 Mass Data for SMM'!I16,0) -> 0 | K19: =IFERROR('6 LCI Factors'!J16*'7 Mass Data for SMM'!J16,0) -> 0 | L19: =IFERROR('6 LCI Factors'!K16*'7 Mass Data for SMM'!K16,0) -> 2.425127557 | M19: =IFERROR('6 LCI Factors'!L16*'7 Mass Data for SMM'!L16,0) -> 0 | N19: -4062.723414 | O19: -4062.723414
C20: 13 | D20: Steel/Tin Cans | E20: =IFERROR('6 LCI Factors'!E17*'7 Mass Data for SMM'!E17,0) -> 0 | F20: =IFERROR('6 LCI Factors'!F17*'7 Mass Data for SMM'!F17,0) -> 0 | G20: =IFERROR('6 LCI Factors'!E17*'7 Mass Data for SMM'!G17,0) -> 0 | H20: =IFERROR('6 LCI Factors'!G17*'7 Mass Data for SMM'!G17,0) -> 7.281107143 | I20: =IFERROR('6 LCI Factors'!H17*'7 Mass Data for SMM'!H17,0) -> -284.6125159 | J20: =IFERROR('6 LCI Factors'!I17*'7 Mass Data for SMM'!I17,0) -> 0 | K20: =IFERROR('6 LCI Factors'!J17*'7 Mass Data for SMM'!J17,0) -> 0 | L20: =IFERROR('6 LCI Factors'!K17*'7 Mass Data for SMM'!K17,0) -> 3.720657529 | M20: =IFERROR('6 LCI Factors'!L17*'7 Mass Data for SMM'!L17,0) -> 0 | N20: -273.6107512 | O20: -273.6107512
C21: 14 | D21: Mixed Metals | E21: =IFERROR('6 LCI Factors'!E18*'7 Mass Data for SMM'!E18,0) -> 0 | F21: =IFERROR('6 LCI Factors'!F18*'7 Mass Data for SMM'!F18,0) -> 0 | G21: =IFERROR('6 LCI Factors'!E18*'7 Mass Data for SMM'!G18,0) -> 0 | H21: =IFERROR('6 LCI Factors'!G18*'7 Mass Data for SMM'!G18,0) -> 101.7244165 | I21: =IFERROR('6 LCI Factors'!H18*'7 Mass Data for SMM'!H18,0) -> -82228.76842 | J21: =IFERROR('6 LCI Factors'!I18*'7 Mass Data for SMM'!I18,0) -> 0 | K21: =IFERROR('6 LCI Factors'!J18*'7 Mass Data for SMM'!J18,0) -> 0 | L21: =IFERROR('6 LCI Factors'!K18*'7 Mass Data for SMM'!K18,0) -> 10.25455151 | M21: =IFERROR('6 LCI Factors'!L18*'7 Mass Data for SMM'!L18,0) -> 0 | N21: -82116.78945 | O21: -82116.78945
B22: Organic | C22: 15 | D22: Yard Waste | E22: =IFERROR('6 LCI Factors'!E19*'7 Mass Data for SMM'!E19,0) -> 0 | F22: =IFERROR('6 LCI Factors'!F19*'7 Mass Data for SMM'!F19,0) -> 0 | G22: =IFERROR('6 LCI Factors'!E19*'7 Mass Data for SMM'!G19,0) -> 0 | H22: =IFERROR('6 LCI Factors'!G19*'7 Mass Data for SMM'!G19,0) -> 812.862119 | I22: =IFERROR('6 LCI Factors'!H19*'7 Mass Data for SMM'!H19,0) -> 0 | J22: =IFERROR('6 LCI Factors'!I19*'7 Mass Data for SMM'!I19,0) -> 910.7822409 | K22: =IFERROR('6 LCI Factors'!J19*'7 Mass Data for SMM'!J19,0) -> 0 | L22: =IFERROR('6 LCI Factors'!K19*'7 Mass Data for SMM'!K19,0) -> -404.3581265 | M22: =IFERROR('6 LCI Factors'!L19*'7 Mass Data for SMM'!L19,0) -> -57214.61211 | N22: -55895.32588 | O22: -55895.32588
C23: 16 | D23: Food Waste | E23: =IFERROR('6 LCI Factors'!E20*'7 Mass Data for SMM'!E20,0) -> 0 | F23: =IFERROR('6 LCI Factors'!F20*'7 Mass Data for SMM'!F20,0) -> 0 | G23: =IFERROR('6 LCI Factors'!E20*'7 Mass Data for SMM'!G20,0) -> 0 | H23: =IFERROR('6 LCI Factors'!G20*'7 Mass Data for SMM'!G20,0) -> 151.9213647 | I23: =IFERROR('6 LCI Factors'!H20*'7 Mass Data for SMM'!H20,0) -> 0 | J23: =IFERROR('6 LCI Factors'!I20*'7 Mass Data for SMM'!I20,0) -> 11.75502049 | K23: =IFERROR('6 LCI Factors'!J20*'7 Mass Data for SMM'!J20,0) -> 0 | L23: =IFERROR('6 LCI Factors'!K20*'7 Mass Data for SMM'!K20,0) -> 10034.28759 | M23: =IFERROR('6 LCI Factors'!L20*'7 Mass Data for SMM'!L20,0) -> 0 | N23: 10197.96398 | O23: 10197.96398
B24: Other | C24: 17 | D24: Tires | E24: =IFERROR('6 LCI Factors'!E21*'7 Mass Data for SMM'!E21,0) -> 0 | F24: =IFERROR('6 LCI Factors'!F21*'7 Mass Data for SMM'!F21,0) -> 0 | G24: =IFERROR('6 LCI Factors'!E21*'7 Mass Data for SMM'!G21,0) -> 0 | H24: =IFERROR('6 LCI Factors'!G21*'7 Mass Data for SMM'!G21,0) -> 0 | I24: =IFERROR('6 LCI Factors'!H21*'7 Mass Data for SMM'!H21,0) -> 0 | J24: =IFERROR('6 LCI Factors'!I21*'7 Mass Data for SMM'!I21,0) -> 0 | K24: =IFERROR('6 LCI Factors'!J21*'7 Mass Data for SMM'!J21,0) -> 0 | L24: =IFERROR('6 LCI Factors'!K21*'7 Mass Data for SMM'!K21,0) -> 0 | M24: =IFERROR('6 LCI Factors'!L21*'7 Mass Data for SMM'!L21,0) -> 0 | N24: 0 | O24: 0
C25: 18 | D25: Clothing and Footwear | E25: =IFERROR('6 LCI Factors'!E22*'7 Mass Data for SMM'!E22,0) -> 0 | F25: =IFERROR('6 LCI Factors'!F22*'7 Mass Data for SMM'!F22,0) -> 0 | G25: =IFERROR('6 LCI Factors'!E22*'7 Mass Data for SMM'!G22,0) -> 0 | H25: =IFERROR('6 LCI Factors'!G22*'7 Mass Data for SMM'!G22,0) -> 0 | I25: =IFERROR('6 LCI Factors'!H22*'7 Mass Data for SMM'!H22,0) -> 0 | J25: =IFERROR('6 LCI Factors'!I22*'7 Mass Data for SMM'!I22,0) -> 0 | K25: =IFERROR('6 LCI Factors'!J22*'7 Mass Data for SMM'!J22,0) -> 0 | L25: =IFERROR('6 LCI Factors'!K22*'7 Mass Data for SMM'!K22,0) -> 0 | M25: =IFERROR('6 LCI Factors'!L22*'7 Mass Data for SMM'!L22,0) -> 0 | N25: 0 | O25: 0
C26: 19 | D26: Furniture | E26: =IFERROR('6 LCI Factors'!E23*'7 Mass Data for SMM'!E23,0) -> 0 | F26: =IFERROR('6 LCI Factors'!F23*'7 Mass Data for SMM'!F23,0) -> 0 | G26: =IFERROR('6 LCI Factors'!E23*'7 Mass Data for SMM'!G23,0) -> 0 | H26: =IFERROR('6 LCI Factors'!G23*'7 Mass Data for SMM'!G23,0) -> 0 | I26: =IFERROR('6 LCI Factors'!H23*'7 Mass Data for SMM'!H23,0) -> 0 | J26: =IFERROR('6 LCI Factors'!I23*'7 Mass Data for SMM'!I23,0) -> 0 | K26: =IFERROR('6 LCI Factors'!J23*'7 Mass Data for SMM'!J23,0) -> 0 | L26: =IFERROR('6 LCI Factors'!K23*'7 Mass Data for SMM'!K23,0) -> 0 | M26: =IFERROR('6 LCI Factors'!L23*'7 Mass Data for SMM'!L23,0) -> 0 | N26: 0 | O26: 0
C27: 20 | D27: Electronics | E27: =IFERROR('6 LCI Factors'!E24*'7 Mass Data for SMM'!E24,0) -> 0 | F27: =IFERROR('6 LCI Factors'!F24*'7 Mass Data for SMM'!F24,0) -> 0 | G27: =IFERROR('6 LCI Factors'!E24*'7 Mass Data for SMM'!G24,0) -> 0 | H27: =IFERROR('6 LCI Factors'!G24*'7 Mass Data for SMM'!G24,0) -> 0 | I27: =IFERROR('6 LCI Factors'!H24*'7 Mass Data for SMM'!H24,0) -> 0 | J27: =IFERROR('6 LCI Factors'!I24*'7 Mass Data for SMM'!I24,0) -> 0 | K27: =IFERROR('6 LCI Factors'!J24*'7 Mass Data for SMM'!J24,0) -> 0 | L27: =IFERROR('6 LCI Factors'!K24*'7 Mass Data for SMM'!K24,0) -> 0 | M27: =IFERROR('6 LCI Factors'!L24*'7 Mass Data for SMM'!L24,0) -> 0 | N27: 0 | O27: 0
B28: C&D Debris | C28: 21 | D28: Wood Products | E28: =IFERROR('6 LCI Factors'!E25*'7 Mass Data for SMM'!E25,0) -> 0 | F28: =IFERROR('6 LCI Factors'!F25*'7 Mass Data for SMM'!F25,0) -> 0 | G28: =IFERROR('6 LCI Factors'!E25*'7 Mass Data for SMM'!G25,0) -> 0 | H28: =IFERROR('6 LCI Factors'!G25*'7 Mass Data for SMM'!G25,0) -> 0 | I28: =IFERROR('6 LCI Factors'!H25*'7 Mass Data for SMM'!H25,0) -> 0 | J28: =IFERROR('6 LCI Factors'!I25*'7 Mass Data for SMM'!I25,0) -> 0 | K28: =IFERROR('6 LCI Factors'!J25*'7 Mass Data for SMM'!J25,0) -> 0 | L28: =IFERROR('6 LCI Factors'!K25*'7 Mass Data for SMM'!K25,0) -> 0 | M28: =IFERROR('6 LCI Factors'!L25*'7 Mass Data for SMM'!L25,0) -> 0 | N28: 0 | O28: 0
C29: 22 | D29: Asphalt Shingles | E29: =IFERROR('6 LCI Factors'!E26*'7 Mass Data for SMM'!E26,0) -> 0 | F29: =IFERROR('6 LCI Factors'!F26*'7 Mass Data for SMM'!F26,0) -> 0 | G29: =IFERROR('6 LCI Factors'!E26*'7 Mass Data for SMM'!G26,0) -> 0 | H29: =IFERROR('6 LCI Factors'!G26*'7 Mass Data for SMM'!G26,0) -> 0 | I29: =IFERROR('6 LCI Factors'!H26*'7 Mass Data for SMM'!H26,0) -> 0 | J29: =IFERROR('6 LCI Factors'!I26*'7 Mass Data for SMM'!I26,0) -> 0 | K29: =IFERROR('6 LCI Factors'!J26*'7 Mass Data for SMM'!J26,0) -> 0 | L29: =IFERROR('6 LCI Factors'!K26*'7 Mass Data for SMM'!K26,0) -> 0 | M29: =IFERROR('6 LCI Factors'!L26*'7 Mass Data for SMM'!L26,0) -> 0 | N29: 0 | O29: 0
C30: 23 | D30: Gypsum Drywall | E30: =IFERROR('6 LCI Factors'!E27*'7 Mass Data for SMM'!E27,0) -> 0 | F30: =IFERROR('6 LCI Factors'!F27*'7 Mass Data for SMM'!F27,0) -> 0 | G30: =IFERROR('6 LCI Factors'!E27*'7 Mass Data for SMM'!G27,0) -> 0 | H30: =IFERROR('6 LCI Factors'!G27*'7 Mass Data for SMM'!G27,0) -> 0 | I30: =IFERROR('6 LCI Factors'!H27*'7 Mass Data for SMM'!H27,0) -> 0 | J30: =IFERROR('6 LCI Factors'!I27*'7 Mass Data for SMM'!I27,0) -> 0 | K30: =IFERROR('6 LCI Factors'!J27*'7 Mass Data for SMM'!J27,0) -> 0 | L30: =IFERROR('6 LCI Factors'!K27*'7 Mass Data for SMM'!K27,0) -> 0 | M30: =IFERROR('6 LCI Factors'!L27*'7 Mass Data for SMM'!L27,0) -> 0 | N30: 0 | O30: 0
C31: 24 | D31: Concrete | E31: =IFERROR('6 LCI Factors'!E28*'7 Mass Data for SMM'!E28,0) -> 0 | F31: =IFERROR('6 LCI Factors'!F28*'7 Mass Data for SMM'!F28,0) -> 0 | G31: =IFERROR('6 LCI Factors'!E28*'7 Mass Data for SMM'!G28,0) -> 0 | H31: =IFERROR('6 LCI Factors'!G28*'7 Mass Data for SMM'!G28,0) -> 0 | I31: =IFERROR('6 LCI Factors'!H28*'7 Mass Data for SMM'!H28,0) -> 0 | J31: =IFERROR('6 LCI Factors'!I28*'7 Mass Data for SMM'!I28,0) -> 0 | K31: =IFERROR('6 LCI Factors'!J28*'7 Mass Data for SMM'!J28,0) -> 0 | L31: =IFERROR('6 LCI Factors'!K28*'7 Mass Data for SMM'!K28,0) -> 0 | M31: =IFERROR('6 LCI Factors'!L28*'7 Mass Data for SMM'!L28,0) -> 0 | N31: 0 | O31: 0
C32: 25 | D32: Reclaimed Asphalt Pavement | E32: =IFERROR('6 LCI Factors'!E29*'7 Mass Data for SMM'!E29,0) -> 0 | F32: =IFERROR('6 LCI Factors'!F29*'7 Mass Data for SMM'!F29,0) -> 0 | G32: =IFERROR('6 LCI Factors'!E29*'7 Mass Data for SMM'!G29,0) -> 0 | H32: =IFERROR('6 LCI Factors'!G29*'7 Mass Data for SMM'!G29,0) -> 0 | I32: =IFERROR('6 LCI Factors'!H29*'7 Mass Data for SMM'!H29,0) -> 0 | J32: =IFERROR('6 LCI Factors'!I29*'7 Mass Data for SMM'!I29,0) -> 0 | K32: =IFERROR('6 LCI Factors'!J29*'7 Mass Data for SMM'!J29,0) -> 0 | L32: =IFERROR('6 LCI Factors'!K29*'7 Mass Data for SMM'!K29,0) -> 0 | M32: =IFERROR('6 LCI Factors'!L29*'7 Mass Data for SMM'!L29,0) -> 0 | N32: 0 | O32: 0
B33: Total | E33: =SUMIF(E8:E32,"<>#value!") -> 0 | F33: =SUMIF(F8:F32,"<>#value!") -> 0 | G33: =SUMIF(G8:G32,"<>#value!") -> 0 | H33: =SUMIF(H8:H32,"<>#value!") -> 2024.973861 | I33: =SUMIF(I8:I32,"<>#value!") -> -86906.07494 | J33: 922.5372614 | K33: 0 | L33: -30628.34527 | M33: -57214.61211 | N33: -171801.5212 | O33: =SUMIF(O8:O32,"<>#value!") -> -171801.5212
B35: Table 2.
B36: Energy Use (MJ): Energy is consumed by different processes, the units are expressed as MJ. This is a measure of the direct and indirect energy use throughout the life cycle and can include both renewable and non-renewable energy source.
B37: Material Category | C37: Item No. | D37: Material Type | E37: Source Reduced/ Generated | F37: Donated | G37: Produced | H37: Collection | I37: Recycling | J37: Composting | K37: Anaerobic Digestion | L37: Landfill | M37: Combustion | N37: Lifecycle Total | O37: Waste Management Total
B38: MSW | C38: 1 | D38: Mixed MSW | E38: =IFERROR('6 LCI Factors'!E35*'7 Mass Data for SMM'!E5,0) -> 0 | F38: =IFERROR('6 LCI Factors'!F35*'7 Mass Data for SMM'!F5,0) -> 0 | G38: =IFERROR('6 LCI Factors'!E35*'7 Mass Data for SMM'!G5,0) -> 0 | H38: =IFERROR('6 LCI Factors'!G35*'7 Mass Data for SMM'!G5,0) -> 15286469.36 | I38: =IFERROR('6 LCI Factors'!H35*'7 Mass Data for SMM'!H5,0) -> 0 | J38: =IFERROR('6 LCI Factors'!I35*'7 Mass Data for SMM'!I5,0) -> 0 | K38: =IFERROR('6 LCI Factors'!J35*'7 Mass Data for SMM'!J5,0) -> 0 | L38: =IFERROR('6 LCI Factors'!K35*'7 Mass Data for SMM'!K5,0) -> -55769477.07 | M38: =IFERROR('6 LCI Factors'!L35*'7 Mass Data for SMM'!L5,0) -> 0 | N38: =SUMIF(E38:M38,"<>#value!") -> -40483007.71 | O38: =SUMIF(H38:M38,"<>#value!") -> -40483007.71
B39: Paper | C39: 2 | D39: Newspaper | E39: =IFERROR('6 LCI Factors'!E36*'7 Mass Data for SMM'!E6,0) -> 0 | F39: =IFERROR('6 LCI Factors'!F36*'7 Mass Data for SMM'!F6,0) -> 0 | G39: =IFERROR('6 LCI Factors'!E36*'7 Mass Data for SMM'!G6,0) -> 0 | H39: =IFERROR('6 LCI Factors'!G36*'7 Mass Data for SMM'!G6,0) -> 1069280.839 | I39: =IFERROR('6 LCI Factors'!H36*'7 Mass Data for SMM'!H6,0) -> -54226323.84 | J39: =IFERROR('6 LCI Factors'!I36*'7 Mass Data for SMM'!I6,0) -> 0 | K39: =IFERROR('6 LCI Factors'!J36*'7 Mass Data for SMM'!J6,0) -> 0 | L39: =IFERROR('6 LCI Factors'!K36*'7 Mass Data for SMM'!K6,0) -> -7240.196311 | M39: =IFERROR('6 LCI Factors'!L36*'7 Mass Data for SMM'!L6,0) -> 0 | N39: =SUMIF(E39:M39,"<>#value!") -> -53164283.2 | O39: =SUMIF(H39:M39,"<>#value!") -> -53164283.2
C40: 3 | D40: Corrugated Cardboard (OCC) | E40: =IFERROR('6 LCI Factors'!E37*'7 Mass Data for SMM'!E7,0) -> 0 | F40: =IFERROR('6 LCI Factors'!F37*'7 Mass Data for SMM'!F7,0) -> 0 | G40: =IFERROR('6 LCI Factors'!E37*'7 Mass Data for SMM'!G7,0) -> 0 | H40: =IFERROR('6 LCI Factors'!G37*'7 Mass Data for SMM'!G7,0) -> 12654968.28 | I40: =IFERROR('6 LCI Factors'!H37*'7 Mass Data for SMM'!H7,0) -> -360399536.9 | J40: =IFERROR('6 LCI Factors'!I37*'7 Mass Data for SMM'!I7,0) -> 0 | K40: =IFERROR('6 LCI Factors'!J37*'7 Mass Data for SMM'!J7,0) -> 0 | L40: =IFERROR('6 LCI Factors'!K37*'7 Mass Data for SMM'!K7,0) -> -12799444.19 | M40: =IFERROR('6 LCI Factors'!L37*'7 Mass Data for SMM'!L7,0) -> 0 | N40: -360544012.8 | O40: -360544012.8
C41: 4 | D41: High Grade Paper (Office Type Paper) | E41: =IFERROR('6 LCI Factors'!E38*'7 Mass Data for SMM'!E8,0) -> 0 | F41: =IFERROR('6 LCI Factors'!F38*'7 Mass Data for SMM'!F8,0) -> 0 | G41: =IFERROR('6 LCI Factors'!E38*'7 Mass Data for SMM'!G8,0) -> 0 | H41: =IFERROR('6 LCI Factors'!G38*'7 Mass Data for SMM'!G8,0) -> 1274586.559 | I41: =IFERROR('6 LCI Factors'!H38*'7 Mass Data for SMM'!H8,0) -> -29911033.88 | J41: =IFERROR('6 LCI Factors'!I38*'7 Mass Data for SMM'!I8,0) -> 0 | K41: =IFERROR('6 LCI Factors'!J38*'7 Mass Data for SMM'!J8,0) -> 0 | L41: =IFERROR('6 LCI Factors'!K38*'7 Mass Data for SMM'!K8,0) -> -2148267.084 | M41: =IFERROR('6 LCI Factors'!L38*'7 Mass Data for SMM'!L8,0) -> 0 | N41: -30784714.41 | O41: -30784714.41
C42: 5 | D42: Magazines/third-class mail | E42: =IFERROR('6 LCI Factors'!E39*'7 Mass Data for SMM'!E9,0) -> 0 | F42: =IFERROR('6 LCI Factors'!F39*'7 Mass Data for SMM'!F9,0) -> 0 | G42: =IFERROR('6 LCI Factors'!E39*'7 Mass Data for SMM'!G9,0) -> 0 | H42: =IFERROR('6 LCI Factors'!G39*'7 Mass Data for SMM'!G9,0) -> 2932254.507 | I42: =IFERROR('6 LCI Factors'!H39*'7 Mass Data for SMM'!H9,0) -> -64371.60459 | J42: =IFERROR('6 LCI Factors'!I39*'7 Mass Data for SMM'!I9,0) -> 0 | K42: =IFERROR('6 LCI Factors'!J39*'7 Mass Data for SMM'!J9,0) -> 0 | L42: =IFERROR('6 LCI Factors'!K39*'7 Mass Data for SMM'!K9,0) -> -2442239.479 | M42: =IFERROR('6 LCI Factors'!L39*'7 Mass Data for SMM'!L9,0) -> 0 | N42: 425643.4242 | O42: 425643.4242
C43: 6 | D43: Books | E43: =IFERROR('6 LCI Factors'!E40*'7 Mass Data for SMM'!E10,0) -> 0 | F43: =IFERROR('6 LCI Factors'!F40*'7 Mass Data for SMM'!F10,0) -> 0 | G43: =IFERROR('6 LCI Factors'!E40*'7 Mass Data for SMM'!G10,0) -> 0 | H43: =IFERROR('6 LCI Factors'!G40*'7 Mass Data for SMM'!G10,0) -> 287109.8992 | I43: =IFERROR('6 LCI Factors'!H40*'7 Mass Data for SMM'!H10,0) -> 0 | J43: =IFERROR('6 LCI Factors'!I40*'7 Mass Data for SMM'!I10,0) -> 0 | K43: =IFERROR('6 LCI Factors'!J40*'7 Mass Data for SMM'!J10,0) -> 0 | L43: =IFERROR('6 LCI Factors'!K40*'7 Mass Data for SMM'!K10,0) -> -19584.06186 | M43: =IFERROR('6 LCI Factors'!L40*'7 Mass Data for SMM'!L10,0) -> 0 | N43: 267525.8374 | O43: 267525.8374
C44: 7 | D44: Mixed Paper | E44: =IFERROR('6 LCI Factors'!E41*'7 Mass Data for SMM'!E11,0) -> 0 | F44: =IFERROR('6 LCI Factors'!F41*'7 Mass Data for SMM'!F11,0) -> 0 | G44: =IFERROR('6 LCI Factors'!E41*'7 Mass Data for SMM'!G11,0) -> 0 | H44: =IFERROR('6 LCI Factors'!G41*'7 Mass Data for SMM'!G11,0) -> 9529568.234 | I44: =IFERROR('6 LCI Factors'!H41*'7 Mass Data for SMM'!H11,0) -> -6823649.112 | J44: =IFERROR('6 LCI Factors'!I41*'7 Mass Data for SMM'!I11,0) -> 0 | K44: =IFERROR('6 LCI Factors'!J41*'7 Mass Data for SMM'!J11,0) -> 0 | L44: =IFERROR('6 LCI Factors'!K41*'7 Mass Data for SMM'!K11,0) -> -21796151.03 | M44: =IFERROR('6 LCI Factors'!L41*'7 Mass Data for SMM'!L11,0) -> 0 | N44: -19090231.9 | O44: -19090231.9
B45: Plastic | C45: 8 | D45: HDPE | E45: =IFERROR('6 LCI Factors'!E42*'7 Mass Data for SMM'!E12,0) -> 0 | F45: =IFERROR('6 LCI Factors'!F42*'7 Mass Data for SMM'!F12,0) -> 0 | G45: =IFERROR('6 LCI Factors'!E42*'7 Mass Data for SMM'!G12,0) -> 0 | H45: =IFERROR('6 LCI Factors'!G42*'7 Mass Data for SMM'!G12,0) -> 422809.136 | I45: =IFERROR('6 LCI Factors'!H42*'7 Mass Data for SMM'!H12,0) -> -8196281.971 | J45: =IFERROR('6 LCI Factors'!I42*'7 Mass Data for SMM'!I12,0) -> 0 | K45: =IFERROR('6 LCI Factors'!J42*'7 Mass Data for SMM'!J12,0) -> 0 | L45: =IFERROR('6 LCI Factors'!K42*'7 Mass Data for SMM'!K12,0) -> 504095.7548 | M45: =IFERROR('6 LCI Factors'!L42*'7 Mass Data for SMM'!L12,0) -> 0 | N45: -7269377.08 | O45: -7269377.08
C46: 9 | D46: PET | E46: =IFERROR('6 LCI Factors'!E43*'7 Mass Data for SMM'!E13,0) -> 0 | F46: =IFERROR('6 LCI Factors'!F43*'7 Mass Data for SMM'!F13,0) -> 0 | G46: =IFERROR('6 LCI Factors'!E43*'7 Mass Data for SMM'!G13,0) -> 0 | H46: =IFERROR('6 LCI Factors'!G43*'7 Mass Data for SMM'!G13,0) -> 695640.6917 | I46: =IFERROR('6 LCI Factors'!H43*'7 Mass Data for SMM'!H13,0) -> -15932615.93 | J46: =IFERROR('6 LCI Factors'!I43*'7 Mass Data for SMM'!I13,0) -> 0 | K46: =IFERROR('6 LCI Factors'!J43*'7 Mass Data for SMM'!J13,0) -> 0 | L46: =IFERROR('6 LCI Factors'!K43*'7 Mass Data for SMM'!K13,0) -> 829380.1853 | M46: =IFERROR('6 LCI Factors'!L43*'7 Mass Data for SMM'!L13,0) -> 0 | N46: -14407595.05 | O46: -14407595.05
C47: 10 | D47: Mixed Plastic | E47: =IFERROR('6 LCI Factors'!E44*'7 Mass Data for SMM'!E14,0) -> 0 | F47: =IFERROR('6 LCI Factors'!F44*'7 Mass Data for SMM'!F14,0) -> 0 | G47: =IFERROR('6 LCI Factors'!E44*'7 Mass Data for SMM'!G14,0) -> 0 | H47: =IFERROR('6 LCI Factors'!G44*'7 Mass Data for SMM'!G14,0) -> 7302923.556 | I47: =IFERROR('6 LCI Factors'!H44*'7 Mass Data for SMM'!H14,0) -> -21468715.48 | J47: =IFERROR('6 LCI Factors'!I44*'7 Mass Data for SMM'!I14,0) -> 0 | K47: =IFERROR('6 LCI Factors'!J44*'7 Mass Data for SMM'!J14,0) -> 0 | L47: =IFERROR('6 LCI Factors'!K44*'7 Mass Data for SMM'!K14,0) -> 12002665.05 | M47: =IFERROR('6 LCI Factors'!L44*'7 Mass Data for SMM'!L14,0) -> 0 | N47: -2163126.872 | O47: -2163126.872
B48: Glass | C48: 11 | D48: Glass | E48: =IFERROR('6 LCI Factors'!E45*'7 Mass Data for SMM'!E15,0) -> 0 | F48: =IFERROR('6 LCI Factors'!F45*'7 Mass Data for SMM'!F15,0) -> 0 | G48: =IFERROR('6 LCI Factors'!E45*'7 Mass Data for SMM'!G15,0) -> 0 | H48: =IFERROR('6 LCI Factors'!G45*'7 Mass Data for SMM'!G15,0) -> 2282457.865 | I48: =IFERROR('6 LCI Factors'!H45*'7 Mass Data for SMM'!H15,0) -> -8219923.131 | J48: =IFERROR('6 LCI Factors'!I45*'7 Mass Data for SMM'!I15,0) -> 0 | K48: =IFERROR('6 LCI Factors'!J45*'7 Mass Data for SMM'!J15,0) -> 0 | L48: =IFERROR('6 LCI Factors'!K45*'7 Mass Data for SMM'!K15,0) -> 1671917.22 | M48: =IFERROR('6 LCI Factors'!L45*'7 Mass Data for SMM'!L15,0) -> 0 | N48: -4265548.046 | O48: -4265548.046
B49: Metals | C49: 12 | D49: Aluminum Cans | E49: =IFERROR('6 LCI Factors'!E46*'7 Mass Data for SMM'!E16,0) -> 0 | F49: =IFERROR('6 LCI Factors'!F46*'7 Mass Data for SMM'!F16,0) -> 0 | G49: =IFERROR('6 LCI Factors'!E46*'7 Mass Data for SMM'!G16,0) -> 0 | H49: =IFERROR('6 LCI Factors'!G46*'7 Mass Data for SMM'!G16,0) -> 332531.1223 | I49: =IFERROR('6 LCI Factors'!H46*'7 Mass Data for SMM'!H16,0) -> -87953641 | J49: =IFERROR('6 LCI Factors'!I46*'7 Mass Data for SMM'!I16,0) -> 0 | K49: =IFERROR('6 LCI Factors'!J46*'7 Mass Data for SMM'!J16,0) -> 0 | L49: =IFERROR('6 LCI Factors'!K46*'7 Mass Data for SMM'!K16,0) -> 342990.2026 | M49: =IFERROR('6 LCI Factors'!L46*'7 Mass Data for SMM'!L16,0) -> 0 | N49: -87278119.68 | O49: -87278119.68
C50: 13 | D50: Steel/Tin Cans | E50: =IFERROR('6 LCI Factors'!E47*'7 Mass Data for SMM'!E17,0) -> 0 | F50: =IFERROR('6 LCI Factors'!F47*'7 Mass Data for SMM'!F17,0) -> 0 | G50: =IFERROR('6 LCI Factors'!E47*'7 Mass Data for SMM'!G17,0) -> 0 | H50: =IFERROR('6 LCI Factors'!G47*'7 Mass Data for SMM'!G17,0) -> 413898.3401 | I50: =IFERROR('6 LCI Factors'!H47*'7 Mass Data for SMM'!H17,0) -> -3612694.172 | J50: =IFERROR('6 LCI Factors'!I47*'7 Mass Data for SMM'!I17,0) -> 0 | K50: =IFERROR('6 LCI Factors'!J47*'7 Mass Data for SMM'!J17,0) -> 0 | L50: =IFERROR('6 LCI Factors'!K47*'7 Mass Data for SMM'!K17,0) -> 526219.3636 | M50: =IFERROR('6 LCI Factors'!L47*'7 Mass Data for SMM'!L17,0) -> 0 | N50: -2672576.469 | O50: -2672576.469
C51: 14 | D51: Mixed Metals | E51: =IFERROR('6 LCI Factors'!E48*'7 Mass Data for SMM'!E18,0) -> 0 | F51: =IFERROR('6 LCI Factors'!F48*'7 Mass Data for SMM'!F18,0) -> 0 | G51: =IFERROR('6 LCI Factors'!E48*'7 Mass Data for SMM'!G18,0) -> 0 | H51: =IFERROR('6 LCI Factors'!G48*'7 Mass Data for SMM'!G18,0) -> 5782577.609 | I51: =IFERROR('6 LCI Factors'!H48*'7 Mass Data for SMM'!H18,0) -> -1718754198 | J51: =IFERROR('6 LCI Factors'!I48*'7 Mass Data for SMM'!I18,0) -> 0 | K51: =IFERROR('6 LCI Factors'!J48*'7 Mass Data for SMM'!J18,0) -> 0 | L51: =IFERROR('6 LCI Factors'!K48*'7 Mass Data for SMM'!K18,0) -> 1450319.877 | M51: =IFERROR('6 LCI Factors'!L48*'7 Mass Data for SMM'!L18,0) -> 0 | N51: -1711521301 | O51: -1711521301
B52: Organic | C52: 15 | D52: Yard Waste | E52: =IFERROR('6 LCI Factors'!E49*'7 Mass Data for SMM'!E19,0) -> 0 | F52: =IFERROR('6 LCI Factors'!F49*'7 Mass Data for SMM'!F19,0) -> 0 | G52: =IFERROR('6 LCI Factors'!E49*'7 Mass Data for SMM'!G19,0) -> 0 | H52: =IFERROR('6 LCI Factors'!G49*'7 Mass Data for SMM'!G19,0) -> 46207571.89 | I52: =IFERROR('6 LCI Factors'!H49*'7 Mass Data for SMM'!H19,0) -> 0 | J52: =IFERROR('6 LCI Factors'!I49*'7 Mass Data for SMM'!I19,0) -> 14679011.26 | K52: =IFERROR('6 LCI Factors'!J49*'7 Mass Data for SMM'!J19,0) -> 0 | L52: =IFERROR('6 LCI Factors'!K49*'7 Mass Data for SMM'!K19,0) -> 393709.6659 | M52: =IFERROR('6 LCI Factors'!L49*'7 Mass Data for SMM'!L19,0) -> -439668164.5 | N52: -378387871.7 | O52: -378387871.7
C53: 16 | D53: Food Waste | E53: =IFERROR('6 LCI Factors'!E50*'7 Mass Data for SMM'!E20,0) -> 0 | F53: =IFERROR('6 LCI Factors'!F50*'7 Mass Data for SMM'!F20,0) -> 0 | G53: =IFERROR('6 LCI Factors'!E50*'7 Mass Data for SMM'!G20,0) -> 0 | H53: =IFERROR('6 LCI Factors'!G50*'7 Mass Data for SMM'!G20,0) -> 8636049.357 | I53: =IFERROR('6 LCI Factors'!H50*'7 Mass Data for SMM'!H20,0) -> 0 | J53: =IFERROR('6 LCI Factors'!I50*'7 Mass Data for SMM'!I20,0) -> 191214.4862 | K53: =IFERROR('6 LCI Factors'!J50*'7 Mass Data for SMM'!J20,0) -> 0 | L53: =IFERROR('6 LCI Factors'!K50*'7 Mass Data for SMM'!K20,0) -> -5857963.46 | M53: =IFERROR('6 LCI Factors'!L50*'7 Mass Data for SMM'!L20,0) -> 0 | N53: 2969300.383 | O53: 2969300.383
B54: Other | C54: 17 | D54: Tires | E54: =IFERROR('6 LCI Factors'!E51*'7 Mass Data for SMM'!E21,0) -> 0 | F54: =IFERROR('6 LCI Factors'!F51*'7 Mass Data for SMM'!F21,0) -> 0 | G54: =IFERROR('6 LCI Factors'!E51*'7 Mass Data for SMM'!G21,0) -> 0 | H54: =IFERROR('6 LCI Factors'!G51*'7 Mass Data for SMM'!G21,0) -> 0 | I54: =IFERROR('6 LCI Factors'!H51*'7 Mass Data for SMM'!H21,0) -> 0 | J54: =IFERROR('6 LCI Factors'!I51*'7 Mass Data for SMM'!I21,0) -> 0 | K54: =IFERROR('6 LCI Factors'!J51*'7 Mass Data for SMM'!J21,0) -> 0 | L54: =IFERROR('6 LCI Factors'!K51*'7 Mass Data for SMM'!K21,0) -> 0 | M54: =IFERROR('6 LCI Factors'!L51*'7 Mass Data for SMM'!L21,0) -> 0 | N54: 0 | O54: 0
C55: 18 | D55: Clothing and Footwear | E55: =IFERROR('6 LCI Factors'!E52*'7 Mass Data for SMM'!E22,0) -> 0 | F55: =IFERROR('6 LCI Factors'!F52*'7 Mass Data for SMM'!F22,0) -> 0 | G55: =IFERROR('6 LCI Factors'!E52*'7 Mass Data for SMM'!G22,0) -> 0 | H55: =IFERROR('6 LCI Factors'!G52*'7 Mass Data for SMM'!G22,0) -> 0 | I55: =IFERROR('6 LCI Factors'!H52*'7 Mass Data for SMM'!H22,0) -> 0 | J55: =IFERROR('6 LCI Factors'!I52*'7 Mass Data for SMM'!I22,0) -> 0 | K55: =IFERROR('6 LCI Factors'!J52*'7 Mass Data for SMM'!J22,0) -> 0 | L55: =IFERROR('6 LCI Factors'!K52*'7 Mass Data for SMM'!K22,0) -> 0 | M55: =IFERROR('6 LCI Factors'!L52*'7 Mass Data for SMM'!L22,0) -> 0 | N55: 0 | O55: 0
C56: 19 | D56: Furniture | E56: =IFERROR('6 LCI Factors'!E53*'7 Mass Data for SMM'!E23,0) -> 0 | F56: =IFERROR('6 LCI Factors'!F53*'7 Mass Data for SMM'!F23,0) -> 0 | G56: =IFERROR('6 LCI Factors'!E53*'7 Mass Data for SMM'!G23,0) -> 0 | H56: =IFERROR('6 LCI Factors'!G53*'7 Mass Data for SMM'!G23,0) -> 0 | I56: =IFERROR('6 LCI Factors'!H53*'7 Mass Data for SMM'!H23,0) -> 0 | J56: =IFERROR('6 LCI Factors'!I53*'7 Mass Data for SMM'!I23,0) -> 0 | K56: =IFERROR('6 LCI Factors'!J53*'7 Mass Data for SMM'!J23,0) -> 0 | L56: =IFERROR('6 LCI Factors'!K53*'7 Mass Data for SMM'!K23,0) -> 0 | M56: =IFERROR('6 LCI Factors'!L53*'7 Mass Data for SMM'!L23,0) -> 0 | N56: 0 | O56: 0
C57: 20 | D57: Electronics | E57: =IFERROR('6 LCI Factors'!E54*'7 Mass Data for SMM'!E24,0) -> 0 | F57: =IFERROR('6 LCI Factors'!F54*'7 Mass Data for SMM'!F24,0) -> 0 | G57: =IFERROR('6 LCI Factors'!E54*'7 Mass Data for SMM'!G24,0) -> 0 | H57: =IFERROR('6 LCI Factors'!G54*'7 Mass Data for SMM'!G24,0) -> 0 | I57: =IFERROR('6 LCI Factors'!H54*'7 Mass Data for SMM'!H24,0) -> 0 | J57: =IFERROR('6 LCI Factors'!I54*'7 Mass Data for SMM'!I24,0) -> 0 | K57: =IFERROR('6 LCI Factors'!J54*'7 Mass Data for SMM'!J24,0) -> 0 | L57: =IFERROR('6 LCI Factors'!K54*'7 Mass Data for SMM'!K24,0) -> 0 | M57: =IFERROR('6 LCI Factors'!L54*'7 Mass Data for SMM'!L24,0) -> 0 | N57: 0 | O57: 0
B58: C&D Debris | C58: 21 | D58: Wood Products | E58: =IFERROR('6 LCI Factors'!E55*'7 Mass Data for SMM'!E25,0) -> 0 | F58: =IFERROR('6 LCI Factors'!F55*'7 Mass Data for SMM'!F25,0) -> 0 | G58: =IFERROR('6 LCI Factors'!E55*'7 Mass Data for SMM'!G25,0) -> 0 | H58: =IFERROR('6 LCI Factors'!G55*'7 Mass Data for SMM'!G25,0) -> 0 | I58: =IFERROR('6 LCI Factors'!H55*'7 Mass Data for SMM'!H25,0) -> 0 | J58: =IFERROR('6 LCI Factors'!I55*'7 Mass Data for SMM'!I25,0) -> 0 | K58: =IFERROR('6 LCI Factors'!J55*'7 Mass Data for SMM'!J25,0) -> 0 | L58: =IFERROR('6 LCI Factors'!K55*'7 Mass Data for SMM'!K25,0) -> 0 | M58: =IFERROR('6 LCI Factors'!L55*'7 Mass Data for SMM'!L25,0) -> 0 | N58: 0 | O58: 0
C59: 22 | D59: Asphalt Shingles | E59: =IFERROR('6 LCI Factors'!E56*'7 Mass Data for SMM'!E26,0) -> 0 | F59: =IFERROR('6 LCI Factors'!F56*'7 Mass Data for SMM'!F26,0) -> 0 | G59: =IFERROR('6 LCI Factors'!E56*'7 Mass Data for SMM'!G26,0) -> 0 | H59: =IFERROR('6 LCI Factors'!G56*'7 Mass Data for SMM'!G26,0) -> 0 | I59: =IFERROR('6 LCI Factors'!H56*'7 Mass Data for SMM'!H26,0) -> 0 | J59: =IFERROR('6 LCI Factors'!I56*'7 Mass Data for SMM'!I26,0) -> 0 | K59: =IFERROR('6 LCI Factors'!J56*'7 Mass Data for SMM'!J26,0) -> 0 | L59: =IFERROR('6 LCI Factors'!K56*'7 Mass Data for SMM'!K26,0) -> 0 | M59: =IFERROR('6 LCI Factors'!L56*'7 Mass Data for SMM'!L26,0) -> 0 | N59: 0 | O59: 0
C60: 23 | D60: Gypsum Drywall | E60: =IFERROR('6 LCI Factors'!E57*'7 Mass Data for SMM'!E27,0) -> 0 | F60: =IFERROR('6 LCI Factors'!F57*'7 Mass Data for SMM'!F27,0) -> 0 | G60: =IFERROR('6 LCI Factors'!E57*'7 Mass Data for SMM'!G27,0) -> 0 | H60: =IFERROR('6 LCI Factors'!G57*'7 Mass Data for SMM'!G27,0) -> 0 | I60: =IFERROR('6 LCI Factors'!H57*'7 Mass Data for SMM'!H27,0) -> 0 | J60: =IFERROR('6 LCI Factors'!I57*'7 Mass Data for SMM'!I27,0) -> 0 | K60: =IFERROR('6 LCI Factors'!J57*'7 Mass Data for SMM'!J27,0) -> 0 | L60: =IFERROR('6 LCI Factors'!K57*'7 Mass Data for SMM'!K27,0) -> 0 | M60: =IFERROR('6 LCI Factors'!L57*'7 Mass Data for SMM'!L27,0) -> 0 | N60: 0 | O60: 0
C61: 24 | D61: Concrete | E61: =IFERROR('6 LCI Factors'!E58*'7 Mass Data for SMM'!E28,0) -> 0 | F61: =IFERROR('6 LCI Factors'!F58*'7 Mass Data for SMM'!F28,0) -> 0 | G61: =IFERROR('6 LCI Factors'!E58*'7 Mass Data for SMM'!G28,0) -> 0 | H61: =IFERROR('6 LCI Factors'!G58*'7 Mass Data for SMM'!G28,0) -> 0 | I61: =IFERROR('6 LCI Factors'!H58*'7 Mass Data for SMM'!H28,0) -> 0 | J61: =IFERROR('6 LCI Factors'!I58*'7 Mass Data for SMM'!I28,0) -> 0 | K61: =IFERROR('6 LCI Factors'!J58*'7 Mass Data for SMM'!J28,0) -> 0 | L61: =IFERROR('6 LCI Factors'!K58*'7 Mass Data for SMM'!K28,0) -> 0 | M61: =IFERROR('6 LCI Factors'!L58*'7 Mass Data for SMM'!L28,0) -> 0 | N61: 0 | O61: 0
C62: 25 | D62: Reclaimed Asphalt Pavement | E62: =IFERROR('6 LCI Factors'!E59*'7 Mass Data for SMM'!E29,0) -> 0 | F62: =IFERROR('6 LCI Factors'!F59*'7 Mass Data for SMM'!F29,0) -> 0 | G62: =IFERROR('6 LCI Factors'!E59*'7 Mass Data for SMM'!G29,0) -> 0 | H62: =IFERROR('6 LCI Factors'!G59*'7 Mass Data for SMM'!G29,0) -> 0 | I62: =IFERROR('6 LCI Factors'!H59*'7 Mass Data for SMM'!H29,0) -> 0 | J62: =IFERROR('6 LCI Factors'!I59*'7 Mass Data for SMM'!I29,0) -> 0 | K62: =IFERROR('6 LCI Factors'!J59*'7 Mass Data for SMM'!J29,0) -> 0 | L62: =IFERROR('6 LCI Factors'!K59*'7 Mass Data for SMM'!K29,0) -> 0 | M62: =IFERROR('6 LCI Factors'!L59*'7 Mass Data for SMM'!L29,0) -> 0 | N62: 0 | O62: 0
B63: Total | E63: =SUMIF(E38:E62,"<>#value!") -> 0 | F63: 0 | G63: =SUMIF(G38:G62,"<>#value!") -> 0 | H63: =SUMIF(H38:H62,"<>#value!") -> 115110697.2 | I63: =SUMIF(I38:I62,"<>#value!") -> -2315562985 | J63: 14870225.75 | K63: 0 | L63: -83119069.25 | M63: -439668164.5 | N63: -2708369296 | O63: -2708369296
B65: Table 3.
B66: Water Use (Gallons): Freshwater from lakes, rivers, and wells are consumed by different processes. The units are expressed as units of gallons. This a measure of the water used in such way that the water is evaporated, incorporated into products, transferred to other watersheds, or disposed into the sea.
B67: Material Category | C67: Item No. | D67: Material Type | E67: Source Reduced/ Generated | F67: Donated | G67: Produced | H67: Collection | I67: Recycling | J67: Composting | K67: Anaerobic Digestion | L67: Landfill | M67: Combustion | N67: Lifecycle Total | O67: Waste Management Total
B68: MSW | C68: 1 | D68: Mixed MSW | E68: =IFERROR('6 LCI Factors'!E65*'7 Mass Data for SMM'!E5,0) -> 0 | F68: =IFERROR('6 LCI Factors'!F65*'7 Mass Data for SMM'!F5,0) -> 0 | G68: =IFERROR('6 LCI Factors'!E65*'7 Mass Data for SMM'!G5,0) -> 0 | H68: =IFERROR('6 LCI Factors'!G65*'7 Mass Data for SMM'!G5,0) -> 0 | I68: =IFERROR('6 LCI Factors'!H65*'7 Mass Data for SMM'!H5,0) -> 0 | J68: =IFERROR('6 LCI Factors'!I65*'7 Mass Data for SMM'!I5,0) -> 0 | K68: =IFERROR('6 LCI Factors'!J65*'7 Mass Data for SMM'!J5,0) -> 0 | L68: =IFERROR('6 LCI Factors'!K65*'7 Mass Data for SMM'!K5,0) -> 0 | M68: =IFERROR('6 LCI Factors'!L65*'7 Mass Data for SMM'!L5,0) -> 0 | N68: =SUMIF(E68:M68,"<>#value!") -> 0 | O68: =SUMIF(H68:M68,"<>#value!") -> 0
B69: Paper | C69: 2 | D69: Newspaper | E69: =IFERROR('6 LCI Factors'!E66*'7 Mass Data for SMM'!E6,0) -> 0 | F69: =IFERROR('6 LCI Factors'!F66*'7 Mass Data for SMM'!F6,0) -> 0 | G69: =IFERROR('6 LCI Factors'!E66*'7 Mass Data for SMM'!G6,0) -> 0 | H69: =IFERROR('6 LCI Factors'!G66*'7 Mass Data for SMM'!G6,0) -> 0 | I69: =IFERROR('6 LCI Factors'!H66*'7 Mass Data for SMM'!H6,0) -> 0 | J69: =IFERROR('6 LCI Factors'!I66*'7 Mass Data for SMM'!I6,0) -> 0 | K69: =IFERROR('6 LCI Factors'!J66*'7 Mass Data for SMM'!J6,0) -> 0 | L69: =IFERROR('6 LCI Factors'!K66*'7 Mass Data for SMM'!K6,0) -> 0 | M69: =IFERROR('6 LCI Factors'!L66*'7 Mass Data for SMM'!L6,0) -> 0 | N69: =SUMIF(E69:M69,"<>#value!") -> 0 | O69: =SUMIF(H69:M69,"<>#value!") -> 0
C70: 3 | D70: Corrugated Cardboard (OCC) | E70: =IFERROR('6 LCI Factors'!E67*'7 Mass Data for SMM'!E7,0) -> 0 | F70: =IFERROR('6 LCI Factors'!F67*'7 Mass Data for SMM'!F7,0) -> 0 | G70: =IFERROR('6 LCI Factors'!E67*'7 Mass Data for SMM'!G7,0) -> 0 | H70: =IFERROR('6 LCI Factors'!G67*'7 Mass Data for SMM'!G7,0) -> 0 | I70: =IFERROR('6 LCI Factors'!H67*'7 Mass Data for SMM'!H7,0) -> 0 | J70: =IFERROR('6 LCI Factors'!I67*'7 Mass Data for SMM'!I7,0) -> 0 | K70: =IFERROR('6 LCI Factors'!J67*'7 Mass Data for SMM'!J7,0) -> 0 | L70: =IFERROR('6 LCI Factors'!K67*'7 Mass Data for SMM'!K7,0) -> 0 | M70: =IFERROR('6 LCI Factors'!L67*'7 Mass Data for SMM'!L7,0) -> 0 | N70: 0 | O70: 0
C71: 4 | D71: High Grade Paper (Office Type Paper) | E71: =IFERROR('6 LCI Factors'!E68*'7 Mass Data for SMM'!E8,0) -> 0 | F71: =IFERROR('6 LCI Factors'!F68*'7 Mass Data for SMM'!F8,0) -> 0 | G71: =IFERROR('6 LCI Factors'!E68*'7 Mass Data for SMM'!G8,0) -> 0 | H71: =IFERROR('6 LCI Factors'!G68*'7 Mass Data for SMM'!G8,0) -> 0 | I71: =IFERROR('6 LCI Factors'!H68*'7 Mass Data for SMM'!H8,0) -> 0 | J71: =IFERROR('6 LCI Factors'!I68*'7 Mass Data for SMM'!I8,0) -> 0 | K71: =IFERROR('6 LCI Factors'!J68*'7 Mass Data for SMM'!J8,0) -> 0 | L71: =IFERROR('6 LCI Factors'!K68*'7 Mass Data for SMM'!K8,0) -> 0 | M71: =IFERROR('6 LCI Factors'!L68*'7 Mass Data for SMM'!L8,0) -> 0 | N71: 0 | O71: 0
C72: 5 | D72: Magazines/third-class mail | E72: =IFERROR('6 LCI Factors'!E69*'7 Mass Data for SMM'!E9,0) -> 0 | F72: =IFERROR('6 LCI Factors'!F69*'7 Mass Data for SMM'!F9,0) -> 0 | G72: =IFERROR('6 LCI Factors'!E69*'7 Mass Data for SMM'!G9,0) -> 0 | H72: =IFERROR('6 LCI Factors'!G69*'7 Mass Data for SMM'!G9,0) -> 0 | I72: =IFERROR('6 LCI Factors'!H69*'7 Mass Data for SMM'!H9,0) -> 0 | J72: =IFERROR('6 LCI Factors'!I69*'7 Mass Data for SMM'!I9,0) -> 0 | K72: =IFERROR('6 LCI Factors'!J69*'7 Mass Data for SMM'!J9,0) -> 0 | L72: =IFERROR('6 LCI Factors'!K69*'7 Mass Data for SMM'!K9,0) -> 0 | M72: =IFERROR('6 LCI Factors'!L69*'7 Mass Data for SMM'!L9,0) -> 0 | N72: 0 | O72: 0
C73: 6 | D73: Books | E73: =IFERROR('6 LCI Factors'!E70*'7 Mass Data for SMM'!E10,0) -> 0 | F73: =IFERROR('6 LCI Factors'!F70*'7 Mass Data for SMM'!F10,0) -> 0 | G73: =IFERROR('6 LCI Factors'!E70*'7 Mass Data for SMM'!G10,0) -> 0 | H73: =IFERROR('6 LCI Factors'!G70*'7 Mass Data for SMM'!G10,0) -> 0 | I73: =IFERROR('6 LCI Factors'!H70*'7 Mass Data for SMM'!H10,0) -> 0 | J73: =IFERROR('6 LCI Factors'!I70*'7 Mass Data for SMM'!I10,0) -> 0 | K73: =IFERROR('6 LCI Factors'!J70*'7 Mass Data for SMM'!J10,0) -> 0 | L73: =IFERROR('6 LCI Factors'!K70*'7 Mass Data for SMM'!K10,0) -> 0 | M73: =IFERROR('6 LCI Factors'!L70*'7 Mass Data for SMM'!L10,0) -> 0 | N73: 0 | O73: 0
C74: 7 | D74: Mixed Paper | E74: =IFERROR('6 LCI Factors'!E71*'7 Mass Data for SMM'!E11,0) -> 0 | F74: =IFERROR('6 LCI Factors'!F71*'7 Mass Data for SMM'!F11,0) -> 0 | G74: =IFERROR('6 LCI Factors'!E71*'7 Mass Data for SMM'!G11,0) -> 0 | H74: =IFERROR('6 LCI Factors'!G71*'7 Mass Data for SMM'!G11,0) -> 0 | I74: =IFERROR('6 LCI Factors'!H71*'7 Mass Data for SMM'!H11,0) -> 0 | J74: =IFERROR('6 LCI Factors'!I71*'7 Mass Data for SMM'!I11,0) -> 0 | K74: =IFERROR('6 LCI Factors'!J71*'7 Mass Data for SMM'!J11,0) -> 0 | L74: =IFERROR('6 LCI Factors'!K71*'7 Mass Data for SMM'!K11,0) -> 0 | M74: =IFERROR('6 LCI Factors'!L71*'7 Mass Data for SMM'!L11,0) -> 0 | N74: 0 | O74: 0
B75: Plastic | C75: 8 | D75: HDPE | E75: =IFERROR('6 LCI Factors'!E72*'7 Mass Data for SMM'!E12,0) -> 0 | F75: =IFERROR('6 LCI Factors'!F72*'7 Mass Data for SMM'!F12,0) -> 0 | G75: =IFERROR('6 LCI Factors'!E72*'7 Mass Data for SMM'!G12,0) -> 0 | H75: =IFERROR('6 LCI Factors'!G72*'7 Mass Data for SMM'!G12,0) -> 0 | I75: =IFERROR('6 LCI Factors'!H72*'7 Mass Data for SMM'!H12,0) -> 0 | J75: =IFERROR('6 LCI Factors'!I72*'7 Mass Data for SMM'!I12,0) -> 0 | K75: =IFERROR('6 LCI Factors'!J72*'7 Mass Data for SMM'!J12,0) -> 0 | L75: =IFERROR('6 LCI Factors'!K72*'7 Mass Data for SMM'!K12,0) -> 0 | M75: =IFERROR('6 LCI Factors'!L72*'7 Mass Data for SMM'!L12,0) -> 0 | N75: 0 | O75: 0
C76: 9 | D76: PET | E76: =IFERROR('6 LCI Factors'!E73*'7 Mass Data for SMM'!E13,0) -> 0 | F76: =IFERROR('6 LCI Factors'!F73*'7 Mass Data for SMM'!F13,0) -> 0 | G76: =IFERROR('6 LCI Factors'!E73*'7 Mass Data for SMM'!G13,0) -> 0 | H76: =IFERROR('6 LCI Factors'!G73*'7 Mass Data for SMM'!G13,0) -> 0 | I76: =IFERROR('6 LCI Factors'!H73*'7 Mass Data for SMM'!H13,0) -> 0 | J76: =IFERROR('6 LCI Factors'!I73*'7 Mass Data for SMM'!I13,0) -> 0 | K76: =IFERROR('6 LCI Factors'!J73*'7 Mass Data for SMM'!J13,0) -> 0 | L76: =IFERROR('6 LCI Factors'!K73*'7 Mass Data for SMM'!K13,0) -> 0 | M76: =IFERROR('6 LCI Factors'!L73*'7 Mass Data for SMM'!L13,0) -> 0 | N76: 0 | O76: 0
C77: 10 | D77: Mixed Plastic | E77: =IFERROR('6 LCI Factors'!E74*'7 Mass Data for SMM'!E14,0) -> 0 | F77: =IFERROR('6 LCI Factors'!F74*'7 Mass Data for SMM'!F14,0) -> 0 | G77: =IFERROR('6 LCI Factors'!E74*'7 Mass Data for SMM'!G14,0) -> 0 | H77: =IFERROR('6 LCI Factors'!G74*'7 Mass Data for SMM'!G14,0) -> 0 | I77: =IFERROR('6 LCI Factors'!H74*'7 Mass Data for SMM'!H14,0) -> 0 | J77: =IFERROR('6 LCI Factors'!I74*'7 Mass Data for SMM'!I14,0) -> 0 | K77: =IFERROR('6 LCI Factors'!J74*'7 Mass Data for SMM'!J14,0) -> 0 | L77: =IFERROR('6 LCI Factors'!K74*'7 Mass Data for SMM'!K14,0) -> 0 | M77: =IFERROR('6 LCI Factors'!L74*'7 Mass Data for SMM'!L14,0) -> 0 | N77: 0 | O77: 0
B78: Glass | C78: 11 | D78: Glass | E78: =IFERROR('6 LCI Factors'!E75*'7 Mass Data for SMM'!E15,0) -> 0 | F78: =IFERROR('6 LCI Factors'!F75*'7 Mass Data for SMM'!F15,0) -> 0 | G78: =IFERROR('6 LCI Factors'!E75*'7 Mass Data for SMM'!G15,0) -> 0 | H78: =IFERROR('6 LCI Factors'!G75*'7 Mass Data for SMM'!G15,0) -> 0 | I78: =IFERROR('6 LCI Factors'!H75*'7 Mass Data for SMM'!H15,0) -> 0 | J78: =IFERROR('6 LCI Factors'!I75*'7 Mass Data for SMM'!I15,0) -> 0 | K78: =IFERROR('6 LCI Factors'!J75*'7 Mass Data for SMM'!J15,0) -> 0 | L78: =IFERROR('6 LCI Factors'!K75*'7 Mass Data for SMM'!K15,0) -> 0 | M78: =IFERROR('6 LCI Factors'!L75*'7 Mass Data for SMM'!L15,0) -> 0 | N78: 0 | O78: 0
B79: Metals | C79: 12 | D79: Aluminum Cans | E79: =IFERROR('6 LCI Factors'!E76*'7 Mass Data for SMM'!E16,0) -> 0 | F79: =IFERROR('6 LCI Factors'!F76*'7 Mass Data for SMM'!F16,0) -> 0 | G79: =IFERROR('6 LCI Factors'!E76*'7 Mass Data for SMM'!G16,0) -> 0 | H79: =IFERROR('6 LCI Factors'!G76*'7 Mass Data for SMM'!G16,0) -> 0 | I79: =IFERROR('6 LCI Factors'!H76*'7 Mass Data for SMM'!H16,0) -> 0 | J79: =IFERROR('6 LCI Factors'!I76*'7 Mass Data for SMM'!I16,0) -> 0 | K79: =IFERROR('6 LCI Factors'!J76*'7 Mass Data for SMM'!J16,0) -> 0 | L79: =IFERROR('6 LCI Factors'!K76*'7 Mass Data for SMM'!K16,0) -> 0 | M79: =IFERROR('6 LCI Factors'!L76*'7 Mass Data for SMM'!L16,0) -> 0 | N79: 0 | O79: 0
C80: 13 | D80: Steel/Tin Cans | E80: =IFERROR('6 LCI Factors'!E77*'7 Mass Data for SMM'!E17,0) -> 0 | F80: =IFERROR('6 LCI Factors'!F77*'7 Mass Data for SMM'!F17,0) -> 0 | G80: =IFERROR('6 LCI Factors'!E77*'7 Mass Data for SMM'!G17,0) -> 0 | H80: =IFERROR('6 LCI Factors'!G77*'7 Mass Data for SMM'!G17,0) -> 0 | I80: =IFERROR('6 LCI Factors'!H77*'7 Mass Data for SMM'!H17,0) -> 0 | J80: =IFERROR('6 LCI Factors'!I77*'7 Mass Data for SMM'!I17,0) -> 0 | K80: =IFERROR('6 LCI Factors'!J77*'7 Mass Data for SMM'!J17,0) -> 0 | L80: =IFERROR('6 LCI Factors'!K77*'7 Mass Data for SMM'!K17,0) -> 0 | M80: =IFERROR('6 LCI Factors'!L77*'7 Mass Data for SMM'!L17,0) -> 0 | N80: 0 | O80: 0
C81: 14 | D81: Mixed Metals | E81: =IFERROR('6 LCI Factors'!E78*'7 Mass Data for SMM'!E18,0) -> 0 | F81: =IFERROR('6 LCI Factors'!F78*'7 Mass Data for SMM'!F18,0) -> 0 | G81: =IFERROR('6 LCI Factors'!E78*'7 Mass Data for SMM'!G18,0) -> 0 | H81: =IFERROR('6 LCI Factors'!G78*'7 Mass Data for SMM'!G18,0) -> 0 | I81: =IFERROR('6 LCI Factors'!H78*'7 Mass Data for SMM'!H18,0) -> 0 | J81: =IFERROR('6 LCI Factors'!I78*'7 Mass Data for SMM'!I18,0) -> 0 | K81: =IFERROR('6 LCI Factors'!J78*'7 Mass Data for SMM'!J18,0) -> 0 | L81: =IFERROR('6 LCI Factors'!K78*'7 Mass Data for SMM'!K18,0) -> 0 | M81: =IFERROR('6 LCI Factors'!L78*'7 Mass Data for SMM'!L18,0) -> 0 | N81: 0 | O81: 0
B82: Organic | C82: 15 | D82: Yard Waste | E82: =IFERROR('6 LCI Factors'!E79*'7 Mass Data for SMM'!E19,0) -> 0 | F82: =IFERROR('6 LCI Factors'!F79*'7 Mass Data for SMM'!F19,0) -> 0 | G82: =IFERROR('6 LCI Factors'!E79*'7 Mass Data for SMM'!G19,0) -> 0 | H82: =IFERROR('6 LCI Factors'!G79*'7 Mass Data for SMM'!G19,0) -> 0 | I82: =IFERROR('6 LCI Factors'!H79*'7 Mass Data for SMM'!H19,0) -> 0 | J82: =IFERROR('6 LCI Factors'!I79*'7 Mass Data for SMM'!I19,0) -> 0 | K82: =IFERROR('6 LCI Factors'!J79*'7 Mass Data for SMM'!J19,0) -> 0 | L82: =IFERROR('6 LCI Factors'!K79*'7 Mass Data for SMM'!K19,0) -> 0 | M82: =IFERROR('6 LCI Factors'!L79*'7 Mass Data for SMM'!L19,0) -> 0 | N82: 0 | O82: 0
C83: 16 | D83: Food Waste | E83: =IFERROR('6 LCI Factors'!E80*'7 Mass Data for SMM'!E20,0) -> 0 | F83: =IFERROR('6 LCI Factors'!F80*'7 Mass Data for SMM'!F20,0) -> 0 | G83: =IFERROR('6 LCI Factors'!E80*'7 Mass Data for SMM'!G20,0) -> 0 | H83: =IFERROR('6 LCI Factors'!G80*'7 Mass Data for SMM'!G20,0) -> 0 | I83: =IFERROR('6 LCI Factors'!H80*'7 Mass Data for SMM'!H20,0) -> 0 | J83: =IFERROR('6 LCI Factors'!I80*'7 Mass Data for SMM'!I20,0) -> 0 | K83: =IFERROR('6 LCI Factors'!J80*'7 Mass Data for SMM'!J20,0) -> 0 | L83: =IFERROR('6 LCI Factors'!K80*'7 Mass Data for SMM'!K20,0) -> 0 | M83: =IFERROR('6 LCI Factors'!L80*'7 Mass Data for SMM'!L20,0) -> 0 | N83: 0 | O83: 0
B84: Other | C84: 17 | D84: Tires | E84: =IFERROR('6 LCI Factors'!E81*'7 Mass Data for SMM'!E21,0) -> 0 | F84: =IFERROR('6 LCI Factors'!F81*'7 Mass Data for SMM'!F21,0) -> 0 | G84: =IFERROR('6 LCI Factors'!E81*'7 Mass Data for SMM'!G21,0) -> 0 | H84: =IFERROR('6 LCI Factors'!G81*'7 Mass Data for SMM'!G21,0) -> 0 | I84: =IFERROR('6 LCI Factors'!H81*'7 Mass Data for SMM'!H21,0) -> 0 | J84: =IFERROR('6 LCI Factors'!I81*'7 Mass Data for SMM'!I21,0) -> 0 | K84: =IFERROR('6 LCI Factors'!J81*'7 Mass Data for SMM'!J21,0) -> 0 | L84: =IFERROR('6 LCI Factors'!K81*'7 Mass Data for SMM'!K21,0) -> 0 | M84: =IFERROR('6 LCI Factors'!L81*'7 Mass Data for SMM'!L21,0) -> 0 | N84: 0 | O84: 0
C85: 18 | D85: Clothing and Footwear | E85: =IFERROR('6 LCI Factors'!E82*'7 Mass Data for SMM'!E22,0) -> 0 | F85: =IFERROR('6 LCI Factors'!F82*'7 Mass Data for SMM'!F22,0) -> 0 | G85: =IFERROR('6 LCI Factors'!E82*'7 Mass Data for SMM'!G22,0) -> 0 | H85: =IFERROR('6 LCI Factors'!G82*'7 Mass Data for SMM'!G22,0) -> 0 | I85: =IFERROR('6 LCI Factors'!H82*'7 Mass Data for SMM'!H22,0) -> 0 | J85: =IFERROR('6 LCI Factors'!I82*'7 Mass Data for SMM'!I22,0) -> 0 | K85: =IFERROR('6 LCI Factors'!J82*'7 Mass Data for SMM'!J22,0) -> 0 | L85: =IFERROR('6 LCI Factors'!K82*'7 Mass Data for SMM'!K22,0) -> 0 | M85: =IFERROR('6 LCI Factors'!L82*'7 Mass Data for SMM'!L22,0) -> 0 | N85: 0 | O85: 0
C86: 19 | D86: Furniture | E86: =IFERROR('6 LCI Factors'!E83*'7 Mass Data for SMM'!E23,0) -> 0 | F86: =IFERROR('6 LCI Factors'!F83*'7 Mass Data for SMM'!F23,0) -> 0 | G86: =IFERROR('6 LCI Factors'!E83*'7 Mass Data for SMM'!G23,0) -> 0 | H86: =IFERROR('6 LCI Factors'!G83*'7 Mass Data for SMM'!G23,0) -> 0 | I86: =IFERROR('6 LCI Factors'!H83*'7 Mass Data for SMM'!H23,0) -> 0 | J86: =IFERROR('6 LCI Factors'!I83*'7 Mass Data for SMM'!I23,0) -> 0 | K86: =IFERROR('6 LCI Factors'!J83*'7 Mass Data for SMM'!J23,0) -> 0 | L86: =IFERROR('6 LCI Factors'!K83*'7 Mass Data for SMM'!K23,0) -> 0 | M86: =IFERROR('6 LCI Factors'!L83*'7 Mass Data for SMM'!L23,0) -> 0 | N86: 0 | O86: 0
C87: 20 | D87: Electronics | E87: =IFERROR('6 LCI Factors'!E84*'7 Mass Data for SMM'!E24,0) -> 0 | F87: =IFERROR('6 LCI Factors'!F84*'7 Mass Data for SMM'!F24,0) -> 0 | G87: =IFERROR('6 LCI Factors'!E84*'7 Mass Data for SMM'!G24,0) -> 0 | H87: =IFERROR('6 LCI Factors'!G84*'7 Mass Data for SMM'!G24,0) -> 0 | I87: =IFERROR('6 LCI Factors'!H84*'7 Mass Data for SMM'!H24,0) -> 0 | J87: =IFERROR('6 LCI Factors'!I84*'7 Mass Data for SMM'!I24,0) -> 0 | K87: =IFERROR('6 LCI Factors'!J84*'7 Mass Data for SMM'!J24,0) -> 0 | L87: =IFERROR('6 LCI Factors'!K84*'7 Mass Data for SMM'!K24,0) -> 0 | M87: =IFERROR('6 LCI Factors'!L84*'7 Mass Data for SMM'!L24,0) -> 0 | N87: 0 | O87: 0
B88: C&D Debris | C88: 21 | D88: Wood Products | E88: =IFERROR('6 LCI Factors'!E85*'7 Mass Data for SMM'!E25,0) -> 0 | F88: =IFERROR('6 LCI Factors'!F85*'7 Mass Data for SMM'!F25,0) -> 0 | G88: =IFERROR('6 LCI Factors'!E85*'7 Mass Data for SMM'!G25,0) -> 0 | H88: =IFERROR('6 LCI Factors'!G85*'7 Mass Data for SMM'!G25,0) -> 0 | I88: =IFERROR('6 LCI Factors'!H85*'7 Mass Data for SMM'!H25,0) -> 0 | J88: =IFERROR('6 LCI Factors'!I85*'7 Mass Data for SMM'!I25,0) -> 0 | K88: =IFERROR('6 LCI Factors'!J85*'7 Mass Data for SMM'!J25,0) -> 0 | L88: =IFERROR('6 LCI Factors'!K85*'7 Mass Data for SMM'!K25,0) -> 0 | M88: =IFERROR('6 LCI Factors'!L85*'7 Mass Data for SMM'!L25,0) -> 0 | N88: 0 | O88: 0
C89: 22 | D89: Asphalt Shingles | E89: =IFERROR('6 LCI Factors'!E86*'7 Mass Data for SMM'!E26,0) -> 0 | F89: =IFERROR('6 LCI Factors'!F86*'7 Mass Data for SMM'!F26,0) -> 0 | G89: =IFERROR('6 LCI Factors'!E86*'7 Mass Data for SMM'!G26,0) -> 0 | H89: =IFERROR('6 LCI Factors'!G86*'7 Mass Data for SMM'!G26,0) -> 0 | I89: =IFERROR('6 LCI Factors'!H86*'7 Mass Data for SMM'!H26,0) -> 0 | J89: =IFERROR('6 LCI Factors'!I86*'7 Mass Data for SMM'!I26,0) -> 0 | K89: =IFERROR('6 LCI Factors'!J86*'7 Mass Data for SMM'!J26,0) -> 0 | L89: =IFERROR('6 LCI Factors'!K86*'7 Mass Data for SMM'!K26,0) -> 0 | M89: =IFERROR('6 LCI Factors'!L86*'7 Mass Data for SMM'!L26,0) -> 0 | N89: 0 | O89: 0
C90: 23 | D90: Gypsum Drywall | E90: =IFERROR('6 LCI Factors'!E87*'7 Mass Data for SMM'!E27,0) -> 0 | F90: =IFERROR('6 LCI Factors'!F87*'7 Mass Data for SMM'!F27,0) -> 0 | G90: =IFERROR('6 LCI Factors'!E87*'7 Mass Data for SMM'!G27,0) -> 0 | H90: =IFERROR('6 LCI Factors'!G87*'7 Mass Data for SMM'!G27,0) -> 0 | I90: =IFERROR('6 LCI Factors'!H87*'7 Mass Data for SMM'!H27,0) -> 0 | J90: =IFERROR('6 LCI Factors'!I87*'7 Mass Data for SMM'!I27,0) -> 0 | K90: =IFERROR('6 LCI Factors'!J87*'7 Mass Data for SMM'!J27,0) -> 0 | L90: =IFERROR('6 LCI Factors'!K87*'7 Mass Data for SMM'!K27,0) -> 0 | M90: =IFERROR('6 LCI Factors'!L87*'7 Mass Data for SMM'!L27,0) -> 0 | N90: 0 | O90: 0
C91: 24 | D91: Concrete | E91: =IFERROR('6 LCI Factors'!E88*'7 Mass Data for SMM'!E28,0) -> 0 | F91: =IFERROR('6 LCI Factors'!F88*'7 Mass Data for SMM'!F28,0) -> 0 | G91: =IFERROR('6 LCI Factors'!E88*'7 Mass Data for SMM'!G28,0) -> 0 | H91: =IFERROR('6 LCI Factors'!G88*'7 Mass Data for SMM'!G28,0) -> 0 | I91: =IFERROR('6 LCI Factors'!H88*'7 Mass Data for SMM'!H28,0) -> 0 | J91: =IFERROR('6 LCI Factors'!I88*'7 Mass Data for SMM'!I28,0) -> 0 | K91: =IFERROR('6 LCI Factors'!J88*'7 Mass Data for SMM'!J28,0) -> 0 | L91: =IFERROR('6 LCI Factors'!K88*'7 Mass Data for SMM'!K28,0) -> 0 | M91: =IFERROR('6 LCI Factors'!L88*'7 Mass Data for SMM'!L28,0) -> 0 | N91: 0 | O91: 0
C92: 25 | D92: Reclaimed Asphalt Pavement | E92: =IFERROR('6 LCI Factors'!E89*'7 Mass Data for SMM'!E29,0) -> 0 | F92: =IFERROR('6 LCI Factors'!F89*'7 Mass Data for SMM'!F29,0) -> 0 | G92: =IFERROR('6 LCI Factors'!E89*'7 Mass Data for SMM'!G29,0) -> 0 | H92: =IFERROR('6 LCI Factors'!G89*'7 Mass Data for SMM'!G29,0) -> 0 | I92: =IFERROR('6 LCI Factors'!H89*'7 Mass Data for SMM'!H29,0) -> 0 | J92: =IFERROR('6 LCI Factors'!I89*'7 Mass Data for SMM'!I29,0) -> 0 | K92: =IFERROR('6 LCI Factors'!J89*'7 Mass Data for SMM'!J29,0) -> 0 | L92: =IFERROR('6 LCI Factors'!K89*'7 Mass Data for SMM'!K29,0) -> 0 | M92: =IFERROR('6 LCI Factors'!L89*'7 Mass Data for SMM'!L29,0) -> 0 | N92: 0 | O92: 0
B93: Total | E93: =SUMIF(E68:E92,"<>#value!") -> 0 | F93: 0 | G93: =SUMIF(G68:G92,"<>#value!") -> 0 | H93: =SUMIF(H68:H92,"<>#value!") -> 0 | I93: =SUMIF(I68:I92,"<>#value!") -> 0 | J93: 0 | K93: 0 | L93: 0 | M93: 0 | N93: 0 | O93: 0
B95: Table 4.
B96: Human Toxicity (CTUh): Release of toxic materials to humans due to inhalation or ingestion by humans. The units are expressed as comparative toxic units (CTUh) which is interpreted as disease cases per kg of substance emitted. This is a measure of adverse impacts include causing cancer and other non-cancer diseases.
B97: Material Category | C97: Item No. | D97: Material Type | E97: Source Reduced/ Generated | F97: Donated | G97: Produced | H97: Collection | I97: Recycling | J97: Composting | K97: Anaerobic Digestion | L97: Landfill | M97: Combustion | N97: Lifecycle Total | O97: Waste Management Total
B98: MSW | C98: 1 | D98: Mixed MSW | E98: =IFERROR('6 LCI Factors'!E95*'7 Mass Data for SMM'!E5,0) -> 0 | F98: =IFERROR('6 LCI Factors'!F95*'7 Mass Data for SMM'!F5,0) -> 0 | G98: =IFERROR('6 LCI Factors'!E95*'7 Mass Data for SMM'!G5,0) -> 0 | H98: =IFERROR('6 LCI Factors'!G95*'7 Mass Data for SMM'!G5,0) -> 6.125477453e-05 | I98: =IFERROR('6 LCI Factors'!H95*'7 Mass Data for SMM'!H5,0) -> 0 | J98: =IFERROR('6 LCI Factors'!I95*'7 Mass Data for SMM'!I5,0) -> 0 | K98: =IFERROR('6 LCI Factors'!J95*'7 Mass Data for SMM'!J5,0) -> 0 | L98: =IFERROR('6 LCI Factors'!K95*'7 Mass Data for SMM'!K5,0) -> -0.0375522515 | M98: =IFERROR('6 LCI Factors'!L95*'7 Mass Data for SMM'!L5,0) -> 0 | N98: =SUMIF(E98:M98,"<>#value!") -> -0.03749099673 | O98: =SUMIF(H98:M98,"<>#value!") -> -0.03749099673
B99: Paper | C99: 2 | D99: Newspaper | E99: =IFERROR('6 LCI Factors'!E96*'7 Mass Data for SMM'!E6,0) -> 0 | F99: =IFERROR('6 LCI Factors'!F96*'7 Mass Data for SMM'!F6,0) -> 0 | G99: =IFERROR('6 LCI Factors'!E96*'7 Mass Data for SMM'!G6,0) -> 0 | H99: =IFERROR('6 LCI Factors'!G96*'7 Mass Data for SMM'!G6,0) -> 4.28474065e-06 | I99: =IFERROR('6 LCI Factors'!H96*'7 Mass Data for SMM'!H6,0) -> -0.007608883109 | J99: =IFERROR('6 LCI Factors'!I96*'7 Mass Data for SMM'!I6,0) -> 0 | K99: =IFERROR('6 LCI Factors'!J96*'7 Mass Data for SMM'!J6,0) -> 0 | L99: =IFERROR('6 LCI Factors'!K96*'7 Mass Data for SMM'!K6,0) -> -8.015696098e-05 | M99: =IFERROR('6 LCI Factors'!L96*'7 Mass Data for SMM'!L6,0) -> 0 | N99: =SUMIF(E99:M99,"<>#value!") -> -0.007684755329 | O99: =SUMIF(H99:M99,"<>#value!") -> -0.007684755329
C100: 3 | D100: Corrugated Cardboard (OCC) | E100: =IFERROR('6 LCI Factors'!E97*'7 Mass Data for SMM'!E7,0) -> 0 | F100: =IFERROR('6 LCI Factors'!F97*'7 Mass Data for SMM'!F7,0) -> 0 | G100: =IFERROR('6 LCI Factors'!E97*'7 Mass Data for SMM'!G7,0) -> 0 | H100: =IFERROR('6 LCI Factors'!G97*'7 Mass Data for SMM'!G7,0) -> 5.071002401e-05 | I100: =IFERROR('6 LCI Factors'!H97*'7 Mass Data for SMM'!H7,0) -> -0.1376221742 | J100: =IFERROR('6 LCI Factors'!I97*'7 Mass Data for SMM'!I7,0) -> 0 | K100: =IFERROR('6 LCI Factors'!J97*'7 Mass Data for SMM'!J7,0) -> 0 | L100: =IFERROR('6 LCI Factors'!K97*'7 Mass Data for SMM'!K7,0) -> -0.009106679167 | M100: =IFERROR('6 LCI Factors'!L97*'7 Mass Data for SMM'!L7,0) -> 0 | N100: -0.1466781433 | O100: -0.1466781433
C101: 4 | D101: High Grade Paper (Office Type Paper) | E101: =IFERROR('6 LCI Factors'!E98*'7 Mass Data for SMM'!E8,0) -> 0 | F101: =IFERROR('6 LCI Factors'!F98*'7 Mass Data for SMM'!F8,0) -> 0 | G101: =IFERROR('6 LCI Factors'!E98*'7 Mass Data for SMM'!G8,0) -> 0 | H101: =IFERROR('6 LCI Factors'!G98*'7 Mass Data for SMM'!G8,0) -> 5.107426077e-06 | I101: =IFERROR('6 LCI Factors'!H98*'7 Mass Data for SMM'!H8,0) -> 0.0005741592785 | J101: =IFERROR('6 LCI Factors'!I98*'7 Mass Data for SMM'!I8,0) -> 0 | K101: =IFERROR('6 LCI Factors'!J98*'7 Mass Data for SMM'!J8,0) -> 0 | L101: =IFERROR('6 LCI Factors'!K98*'7 Mass Data for SMM'!K8,0) -> -0.001338601586 | M101: =IFERROR('6 LCI Factors'!L98*'7 Mass Data for SMM'!L8,0) -> 0 | N101: -0.0007593348812 | O101: -0.0007593348812
C102: 5 | D102: Magazines/third-class mail | E102: =IFERROR('6 LCI Factors'!E99*'7 Mass Data for SMM'!E9,0) -> 0 | F102: =IFERROR('6 LCI Factors'!F99*'7 Mass Data for SMM'!F9,0) -> 0 | G102: =IFERROR('6 LCI Factors'!E99*'7 Mass Data for SMM'!G9,0) -> 0 | H102: =IFERROR('6 LCI Factors'!G99*'7 Mass Data for SMM'!G9,0) -> 1.174990669e-05 | I102: =IFERROR('6 LCI Factors'!H99*'7 Mass Data for SMM'!H9,0) -> 3.610075269e-05 | J102: =IFERROR('6 LCI Factors'!I99*'7 Mass Data for SMM'!I9,0) -> 0 | K102: =IFERROR('6 LCI Factors'!J99*'7 Mass Data for SMM'!J9,0) -> 0 | L102: =IFERROR('6 LCI Factors'!K99*'7 Mass Data for SMM'!K9,0) -> -0.003526491387 | M102: =IFERROR('6 LCI Factors'!L99*'7 Mass Data for SMM'!L9,0) -> 0 | N102: -0.003478640727 | O102: -0.003478640727
C103: 6 | D103: Books | E103: =IFERROR('6 LCI Factors'!E100*'7 Mass Data for SMM'!E10,0) -> 0 | F103: =IFERROR('6 LCI Factors'!F100*'7 Mass Data for SMM'!F10,0) -> 0 | G103: =IFERROR('6 LCI Factors'!E100*'7 Mass Data for SMM'!G10,0) -> 0 | H103: =IFERROR('6 LCI Factors'!G100*'7 Mass Data for SMM'!G10,0) -> 1.150484898e-06 | I103: =IFERROR('6 LCI Factors'!H100*'7 Mass Data for SMM'!H10,0) -> 0 | J103: =IFERROR('6 LCI Factors'!I100*'7 Mass Data for SMM'!I10,0) -> 0 | K103: =IFERROR('6 LCI Factors'!J100*'7 Mass Data for SMM'!J10,0) -> 0 | L103: =IFERROR('6 LCI Factors'!K100*'7 Mass Data for SMM'!K10,0) -> -0.0002169883047 | M103: =IFERROR('6 LCI Factors'!L100*'7 Mass Data for SMM'!L10,0) -> 0 | N103: -0.0002158378198 | O103: -0.0002158378198
C104: 7 | D104: Mixed Paper | E104: =IFERROR('6 LCI Factors'!E101*'7 Mass Data for SMM'!E11,0) -> 0 | F104: =IFERROR('6 LCI Factors'!F101*'7 Mass Data for SMM'!F11,0) -> 0 | G104: =IFERROR('6 LCI Factors'!E101*'7 Mass Data for SMM'!G11,0) -> 0 | H104: =IFERROR('6 LCI Factors'!G101*'7 Mass Data for SMM'!G11,0) -> 3.818615925e-05 | I104: =IFERROR('6 LCI Factors'!H101*'7 Mass Data for SMM'!H11,0) -> -0.001147955123 | J104: =IFERROR('6 LCI Factors'!I101*'7 Mass Data for SMM'!I11,0) -> 0 | K104: =IFERROR('6 LCI Factors'!J101*'7 Mass Data for SMM'!J11,0) -> 0 | L104: =IFERROR('6 LCI Factors'!K101*'7 Mass Data for SMM'!K11,0) -> -0.01782461275 | M104: =IFERROR('6 LCI Factors'!L101*'7 Mass Data for SMM'!L11,0) -> 0 | N104: -0.01893438171 | O104: -0.01893438171
B105: Plastic | C105: 8 | D105: HDPE | E105: =IFERROR('6 LCI Factors'!E102*'7 Mass Data for SMM'!E12,0) -> 0 | F105: =IFERROR('6 LCI Factors'!F102*'7 Mass Data for SMM'!F12,0) -> 0 | G105: =IFERROR('6 LCI Factors'!E102*'7 Mass Data for SMM'!G12,0) -> 0 | H105: =IFERROR('6 LCI Factors'!G102*'7 Mass Data for SMM'!G12,0) -> 1.694248533e-06 | I105: =IFERROR('6 LCI Factors'!H102*'7 Mass Data for SMM'!H12,0) -> 0.0001278670633 | J105: =IFERROR('6 LCI Factors'!I102*'7 Mass Data for SMM'!I12,0) -> 0 | K105: =IFERROR('6 LCI Factors'!J102*'7 Mass Data for SMM'!J12,0) -> 0 | L105: =IFERROR('6 LCI Factors'!K102*'7 Mass Data for SMM'!K12,0) -> 3.912286723e-07 | M105: =IFERROR('6 LCI Factors'!L102*'7 Mass Data for SMM'!L12,0) -> 0 | N105: 0.0001299525405 | O105: 0.0001299525405
C106: 9 | D106: PET | E106: =IFERROR('6 LCI Factors'!E103*'7 Mass Data for SMM'!E13,0) -> 0 | F106: =IFERROR('6 LCI Factors'!F103*'7 Mass Data for SMM'!F13,0) -> 0 | G106: =IFERROR('6 LCI Factors'!E103*'7 Mass Data for SMM'!G13,0) -> 0 | H106: =IFERROR('6 LCI Factors'!G103*'7 Mass Data for SMM'!G13,0) -> 2.787518341e-06 | I106: =IFERROR('6 LCI Factors'!H103*'7 Mass Data for SMM'!H13,0) -> 0.0001972434528 | J106: =IFERROR('6 LCI Factors'!I103*'7 Mass Data for SMM'!I13,0) -> 0 | K106: =IFERROR('6 LCI Factors'!J103*'7 Mass Data for SMM'!J13,0) -> 0 | L106: =IFERROR('6 LCI Factors'!K103*'7 Mass Data for SMM'!K13,0) -> 6.436818911e-07 | M106: =IFERROR('6 LCI Factors'!L103*'7 Mass Data for SMM'!L13,0) -> 0 | N106: 0.0002006746531 | O106: 0.0002006746531
C107: 10 | D107: Mixed Plastic | E107: =IFERROR('6 LCI Factors'!E104*'7 Mass Data for SMM'!E14,0) -> 0 | F107: =IFERROR('6 LCI Factors'!F104*'7 Mass Data for SMM'!F14,0) -> 0 | G107: =IFERROR('6 LCI Factors'!E104*'7 Mass Data for SMM'!G14,0) -> 0 | H107: =IFERROR('6 LCI Factors'!G104*'7 Mass Data for SMM'!G14,0) -> 2.926371847e-05 | I107: =IFERROR('6 LCI Factors'!H104*'7 Mass Data for SMM'!H14,0) -> 0.0002974761075 | J107: =IFERROR('6 LCI Factors'!I104*'7 Mass Data for SMM'!I14,0) -> 0 | K107: =IFERROR('6 LCI Factors'!J104*'7 Mass Data for SMM'!J14,0) -> 0 | L107: =IFERROR('6 LCI Factors'!K104*'7 Mass Data for SMM'!K14,0) -> 9.315267319e-06 | M107: =IFERROR('6 LCI Factors'!L104*'7 Mass Data for SMM'!L14,0) -> 0 | N107: 0.0003360550933 | O107: 0.0003360550933
B108: Glass | C108: 11 | D108: Glass | E108: =IFERROR('6 LCI Factors'!E105*'7 Mass Data for SMM'!E15,0) -> 0 | F108: =IFERROR('6 LCI Factors'!F105*'7 Mass Data for SMM'!F15,0) -> 0 | G108: =IFERROR('6 LCI Factors'!E105*'7 Mass Data for SMM'!G15,0) -> 0 | H108: =IFERROR('6 LCI Factors'!G105*'7 Mass Data for SMM'!G15,0) -> 9.146091132e-06 | I108: =IFERROR('6 LCI Factors'!H105*'7 Mass Data for SMM'!H15,0) -> -2.3204458e-05 | J108: =IFERROR('6 LCI Factors'!I105*'7 Mass Data for SMM'!I15,0) -> 0 | K108: =IFERROR('6 LCI Factors'!J105*'7 Mass Data for SMM'!J15,0) -> 0 | L108: =IFERROR('6 LCI Factors'!K105*'7 Mass Data for SMM'!K15,0) -> 1.297574812e-06 | M108: =IFERROR('6 LCI Factors'!L105*'7 Mass Data for SMM'!L15,0) -> 0 | N108: -1.276079206e-05 | O108: -1.276079206e-05
B109: Metals | C109: 12 | D109: Aluminum Cans | E109: =IFERROR('6 LCI Factors'!E106*'7 Mass Data for SMM'!E16,0) -> 0 | F109: =IFERROR('6 LCI Factors'!F106*'7 Mass Data for SMM'!F16,0) -> 0 | G109: =IFERROR('6 LCI Factors'!E106*'7 Mass Data for SMM'!G16,0) -> 0 | H109: =IFERROR('6 LCI Factors'!G106*'7 Mass Data for SMM'!G16,0) -> 1.33249336e-06 | I109: =IFERROR('6 LCI Factors'!H106*'7 Mass Data for SMM'!H16,0) -> -0.001521907703 | J109: =IFERROR('6 LCI Factors'!I106*'7 Mass Data for SMM'!I16,0) -> 0 | K109: =IFERROR('6 LCI Factors'!J106*'7 Mass Data for SMM'!J16,0) -> 0 | L109: =IFERROR('6 LCI Factors'!K106*'7 Mass Data for SMM'!K16,0) -> 2.66194667e-07 | M109: =IFERROR('6 LCI Factors'!L106*'7 Mass Data for SMM'!L16,0) -> 0 | N109: -0.001520309015 | O109: -0.001520309015
C110: 13 | D110: Steel/Tin Cans | E110: =IFERROR('6 LCI Factors'!E107*'7 Mass Data for SMM'!E17,0) -> 0 | F110: =IFERROR('6 LCI Factors'!F107*'7 Mass Data for SMM'!F17,0) -> 0 | G110: =IFERROR('6 LCI Factors'!E107*'7 Mass Data for SMM'!G17,0) -> 0 | H110: =IFERROR('6 LCI Factors'!G107*'7 Mass Data for SMM'!G17,0) -> 1.658541871e-06 | I110: =IFERROR('6 LCI Factors'!H107*'7 Mass Data for SMM'!H17,0) -> 0.002068462189 | J110: =IFERROR('6 LCI Factors'!I107*'7 Mass Data for SMM'!I17,0) -> 0 | K110: =IFERROR('6 LCI Factors'!J107*'7 Mass Data for SMM'!J17,0) -> 0 | L110: =IFERROR('6 LCI Factors'!K107*'7 Mass Data for SMM'!K17,0) -> 4.083988032e-07 | M110: =IFERROR('6 LCI Factors'!L107*'7 Mass Data for SMM'!L17,0) -> 0 | N110: 0.00207052913 | O110: 0.00207052913
C111: 14 | D111: Mixed Metals | E111: =IFERROR('6 LCI Factors'!E108*'7 Mass Data for SMM'!E18,0) -> 0 | F111: =IFERROR('6 LCI Factors'!F108*'7 Mass Data for SMM'!F18,0) -> 0 | G111: =IFERROR('6 LCI Factors'!E108*'7 Mass Data for SMM'!G18,0) -> 0 | H111: =IFERROR('6 LCI Factors'!G108*'7 Mass Data for SMM'!G18,0) -> 2.317150411e-05 | I111: =IFERROR('6 LCI Factors'!H108*'7 Mass Data for SMM'!H18,0) -> 0.01932189427 | J111: =IFERROR('6 LCI Factors'!I108*'7 Mass Data for SMM'!I18,0) -> 0 | K111: =IFERROR('6 LCI Factors'!J108*'7 Mass Data for SMM'!J18,0) -> 0 | L111: =IFERROR('6 LCI Factors'!K108*'7 Mass Data for SMM'!K18,0) -> 1.125593133e-06 | M111: =IFERROR('6 LCI Factors'!L108*'7 Mass Data for SMM'!L18,0) -> 0 | N111: 0.01934619137 | O111: 0.01934619137
B112: Organic | C112: 15 | D112: Yard Waste | E112: =IFERROR('6 LCI Factors'!E109*'7 Mass Data for SMM'!E19,0) -> 0 | F112: =IFERROR('6 LCI Factors'!F109*'7 Mass Data for SMM'!F19,0) -> 0 | G112: =IFERROR('6 LCI Factors'!E109*'7 Mass Data for SMM'!G19,0) -> 0 | H112: =IFERROR('6 LCI Factors'!G109*'7 Mass Data for SMM'!G19,0) -> 0.000185159459 | I112: =IFERROR('6 LCI Factors'!H109*'7 Mass Data for SMM'!H19,0) -> 0 | J112: =IFERROR('6 LCI Factors'!I109*'7 Mass Data for SMM'!I19,0) -> 0.006948162505 | K112: =IFERROR('6 LCI Factors'!J109*'7 Mass Data for SMM'!J19,0) -> 0 | L112: =IFERROR('6 LCI Factors'!K109*'7 Mass Data for SMM'!K19,0) -> -0.0002532515135 | M112: =IFERROR('6 LCI Factors'!L109*'7 Mass Data for SMM'!L19,0) -> -63.44029347 | N112: -63.43341339 | O112: -63.43341339
C113: 16 | D113: Food Waste | E113: =IFERROR('6 LCI Factors'!E110*'7 Mass Data for SMM'!E20,0) -> 0 | F113: =IFERROR('6 LCI Factors'!F110*'7 Mass Data for SMM'!F20,0) -> 0 | G113: =IFERROR('6 LCI Factors'!E110*'7 Mass Data for SMM'!G20,0) -> 0 | H113: =IFERROR('6 LCI Factors'!G110*'7 Mass Data for SMM'!G20,0) -> 3.460571854e-05 | I113: =IFERROR('6 LCI Factors'!H110*'7 Mass Data for SMM'!H20,0) -> 0 | J113: =IFERROR('6 LCI Factors'!I110*'7 Mass Data for SMM'!I20,0) -> 3.562241628e-05 | K113: =IFERROR('6 LCI Factors'!J110*'7 Mass Data for SMM'!J20,0) -> 0 | L113: =IFERROR('6 LCI Factors'!K110*'7 Mass Data for SMM'!K20,0) -> -0.009166359703 | M113: =IFERROR('6 LCI Factors'!L110*'7 Mass Data for SMM'!L20,0) -> 0 | N113: -0.009096131569 | O113: -0.009096131569
B114: Other | C114: 17 | D114: Tires | E114: =IFERROR('6 LCI Factors'!E111*'7 Mass Data for SMM'!E21,0) -> 0 | F114: =IFERROR('6 LCI Factors'!F111*'7 Mass Data for SMM'!F21,0) -> 0 | G114: =IFERROR('6 LCI Factors'!E111*'7 Mass Data for SMM'!G21,0) -> 0 | H114: =IFERROR('6 LCI Factors'!G111*'7 Mass Data for SMM'!G21,0) -> 0 | I114: =IFERROR('6 LCI Factors'!H111*'7 Mass Data for SMM'!H21,0) -> 0 | J114: =IFERROR('6 LCI Factors'!I111*'7 Mass Data for SMM'!I21,0) -> 0 | K114: =IFERROR('6 LCI Factors'!J111*'7 Mass Data for SMM'!J21,0) -> 0 | L114: =IFERROR('6 LCI Factors'!K111*'7 Mass Data for SMM'!K21,0) -> 0 | M114: =IFERROR('6 LCI Factors'!L111*'7 Mass Data for SMM'!L21,0) -> 0 | N114: 0 | O114: 0
C115: 18 | D115: Clothing and Footwear | E115: =IFERROR('6 LCI Factors'!E112*'7 Mass Data for SMM'!E22,0) -> 0 | F115: =IFERROR('6 LCI Factors'!F112*'7 Mass Data for SMM'!F22,0) -> 0 | G115: =IFERROR('6 LCI Factors'!E112*'7 Mass Data for SMM'!G22,0) -> 0 | H115: =IFERROR('6 LCI Factors'!G112*'7 Mass Data for SMM'!G22,0) -> 0 | I115: =IFERROR('6 LCI Factors'!H112*'7 Mass Data for SMM'!H22,0) -> 0 | J115: =IFERROR('6 LCI Factors'!I112*'7 Mass Data for SMM'!I22,0) -> 0 | K115: =IFERROR('6 LCI Factors'!J112*'7 Mass Data for SMM'!J22,0) -> 0 | L115: =IFERROR('6 LCI Factors'!K112*'7 Mass Data for SMM'!K22,0) -> 0 | M115: =IFERROR('6 LCI Factors'!L112*'7 Mass Data for SMM'!L22,0) -> 0 | N115: 0 | O115: 0
C116: 19 | D116: Furniture | E116: =IFERROR('6 LCI Factors'!E113*'7 Mass Data for SMM'!E23,0) -> 0 | F116: =IFERROR('6 LCI Factors'!F113*'7 Mass Data for SMM'!F23,0) -> 0 | G116: =IFERROR('6 LCI Factors'!E113*'7 Mass Data for SMM'!G23,0) -> 0 | H116: =IFERROR('6 LCI Factors'!G113*'7 Mass Data for SMM'!G23,0) -> 0 | I116: =IFERROR('6 LCI Factors'!H113*'7 Mass Data for SMM'!H23,0) -> 0 | J116: =IFERROR('6 LCI Factors'!I113*'7 Mass Data for SMM'!I23,0) -> 0 | K116: =IFERROR('6 LCI Factors'!J113*'7 Mass Data for SMM'!J23,0) -> 0 | L116: =IFERROR('6 LCI Factors'!K113*'7 Mass Data for SMM'!K23,0) -> 0 | M116: =IFERROR('6 LCI Factors'!L113*'7 Mass Data for SMM'!L23,0) -> 0 | N116: 0 | O116: 0
C117: 20 | D117: Electronics | E117: =IFERROR('6 LCI Factors'!E114*'7 Mass Data for SMM'!E24,0) -> 0 | F117: =IFERROR('6 LCI Factors'!F114*'7 Mass Data for SMM'!F24,0) -> 0 | G117: =IFERROR('6 LCI Factors'!E114*'7 Mass Data for SMM'!G24,0) -> 0 | H117: =IFERROR('6 LCI Factors'!G114*'7 Mass Data for SMM'!G24,0) -> 0 | I117: =IFERROR('6 LCI Factors'!H114*'7 Mass Data for SMM'!H24,0) -> 0 | J117: =IFERROR('6 LCI Factors'!I114*'7 Mass Data for SMM'!I24,0) -> 0 | K117: =IFERROR('6 LCI Factors'!J114*'7 Mass Data for SMM'!J24,0) -> 0 | L117: =IFERROR('6 LCI Factors'!K114*'7 Mass Data for SMM'!K24,0) -> 0 | M117: =IFERROR('6 LCI Factors'!L114*'7 Mass Data for SMM'!L24,0) -> 0 | N117: 0 | O117: 0
B118: C&D Debris | C118: 21 | D118: Wood Products | E118: =IFERROR('6 LCI Factors'!E115*'7 Mass Data for SMM'!E25,0) -> 0 | F118: =IFERROR('6 LCI Factors'!F115*'7 Mass Data for SMM'!F25,0) -> 0 | G118: =IFERROR('6 LCI Factors'!E115*'7 Mass Data for SMM'!G25,0) -> 0 | H118: =IFERROR('6 LCI Factors'!G115*'7 Mass Data for SMM'!G25,0) -> 0 | I118: =IFERROR('6 LCI Factors'!H115*'7 Mass Data for SMM'!H25,0) -> 0 | J118: =IFERROR('6 LCI Factors'!I115*'7 Mass Data for SMM'!I25,0) -> 0 | K118: =IFERROR('6 LCI Factors'!J115*'7 Mass Data for SMM'!J25,0) -> 0 | L118: =IFERROR('6 LCI Factors'!K115*'7 Mass Data for SMM'!K25,0) -> 0 | M118: =IFERROR('6 LCI Factors'!L115*'7 Mass Data for SMM'!L25,0) -> 0 | N118: 0 | O118: 0
C119: 22 | D119: Asphalt Shingles | E119: =IFERROR('6 LCI Factors'!E116*'7 Mass Data for SMM'!E26,0) -> 0 | F119: =IFERROR('6 LCI Factors'!F116*'7 Mass Data for SMM'!F26,0) -> 0 | G119: =IFERROR('6 LCI Factors'!E116*'7 Mass Data for SMM'!G26,0) -> 0 | H119: =IFERROR('6 LCI Factors'!G116*'7 Mass Data for SMM'!G26,0) -> 0 | I119: =IFERROR('6 LCI Factors'!H116*'7 Mass Data for SMM'!H26,0) -> 0 | J119: =IFERROR('6 LCI Factors'!I116*'7 Mass Data for SMM'!I26,0) -> 0 | K119: =IFERROR('6 LCI Factors'!J116*'7 Mass Data for SMM'!J26,0) -> 0 | L119: =IFERROR('6 LCI Factors'!K116*'7 Mass Data for SMM'!K26,0) -> 0 | M119: =IFERROR('6 LCI Factors'!L116*'7 Mass Data for SMM'!L26,0) -> 0 | N119: 0 | O119: 0
C120: 23 | D120: Gypsum Drywall | E120: =IFERROR('6 LCI Factors'!E117*'7 Mass Data for SMM'!E27,0) -> 0 | F120: =IFERROR('6 LCI Factors'!F117*'7 Mass Data for SMM'!F27,0) -> 0 | G120: =IFERROR('6 LCI Factors'!E117*'7 Mass Data for SMM'!G27,0) -> 0 | H120: =IFERROR('6 LCI Factors'!G117*'7 Mass Data for SMM'!G27,0) -> 0 | I120: =IFERROR('6 LCI Factors'!H117*'7 Mass Data for SMM'!H27,0) -> 0 | J120: =IFERROR('6 LCI Factors'!I117*'7 Mass Data for SMM'!I27,0) -> 0 | K120: =IFERROR('6 LCI Factors'!J117*'7 Mass Data for SMM'!J27,0) -> 0 | L120: =IFERROR('6 LCI Factors'!K117*'7 Mass Data for SMM'!K27,0) -> 0 | M120: =IFERROR('6 LCI Factors'!L117*'7 Mass Data for SMM'!L27,0) -> 0 | N120: 0 | O120: 0
C121: 24 | D121: Concrete | E121: =IFERROR('6 LCI Factors'!E118*'7 Mass Data for SMM'!E28,0) -> 0 | F121: =IFERROR('6 LCI Factors'!F118*'7 Mass Data for SMM'!F28,0) -> 0 | G121: =IFERROR('6 LCI Factors'!E118*'7 Mass Data for SMM'!G28,0) -> 0 | H121: =IFERROR('6 LCI Factors'!G118*'7 Mass Data for SMM'!G28,0) -> 0 | I121: =IFERROR('6 LCI Factors'!H118*'7 Mass Data for SMM'!H28,0) -> 0 | J121: =IFERROR('6 LCI Factors'!I118*'7 Mass Data for SMM'!I28,0) -> 0 | K121: =IFERROR('6 LCI Factors'!J118*'7 Mass Data for SMM'!J28,0) -> 0 | L121: =IFERROR('6 LCI Factors'!K118*'7 Mass Data for SMM'!K28,0) -> 0 | M121: =IFERROR('6 LCI Factors'!L118*'7 Mass Data for SMM'!L28,0) -> 0 | N121: 0 | O121: 0
C122: 25 | D122: Reclaimed Asphalt Pavement | E122: =IFERROR('6 LCI Factors'!E119*'7 Mass Data for SMM'!E29,0) -> 0 | F122: =IFERROR('6 LCI Factors'!F119*'7 Mass Data for SMM'!F29,0) -> 0 | G122: =IFERROR('6 LCI Factors'!E119*'7 Mass Data for SMM'!G29,0) -> 0 | H122: =IFERROR('6 LCI Factors'!G119*'7 Mass Data for SMM'!G29,0) -> 0 | I122: =IFERROR('6 LCI Factors'!H119*'7 Mass Data for SMM'!H29,0) -> 0 | J122: =IFERROR('6 LCI Factors'!I119*'7 Mass Data for SMM'!I29,0) -> 0 | K122: =IFERROR('6 LCI Factors'!J119*'7 Mass Data for SMM'!J29,0) -> 0 | L122: =IFERROR('6 LCI Factors'!K119*'7 Mass Data for SMM'!K29,0) -> 0 | M122: =IFERROR('6 LCI Factors'!L119*'7 Mass Data for SMM'!L29,0) -> 0 | N122: 0 | O122: 0
B123: Total | E123: =SUMIF(E98:E122,"<>#value!") -> 0 | F123: 0 | G123: =SUMIF(G98:G122,"<>#value!") -> 0 | H123: =SUMIF(H98:H122,"<>#value!") -> 0.0004612628095 | I123: =SUMIF(I98:I122,"<>#value!") -> -0.1253009215 | J123: 0.006983784921 | K123: 0 | L123: -0.07905194494 | M123: -63.44029347 | N123: -63.63720128 | O123: -63.63720128
B125: Table 5.
B126: Marine Ecotoxicity (CTUe): Release of toxic materials to aquatic ecosystem. The units are expressed as comparative toxic units (CTUe) which is interpreted as the potentially affected fraction of species over time and volume per kg of substance emitted.
B127: Material Category | C127: Item No. | D127: Material Type | E127: Source Reduced/ Generated | F127: Donated | G127: Produced | H127: Collection | I127: Recycling | J127: Composting | K127: Anaerobic Digestion | L127: Landfill | M127: Combustion | N127: Lifecycle Total | O127: Waste Management Total
B128: MSW | C128: 1 | D128: Mixed MSW | E128: =IFERROR('6 LCI Factors'!E125*'7 Mass Data for SMM'!E5,0) -> 0 | F128: =IFERROR('6 LCI Factors'!F125*'7 Mass Data for SMM'!F5,0) -> 0 | G128: =IFERROR('6 LCI Factors'!E125*'7 Mass Data for SMM'!G5,0) -> 0 | H128: =IFERROR('6 LCI Factors'!G125*'7 Mass Data for SMM'!G5,0) -> 2060.126327 | I128: =IFERROR('6 LCI Factors'!H125*'7 Mass Data for SMM'!H5,0) -> 0 | J128: =IFERROR('6 LCI Factors'!I125*'7 Mass Data for SMM'!I5,0) -> 0 | K128: =IFERROR('6 LCI Factors'!J125*'7 Mass Data for SMM'!J5,0) -> 0 | L128: =IFERROR('6 LCI Factors'!K125*'7 Mass Data for SMM'!K5,0) -> -1877244.612 | M128: =IFERROR('6 LCI Factors'!L125*'7 Mass Data for SMM'!L5,0) -> 0 | N128: =SUMIF(E128:M128,"<>#value!") -> -1875184.486 | O128: =SUMIF(H128:M128,"<>#value!") -> -1875184.486
B129: Paper | C129: 2 | D129: Newspaper | E129: =IFERROR('6 LCI Factors'!E126*'7 Mass Data for SMM'!E6,0) -> 0 | F129: =IFERROR('6 LCI Factors'!F126*'7 Mass Data for SMM'!F6,0) -> 0 | G129: =IFERROR('6 LCI Factors'!E126*'7 Mass Data for SMM'!G6,0) -> 0 | H129: =IFERROR('6 LCI Factors'!G126*'7 Mass Data for SMM'!G6,0) -> 144.1047998 | I129: =IFERROR('6 LCI Factors'!H126*'7 Mass Data for SMM'!H6,0) -> -300119.0653 | J129: =IFERROR('6 LCI Factors'!I126*'7 Mass Data for SMM'!I6,0) -> 0 | K129: =IFERROR('6 LCI Factors'!J126*'7 Mass Data for SMM'!J6,0) -> 0 | L129: =IFERROR('6 LCI Factors'!K126*'7 Mass Data for SMM'!K6,0) -> -4014.177138 | M129: =IFERROR('6 LCI Factors'!L126*'7 Mass Data for SMM'!L6,0) -> 0 | N129: =SUMIF(E129:M129,"<>#value!") -> -303989.1376 | O129: =SUMIF(H129:M129,"<>#value!") -> -303989.1376
C130: 3 | D130: Corrugated Cardboard (OCC) | E130: =IFERROR('6 LCI Factors'!E127*'7 Mass Data for SMM'!E7,0) -> 0 | F130: =IFERROR('6 LCI Factors'!F127*'7 Mass Data for SMM'!F7,0) -> 0 | G130: =IFERROR('6 LCI Factors'!E127*'7 Mass Data for SMM'!G7,0) -> 0 | H130: =IFERROR('6 LCI Factors'!G127*'7 Mass Data for SMM'!G7,0) -> 1705.484288 | I130: =IFERROR('6 LCI Factors'!H127*'7 Mass Data for SMM'!H7,0) -> 17080208.1 | J130: =IFERROR('6 LCI Factors'!I127*'7 Mass Data for SMM'!I7,0) -> 0 | K130: =IFERROR('6 LCI Factors'!J127*'7 Mass Data for SMM'!J7,0) -> 0 | L130: =IFERROR('6 LCI Factors'!K127*'7 Mass Data for SMM'!K7,0) -> -455108.7742 | M130: =IFERROR('6 LCI Factors'!L127*'7 Mass Data for SMM'!L7,0) -> 0 | N130: 16626804.81 | O130: 16626804.81
C131: 4 | D131: High Grade Paper (Office Type Paper) | E131: =IFERROR('6 LCI Factors'!E128*'7 Mass Data for SMM'!E8,0) -> 0 | F131: =IFERROR('6 LCI Factors'!F128*'7 Mass Data for SMM'!F8,0) -> 0 | G131: =IFERROR('6 LCI Factors'!E128*'7 Mass Data for SMM'!G8,0) -> 0 | H131: =IFERROR('6 LCI Factors'!G128*'7 Mass Data for SMM'!G8,0) -> 171.7734333 | I131: =IFERROR('6 LCI Factors'!H128*'7 Mass Data for SMM'!H8,0) -> 55839.34163 | J131: =IFERROR('6 LCI Factors'!I128*'7 Mass Data for SMM'!I8,0) -> 0 | K131: =IFERROR('6 LCI Factors'!J128*'7 Mass Data for SMM'!J8,0) -> 0 | L131: =IFERROR('6 LCI Factors'!K128*'7 Mass Data for SMM'!K8,0) -> -66953.02002 | M131: =IFERROR('6 LCI Factors'!L128*'7 Mass Data for SMM'!L8,0) -> 0 | N131: -10941.90495 | O131: -10941.90495
C132: 5 | D132: Magazines/third-class mail | E132: =IFERROR('6 LCI Factors'!E129*'7 Mass Data for SMM'!E9,0) -> 0 | F132: =IFERROR('6 LCI Factors'!F129*'7 Mass Data for SMM'!F9,0) -> 0 | G132: =IFERROR('6 LCI Factors'!E129*'7 Mass Data for SMM'!G9,0) -> 0 | H132: =IFERROR('6 LCI Factors'!G129*'7 Mass Data for SMM'!G9,0) -> 395.173965 | I132: =IFERROR('6 LCI Factors'!H129*'7 Mass Data for SMM'!H9,0) -> 1665.491947 | J132: =IFERROR('6 LCI Factors'!I129*'7 Mass Data for SMM'!I9,0) -> 0 | K132: =IFERROR('6 LCI Factors'!J129*'7 Mass Data for SMM'!J9,0) -> 0 | L132: =IFERROR('6 LCI Factors'!K129*'7 Mass Data for SMM'!K9,0) -> -176534.2297 | M132: =IFERROR('6 LCI Factors'!L129*'7 Mass Data for SMM'!L9,0) -> 0 | N132: -174473.5638 | O132: -174473.5638
C133: 6 | D133: Books | E133: =IFERROR('6 LCI Factors'!E130*'7 Mass Data for SMM'!E10,0) -> 0 | F133: =IFERROR('6 LCI Factors'!F130*'7 Mass Data for SMM'!F10,0) -> 0 | G133: =IFERROR('6 LCI Factors'!E130*'7 Mass Data for SMM'!G10,0) -> 0 | H133: =IFERROR('6 LCI Factors'!G130*'7 Mass Data for SMM'!G10,0) -> 38.69321609 | I133: =IFERROR('6 LCI Factors'!H130*'7 Mass Data for SMM'!H10,0) -> 0 | J133: =IFERROR('6 LCI Factors'!I130*'7 Mass Data for SMM'!I10,0) -> 0 | K133: =IFERROR('6 LCI Factors'!J130*'7 Mass Data for SMM'!J10,0) -> 0 | L133: =IFERROR('6 LCI Factors'!K130*'7 Mass Data for SMM'!K10,0) -> -10829.86911 | M133: =IFERROR('6 LCI Factors'!L130*'7 Mass Data for SMM'!L10,0) -> 0 | N133: -10791.17589 | O133: -10791.17589
C134: 7 | D134: Mixed Paper | E134: =IFERROR('6 LCI Factors'!E131*'7 Mass Data for SMM'!E11,0) -> 0 | F134: =IFERROR('6 LCI Factors'!F131*'7 Mass Data for SMM'!F11,0) -> 0 | G134: =IFERROR('6 LCI Factors'!E131*'7 Mass Data for SMM'!G11,0) -> 0 | H134: =IFERROR('6 LCI Factors'!G131*'7 Mass Data for SMM'!G11,0) -> 1284.280493 | I134: =IFERROR('6 LCI Factors'!H131*'7 Mass Data for SMM'!H11,0) -> 88869.51831 | J134: =IFERROR('6 LCI Factors'!I131*'7 Mass Data for SMM'!I11,0) -> 0 | K134: =IFERROR('6 LCI Factors'!J131*'7 Mass Data for SMM'!J11,0) -> 0 | L134: =IFERROR('6 LCI Factors'!K131*'7 Mass Data for SMM'!K11,0) -> -891553.9118 | M134: =IFERROR('6 LCI Factors'!L131*'7 Mass Data for SMM'!L11,0) -> 0 | N134: -801400.113 | O134: -801400.113
B135: Plastic | C135: 8 | D135: HDPE | E135: =IFERROR('6 LCI Factors'!E132*'7 Mass Data for SMM'!E12,0) -> 0 | F135: =IFERROR('6 LCI Factors'!F132*'7 Mass Data for SMM'!F12,0) -> 0 | G135: =IFERROR('6 LCI Factors'!E132*'7 Mass Data for SMM'!G12,0) -> 0 | H135: =IFERROR('6 LCI Factors'!G132*'7 Mass Data for SMM'!G12,0) -> 56.98112571 | I135: =IFERROR('6 LCI Factors'!H132*'7 Mass Data for SMM'!H12,0) -> 5106.143455 | J135: =IFERROR('6 LCI Factors'!I132*'7 Mass Data for SMM'!I12,0) -> 0 | K135: =IFERROR('6 LCI Factors'!J132*'7 Mass Data for SMM'!J12,0) -> 0 | L135: =IFERROR('6 LCI Factors'!K132*'7 Mass Data for SMM'!K12,0) -> 13.9116329 | M135: =IFERROR('6 LCI Factors'!L132*'7 Mass Data for SMM'!L12,0) -> 0 | N135: 5177.036214 | O135: 5177.036214
C136: 9 | D136: PET | E136: =IFERROR('6 LCI Factors'!E133*'7 Mass Data for SMM'!E13,0) -> 0 | F136: =IFERROR('6 LCI Factors'!F133*'7 Mass Data for SMM'!F13,0) -> 0 | G136: =IFERROR('6 LCI Factors'!E133*'7 Mass Data for SMM'!G13,0) -> 0 | H136: =IFERROR('6 LCI Factors'!G133*'7 Mass Data for SMM'!G13,0) -> 93.75007853 | I136: =IFERROR('6 LCI Factors'!H133*'7 Mass Data for SMM'!H13,0) -> -37634.52313 | J136: =IFERROR('6 LCI Factors'!I133*'7 Mass Data for SMM'!I13,0) -> 0 | K136: =IFERROR('6 LCI Factors'!J133*'7 Mass Data for SMM'!J13,0) -> 0 | L136: =IFERROR('6 LCI Factors'!K133*'7 Mass Data for SMM'!K13,0) -> 22.88857337 | M136: =IFERROR('6 LCI Factors'!L133*'7 Mass Data for SMM'!L13,0) -> 0 | N136: -37517.88448 | O136: -37517.88448
C137: 10 | D137: Mixed Plastic | E137: =IFERROR('6 LCI Factors'!E134*'7 Mass Data for SMM'!E14,0) -> 0 | F137: =IFERROR('6 LCI Factors'!F134*'7 Mass Data for SMM'!F14,0) -> 0 | G137: =IFERROR('6 LCI Factors'!E134*'7 Mass Data for SMM'!G14,0) -> 0 | H137: =IFERROR('6 LCI Factors'!G134*'7 Mass Data for SMM'!G14,0) -> 984.2001267 | I137: =IFERROR('6 LCI Factors'!H134*'7 Mass Data for SMM'!H14,0) -> -21334.18126 | J137: =IFERROR('6 LCI Factors'!I134*'7 Mass Data for SMM'!I14,0) -> 0 | K137: =IFERROR('6 LCI Factors'!J134*'7 Mass Data for SMM'!J14,0) -> 0 | L137: =IFERROR('6 LCI Factors'!K134*'7 Mass Data for SMM'!K14,0) -> 331.2399843 | M137: =IFERROR('6 LCI Factors'!L134*'7 Mass Data for SMM'!L14,0) -> 0 | N137: -20018.74115 | O137: -20018.74115
B138: Glass | C138: 11 | D138: Glass | E138: =IFERROR('6 LCI Factors'!E135*'7 Mass Data for SMM'!E15,0) -> 0 | F138: =IFERROR('6 LCI Factors'!F135*'7 Mass Data for SMM'!F15,0) -> 0 | G138: =IFERROR('6 LCI Factors'!E135*'7 Mass Data for SMM'!G15,0) -> 0 | H138: =IFERROR('6 LCI Factors'!G135*'7 Mass Data for SMM'!G15,0) -> 307.6021956 | I138: =IFERROR('6 LCI Factors'!H135*'7 Mass Data for SMM'!H15,0) -> -35593.44396 | J138: =IFERROR('6 LCI Factors'!I135*'7 Mass Data for SMM'!I15,0) -> 0 | K138: =IFERROR('6 LCI Factors'!J135*'7 Mass Data for SMM'!J15,0) -> 0 | L138: =IFERROR('6 LCI Factors'!K135*'7 Mass Data for SMM'!K15,0) -> 46.14023898 | M138: =IFERROR('6 LCI Factors'!L135*'7 Mass Data for SMM'!L15,0) -> 0 | N138: -35239.70152 | O138: -35239.70152
B139: Metals | C139: 12 | D139: Aluminum Cans | E139: =IFERROR('6 LCI Factors'!E136*'7 Mass Data for SMM'!E16,0) -> 0 | F139: =IFERROR('6 LCI Factors'!F136*'7 Mass Data for SMM'!F16,0) -> 0 | G139: =IFERROR('6 LCI Factors'!E136*'7 Mass Data for SMM'!G16,0) -> 0 | H139: =IFERROR('6 LCI Factors'!G136*'7 Mass Data for SMM'!G16,0) -> 44.81454176 | I139: =IFERROR('6 LCI Factors'!H136*'7 Mass Data for SMM'!H16,0) -> -342336.9821 | J139: =IFERROR('6 LCI Factors'!I136*'7 Mass Data for SMM'!I16,0) -> 0 | K139: =IFERROR('6 LCI Factors'!J136*'7 Mass Data for SMM'!J16,0) -> 0 | L139: =IFERROR('6 LCI Factors'!K136*'7 Mass Data for SMM'!K16,0) -> 9.46557026 | M139: =IFERROR('6 LCI Factors'!L136*'7 Mass Data for SMM'!L16,0) -> 0 | N139: -342282.702 | O139: -342282.702
C140: 13 | D140: Steel/Tin Cans | E140: =IFERROR('6 LCI Factors'!E137*'7 Mass Data for SMM'!E17,0) -> 0 | F140: =IFERROR('6 LCI Factors'!F137*'7 Mass Data for SMM'!F17,0) -> 0 | G140: =IFERROR('6 LCI Factors'!E137*'7 Mass Data for SMM'!G17,0) -> 0 | H140: =IFERROR('6 LCI Factors'!G137*'7 Mass Data for SMM'!G17,0) -> 55.78023591 | I140: =IFERROR('6 LCI Factors'!H137*'7 Mass Data for SMM'!H17,0) -> 3068.511901 | J140: =IFERROR('6 LCI Factors'!I137*'7 Mass Data for SMM'!I17,0) -> 0 | K140: =IFERROR('6 LCI Factors'!J137*'7 Mass Data for SMM'!J17,0) -> 0 | L140: =IFERROR('6 LCI Factors'!K137*'7 Mass Data for SMM'!K17,0) -> 14.52218262 | M140: =IFERROR('6 LCI Factors'!L137*'7 Mass Data for SMM'!L17,0) -> 0 | N140: 3138.814319 | O140: 3138.814319
C141: 14 | D141: Mixed Metals | E141: =IFERROR('6 LCI Factors'!E138*'7 Mass Data for SMM'!E18,0) -> 0 | F141: =IFERROR('6 LCI Factors'!F138*'7 Mass Data for SMM'!F18,0) -> 0 | G141: =IFERROR('6 LCI Factors'!E138*'7 Mass Data for SMM'!G18,0) -> 0 | H141: =IFERROR('6 LCI Factors'!G138*'7 Mass Data for SMM'!G18,0) -> 779.3062015 | I141: =IFERROR('6 LCI Factors'!H138*'7 Mass Data for SMM'!H18,0) -> -6295763.477 | J141: =IFERROR('6 LCI Factors'!I138*'7 Mass Data for SMM'!I18,0) -> 0 | K141: =IFERROR('6 LCI Factors'!J138*'7 Mass Data for SMM'!J18,0) -> 0 | L141: =IFERROR('6 LCI Factors'!K138*'7 Mass Data for SMM'!K18,0) -> 40.02477212 | M141: =IFERROR('6 LCI Factors'!L138*'7 Mass Data for SMM'!L18,0) -> 0 | N141: -6294944.146 | O141: -6294944.146
B142: Organic | C142: 15 | D142: Yard Waste | E142: =IFERROR('6 LCI Factors'!E139*'7 Mass Data for SMM'!E19,0) -> 0 | F142: =IFERROR('6 LCI Factors'!F139*'7 Mass Data for SMM'!F19,0) -> 0 | G142: =IFERROR('6 LCI Factors'!E139*'7 Mass Data for SMM'!G19,0) -> 0 | H142: =IFERROR('6 LCI Factors'!G139*'7 Mass Data for SMM'!G19,0) -> 6227.300309 | I142: =IFERROR('6 LCI Factors'!H139*'7 Mass Data for SMM'!H19,0) -> 0 | J142: =IFERROR('6 LCI Factors'!I139*'7 Mass Data for SMM'!I19,0) -> 703159.4756 | K142: =IFERROR('6 LCI Factors'!J139*'7 Mass Data for SMM'!J19,0) -> 0 | L142: =IFERROR('6 LCI Factors'!K139*'7 Mass Data for SMM'!K19,0) -> -12735.08262 | M142: =IFERROR('6 LCI Factors'!L139*'7 Mass Data for SMM'!L19,0) -> -2139.629126 | N142: 694512.0642 | O142: 694512.0642
C143: 16 | D143: Food Waste | E143: =IFERROR('6 LCI Factors'!E140*'7 Mass Data for SMM'!E20,0) -> 0 | F143: =IFERROR('6 LCI Factors'!F140*'7 Mass Data for SMM'!F20,0) -> 0 | G143: =IFERROR('6 LCI Factors'!E140*'7 Mass Data for SMM'!G20,0) -> 0 | H143: =IFERROR('6 LCI Factors'!G140*'7 Mass Data for SMM'!G20,0) -> 1163.862774 | I143: =IFERROR('6 LCI Factors'!H140*'7 Mass Data for SMM'!H20,0) -> 0 | J143: =IFERROR('6 LCI Factors'!I140*'7 Mass Data for SMM'!I20,0) -> 2572.609687 | K143: =IFERROR('6 LCI Factors'!J140*'7 Mass Data for SMM'!J20,0) -> 0 | L143: =IFERROR('6 LCI Factors'!K140*'7 Mass Data for SMM'!K20,0) -> -459104.7882 | M143: =IFERROR('6 LCI Factors'!L140*'7 Mass Data for SMM'!L20,0) -> 0 | N143: -455368.3158 | O143: -455368.3158
B144: Other | C144: 17 | D144: Tires | E144: =IFERROR('6 LCI Factors'!E141*'7 Mass Data for SMM'!E21,0) -> 0 | F144: =IFERROR('6 LCI Factors'!F141*'7 Mass Data for SMM'!F21,0) -> 0 | G144: =IFERROR('6 LCI Factors'!E141*'7 Mass Data for SMM'!G21,0) -> 0 | H144: =IFERROR('6 LCI Factors'!G141*'7 Mass Data for SMM'!G21,0) -> 0 | I144: =IFERROR('6 LCI Factors'!H141*'7 Mass Data for SMM'!H21,0) -> 0 | J144: =IFERROR('6 LCI Factors'!I141*'7 Mass Data for SMM'!I21,0) -> 0 | K144: =IFERROR('6 LCI Factors'!J141*'7 Mass Data for SMM'!J21,0) -> 0 | L144: =IFERROR('6 LCI Factors'!K141*'7 Mass Data for SMM'!K21,0) -> 0 | M144: =IFERROR('6 LCI Factors'!L141*'7 Mass Data for SMM'!L21,0) -> 0 | N144: 0 | O144: 0
C145: 18 | D145: Clothing and Footwear | E145: =IFERROR('6 LCI Factors'!E142*'7 Mass Data for SMM'!E22,0) -> 0 | F145: =IFERROR('6 LCI Factors'!F142*'7 Mass Data for SMM'!F22,0) -> 0 | G145: =IFERROR('6 LCI Factors'!E142*'7 Mass Data for SMM'!G22,0) -> 0 | H145: =IFERROR('6 LCI Factors'!G142*'7 Mass Data for SMM'!G22,0) -> 0 | I145: =IFERROR('6 LCI Factors'!H142*'7 Mass Data for SMM'!H22,0) -> 0 | J145: =IFERROR('6 LCI Factors'!I142*'7 Mass Data for SMM'!I22,0) -> 0 | K145: =IFERROR('6 LCI Factors'!J142*'7 Mass Data for SMM'!J22,0) -> 0 | L145: =IFERROR('6 LCI Factors'!K142*'7 Mass Data for SMM'!K22,0) -> 0 | M145: =IFERROR('6 LCI Factors'!L142*'7 Mass Data for SMM'!L22,0) -> 0 | N145: 0 | O145: 0
C146: 19 | D146: Furniture | E146: =IFERROR('6 LCI Factors'!E143*'7 Mass Data for SMM'!E23,0) -> 0 | F146: =IFERROR('6 LCI Factors'!F143*'7 Mass Data for SMM'!F23,0) -> 0 | G146: =IFERROR('6 LCI Factors'!E143*'7 Mass Data for SMM'!G23,0) -> 0 | H146: =IFERROR('6 LCI Factors'!G143*'7 Mass Data for SMM'!G23,0) -> 0 | I146: =IFERROR('6 LCI Factors'!H143*'7 Mass Data for SMM'!H23,0) -> 0 | J146: =IFERROR('6 LCI Factors'!I143*'7 Mass Data for SMM'!I23,0) -> 0 | K146: =IFERROR('6 LCI Factors'!J143*'7 Mass Data for SMM'!J23,0) -> 0 | L146: =IFERROR('6 LCI Factors'!K143*'7 Mass Data for SMM'!K23,0) -> 0 | M146: =IFERROR('6 LCI Factors'!L143*'7 Mass Data for SMM'!L23,0) -> 0 | N146: 0 | O146: 0
C147: 20 | D147: Electronics | E147: =IFERROR('6 LCI Factors'!E144*'7 Mass Data for SMM'!E24,0) -> 0 | F147: =IFERROR('6 LCI Factors'!F144*'7 Mass Data for SMM'!F24,0) -> 0 | G147: =IFERROR('6 LCI Factors'!E144*'7 Mass Data for SMM'!G24,0) -> 0 | H147: =IFERROR('6 LCI Factors'!G144*'7 Mass Data for SMM'!G24,0) -> 0 | I147: =IFERROR('6 LCI Factors'!H144*'7 Mass Data for SMM'!H24,0) -> 0 | J147: =IFERROR('6 LCI Factors'!I144*'7 Mass Data for SMM'!I24,0) -> 0 | K147: =IFERROR('6 LCI Factors'!J144*'7 Mass Data for SMM'!J24,0) -> 0 | L147: =IFERROR('6 LCI Factors'!K144*'7 Mass Data for SMM'!K24,0) -> 0 | M147: =IFERROR('6 LCI Factors'!L144*'7 Mass Data for SMM'!L24,0) -> 0 | N147: 0 | O147: 0
B148: C&D Debris | C148: 21 | D148: Wood Products | E148: =IFERROR('6 LCI Factors'!E145*'7 Mass Data for SMM'!E25,0) -> 0 | F148: =IFERROR('6 LCI Factors'!F145*'7 Mass Data for SMM'!F25,0) -> 0 | G148: =IFERROR('6 LCI Factors'!E145*'7 Mass Data for SMM'!G25,0) -> 0 | H148: =IFERROR('6 LCI Factors'!G145*'7 Mass Data for SMM'!G25,0) -> 0 | I148: =IFERROR('6 LCI Factors'!H145*'7 Mass Data for SMM'!H25,0) -> 0 | J148: =IFERROR('6 LCI Factors'!I145*'7 Mass Data for SMM'!I25,0) -> 0 | K148: =IFERROR('6 LCI Factors'!J145*'7 Mass Data for SMM'!J25,0) -> 0 | L148: =IFERROR('6 LCI Factors'!K145*'7 Mass Data for SMM'!K25,0) -> 0 | M148: =IFERROR('6 LCI Factors'!L145*'7 Mass Data for SMM'!L25,0) -> 0 | N148: 0 | O148: 0
C149: 22 | D149: Asphalt Shingles | E149: =IFERROR('6 LCI Factors'!E146*'7 Mass Data for SMM'!E26,0) -> 0 | F149: =IFERROR('6 LCI Factors'!F146*'7 Mass Data for SMM'!F26,0) -> 0 | G149: =IFERROR('6 LCI Factors'!E146*'7 Mass Data for SMM'!G26,0) -> 0 | H149: =IFERROR('6 LCI Factors'!G146*'7 Mass Data for SMM'!G26,0) -> 0 | I149: =IFERROR('6 LCI Factors'!H146*'7 Mass Data for SMM'!H26,0) -> 0 | J149: =IFERROR('6 LCI Factors'!I146*'7 Mass Data for SMM'!I26,0) -> 0 | K149: =IFERROR('6 LCI Factors'!J146*'7 Mass Data for SMM'!J26,0) -> 0 | L149: =IFERROR('6 LCI Factors'!K146*'7 Mass Data for SMM'!K26,0) -> 0 | M149: =IFERROR('6 LCI Factors'!L146*'7 Mass Data for SMM'!L26,0) -> 0 | N149: 0 | O149: 0
C150: 23 | D150: Gypsum Drywall | E150: =IFERROR('6 LCI Factors'!E147*'7 Mass Data for SMM'!E27,0) -> 0 | F150: =IFERROR('6 LCI Factors'!F147*'7 Mass Data for SMM'!F27,0) -> 0 | G150: =IFERROR('6 LCI Factors'!E147*'7 Mass Data for SMM'!G27,0) -> 0 | H150: =IFERROR('6 LCI Factors'!G147*'7 Mass Data for SMM'!G27,0) -> 0 | I150: =IFERROR('6 LCI Factors'!H147*'7 Mass Data for SMM'!H27,0) -> 0 | J150: =IFERROR('6 LCI Factors'!I147*'7 Mass Data for SMM'!I27,0) -> 0 | K150: =IFERROR('6 LCI Factors'!J147*'7 Mass Data for SMM'!J27,0) -> 0 | L150: =IFERROR('6 LCI Factors'!K147*'7 Mass Data for SMM'!K27,0) -> 0 | M150: =IFERROR('6 LCI Factors'!L147*'7 Mass Data for SMM'!L27,0) -> 0 | N150: 0 | O150: 0
C151: 24 | D151: Concrete | E151: =IFERROR('6 LCI Factors'!E148*'7 Mass Data for SMM'!E28,0) -> 0 | F151: =IFERROR('6 LCI Factors'!F148*'7 Mass Data for SMM'!F28,0) -> 0 | G151: =IFERROR('6 LCI Factors'!E148*'7 Mass Data for SMM'!G28,0) -> 0 | H151: =IFERROR('6 LCI Factors'!G148*'7 Mass Data for SMM'!G28,0) -> 0 | I151: =IFERROR('6 LCI Factors'!H148*'7 Mass Data for SMM'!H28,0) -> 0 | J151: =IFERROR('6 LCI Factors'!I148*'7 Mass Data for SMM'!I28,0) -> 0 | K151: =IFERROR('6 LCI Factors'!J148*'7 Mass Data for SMM'!J28,0) -> 0 | L151: =IFERROR('6 LCI Factors'!K148*'7 Mass Data for SMM'!K28,0) -> 0 | M151: =IFERROR('6 LCI Factors'!L148*'7 Mass Data for SMM'!L28,0) -> 0 | N151: 0 | O151: 0
C152: 25 | D152: Reclaimed Asphalt Pavement | E152: =IFERROR('6 LCI Factors'!E149*'7 Mass Data for SMM'!E29,0) -> 0 | F152: =IFERROR('6 LCI Factors'!F149*'7 Mass Data for SMM'!F29,0) -> 0 | G152: =IFERROR('6 LCI Factors'!E149*'7 Mass Data for SMM'!G29,0) -> 0 | H152: =IFERROR('6 LCI Factors'!G149*'7 Mass Data for SMM'!G29,0) -> 0 | I152: =IFERROR('6 LCI Factors'!H149*'7 Mass Data for SMM'!H29,0) -> 0 | J152: =IFERROR('6 LCI Factors'!I149*'7 Mass Data for SMM'!I29,0) -> 0 | K152: =IFERROR('6 LCI Factors'!J149*'7 Mass Data for SMM'!J29,0) -> 0 | L152: =IFERROR('6 LCI Factors'!K149*'7 Mass Data for SMM'!K29,0) -> 0 | M152: =IFERROR('6 LCI Factors'!L149*'7 Mass Data for SMM'!L29,0) -> 0 | N152: 0 | O152: 0
B153: Total | E153: =SUMIF(E128:E152,"<>#value!") -> 0 | F153: 0 | G153: =SUMIF(G128:G152,"<>#value!") -> 0 | H153: =SUMIF(H128:H152,"<>#value!") -> 15513.23411 | I153: =SUMIF(I128:I152,"<>#value!") -> 10201975.44 | J153: 705732.0853 | K153: 0 | L153: -3953600.272 | M153: -2139.629126 | N153: 6967480.856 | O153: 6967480.856
B155: Table 6.
B156: Eutrophication Potential (kgNeq.): Enrichment of aquatic ecosystems with nutrients (nitrates and phosphates) that causes undesirable algal growth.The units are expressed as kgNeq. to allow for comparison of nutrients in the water relative to N.
B157: Material Category | C157: Item No. | D157: Material Type | E157: Source Reduced/ Generated | F157: Donated | G157: Produced | H157: Collection | I157: Recycling | J157: Composting | K157: Anaerobic Digestion | L157: Landfill | M157: Combustion | N157: Lifecycle Total | O157: Waste Management Total
B158: MSW | C158: 1 | D158: Mixed MSW | E158: =IFERROR('6 LCI Factors'!E155*'7 Mass Data for SMM'!E5,0) -> 0 | F158: =IFERROR('6 LCI Factors'!F155*'7 Mass Data for SMM'!F5,0) -> 0 | G158: =IFERROR('6 LCI Factors'!E155*'7 Mass Data for SMM'!G5,0) -> 0 | H158: =IFERROR('6 LCI Factors'!G155*'7 Mass Data for SMM'!G5,0) -> 183.895511 | I158: =IFERROR('6 LCI Factors'!H155*'7 Mass Data for SMM'!H5,0) -> 0 | J158: =IFERROR('6 LCI Factors'!I155*'7 Mass Data for SMM'!I5,0) -> 0 | K158: =IFERROR('6 LCI Factors'!J155*'7 Mass Data for SMM'!J5,0) -> 0 | L158: =IFERROR('6 LCI Factors'!K155*'7 Mass Data for SMM'!K5,0) -> 1482.695601 | M158: =IFERROR('6 LCI Factors'!L155*'7 Mass Data for SMM'!L5,0) -> 0 | N158: =SUMIF(E158:M158,"<>#value!") -> 1666.591112 | O158: =SUMIF(H158:M158,"<>#value!") -> 1666.591112
B159: Paper | C159: 2 | D159: Newspaper | E159: =IFERROR('6 LCI Factors'!E156*'7 Mass Data for SMM'!E6,0) -> 0 | F159: =IFERROR('6 LCI Factors'!F156*'7 Mass Data for SMM'!F6,0) -> 0 | G159: =IFERROR('6 LCI Factors'!E156*'7 Mass Data for SMM'!G6,0) -> 0 | H159: =IFERROR('6 LCI Factors'!G156*'7 Mass Data for SMM'!G6,0) -> 12.86339844 | I159: =IFERROR('6 LCI Factors'!H156*'7 Mass Data for SMM'!H6,0) -> 451.4020407 | J159: =IFERROR('6 LCI Factors'!I156*'7 Mass Data for SMM'!I6,0) -> 0 | K159: =IFERROR('6 LCI Factors'!J156*'7 Mass Data for SMM'!J6,0) -> 0 | L159: =IFERROR('6 LCI Factors'!K156*'7 Mass Data for SMM'!K6,0) -> 25.29295547 | M159: =IFERROR('6 LCI Factors'!L156*'7 Mass Data for SMM'!L6,0) -> 0 | N159: =SUMIF(E159:M159,"<>#value!") -> 489.5583946 | O159: =SUMIF(H159:M159,"<>#value!") -> 489.5583946
C160: 3 | D160: Corrugated Cardboard (OCC) | E160: =IFERROR('6 LCI Factors'!E157*'7 Mass Data for SMM'!E7,0) -> 0 | F160: =IFERROR('6 LCI Factors'!F157*'7 Mass Data for SMM'!F7,0) -> 0 | G160: =IFERROR('6 LCI Factors'!E157*'7 Mass Data for SMM'!G7,0) -> 0 | H160: =IFERROR('6 LCI Factors'!G157*'7 Mass Data for SMM'!G7,0) -> 152.2386761 | I160: =IFERROR('6 LCI Factors'!H157*'7 Mass Data for SMM'!H7,0) -> -12109.3243 | J160: =IFERROR('6 LCI Factors'!I157*'7 Mass Data for SMM'!I7,0) -> 0 | K160: =IFERROR('6 LCI Factors'!J157*'7 Mass Data for SMM'!J7,0) -> 0 | L160: =IFERROR('6 LCI Factors'!K157*'7 Mass Data for SMM'!K7,0) -> 1272.918619 | M160: =IFERROR('6 LCI Factors'!L157*'7 Mass Data for SMM'!L7,0) -> 0 | N160: -10684.167 | O160: -10684.167
C161: 4 | D161: High Grade Paper (Office Type Paper) | E161: =IFERROR('6 LCI Factors'!E158*'7 Mass Data for SMM'!E8,0) -> 0 | F161: =IFERROR('6 LCI Factors'!F158*'7 Mass Data for SMM'!F8,0) -> 0 | G161: =IFERROR('6 LCI Factors'!E158*'7 Mass Data for SMM'!G8,0) -> 0 | H161: =IFERROR('6 LCI Factors'!G158*'7 Mass Data for SMM'!G8,0) -> 15.33321664 | I161: =IFERROR('6 LCI Factors'!H158*'7 Mass Data for SMM'!H8,0) -> -120.1702483 | J161: =IFERROR('6 LCI Factors'!I158*'7 Mass Data for SMM'!I8,0) -> 0 | K161: =IFERROR('6 LCI Factors'!J158*'7 Mass Data for SMM'!J8,0) -> 0 | L161: =IFERROR('6 LCI Factors'!K158*'7 Mass Data for SMM'!K8,0) -> 151.4251856 | M161: =IFERROR('6 LCI Factors'!L158*'7 Mass Data for SMM'!L8,0) -> 0 | N161: 46.58815402 | O161: 46.58815402
C162: 5 | D162: Magazines/third-class mail | E162: =IFERROR('6 LCI Factors'!E159*'7 Mass Data for SMM'!E9,0) -> 0 | F162: =IFERROR('6 LCI Factors'!F159*'7 Mass Data for SMM'!F9,0) -> 0 | G162: =IFERROR('6 LCI Factors'!E159*'7 Mass Data for SMM'!G9,0) -> 0 | H162: =IFERROR('6 LCI Factors'!G159*'7 Mass Data for SMM'!G9,0) -> 35.27488448 | I162: =IFERROR('6 LCI Factors'!H159*'7 Mass Data for SMM'!H9,0) -> 19.49449242 | J162: =IFERROR('6 LCI Factors'!I159*'7 Mass Data for SMM'!I9,0) -> 0 | K162: =IFERROR('6 LCI Factors'!J159*'7 Mass Data for SMM'!J9,0) -> 0 | L162: =IFERROR('6 LCI Factors'!K159*'7 Mass Data for SMM'!K9,0) -> 824.9431236 | M162: =IFERROR('6 LCI Factors'!L159*'7 Mass Data for SMM'!L9,0) -> 0 | N162: 879.7125005 | O162: 879.7125005
C163: 6 | D163: Books | E163: =IFERROR('6 LCI Factors'!E160*'7 Mass Data for SMM'!E10,0) -> 0 | F163: =IFERROR('6 LCI Factors'!F160*'7 Mass Data for SMM'!F10,0) -> 0 | G163: =IFERROR('6 LCI Factors'!E160*'7 Mass Data for SMM'!G10,0) -> 0 | H163: =IFERROR('6 LCI Factors'!G160*'7 Mass Data for SMM'!G10,0) -> 3.45391865 | I163: =IFERROR('6 LCI Factors'!H160*'7 Mass Data for SMM'!H10,0) -> 0 | J163: =IFERROR('6 LCI Factors'!I160*'7 Mass Data for SMM'!I10,0) -> 0 | K163: =IFERROR('6 LCI Factors'!J160*'7 Mass Data for SMM'!J10,0) -> 0 | L163: =IFERROR('6 LCI Factors'!K160*'7 Mass Data for SMM'!K10,0) -> 68.21243197 | M163: =IFERROR('6 LCI Factors'!L160*'7 Mass Data for SMM'!L10,0) -> 0 | N163: 71.66635062 | O163: 71.66635062
C164: 7 | D164: Mixed Paper | E164: =IFERROR('6 LCI Factors'!E161*'7 Mass Data for SMM'!E11,0) -> 0 | F164: =IFERROR('6 LCI Factors'!F161*'7 Mass Data for SMM'!F11,0) -> 0 | G164: =IFERROR('6 LCI Factors'!E161*'7 Mass Data for SMM'!G11,0) -> 0 | H164: =IFERROR('6 LCI Factors'!G161*'7 Mass Data for SMM'!G11,0) -> 114.6402598 | I164: =IFERROR('6 LCI Factors'!H161*'7 Mass Data for SMM'!H11,0) -> -40.70765121 | J164: =IFERROR('6 LCI Factors'!I161*'7 Mass Data for SMM'!I11,0) -> 0 | K164: =IFERROR('6 LCI Factors'!J161*'7 Mass Data for SMM'!J11,0) -> 0 | L164: =IFERROR('6 LCI Factors'!K161*'7 Mass Data for SMM'!K11,0) -> 2923.328533 | M164: =IFERROR('6 LCI Factors'!L161*'7 Mass Data for SMM'!L11,0) -> 0 | N164: 2997.261141 | O164: 2997.261141
B165: Plastic | C165: 8 | D165: HDPE | E165: =IFERROR('6 LCI Factors'!E162*'7 Mass Data for SMM'!E12,0) -> 0 | F165: =IFERROR('6 LCI Factors'!F162*'7 Mass Data for SMM'!F12,0) -> 0 | G165: =IFERROR('6 LCI Factors'!E162*'7 Mass Data for SMM'!G12,0) -> 0 | H165: =IFERROR('6 LCI Factors'!G162*'7 Mass Data for SMM'!G12,0) -> 5.086374117 | I165: =IFERROR('6 LCI Factors'!H162*'7 Mass Data for SMM'!H12,0) -> -102.0025759 | J165: =IFERROR('6 LCI Factors'!I162*'7 Mass Data for SMM'!I12,0) -> 0 | K165: =IFERROR('6 LCI Factors'!J162*'7 Mass Data for SMM'!J12,0) -> 0 | L165: =IFERROR('6 LCI Factors'!K162*'7 Mass Data for SMM'!K12,0) -> 2.232465624 | M165: =IFERROR('6 LCI Factors'!L162*'7 Mass Data for SMM'!L12,0) -> 0 | N165: -94.68373618 | O165: -94.68373618
C166: 9 | D166: PET | E166: =IFERROR('6 LCI Factors'!E163*'7 Mass Data for SMM'!E13,0) -> 0 | F166: =IFERROR('6 LCI Factors'!F163*'7 Mass Data for SMM'!F13,0) -> 0 | G166: =IFERROR('6 LCI Factors'!E163*'7 Mass Data for SMM'!G13,0) -> 0 | H166: =IFERROR('6 LCI Factors'!G163*'7 Mass Data for SMM'!G13,0) -> 8.368524962 | I166: =IFERROR('6 LCI Factors'!H163*'7 Mass Data for SMM'!H13,0) -> -512.6929912 | J166: =IFERROR('6 LCI Factors'!I163*'7 Mass Data for SMM'!I13,0) -> 0 | K166: =IFERROR('6 LCI Factors'!J163*'7 Mass Data for SMM'!J13,0) -> 0 | L166: =IFERROR('6 LCI Factors'!K163*'7 Mass Data for SMM'!K13,0) -> 3.673037781 | M166: =IFERROR('6 LCI Factors'!L163*'7 Mass Data for SMM'!L13,0) -> 0 | N166: -500.6514284 | O166: -500.6514284
C167: 10 | D167: Mixed Plastic | E167: =IFERROR('6 LCI Factors'!E164*'7 Mass Data for SMM'!E14,0) -> 0 | F167: =IFERROR('6 LCI Factors'!F164*'7 Mass Data for SMM'!F14,0) -> 0 | G167: =IFERROR('6 LCI Factors'!E164*'7 Mass Data for SMM'!G14,0) -> 0 | H167: =IFERROR('6 LCI Factors'!G164*'7 Mass Data for SMM'!G14,0) -> 87.85382857 | I167: =IFERROR('6 LCI Factors'!H164*'7 Mass Data for SMM'!H14,0) -> -496.6311824 | J167: =IFERROR('6 LCI Factors'!I164*'7 Mass Data for SMM'!I14,0) -> 0 | K167: =IFERROR('6 LCI Factors'!J164*'7 Mass Data for SMM'!J14,0) -> 0 | L167: =IFERROR('6 LCI Factors'!K164*'7 Mass Data for SMM'!K14,0) -> 53.15564921 | M167: =IFERROR('6 LCI Factors'!L164*'7 Mass Data for SMM'!L14,0) -> 0 | N167: -355.6217046 | O167: -355.6217046
B168: Glass | C168: 11 | D168: Glass | E168: =IFERROR('6 LCI Factors'!E165*'7 Mass Data for SMM'!E15,0) -> 0 | F168: =IFERROR('6 LCI Factors'!F165*'7 Mass Data for SMM'!F15,0) -> 0 | G168: =IFERROR('6 LCI Factors'!E165*'7 Mass Data for SMM'!G15,0) -> 0 | H168: =IFERROR('6 LCI Factors'!G165*'7 Mass Data for SMM'!G15,0) -> 27.45786129 | I168: =IFERROR('6 LCI Factors'!H165*'7 Mass Data for SMM'!H15,0) -> -75.00620615 | J168: =IFERROR('6 LCI Factors'!I165*'7 Mass Data for SMM'!I15,0) -> 0 | K168: =IFERROR('6 LCI Factors'!J165*'7 Mass Data for SMM'!J15,0) -> 0 | L168: =IFERROR('6 LCI Factors'!K165*'7 Mass Data for SMM'!K15,0) -> 7.404342693 | M168: =IFERROR('6 LCI Factors'!L165*'7 Mass Data for SMM'!L15,0) -> 0 | N168: -40.14400217 | O168: -40.14400217
B169: Metals | C169: 12 | D169: Aluminum Cans | E169: =IFERROR('6 LCI Factors'!E166*'7 Mass Data for SMM'!E16,0) -> 0 | F169: =IFERROR('6 LCI Factors'!F166*'7 Mass Data for SMM'!F16,0) -> 0 | G169: =IFERROR('6 LCI Factors'!E166*'7 Mass Data for SMM'!G16,0) -> 0 | H169: =IFERROR('6 LCI Factors'!G166*'7 Mass Data for SMM'!G16,0) -> 4.000333837 | I169: =IFERROR('6 LCI Factors'!H166*'7 Mass Data for SMM'!H16,0) -> -528.3893461 | J169: =IFERROR('6 LCI Factors'!I166*'7 Mass Data for SMM'!I16,0) -> 0 | K169: =IFERROR('6 LCI Factors'!J166*'7 Mass Data for SMM'!J16,0) -> 0 | L169: =IFERROR('6 LCI Factors'!K166*'7 Mass Data for SMM'!K16,0) -> 1.518984894 | M169: =IFERROR('6 LCI Factors'!L166*'7 Mass Data for SMM'!L16,0) -> 0 | N169: -522.8700274 | O169: -522.8700274
C170: 13 | D170: Steel/Tin Cans | E170: =IFERROR('6 LCI Factors'!E167*'7 Mass Data for SMM'!E17,0) -> 0 | F170: =IFERROR('6 LCI Factors'!F167*'7 Mass Data for SMM'!F17,0) -> 0 | G170: =IFERROR('6 LCI Factors'!E167*'7 Mass Data for SMM'!G17,0) -> 0 | H170: =IFERROR('6 LCI Factors'!G167*'7 Mass Data for SMM'!G17,0) -> 4.979177659 | I170: =IFERROR('6 LCI Factors'!H167*'7 Mass Data for SMM'!H17,0) -> -15.09162375 | J170: =IFERROR('6 LCI Factors'!I167*'7 Mass Data for SMM'!I17,0) -> 0 | K170: =IFERROR('6 LCI Factors'!J167*'7 Mass Data for SMM'!J17,0) -> 0 | L170: =IFERROR('6 LCI Factors'!K167*'7 Mass Data for SMM'!K17,0) -> 2.33044343 | M170: =IFERROR('6 LCI Factors'!L167*'7 Mass Data for SMM'!L17,0) -> 0 | N170: -7.782002664 | O170: -7.782002664
C171: 14 | D171: Mixed Metals | E171: =IFERROR('6 LCI Factors'!E168*'7 Mass Data for SMM'!E18,0) -> 0 | F171: =IFERROR('6 LCI Factors'!F168*'7 Mass Data for SMM'!F18,0) -> 0 | G171: =IFERROR('6 LCI Factors'!E168*'7 Mass Data for SMM'!G18,0) -> 0 | H171: =IFERROR('6 LCI Factors'!G168*'7 Mass Data for SMM'!G18,0) -> 69.56413799 | I171: =IFERROR('6 LCI Factors'!H168*'7 Mass Data for SMM'!H18,0) -> -10160.71843 | J171: =IFERROR('6 LCI Factors'!I168*'7 Mass Data for SMM'!I18,0) -> 0 | K171: =IFERROR('6 LCI Factors'!J168*'7 Mass Data for SMM'!J18,0) -> 0 | L171: =IFERROR('6 LCI Factors'!K168*'7 Mass Data for SMM'!K18,0) -> 6.42296476 | M171: =IFERROR('6 LCI Factors'!L168*'7 Mass Data for SMM'!L18,0) -> 0 | N171: -10084.73133 | O171: -10084.73133
B172: Organic | C172: 15 | D172: Yard Waste | E172: =IFERROR('6 LCI Factors'!E169*'7 Mass Data for SMM'!E19,0) -> 0 | F172: =IFERROR('6 LCI Factors'!F169*'7 Mass Data for SMM'!F19,0) -> 0 | G172: =IFERROR('6 LCI Factors'!E169*'7 Mass Data for SMM'!G19,0) -> 0 | H172: =IFERROR('6 LCI Factors'!G169*'7 Mass Data for SMM'!G19,0) -> 555.8749272 | I172: =IFERROR('6 LCI Factors'!H169*'7 Mass Data for SMM'!H19,0) -> 0 | J172: =IFERROR('6 LCI Factors'!I169*'7 Mass Data for SMM'!I19,0) -> 3783.976067 | K172: =IFERROR('6 LCI Factors'!J169*'7 Mass Data for SMM'!J19,0) -> 0 | L172: =IFERROR('6 LCI Factors'!K169*'7 Mass Data for SMM'!K19,0) -> 401.5082968 | M172: =IFERROR('6 LCI Factors'!L169*'7 Mass Data for SMM'!L19,0) -> -25539.89239 | N172: -20798.5331 | O172: -20798.5331
C173: 16 | D173: Food Waste | E173: =IFERROR('6 LCI Factors'!E170*'7 Mass Data for SMM'!E20,0) -> 0 | F173: =IFERROR('6 LCI Factors'!F170*'7 Mass Data for SMM'!F20,0) -> 0 | G173: =IFERROR('6 LCI Factors'!E170*'7 Mass Data for SMM'!G20,0) -> 0 | H173: =IFERROR('6 LCI Factors'!G170*'7 Mass Data for SMM'!G20,0) -> 103.8912696 | I173: =IFERROR('6 LCI Factors'!H170*'7 Mass Data for SMM'!H20,0) -> 0 | J173: =IFERROR('6 LCI Factors'!I170*'7 Mass Data for SMM'!I20,0) -> 12.41251501 | K173: =IFERROR('6 LCI Factors'!J170*'7 Mass Data for SMM'!J20,0) -> 0 | L173: =IFERROR('6 LCI Factors'!K170*'7 Mass Data for SMM'!K20,0) -> 395.7008785 | M173: =IFERROR('6 LCI Factors'!L170*'7 Mass Data for SMM'!L20,0) -> 0 | N173: 512.004663 | O173: 512.004663
B174: Other | C174: 17 | D174: Tires | E174: =IFERROR('6 LCI Factors'!E171*'7 Mass Data for SMM'!E21,0) -> 0 | F174: =IFERROR('6 LCI Factors'!F171*'7 Mass Data for SMM'!F21,0) -> 0 | G174: =IFERROR('6 LCI Factors'!E171*'7 Mass Data for SMM'!G21,0) -> 0 | H174: =IFERROR('6 LCI Factors'!G171*'7 Mass Data for SMM'!G21,0) -> 0 | I174: =IFERROR('6 LCI Factors'!H171*'7 Mass Data for SMM'!H21,0) -> 0 | J174: =IFERROR('6 LCI Factors'!I171*'7 Mass Data for SMM'!I21,0) -> 0 | K174: =IFERROR('6 LCI Factors'!J171*'7 Mass Data for SMM'!J21,0) -> 0 | L174: =IFERROR('6 LCI Factors'!K171*'7 Mass Data for SMM'!K21,0) -> 0 | M174: =IFERROR('6 LCI Factors'!L171*'7 Mass Data for SMM'!L21,0) -> 0 | N174: 0 | O174: 0
C175: 18 | D175: Clothing and Footwear | E175: =IFERROR('6 LCI Factors'!E172*'7 Mass Data for SMM'!E22,0) -> 0 | F175: =IFERROR('6 LCI Factors'!F172*'7 Mass Data for SMM'!F22,0) -> 0 | G175: =IFERROR('6 LCI Factors'!E172*'7 Mass Data for SMM'!G22,0) -> 0 | H175: =IFERROR('6 LCI Factors'!G172*'7 Mass Data for SMM'!G22,0) -> 0 | I175: =IFERROR('6 LCI Factors'!H172*'7 Mass Data for SMM'!H22,0) -> 0 | J175: =IFERROR('6 LCI Factors'!I172*'7 Mass Data for SMM'!I22,0) -> 0 | K175: =IFERROR('6 LCI Factors'!J172*'7 Mass Data for SMM'!J22,0) -> 0 | L175: =IFERROR('6 LCI Factors'!K172*'7 Mass Data for SMM'!K22,0) -> 0 | M175: =IFERROR('6 LCI Factors'!L172*'7 Mass Data for SMM'!L22,0) -> 0 | N175: 0 | O175: 0
C176: 19 | D176: Furniture | E176: =IFERROR('6 LCI Factors'!E173*'7 Mass Data for SMM'!E23,0) -> 0 | F176: =IFERROR('6 LCI Factors'!F173*'7 Mass Data for SMM'!F23,0) -> 0 | G176: =IFERROR('6 LCI Factors'!E173*'7 Mass Data for SMM'!G23,0) -> 0 | H176: =IFERROR('6 LCI Factors'!G173*'7 Mass Data for SMM'!G23,0) -> 0 | I176: =IFERROR('6 LCI Factors'!H173*'7 Mass Data for SMM'!H23,0) -> 0 | J176: =IFERROR('6 LCI Factors'!I173*'7 Mass Data for SMM'!I23,0) -> 0 | K176: =IFERROR('6 LCI Factors'!J173*'7 Mass Data for SMM'!J23,0) -> 0 | L176: =IFERROR('6 LCI Factors'!K173*'7 Mass Data for SMM'!K23,0) -> 0 | M176: =IFERROR('6 LCI Factors'!L173*'7 Mass Data for SMM'!L23,0) -> 0 | N176: 0 | O176: 0
C177: 20 | D177: Electronics | E177: =IFERROR('6 LCI Factors'!E174*'7 Mass Data for SMM'!E24,0) -> 0 | F177: =IFERROR('6 LCI Factors'!F174*'7 Mass Data for SMM'!F24,0) -> 0 | G177: =IFERROR('6 LCI Factors'!E174*'7 Mass Data for SMM'!G24,0) -> 0 | H177: =IFERROR('6 LCI Factors'!G174*'7 Mass Data for SMM'!G24,0) -> 0 | I177: =IFERROR('6 LCI Factors'!H174*'7 Mass Data for SMM'!H24,0) -> 0 | J177: =IFERROR('6 LCI Factors'!I174*'7 Mass Data for SMM'!I24,0) -> 0 | K177: =IFERROR('6 LCI Factors'!J174*'7 Mass Data for SMM'!J24,0) -> 0 | L177: =IFERROR('6 LCI Factors'!K174*'7 Mass Data for SMM'!K24,0) -> 0 | M177: =IFERROR('6 LCI Factors'!L174*'7 Mass Data for SMM'!L24,0) -> 0 | N177: 0 | O177: 0
B178: C&D Debris | C178: 21 | D178: Wood Products | E178: =IFERROR('6 LCI Factors'!E175*'7 Mass Data for SMM'!E25,0) -> 0 | F178: =IFERROR('6 LCI Factors'!F175*'7 Mass Data for SMM'!F25,0) -> 0 | G178: =IFERROR('6 LCI Factors'!E175*'7 Mass Data for SMM'!G25,0) -> 0 | H178: =IFERROR('6 LCI Factors'!G175*'7 Mass Data for SMM'!G25,0) -> 0 | I178: =IFERROR('6 LCI Factors'!H175*'7 Mass Data for SMM'!H25,0) -> 0 | J178: =IFERROR('6 LCI Factors'!I175*'7 Mass Data for SMM'!I25,0) -> 0 | K178: =IFERROR('6 LCI Factors'!J175*'7 Mass Data for SMM'!J25,0) -> 0 | L178: =IFERROR('6 LCI Factors'!K175*'7 Mass Data for SMM'!K25,0) -> 0 | M178: =IFERROR('6 LCI Factors'!L175*'7 Mass Data for SMM'!L25,0) -> 0 | N178: 0 | O178: 0
C179: 22 | D179: Asphalt Shingles | E179: =IFERROR('6 LCI Factors'!E176*'7 Mass Data for SMM'!E26,0) -> 0 | F179: =IFERROR('6 LCI Factors'!F176*'7 Mass Data for SMM'!F26,0) -> 0 | G179: =IFERROR('6 LCI Factors'!E176*'7 Mass Data for SMM'!G26,0) -> 0 | H179: =IFERROR('6 LCI Factors'!G176*'7 Mass Data for SMM'!G26,0) -> 0 | I179: =IFERROR('6 LCI Factors'!H176*'7 Mass Data for SMM'!H26,0) -> 0 | J179: =IFERROR('6 LCI Factors'!I176*'7 Mass Data for SMM'!I26,0) -> 0 | K179: =IFERROR('6 LCI Factors'!J176*'7 Mass Data for SMM'!J26,0) -> 0 | L179: =IFERROR('6 LCI Factors'!K176*'7 Mass Data for SMM'!K26,0) -> 0 | M179: =IFERROR('6 LCI Factors'!L176*'7 Mass Data for SMM'!L26,0) -> 0 | N179: 0 | O179: 0
C180: 23 | D180: Gypsum Drywall | E180: =IFERROR('6 LCI Factors'!E177*'7 Mass Data for SMM'!E27,0) -> 0 | F180: =IFERROR('6 LCI Factors'!F177*'7 Mass Data for SMM'!F27,0) -> 0 | G180: =IFERROR('6 LCI Factors'!E177*'7 Mass Data for SMM'!G27,0) -> 0 | H180: =IFERROR('6 LCI Factors'!G177*'7 Mass Data for SMM'!G27,0) -> 0 | I180: =IFERROR('6 LCI Factors'!H177*'7 Mass Data for SMM'!H27,0) -> 0 | J180: =IFERROR('6 LCI Factors'!I177*'7 Mass Data for SMM'!I27,0) -> 0 | K180: =IFERROR('6 LCI Factors'!J177*'7 Mass Data for SMM'!J27,0) -> 0 | L180: =IFERROR('6 LCI Factors'!K177*'7 Mass Data for SMM'!K27,0) -> 0 | M180: =IFERROR('6 LCI Factors'!L177*'7 Mass Data for SMM'!L27,0) -> 0 | N180: 0 | O180: 0
C181: 24 | D181: Concrete | E181: =IFERROR('6 LCI Factors'!E178*'7 Mass Data for SMM'!E28,0) -> 0 | F181: =IFERROR('6 LCI Factors'!F178*'7 Mass Data for SMM'!F28,0) -> 0 | G181: =IFERROR('6 LCI Factors'!E178*'7 Mass Data for SMM'!G28,0) -> 0 | H181: =IFERROR('6 LCI Factors'!G178*'7 Mass Data for SMM'!G28,0) -> 0 | I181: =IFERROR('6 LCI Factors'!H178*'7 Mass Data for SMM'!H28,0) -> 0 | J181: =IFERROR('6 LCI Factors'!I178*'7 Mass Data for SMM'!I28,0) -> 0 | K181: =IFERROR('6 LCI Factors'!J178*'7 Mass Data for SMM'!J28,0) -> 0 | L181: =IFERROR('6 LCI Factors'!K178*'7 Mass Data for SMM'!K28,0) -> 0 | M181: =IFERROR('6 LCI Factors'!L178*'7 Mass Data for SMM'!L28,0) -> 0 | N181: 0 | O181: 0
C182: 25 | D182: Reclaimed Asphalt Pavement | E182: =IFERROR('6 LCI Factors'!E179*'7 Mass Data for SMM'!E29,0) -> 0 | F182: =IFERROR('6 LCI Factors'!F179*'7 Mass Data for SMM'!F29,0) -> 0 | G182: =IFERROR('6 LCI Factors'!E179*'7 Mass Data for SMM'!G29,0) -> 0 | H182: =IFERROR('6 LCI Factors'!G179*'7 Mass Data for SMM'!G29,0) -> 0 | I182: =IFERROR('6 LCI Factors'!H179*'7 Mass Data for SMM'!H29,0) -> 0 | J182: =IFERROR('6 LCI Factors'!I179*'7 Mass Data for SMM'!I29,0) -> 0 | K182: =IFERROR('6 LCI Factors'!J179*'7 Mass Data for SMM'!J29,0) -> 0 | L182: =IFERROR('6 LCI Factors'!K179*'7 Mass Data for SMM'!K29,0) -> 0 | M182: =IFERROR('6 LCI Factors'!L179*'7 Mass Data for SMM'!L29,0) -> 0 | N182: 0 | O182: 0
B183: Total | E183: =SUMIF(E158:E182,"<>#value!") -> 0 | F183: 0 | G183: 0 | H183: =SUMIF(H158:H182,"<>#value!") -> 1384.7763 | I183: =SUMIF(I158:I182,"<>#value!") -> -23689.83802 | J183: 3796.388582 | K183: 0 | L183: 7622.763513 | M183: -25539.89239 | N183: -36425.80202 | O183: -36425.80202
B185: Table 7.
B186: Acidification Potential (kgSO2eq.): Increasing concentration of hydrogen ions within the environment due to addition of acids. The units are expressed as kgSO2eq. to allow for comparison of acids in the air relative to SO2.
B187: Material Category | C187: Item No. | D187: Material Type | E187: Source Reduced/ Generated | F187: Donated | G187: Produced | H187: Collection | I187: Recycling | J187: Composting | K187: Anaerobic Digestion | L187: Landfill | M187: Combustion | N187: Lifecycle Total | O187: Waste Management Total
B188: MSW | C188: 1 | D188: Mixed MSW | E188: =IFERROR('6 LCI Factors'!E185*'7 Mass Data for SMM'!E5,0) -> 0 | F188: =IFERROR('6 LCI Factors'!F185*'7 Mass Data for SMM'!F5,0) -> 0 | G188: =IFERROR('6 LCI Factors'!E185*'7 Mass Data for SMM'!G5,0) -> 0 | H188: =IFERROR('6 LCI Factors'!G185*'7 Mass Data for SMM'!G5,0) -> 3785.907102 | I188: =IFERROR('6 LCI Factors'!H185*'7 Mass Data for SMM'!H5,0) -> 0 | J188: =IFERROR('6 LCI Factors'!I185*'7 Mass Data for SMM'!I5,0) -> 0 | K188: =IFERROR('6 LCI Factors'!J185*'7 Mass Data for SMM'!J5,0) -> 0 | L188: =IFERROR('6 LCI Factors'!K185*'7 Mass Data for SMM'!K5,0) -> -72034.74959 | M188: =IFERROR('6 LCI Factors'!L185*'7 Mass Data for SMM'!L5,0) -> 0 | N188: =SUMIF(E188:M188,"<>#value!") -> -68248.84249 | O188: =SUMIF(H188:M188,"<>#value!") -> -68248.84249
B189: Paper | C189: 2 | D189: Newspaper | E189: =IFERROR('6 LCI Factors'!E186*'7 Mass Data for SMM'!E6,0) -> 0 | F189: =IFERROR('6 LCI Factors'!F186*'7 Mass Data for SMM'!F6,0) -> 0 | G189: =IFERROR('6 LCI Factors'!E186*'7 Mass Data for SMM'!G6,0) -> 0 | H189: =IFERROR('6 LCI Factors'!G186*'7 Mass Data for SMM'!G6,0) -> 264.8222964 | I189: =IFERROR('6 LCI Factors'!H186*'7 Mass Data for SMM'!H6,0) -> -33574.62699 | J189: =IFERROR('6 LCI Factors'!I186*'7 Mass Data for SMM'!I6,0) -> 0 | K189: =IFERROR('6 LCI Factors'!J186*'7 Mass Data for SMM'!J6,0) -> 0 | L189: =IFERROR('6 LCI Factors'!K186*'7 Mass Data for SMM'!K6,0) -> -142.6987342 | M189: =IFERROR('6 LCI Factors'!L186*'7 Mass Data for SMM'!L6,0) -> 0 | N189: =SUMIF(E189:M189,"<>#value!") -> -33452.50342 | O189: =SUMIF(H189:M189,"<>#value!") -> -33452.50342
C190: 3 | D190: Corrugated Cardboard (OCC) | E190: =IFERROR('6 LCI Factors'!E187*'7 Mass Data for SMM'!E7,0) -> 0 | F190: =IFERROR('6 LCI Factors'!F187*'7 Mass Data for SMM'!F7,0) -> 0 | G190: =IFERROR('6 LCI Factors'!E187*'7 Mass Data for SMM'!G7,0) -> 0 | H190: =IFERROR('6 LCI Factors'!G187*'7 Mass Data for SMM'!G7,0) -> 3134.179196 | I190: =IFERROR('6 LCI Factors'!H187*'7 Mass Data for SMM'!H7,0) -> -267182.9633 | J190: =IFERROR('6 LCI Factors'!I187*'7 Mass Data for SMM'!I7,0) -> 0 | K190: =IFERROR('6 LCI Factors'!J187*'7 Mass Data for SMM'!J7,0) -> 0 | L190: =IFERROR('6 LCI Factors'!K187*'7 Mass Data for SMM'!K7,0) -> -17331.83988 | M190: =IFERROR('6 LCI Factors'!L187*'7 Mass Data for SMM'!L7,0) -> 0 | N190: -281380.6239 | O190: -281380.6239
C191: 4 | D191: High Grade Paper (Office Type Paper) | E191: =IFERROR('6 LCI Factors'!E188*'7 Mass Data for SMM'!E8,0) -> 0 | F191: =IFERROR('6 LCI Factors'!F188*'7 Mass Data for SMM'!F8,0) -> 0 | G191: =IFERROR('6 LCI Factors'!E188*'7 Mass Data for SMM'!G8,0) -> 0 | H191: =IFERROR('6 LCI Factors'!G188*'7 Mass Data for SMM'!G8,0) -> 315.6691181 | I191: =IFERROR('6 LCI Factors'!H188*'7 Mass Data for SMM'!H8,0) -> 431.7244882 | J191: =IFERROR('6 LCI Factors'!I188*'7 Mass Data for SMM'!I8,0) -> 0 | K191: =IFERROR('6 LCI Factors'!J188*'7 Mass Data for SMM'!J8,0) -> 0 | L191: =IFERROR('6 LCI Factors'!K188*'7 Mass Data for SMM'!K8,0) -> -2576.689433 | M191: =IFERROR('6 LCI Factors'!L188*'7 Mass Data for SMM'!L8,0) -> 0 | N191: -1829.295827 | O191: -1829.295827
C192: 5 | D192: Magazines/third-class mail | E192: =IFERROR('6 LCI Factors'!E189*'7 Mass Data for SMM'!E9,0) -> 0 | F192: =IFERROR('6 LCI Factors'!F189*'7 Mass Data for SMM'!F9,0) -> 0 | G192: =IFERROR('6 LCI Factors'!E189*'7 Mass Data for SMM'!G9,0) -> 0 | H192: =IFERROR('6 LCI Factors'!G189*'7 Mass Data for SMM'!G9,0) -> 726.2136795 | I192: =IFERROR('6 LCI Factors'!H189*'7 Mass Data for SMM'!H9,0) -> 68.32167608 | J192: =IFERROR('6 LCI Factors'!I189*'7 Mass Data for SMM'!I9,0) -> 0 | K192: =IFERROR('6 LCI Factors'!J189*'7 Mass Data for SMM'!J9,0) -> 0 | L192: =IFERROR('6 LCI Factors'!K189*'7 Mass Data for SMM'!K9,0) -> -6462.491363 | M192: =IFERROR('6 LCI Factors'!L189*'7 Mass Data for SMM'!L9,0) -> 0 | N192: -5667.956007 | O192: -5667.956007
C193: 6 | D193: Books | E193: =IFERROR('6 LCI Factors'!E190*'7 Mass Data for SMM'!E10,0) -> 0 | F193: =IFERROR('6 LCI Factors'!F190*'7 Mass Data for SMM'!F10,0) -> 0 | G193: =IFERROR('6 LCI Factors'!E190*'7 Mass Data for SMM'!G10,0) -> 0 | H193: =IFERROR('6 LCI Factors'!G190*'7 Mass Data for SMM'!G10,0) -> 71.10676642 | I193: =IFERROR('6 LCI Factors'!H190*'7 Mass Data for SMM'!H10,0) -> 0 | J193: =IFERROR('6 LCI Factors'!I190*'7 Mass Data for SMM'!I10,0) -> 0 | K193: =IFERROR('6 LCI Factors'!J190*'7 Mass Data for SMM'!J10,0) -> 0 | L193: =IFERROR('6 LCI Factors'!K190*'7 Mass Data for SMM'!K10,0) -> -385.0425251 | M193: =IFERROR('6 LCI Factors'!L190*'7 Mass Data for SMM'!L10,0) -> 0 | N193: -313.9357587 | O193: -313.9357587
C194: 7 | D194: Mixed Paper | E194: =IFERROR('6 LCI Factors'!E191*'7 Mass Data for SMM'!E11,0) -> 0 | F194: =IFERROR('6 LCI Factors'!F191*'7 Mass Data for SMM'!F11,0) -> 0 | G194: =IFERROR('6 LCI Factors'!E191*'7 Mass Data for SMM'!G11,0) -> 0 | H194: =IFERROR('6 LCI Factors'!G191*'7 Mass Data for SMM'!G11,0) -> 2360.130334 | I194: =IFERROR('6 LCI Factors'!H191*'7 Mass Data for SMM'!H11,0) -> -3262.487761 | J194: =IFERROR('6 LCI Factors'!I191*'7 Mass Data for SMM'!I11,0) -> 0 | K194: =IFERROR('6 LCI Factors'!J191*'7 Mass Data for SMM'!J11,0) -> 0 | L194: =IFERROR('6 LCI Factors'!K191*'7 Mass Data for SMM'!K11,0) -> -33630.67962 | M194: =IFERROR('6 LCI Factors'!L191*'7 Mass Data for SMM'!L11,0) -> 0 | N194: -34533.03704 | O194: -34533.03704
B195: Plastic | C195: 8 | D195: HDPE | E195: =IFERROR('6 LCI Factors'!E192*'7 Mass Data for SMM'!E12,0) -> 0 | F195: =IFERROR('6 LCI Factors'!F192*'7 Mass Data for SMM'!F12,0) -> 0 | G195: =IFERROR('6 LCI Factors'!E192*'7 Mass Data for SMM'!G12,0) -> 0 | H195: =IFERROR('6 LCI Factors'!G192*'7 Mass Data for SMM'!G12,0) -> 104.7145729 | I195: =IFERROR('6 LCI Factors'!H192*'7 Mass Data for SMM'!H12,0) -> -2837.977426 | J195: =IFERROR('6 LCI Factors'!I192*'7 Mass Data for SMM'!I12,0) -> 0 | K195: =IFERROR('6 LCI Factors'!J192*'7 Mass Data for SMM'!J12,0) -> 0 | L195: =IFERROR('6 LCI Factors'!K192*'7 Mass Data for SMM'!K12,0) -> 48.17069509 | M195: =IFERROR('6 LCI Factors'!L192*'7 Mass Data for SMM'!L12,0) -> 0 | N195: -2685.092158 | O195: -2685.092158
C196: 9 | D196: PET | E196: =IFERROR('6 LCI Factors'!E193*'7 Mass Data for SMM'!E13,0) -> 0 | F196: =IFERROR('6 LCI Factors'!F193*'7 Mass Data for SMM'!F13,0) -> 0 | G196: =IFERROR('6 LCI Factors'!E193*'7 Mass Data for SMM'!G13,0) -> 0 | H196: =IFERROR('6 LCI Factors'!G193*'7 Mass Data for SMM'!G13,0) -> 172.2851086 | I196: =IFERROR('6 LCI Factors'!H193*'7 Mass Data for SMM'!H13,0) -> -18711.43616 | J196: =IFERROR('6 LCI Factors'!I193*'7 Mass Data for SMM'!I13,0) -> 0 | K196: =IFERROR('6 LCI Factors'!J193*'7 Mass Data for SMM'!J13,0) -> 0 | L196: =IFERROR('6 LCI Factors'!K193*'7 Mass Data for SMM'!K13,0) -> 79.25442664 | M196: =IFERROR('6 LCI Factors'!L193*'7 Mass Data for SMM'!L13,0) -> 0 | N196: -18459.89663 | O196: -18459.89663
C197: 10 | D197: Mixed Plastic | E197: =IFERROR('6 LCI Factors'!E194*'7 Mass Data for SMM'!E14,0) -> 0 | F197: =IFERROR('6 LCI Factors'!F194*'7 Mass Data for SMM'!F14,0) -> 0 | G197: =IFERROR('6 LCI Factors'!E194*'7 Mass Data for SMM'!G14,0) -> 0 | H197: =IFERROR('6 LCI Factors'!G194*'7 Mass Data for SMM'!G14,0) -> 1808.670759 | I197: =IFERROR('6 LCI Factors'!H194*'7 Mass Data for SMM'!H14,0) -> -17062.91858 | J197: =IFERROR('6 LCI Factors'!I194*'7 Mass Data for SMM'!I14,0) -> 0 | K197: =IFERROR('6 LCI Factors'!J194*'7 Mass Data for SMM'!J14,0) -> 0 | L197: =IFERROR('6 LCI Factors'!K194*'7 Mass Data for SMM'!K14,0) -> 1146.958118 | M197: =IFERROR('6 LCI Factors'!L194*'7 Mass Data for SMM'!L14,0) -> 0 | N197: -14107.28971 | O197: -14107.28971
B198: Glass | C198: 11 | D198: Glass | E198: =IFERROR('6 LCI Factors'!E195*'7 Mass Data for SMM'!E15,0) -> 0 | F198: =IFERROR('6 LCI Factors'!F195*'7 Mass Data for SMM'!F15,0) -> 0 | G198: =IFERROR('6 LCI Factors'!E195*'7 Mass Data for SMM'!G15,0) -> 0 | H198: =IFERROR('6 LCI Factors'!G195*'7 Mass Data for SMM'!G15,0) -> 565.2824883 | I198: =IFERROR('6 LCI Factors'!H195*'7 Mass Data for SMM'!H15,0) -> -6187.828186 | J198: =IFERROR('6 LCI Factors'!I195*'7 Mass Data for SMM'!I15,0) -> 0 | K198: =IFERROR('6 LCI Factors'!J195*'7 Mass Data for SMM'!J15,0) -> 0 | L198: =IFERROR('6 LCI Factors'!K195*'7 Mass Data for SMM'!K15,0) -> 159.7661036 | M198: =IFERROR('6 LCI Factors'!L195*'7 Mass Data for SMM'!L15,0) -> 0 | N198: -5462.779594 | O198: -5462.779594
B199: Metals | C199: 12 | D199: Aluminum Cans | E199: =IFERROR('6 LCI Factors'!E196*'7 Mass Data for SMM'!E16,0) -> 0 | F199: =IFERROR('6 LCI Factors'!F196*'7 Mass Data for SMM'!F16,0) -> 0 | G199: =IFERROR('6 LCI Factors'!E196*'7 Mass Data for SMM'!G16,0) -> 0 | H199: =IFERROR('6 LCI Factors'!G196*'7 Mass Data for SMM'!G16,0) -> 82.35596509 | I199: =IFERROR('6 LCI Factors'!H196*'7 Mass Data for SMM'!H16,0) -> -40858.04285 | J199: =IFERROR('6 LCI Factors'!I196*'7 Mass Data for SMM'!I16,0) -> 0 | K199: =IFERROR('6 LCI Factors'!J196*'7 Mass Data for SMM'!J16,0) -> 0 | L199: =IFERROR('6 LCI Factors'!K196*'7 Mass Data for SMM'!K16,0) -> 32.77567071 | M199: =IFERROR('6 LCI Factors'!L196*'7 Mass Data for SMM'!L16,0) -> 0 | N199: -40742.91122 | O199: -40742.91122
C200: 13 | D200: Steel/Tin Cans | E200: =IFERROR('6 LCI Factors'!E197*'7 Mass Data for SMM'!E17,0) -> 0 | F200: =IFERROR('6 LCI Factors'!F197*'7 Mass Data for SMM'!F17,0) -> 0 | G200: =IFERROR('6 LCI Factors'!E197*'7 Mass Data for SMM'!G17,0) -> 0 | H200: =IFERROR('6 LCI Factors'!G197*'7 Mass Data for SMM'!G17,0) -> 102.5076902 | I200: =IFERROR('6 LCI Factors'!H197*'7 Mass Data for SMM'!H17,0) -> -441.3043682 | J200: =IFERROR('6 LCI Factors'!I197*'7 Mass Data for SMM'!I17,0) -> 0 | K200: =IFERROR('6 LCI Factors'!J197*'7 Mass Data for SMM'!J17,0) -> 0 | L200: =IFERROR('6 LCI Factors'!K197*'7 Mass Data for SMM'!K17,0) -> 50.28479663 | M200: =IFERROR('6 LCI Factors'!L197*'7 Mass Data for SMM'!L17,0) -> 0 | N200: -288.5118814 | O200: -288.5118814
C201: 14 | D201: Mixed Metals | E201: =IFERROR('6 LCI Factors'!E198*'7 Mass Data for SMM'!E18,0) -> 0 | F201: =IFERROR('6 LCI Factors'!F198*'7 Mass Data for SMM'!F18,0) -> 0 | G201: =IFERROR('6 LCI Factors'!E198*'7 Mass Data for SMM'!G18,0) -> 0 | H201: =IFERROR('6 LCI Factors'!G198*'7 Mass Data for SMM'!G18,0) -> 1432.135905 | I201: =IFERROR('6 LCI Factors'!H198*'7 Mass Data for SMM'!H18,0) -> -769772.9518 | J201: =IFERROR('6 LCI Factors'!I198*'7 Mass Data for SMM'!I18,0) -> 0 | K201: =IFERROR('6 LCI Factors'!J198*'7 Mass Data for SMM'!J18,0) -> 0 | L201: =IFERROR('6 LCI Factors'!K198*'7 Mass Data for SMM'!K18,0) -> 138.5905672 | M201: =IFERROR('6 LCI Factors'!L198*'7 Mass Data for SMM'!L18,0) -> 0 | N201: -768202.2253 | O201: -768202.2253
B202: Organic | C202: 15 | D202: Yard Waste | E202: =IFERROR('6 LCI Factors'!E199*'7 Mass Data for SMM'!E19,0) -> 0 | F202: =IFERROR('6 LCI Factors'!F199*'7 Mass Data for SMM'!F19,0) -> 0 | G202: =IFERROR('6 LCI Factors'!E199*'7 Mass Data for SMM'!G19,0) -> 0 | H202: =IFERROR('6 LCI Factors'!G199*'7 Mass Data for SMM'!G19,0) -> 11443.94892 | I202: =IFERROR('6 LCI Factors'!H199*'7 Mass Data for SMM'!H19,0) -> 0 | J202: =IFERROR('6 LCI Factors'!I199*'7 Mass Data for SMM'!I19,0) -> 11323.59786 | K202: =IFERROR('6 LCI Factors'!J199*'7 Mass Data for SMM'!J19,0) -> 0 | L202: =IFERROR('6 LCI Factors'!K199*'7 Mass Data for SMM'!K19,0) -> -407.666149 | M202: =IFERROR('6 LCI Factors'!L199*'7 Mass Data for SMM'!L19,0) -> -404678.2451 | N202: -382318.3645 | O202: -382318.3645
C203: 16 | D203: Food Waste | E203: =IFERROR('6 LCI Factors'!E200*'7 Mass Data for SMM'!E20,0) -> 0 | F203: =IFERROR('6 LCI Factors'!F200*'7 Mass Data for SMM'!F20,0) -> 0 | G203: =IFERROR('6 LCI Factors'!E200*'7 Mass Data for SMM'!G20,0) -> 0 | H203: =IFERROR('6 LCI Factors'!G200*'7 Mass Data for SMM'!G20,0) -> 2138.837936 | I203: =IFERROR('6 LCI Factors'!H200*'7 Mass Data for SMM'!H20,0) -> 0 | J203: =IFERROR('6 LCI Factors'!I200*'7 Mass Data for SMM'!I20,0) -> 153.8239918 | K203: =IFERROR('6 LCI Factors'!J200*'7 Mass Data for SMM'!J20,0) -> 0 | L203: =IFERROR('6 LCI Factors'!K200*'7 Mass Data for SMM'!K20,0) -> -16883.60402 | M203: =IFERROR('6 LCI Factors'!L200*'7 Mass Data for SMM'!L20,0) -> 0 | N203: -14590.94209 | O203: -14590.94209
B204: Other | C204: 17 | D204: Tires | E204: =IFERROR('6 LCI Factors'!E201*'7 Mass Data for SMM'!E21,0) -> 0 | F204: =IFERROR('6 LCI Factors'!F201*'7 Mass Data for SMM'!F21,0) -> 0 | G204: =IFERROR('6 LCI Factors'!E201*'7 Mass Data for SMM'!G21,0) -> 0 | H204: =IFERROR('6 LCI Factors'!G201*'7 Mass Data for SMM'!G21,0) -> 0 | I204: =IFERROR('6 LCI Factors'!H201*'7 Mass Data for SMM'!H21,0) -> 0 | J204: =IFERROR('6 LCI Factors'!I201*'7 Mass Data for SMM'!I21,0) -> 0 | K204: =IFERROR('6 LCI Factors'!J201*'7 Mass Data for SMM'!J21,0) -> 0 | L204: =IFERROR('6 LCI Factors'!K201*'7 Mass Data for SMM'!K21,0) -> 0 | M204: =IFERROR('6 LCI Factors'!L201*'7 Mass Data for SMM'!L21,0) -> 0 | N204: 0 | O204: 0
C205: 18 | D205: Clothing and Footwear | E205: =IFERROR('6 LCI Factors'!E202*'7 Mass Data for SMM'!E22,0) -> 0 | F205: =IFERROR('6 LCI Factors'!F202*'7 Mass Data for SMM'!F22,0) -> 0 | G205: =IFERROR('6 LCI Factors'!E202*'7 Mass Data for SMM'!G22,0) -> 0 | H205: =IFERROR('6 LCI Factors'!G202*'7 Mass Data for SMM'!G22,0) -> 0 | I205: =IFERROR('6 LCI Factors'!H202*'7 Mass Data for SMM'!H22,0) -> 0 | J205: =IFERROR('6 LCI Factors'!I202*'7 Mass Data for SMM'!I22,0) -> 0 | K205: =IFERROR('6 LCI Factors'!J202*'7 Mass Data for SMM'!J22,0) -> 0 | L205: =IFERROR('6 LCI Factors'!K202*'7 Mass Data for SMM'!K22,0) -> 0 | M205: =IFERROR('6 LCI Factors'!L202*'7 Mass Data for SMM'!L22,0) -> 0 | N205: 0 | O205: 0
C206: 19 | D206: Furniture | E206: =IFERROR('6 LCI Factors'!E203*'7 Mass Data for SMM'!E23,0) -> 0 | F206: =IFERROR('6 LCI Factors'!F203*'7 Mass Data for SMM'!F23,0) -> 0 | G206: =IFERROR('6 LCI Factors'!E203*'7 Mass Data for SMM'!G23,0) -> 0 | H206: =IFERROR('6 LCI Factors'!G203*'7 Mass Data for SMM'!G23,0) -> 0 | I206: =IFERROR('6 LCI Factors'!H203*'7 Mass Data for SMM'!H23,0) -> 0 | J206: =IFERROR('6 LCI Factors'!I203*'7 Mass Data for SMM'!I23,0) -> 0 | K206: =IFERROR('6 LCI Factors'!J203*'7 Mass Data for SMM'!J23,0) -> 0 | L206: =IFERROR('6 LCI Factors'!K203*'7 Mass Data for SMM'!K23,0) -> 0 | M206: =IFERROR('6 LCI Factors'!L203*'7 Mass Data for SMM'!L23,0) -> 0 | N206: 0 | O206: 0
C207: 20 | D207: Electronics | E207: =IFERROR('6 LCI Factors'!E204*'7 Mass Data for SMM'!E24,0) -> 0 | F207: =IFERROR('6 LCI Factors'!F204*'7 Mass Data for SMM'!F24,0) -> 0 | G207: =IFERROR('6 LCI Factors'!E204*'7 Mass Data for SMM'!G24,0) -> 0 | H207: =IFERROR('6 LCI Factors'!G204*'7 Mass Data for SMM'!G24,0) -> 0 | I207: =IFERROR('6 LCI Factors'!H204*'7 Mass Data for SMM'!H24,0) -> 0 | J207: =IFERROR('6 LCI Factors'!I204*'7 Mass Data for SMM'!I24,0) -> 0 | K207: =IFERROR('6 LCI Factors'!J204*'7 Mass Data for SMM'!J24,0) -> 0 | L207: =IFERROR('6 LCI Factors'!K204*'7 Mass Data for SMM'!K24,0) -> 0 | M207: =IFERROR('6 LCI Factors'!L204*'7 Mass Data for SMM'!L24,0) -> 0 | N207: 0 | O207: 0
B208: C&D Debris | C208: 21 | D208: Wood Products | E208: =IFERROR('6 LCI Factors'!E205*'7 Mass Data for SMM'!E25,0) -> 0 | F208: =IFERROR('6 LCI Factors'!F205*'7 Mass Data for SMM'!F25,0) -> 0 | G208: =IFERROR('6 LCI Factors'!E205*'7 Mass Data for SMM'!G25,0) -> 0 | H208: =IFERROR('6 LCI Factors'!G205*'7 Mass Data for SMM'!G25,0) -> 0 | I208: =IFERROR('6 LCI Factors'!H205*'7 Mass Data for SMM'!H25,0) -> 0 | J208: =IFERROR('6 LCI Factors'!I205*'7 Mass Data for SMM'!I25,0) -> 0 | K208: =IFERROR('6 LCI Factors'!J205*'7 Mass Data for SMM'!J25,0) -> 0 | L208: =IFERROR('6 LCI Factors'!K205*'7 Mass Data for SMM'!K25,0) -> 0 | M208: =IFERROR('6 LCI Factors'!L205*'7 Mass Data for SMM'!L25,0) -> 0 | N208: 0 | O208: 0
... 63 more rows

Sheet 6 LCI Factors
B1: Note: For some material categories, the selected model does not measure the environmental impacts so that mass associated with that material will not have an associated environmental footprint. For those materials they will have an associated "NA". For example, MSWDST does not measure book recycling so the mass associated with recycled books will have no measured environmental footprint in the SMM Results tab.
B2: All Units (tCO2eq./ Short Ton)
B3: ='5 SMM Results'!B6:M6 -> Climate Change (tCO2eq.): Greenhouse gases (GHG) absorb energy and slow energy from escaping into space which causes the Earth to get warmer. GHG are expressed as units of tCO2eq.of material to allow for comparison of global warming impacts of different gases relative to CO2. This is a measure of how much energy the emission of 1 ton of gas will absorb over a given period of time, relative to the emissions of 1 ton of CO2.
B4: Material Category | C4: Item No. | D4: Material Type | E4: Produced | F4: Donated | G4: Collection | H4: Recycling | I4: Composting | J4: Anaerobic Digestion | K4: Landfill | L4: Combustion
B5: MSW | C5: 1 | D5: Mixed MSW | E5: =INDEX('8 LCI Data Compilation'!$D$6:$I$32,MATCH(D5,'8 LCI Data Compilation'!$C$6:$C$32,0),MATCH('4 SMM Input'!$E$3,'8 LCI Data Compilation'!$D$7:$I$7,0)) -> NA | F5: NA | G5: =INDEX('8 LCI Data Compilation'!$J$6:$O$32,MATCH(D5,'8 LCI Data Compilation'!$C$6:$C$32,0),MATCH('4 SMM Input'!$E$3,'8 LCI Data Compilation'!$J$7:$O$7,0)) -> 0.005652379465 | H5: =INDEX('8 LCI Data Compilation'!$P$6:$U$32,MATCH(D5,'8 LCI Data Compilation'!$C$6:$C$32,0),MATCH('4 SMM Input'!$E$3,'8 LCI Data Compilation'!$P$7:$U$7,0)) -> NA | I5: =INDEX('8 LCI Data Compilation'!$V$6:$AA$32,MATCH(D5,'8 LCI Data Compilation'!$C$6:$C$32,0),MATCH('4 SMM Input'!$E$3,'8 LCI Data Compilation'!$V$7:$AA$7,0)) -> NA | J5: =INDEX('8 LCI Data Compilation'!$AB$6:$AG$32,MATCH(D5,'8 LCI Data Compilation'!$C$6:$C$32,0),MATCH('4 SMM Input'!$E$3,'8 LCI Data Compilation'!$AB$7:$AG$7,0)) -> NA | K5: =INDEX('8 LCI Data Compilation'!$AH$6:$AM$32,MATCH(D5,'8 LCI Data Compilation'!$C$6:$C$32,0),MATCH('4 SMM Input'!$E$3,'8 LCI Data Compilation'!$AH$7:$AM$7,0)) -> -0.1836282907 | L5: =INDEX('8 LCI Data Compilation'!$AN$6:$AS$32,MATCH(D5,'8 LCI Data Compilation'!$C$6:$C$32,0),MATCH('4 SMM Input'!$E$3,'8 LCI Data Compilation'!$AN$7:$AS$7,0)) -> -0.2683371422
B6: Paper | C6: 2 | D6: Newspaper | E6: =INDEX('8 LCI Data Compilation'!$D$6:$I$32,MATCH(D6,'8 LCI Data Compilation'!$C$6:$C$32,0),MATCH('4 SMM Input'!$E$3,'8 LCI Data Compilation'!$D$7:$I$7,0)) -> NA | F6: NA | G6: =INDEX('8 LCI Data Compilation'!$J$6:$O$32,MATCH(D6,'8 LCI Data Compilation'!$C$6:$C$32,0),MATCH('4 SMM Input'!$E$3,'8 LCI Data Compilation'!$J$7:$O$7,0)) -> 0.005652379465 | H6: =INDEX('8 LCI Data Compilation'!$P$6:$U$32,MATCH(D6,'8 LCI Data Compilation'!$C$6:$C$32,0),MATCH('4 SMM Input'!$E$3,'8 LCI Data Compilation'!$P$7:$U$7,0)) -> -0.8303631336 | I6: =INDEX('8 LCI Data Compilation'!$V$6:$AA$32,MATCH(D6,'8 LCI Data Compilation'!$C$6:$C$32,0),MATCH('4 SMM Input'!$E$3,'8 LCI Data Compilation'!$V$7:$AA$7,0)) -> NA | J6: =INDEX('8 LCI Data Compilation'!$AB$6:$AG$32,MATCH(D6,'8 LCI Data Compilation'!$C$6:$C$32,0),MATCH('4 SMM Input'!$E$3,'8 LCI Data Compilation'!$AB$7:$AG$7,0)) -> NA | K6: =INDEX('8 LCI Data Compilation'!$AH$6:$AM$32,MATCH(D6,'8 LCI Data Compilation'!$C$6:$C$32,0),MATCH('4 SMM Input'!$E$3,'8 LCI Data Compilation'!$AH$7:$AM$7,0)) -> -1.353714711 | L6: =INDEX('8 LCI Data Compilation'!$AN$6:$AS$32,MATCH(D6,'8 LCI Data Compilation'!$C$6:$C$32,0),MATCH('4 SMM Input'!$E$3,'8 LCI Data Compilation'!$AN$7:$AS$7,0)) -> -1.177957601
C7: 3 | D7: Corrugated Cardboard (OCC) | E7: =INDEX('8 LCI Data Compilation'!$D$6:$I$32,MATCH(D7,'8 LCI Data Compilation'!$C$6:$C$32,0),MATCH('4 SMM Input'!$E$3,'8 LCI Data Compilation'!$D$7:$I$7,0)) -> NA | F7: NA | G7: =INDEX('8 LCI Data Compilation'!$J$6:$O$32,MATCH(D7,'8 LCI Data Compilation'!$C$6:$C$32,0),MATCH('4 SMM Input'!$E$3,'8 LCI Data Compilation'!$J$7:$O$7,0)) -> 0.005652379465 | H7: =INDEX('8 LCI Data Compilation'!$P$6:$U$32,MATCH(D7,'8 LCI Data Compilation'!$C$6:$C$32,0),MATCH('4 SMM Input'!$E$3,'8 LCI Data Compilation'!$P$7:$U$7,0)) -> 0.1905611003 | I7: =INDEX('8 LCI Data Compilation'!$V$6:$AA$32,MATCH(D7,'8 LCI Data Compilation'!$C$6:$C$32,0),MATCH('4 SMM Input'!$E$3,'8 LCI Data Compilation'!$V$7:$AA$7,0)) -> NA | J7: =INDEX('8 LCI Data Compilation'!$AB$6:$AG$32,MATCH(D7,'8 LCI Data Compilation'!$C$6:$C$32,0),MATCH('4 SMM Input'!$E$3,'8 LCI Data Compilation'!$AB$7:$AG$7,0)) -> NA | K7: =INDEX('8 LCI Data Compilation'!$AH$6:$AM$32,MATCH(D7,'8 LCI Data Compilation'!$C$6:$C$32,0),MATCH('4 SMM Input'!$E$3,'8 LCI Data Compilation'!$AH$7:$AM$7,0)) -> -0.7743346457 | L7: =INDEX('8 LCI Data Compilation'!$AN$6:$AS$32,MATCH(D7,'8 LCI Data Compilation'!$C$6:$C$32,0),MATCH('4 SMM Input'!$E$3,'8 LCI Data Compilation'!$AN$7:$AS$7,0)) -> -1.077678853
C8: 4 | D8: High Grade Paper (Office Type Paper) | E8: =INDEX('8 LCI Data Compilation'!$D$6:$I$32,MATCH(D8,'8 LCI Data Compilation'!$C$6:$C$32,0),MATCH('4 SMM Input'!$E$3,'8 LCI Data Compilation'!$D$7:$I$7,0)) -> NA | F8: NA | G8: =INDEX('8 LCI Data Compilation'!$J$6:$O$32,MATCH(D8,'8 LCI Data Compilation'!$C$6:$C$32,0),MATCH('4 SMM Input'!$E$3,'8 LCI Data Compilation'!$J$7:$O$7,0)) -> 0.005652379465 | H8: =INDEX('8 LCI Data Compilation'!$P$6:$U$32,MATCH(D8,'8 LCI Data Compilation'!$C$6:$C$32,0),MATCH('4 SMM Input'!$E$3,'8 LCI Data Compilation'!$P$7:$U$7,0)) -> 0.3525398018 | I8: =INDEX('8 LCI Data Compilation'!$V$6:$AA$32,MATCH(D8,'8 LCI Data Compilation'!$C$6:$C$32,0),MATCH('4 SMM Input'!$E$3,'8 LCI Data Compilation'!$V$7:$AA$7,0)) -> NA | J8: =INDEX('8 LCI Data Compilation'!$AB$6:$AG$32,MATCH(D8,'8 LCI Data Compilation'!$C$6:$C$32,0),MATCH('4 SMM Input'!$E$3,'8 LCI Data Compilation'!$AB$7:$AG$7,0)) -> NA | K8: =INDEX('8 LCI Data Compilation'!$AH$6:$AM$32,MATCH(D8,'8 LCI Data Compilation'!$C$6:$C$32,0),MATCH('4 SMM Input'!$E$3,'8 LCI Data Compilation'!$AH$7:$AM$7,0)) -> 0.1097840209 | L8: =INDEX('8 LCI Data Compilation'!$AN$6:$AS$32,MATCH(D8,'8 LCI Data Compilation'!$C$6:$C$32,0),MATCH('4 SMM Input'!$E$3,'8 LCI Data Compilation'!$AN$7:$AS$7,0)) -> -0.9866303783
C9: 5 | D9: Magazines/third-class mail | E9: =INDEX('8 LCI Data Compilation'!$D$6:$I$32,MATCH(D9,'8 LCI Data Compilation'!$C$6:$C$32,0),MATCH('4 SMM Input'!$E$3,'8 LCI Data Compilation'!$D$7:$I$7,0)) -> NA | F9: NA | G9: =INDEX('8 LCI Data Compilation'!$J$6:$O$32,MATCH(D9,'8 LCI Data Compilation'!$C$6:$C$32,0),MATCH('4 SMM Input'!$E$3,'8 LCI Data Compilation'!$J$7:$O$7,0)) -> 0.005652379465 | H9: =INDEX('8 LCI Data Compilation'!$P$6:$U$32,MATCH(D9,'8 LCI Data Compilation'!$C$6:$C$32,0),MATCH('4 SMM Input'!$E$3,'8 LCI Data Compilation'!$P$7:$U$7,0)) -> 0.05659723996 | I9: =INDEX('8 LCI Data Compilation'!$V$6:$AA$32,MATCH(D9,'8 LCI Data Compilation'!$C$6:$C$32,0),MATCH('4 SMM Input'!$E$3,'8 LCI Data Compilation'!$V$7:$AA$7,0)) -> NA | J9: =INDEX('8 LCI Data Compilation'!$AB$6:$AG$32,MATCH(D9,'8 LCI Data Compilation'!$C$6:$C$32,0),MATCH('4 SMM Input'!$E$3,'8 LCI Data Compilation'!$AB$7:$AG$7,0)) -> NA | K9: =INDEX('8 LCI Data Compilation'!$AH$6:$AM$32,MATCH(D9,'8 LCI Data Compilation'!$C$6:$C$32,0),MATCH('4 SMM Input'!$E$3,'8 LCI Data Compilation'!$AH$7:$AM$7,0)) -> -0.4683631741 | L9: =INDEX('8 LCI Data Compilation'!$AN$6:$AS$32,MATCH(D9,'8 LCI Data Compilation'!$C$6:$C$32,0),MATCH('4 SMM Input'!$E$3,'8 LCI Data Compilation'!$AN$7:$AS$7,0)) -> -0.8880620613
C10: 6 | D10: Books | E10: =INDEX('8 LCI Data Compilation'!$D$6:$I$32,MATCH(D10,'8 LCI Data Compilation'!$C$6:$C$32,0),MATCH('4 SMM Input'!$E$3,'8 LCI Data Compilation'!$D$7:$I$7,0)) -> NA | F10: NA | G10: =INDEX('8 LCI Data Compilation'!$J$6:$O$32,MATCH(D10,'8 LCI Data Compilation'!$C$6:$C$32,0),MATCH('4 SMM Input'!$E$3,'8 LCI Data Compilation'!$J$7:$O$7,0)) -> 0.005652379465 | H10: =INDEX('8 LCI Data Compilation'!$P$6:$U$32,MATCH(D10,'8 LCI Data Compilation'!$C$6:$C$32,0),MATCH('4 SMM Input'!$E$3,'8 LCI Data Compilation'!$P$7:$U$7,0)) -> NA | I10: =INDEX('8 LCI Data Compilation'!$V$6:$AA$32,MATCH(D10,'8 LCI Data Compilation'!$C$6:$C$32,0),MATCH('4 SMM Input'!$E$3,'8 LCI Data Compilation'!$V$7:$AA$7,0)) -> NA | J10: =INDEX('8 LCI Data Compilation'!$AB$6:$AG$32,MATCH(D10,'8 LCI Data Compilation'!$C$6:$C$32,0),MATCH('4 SMM Input'!$E$3,'8 LCI Data Compilation'!$AB$7:$AG$7,0)) -> NA | K10: =INDEX('8 LCI Data Compilation'!$AH$6:$AM$32,MATCH(D10,'8 LCI Data Compilation'!$C$6:$C$32,0),MATCH('4 SMM Input'!$E$3,'8 LCI Data Compilation'!$AH$7:$AM$7,0)) -> 0.09629542937 | L10: =INDEX('8 LCI Data Compilation'!$AN$6:$AS$32,MATCH(D10,'8 LCI Data Compilation'!$C$6:$C$32,0),MATCH('4 SMM Input'!$E$3,'8 LCI Data Compilation'!$AN$7:$AS$7,0)) -> -0.9683838136
C11: 7 | D11: Mixed Paper | E11: =INDEX('8 LCI Data Compilation'!$D$6:$I$32,MATCH(D11,'8 LCI Data Compilation'!$C$6:$C$32,0),MATCH('4 SMM Input'!$E$3,'8 LCI Data Compilation'!$D$7:$I$7,0)) -> NA | F11: NA | G11: =INDEX('8 LCI Data Compilation'!$J$6:$O$32,MATCH(D11,'8 LCI Data Compilation'!$C$6:$C$32,0),MATCH('4 SMM Input'!$E$3,'8 LCI Data Compilation'!$J$7:$O$7,0)) -> 0.005652379465 | H11: =INDEX('8 LCI Data Compilation'!$P$6:$U$32,MATCH(D11,'8 LCI Data Compilation'!$C$6:$C$32,0),MATCH('4 SMM Input'!$E$3,'8 LCI Data Compilation'!$P$7:$U$7,0)) -> -0.0576662479 | I11: =INDEX('8 LCI Data Compilation'!$V$6:$AA$32,MATCH(D11,'8 LCI Data Compilation'!$C$6:$C$32,0),MATCH('4 SMM Input'!$E$3,'8 LCI Data Compilation'!$V$7:$AA$7,0)) -> NA | J11: =INDEX('8 LCI Data Compilation'!$AB$6:$AG$32,MATCH(D11,'8 LCI Data Compilation'!$C$6:$C$32,0),MATCH('4 SMM Input'!$E$3,'8 LCI Data Compilation'!$AB$7:$AG$7,0)) -> NA | K11: =INDEX('8 LCI Data Compilation'!$AH$6:$AM$32,MATCH(D11,'8 LCI Data Compilation'!$C$6:$C$32,0),MATCH('4 SMM Input'!$E$3,'8 LCI Data Compilation'!$AH$7:$AM$7,0)) -> -0.6216571274 | L11: =INDEX('8 LCI Data Compilation'!$AN$6:$AS$32,MATCH(D11,'8 LCI Data Compilation'!$C$6:$C$32,0),MATCH('4 SMM Input'!$E$3,'8 LCI Data Compilation'!$AN$7:$AS$7,0)) -> -1.032582224
B12: Plastic | C12: 8 | D12: HDPE | E12: =INDEX('8 LCI Data Compilation'!$D$6:$I$32,MATCH(D12,'8 LCI Data Compilation'!$C$6:$C$32,0),MATCH('4 SMM Input'!$E$3,'8 LCI Data Compilation'!$D$7:$I$7,0)) -> NA | F12: NA | G12: =INDEX('8 LCI Data Compilation'!$J$6:$O$32,MATCH(D12,'8 LCI Data Compilation'!$C$6:$C$32,0),MATCH('4 SMM Input'!$E$3,'8 LCI Data Compilation'!$J$7:$O$7,0)) -> 0.005652379465 | H12: =INDEX('8 LCI Data Compilation'!$P$6:$U$32,MATCH(D12,'8 LCI Data Compilation'!$C$6:$C$32,0),MATCH('4 SMM Input'!$E$3,'8 LCI Data Compilation'!$P$7:$U$7,0)) -> -1.139379909 | I12: =INDEX('8 LCI Data Compilation'!$V$6:$AA$32,MATCH(D12,'8 LCI Data Compilation'!$C$6:$C$32,0),MATCH('4 SMM Input'!$E$3,'8 LCI Data Compilation'!$V$7:$AA$7,0)) -> NA | J12: =INDEX('8 LCI Data Compilation'!$AB$6:$AG$32,MATCH(D12,'8 LCI Data Compilation'!$C$6:$C$32,0),MATCH('4 SMM Input'!$E$3,'8 LCI Data Compilation'!$AB$7:$AG$7,0)) -> NA | K12: =INDEX('8 LCI Data Compilation'!$AH$6:$AM$32,MATCH(D12,'8 LCI Data Compilation'!$C$6:$C$32,0),MATCH('4 SMM Input'!$E$3,'8 LCI Data Compilation'!$AH$7:$AM$7,0)) -> 0.003899451134 | L12: =INDEX('8 LCI Data Compilation'!$AN$6:$AS$32,MATCH(D12,'8 LCI Data Compilation'!$C$6:$C$32,0),MATCH('4 SMM Input'!$E$3,'8 LCI Data Compilation'!$AN$7:$AS$7,0)) -> 2.883498171
C13: 9 | D13: PET | E13: =INDEX('8 LCI Data Compilation'!$D$6:$I$32,MATCH(D13,'8 LCI Data Compilation'!$C$6:$C$32,0),MATCH('4 SMM Input'!$E$3,'8 LCI Data Compilation'!$D$7:$I$7,0)) -> NA | F13: NA | G13: =INDEX('8 LCI Data Compilation'!$J$6:$O$32,MATCH(D13,'8 LCI Data Compilation'!$C$6:$C$32,0),MATCH('4 SMM Input'!$E$3,'8 LCI Data Compilation'!$J$7:$O$7,0)) -> 0.005652379465 | H13: =INDEX('8 LCI Data Compilation'!$P$6:$U$32,MATCH(D13,'8 LCI Data Compilation'!$C$6:$C$32,0),MATCH('4 SMM Input'!$E$3,'8 LCI Data Compilation'!$P$7:$U$7,0)) -> -1.480740175 | I13: =INDEX('8 LCI Data Compilation'!$V$6:$AA$32,MATCH(D13,'8 LCI Data Compilation'!$C$6:$C$32,0),MATCH('4 SMM Input'!$E$3,'8 LCI Data Compilation'!$V$7:$AA$7,0)) -> NA | J13: =INDEX('8 LCI Data Compilation'!$AB$6:$AG$32,MATCH(D13,'8 LCI Data Compilation'!$C$6:$C$32,0),MATCH('4 SMM Input'!$E$3,'8 LCI Data Compilation'!$AB$7:$AG$7,0)) -> NA | K13: =INDEX('8 LCI Data Compilation'!$AH$6:$AM$32,MATCH(D13,'8 LCI Data Compilation'!$C$6:$C$32,0),MATCH('4 SMM Input'!$E$3,'8 LCI Data Compilation'!$AH$7:$AM$7,0)) -> 0.003899451134 | L13: =INDEX('8 LCI Data Compilation'!$AN$6:$AS$32,MATCH(D13,'8 LCI Data Compilation'!$C$6:$C$32,0),MATCH('4 SMM Input'!$E$3,'8 LCI Data Compilation'!$AN$7:$AS$7,0)) -> 1.30167999
C14: 10 | D14: Mixed Plastic | E14: =INDEX('8 LCI Data Compilation'!$D$6:$I$32,MATCH(D14,'8 LCI Data Compilation'!$C$6:$C$32,0),MATCH('4 SMM Input'!$E$3,'8 LCI Data Compilation'!$D$7:$I$7,0)) -> NA | F14: NA | G14: =INDEX('8 LCI Data Compilation'!$J$6:$O$32,MATCH(D14,'8 LCI Data Compilation'!$C$6:$C$32,0),MATCH('4 SMM Input'!$E$3,'8 LCI Data Compilation'!$J$7:$O$7,0)) -> 0.005652379465 | H14: =INDEX('8 LCI Data Compilation'!$P$6:$U$32,MATCH(D14,'8 LCI Data Compilation'!$C$6:$C$32,0),MATCH('4 SMM Input'!$E$3,'8 LCI Data Compilation'!$P$7:$U$7,0)) -> -1.310060042 | I14: =INDEX('8 LCI Data Compilation'!$V$6:$AA$32,MATCH(D14,'8 LCI Data Compilation'!$C$6:$C$32,0),MATCH('4 SMM Input'!$E$3,'8 LCI Data Compilation'!$V$7:$AA$7,0)) -> NA | J14: =INDEX('8 LCI Data Compilation'!$AB$6:$AG$32,MATCH(D14,'8 LCI Data Compilation'!$C$6:$C$32,0),MATCH('4 SMM Input'!$E$3,'8 LCI Data Compilation'!$AB$7:$AG$7,0)) -> NA | K14: =INDEX('8 LCI Data Compilation'!$AH$6:$AM$32,MATCH(D14,'8 LCI Data Compilation'!$C$6:$C$32,0),MATCH('4 SMM Input'!$E$3,'8 LCI Data Compilation'!$AH$7:$AM$7,0)) -> 0.003899451134 | L14: =INDEX('8 LCI Data Compilation'!$AN$6:$AS$32,MATCH(D14,'8 LCI Data Compilation'!$C$6:$C$32,0),MATCH('4 SMM Input'!$E$3,'8 LCI Data Compilation'!$AN$7:$AS$7,0)) -> 2.092589081
B15: Glass | C15: 11 | D15: Glass | E15: =INDEX('8 LCI Data Compilation'!$D$6:$I$32,MATCH(D15,'8 LCI Data Compilation'!$C$6:$C$32,0),MATCH('4 SMM Input'!$E$3,'8 LCI Data Compilation'!$D$7:$I$7,0)) -> NA | F15: NA | G15: =INDEX('8 LCI Data Compilation'!$J$6:$O$32,MATCH(D15,'8 LCI Data Compilation'!$C$6:$C$32,0),MATCH('4 SMM Input'!$E$3,'8 LCI Data Compilation'!$J$7:$O$7,0)) -> 0.005652379465 | H15: =INDEX('8 LCI Data Compilation'!$P$6:$U$32,MATCH(D15,'8 LCI Data Compilation'!$C$6:$C$32,0),MATCH('4 SMM Input'!$E$3,'8 LCI Data Compilation'!$P$7:$U$7,0)) -> -0.2997861475 | I15: =INDEX('8 LCI Data Compilation'!$V$6:$AA$32,MATCH(D15,'8 LCI Data Compilation'!$C$6:$C$32,0),MATCH('4 SMM Input'!$E$3,'8 LCI Data Compilation'!$V$7:$AA$7,0)) -> NA | J15: =INDEX('8 LCI Data Compilation'!$AB$6:$AG$32,MATCH(D15,'8 LCI Data Compilation'!$C$6:$C$32,0),MATCH('4 SMM Input'!$E$3,'8 LCI Data Compilation'!$AB$7:$AG$7,0)) -> NA | K15: =INDEX('8 LCI Data Compilation'!$AH$6:$AM$32,MATCH(D15,'8 LCI Data Compilation'!$C$6:$C$32,0),MATCH('4 SMM Input'!$E$3,'8 LCI Data Compilation'!$AH$7:$AM$7,0)) -> 0.003899451134 | L15: =INDEX('8 LCI Data Compilation'!$AN$6:$AS$32,MATCH(D15,'8 LCI Data Compilation'!$C$6:$C$32,0),MATCH('4 SMM Input'!$E$3,'8 LCI Data Compilation'!$AN$7:$AS$7,0)) -> 0.01352578963
B16: Metals | C16: 12 | D16: Aluminum Cans | E16: =INDEX('8 LCI Data Compilation'!$D$6:$I$32,MATCH(D16,'8 LCI Data Compilation'!$C$6:$C$32,0),MATCH('4 SMM Input'!$E$3,'8 LCI Data Compilation'!$D$7:$I$7,0)) -> NA | F16: NA | G16: =INDEX('8 LCI Data Compilation'!$J$6:$O$32,MATCH(D16,'8 LCI Data Compilation'!$C$6:$C$32,0),MATCH('4 SMM Input'!$E$3,'8 LCI Data Compilation'!$J$7:$O$7,0)) -> 0.005652379465 | H16: =INDEX('8 LCI Data Compilation'!$P$6:$U$32,MATCH(D16,'8 LCI Data Compilation'!$C$6:$C$32,0),MATCH('4 SMM Input'!$E$3,'8 LCI Data Compilation'!$P$7:$U$7,0)) -> -9.857138679 | I16: =INDEX('8 LCI Data Compilation'!$V$6:$AA$32,MATCH(D16,'8 LCI Data Compilation'!$C$6:$C$32,0),MATCH('4 SMM Input'!$E$3,'8 LCI Data Compilation'!$V$7:$AA$7,0)) -> NA | J16: =INDEX('8 LCI Data Compilation'!$AB$6:$AG$32,MATCH(D16,'8 LCI Data Compilation'!$C$6:$C$32,0),MATCH('4 SMM Input'!$E$3,'8 LCI Data Compilation'!$AB$7:$AG$7,0)) -> NA | K16: =INDEX('8 LCI Data Compilation'!$AH$6:$AM$32,MATCH(D16,'8 LCI Data Compilation'!$C$6:$C$32,0),MATCH('4 SMM Input'!$E$3,'8 LCI Data Compilation'!$AH$7:$AM$7,0)) -> 0.003899451134 | L16: =INDEX('8 LCI Data Compilation'!$AN$6:$AS$32,MATCH(D16,'8 LCI Data Compilation'!$C$6:$C$32,0),MATCH('4 SMM Input'!$E$3,'8 LCI Data Compilation'!$AN$7:$AS$7,0)) -> 0.0268694066
C17: 13 | D17: Steel/Tin Cans | E17: =INDEX('8 LCI Data Compilation'!$D$6:$I$32,MATCH(D17,'8 LCI Data Compilation'!$C$6:$C$32,0),MATCH('4 SMM Input'!$E$3,'8 LCI Data Compilation'!$D$7:$I$7,0)) -> NA | F17: NA | G17: =INDEX('8 LCI Data Compilation'!$J$6:$O$32,MATCH(D17,'8 LCI Data Compilation'!$C$6:$C$32,0),MATCH('4 SMM Input'!$E$3,'8 LCI Data Compilation'!$J$7:$O$7,0)) -> 0.005652379465 | H17: =INDEX('8 LCI Data Compilation'!$P$6:$U$32,MATCH(D17,'8 LCI Data Compilation'!$C$6:$C$32,0),MATCH('4 SMM Input'!$E$3,'8 LCI Data Compilation'!$P$7:$U$7,0)) -> -0.8521332812 | I17: =INDEX('8 LCI Data Compilation'!$V$6:$AA$32,MATCH(D17,'8 LCI Data Compilation'!$C$6:$C$32,0),MATCH('4 SMM Input'!$E$3,'8 LCI Data Compilation'!$V$7:$AA$7,0)) -> NA | J17: =INDEX('8 LCI Data Compilation'!$AB$6:$AG$32,MATCH(D17,'8 LCI Data Compilation'!$C$6:$C$32,0),MATCH('4 SMM Input'!$E$3,'8 LCI Data Compilation'!$AB$7:$AG$7,0)) -> NA | K17: =INDEX('8 LCI Data Compilation'!$AH$6:$AM$32,MATCH(D17,'8 LCI Data Compilation'!$C$6:$C$32,0),MATCH('4 SMM Input'!$E$3,'8 LCI Data Compilation'!$AH$7:$AM$7,0)) -> 0.003899451134 | L17: =INDEX('8 LCI Data Compilation'!$AN$6:$AS$32,MATCH(D17,'8 LCI Data Compilation'!$C$6:$C$32,0),MATCH('4 SMM Input'!$E$3,'8 LCI Data Compilation'!$AN$7:$AS$7,0)) -> -1.833930264
C18: 14 | D18: Mixed Metals | E18: =INDEX('8 LCI Data Compilation'!$D$6:$I$32,MATCH(D18,'8 LCI Data Compilation'!$C$6:$C$32,0),MATCH('4 SMM Input'!$E$3,'8 LCI Data Compilation'!$D$7:$I$7,0)) -> NA | F18: NA | G18: =INDEX('8 LCI Data Compilation'!$J$6:$O$32,MATCH(D18,'8 LCI Data Compilation'!$C$6:$C$32,0),MATCH('4 SMM Input'!$E$3,'8 LCI Data Compilation'!$J$7:$O$7,0)) -> 0.005652379465 | H18: =INDEX('8 LCI Data Compilation'!$P$6:$U$32,MATCH(D18,'8 LCI Data Compilation'!$C$6:$C$32,0),MATCH('4 SMM Input'!$E$3,'8 LCI Data Compilation'!$P$7:$U$7,0)) -> -5.350996838 | I18: =INDEX('8 LCI Data Compilation'!$V$6:$AA$32,MATCH(D18,'8 LCI Data Compilation'!$C$6:$C$32,0),MATCH('4 SMM Input'!$E$3,'8 LCI Data Compilation'!$V$7:$AA$7,0)) -> NA | J18: =INDEX('8 LCI Data Compilation'!$AB$6:$AG$32,MATCH(D18,'8 LCI Data Compilation'!$C$6:$C$32,0),MATCH('4 SMM Input'!$E$3,'8 LCI Data Compilation'!$AB$7:$AG$7,0)) -> NA | K18: =INDEX('8 LCI Data Compilation'!$AH$6:$AM$32,MATCH(D18,'8 LCI Data Compilation'!$C$6:$C$32,0),MATCH('4 SMM Input'!$E$3,'8 LCI Data Compilation'!$AH$7:$AM$7,0)) -> 0.003899451134 | L18: =INDEX('8 LCI Data Compilation'!$AN$6:$AS$32,MATCH(D18,'8 LCI Data Compilation'!$C$6:$C$32,0),MATCH('4 SMM Input'!$E$3,'8 LCI Data Compilation'!$AN$7:$AS$7,0)) -> -0.8795437922
B19: Organic | C19: 15 | D19: Yard Waste | E19: =INDEX('8 LCI Data Compilation'!$D$6:$I$32,MATCH(D19,'8 LCI Data Compilation'!$C$6:$C$32,0),MATCH('4 SMM Input'!$E$3,'8 LCI Data Compilation'!$D$7:$I$7,0)) -> NA | F19: NA | G19: =INDEX('8 LCI Data Compilation'!$J$6:$O$32,MATCH(D19,'8 LCI Data Compilation'!$C$6:$C$32,0),MATCH('4 SMM Input'!$E$3,'8 LCI Data Compilation'!$J$7:$O$7,0)) -> 0.005652379465 | H19: =INDEX('8 LCI Data Compilation'!$P$6:$U$32,MATCH(D19,'8 LCI Data Compilation'!$C$6:$C$32,0),MATCH('4 SMM Input'!$E$3,'8 LCI Data Compilation'!$P$7:$U$7,0)) -> NA | I19: =INDEX('8 LCI Data Compilation'!$V$6:$AA$32,MATCH(D19,'8 LCI Data Compilation'!$C$6:$C$32,0),MATCH('4 SMM Input'!$E$3,'8 LCI Data Compilation'!$V$7:$AA$7,0)) -> 0.0190436633 | J19: =INDEX('8 LCI Data Compilation'!$AB$6:$AG$32,MATCH(D19,'8 LCI Data Compilation'!$C$6:$C$32,0),MATCH('4 SMM Input'!$E$3,'8 LCI Data Compilation'!$AB$7:$AG$7,0)) -> NA | K19: =INDEX('8 LCI Data Compilation'!$AH$6:$AM$32,MATCH(D19,'8 LCI Data Compilation'!$C$6:$C$32,0),MATCH('4 SMM Input'!$E$3,'8 LCI Data Compilation'!$AH$7:$AM$7,0)) -> -0.2508678271 | L19: =INDEX('8 LCI Data Compilation'!$AN$6:$AS$32,MATCH(D19,'8 LCI Data Compilation'!$C$6:$C$32,0),MATCH('4 SMM Input'!$E$3,'8 LCI Data Compilation'!$AN$7:$AS$7,0)) -> -0.6062732419
C20: 16 | D20: Food Waste | E20: =INDEX('8 LCI Data Compilation'!$D$6:$I$32,MATCH(D20,'8 LCI Data Compilation'!$C$6:$C$32,0),MATCH('4 SMM Input'!$E$3,'8 LCI Data Compilation'!$D$7:$I$7,0)) -> NA | F20: =IFERROR(E20*-1,"NA") -> NA | G20: =INDEX('8 LCI Data Compilation'!$J$6:$O$32,MATCH(D20,'8 LCI Data Compilation'!$C$6:$C$32,0),MATCH('4 SMM Input'!$E$3,'8 LCI Data Compilation'!$J$7:$O$7,0)) -> 0.005652379465 | H20: =INDEX('8 LCI Data Compilation'!$P$6:$U$32,MATCH(D20,'8 LCI Data Compilation'!$C$6:$C$32,0),MATCH('4 SMM Input'!$E$3,'8 LCI Data Compilation'!$P$7:$U$7,0)) -> NA | I20: =INDEX('8 LCI Data Compilation'!$V$6:$AA$32,MATCH(D20,'8 LCI Data Compilation'!$C$6:$C$32,0),MATCH('4 SMM Input'!$E$3,'8 LCI Data Compilation'!$V$7:$AA$7,0)) -> 0.0188684117 | J20: =INDEX('8 LCI Data Compilation'!$AB$6:$AG$32,MATCH(D20,'8 LCI Data Compilation'!$C$6:$C$32,0),MATCH('4 SMM Input'!$E$3,'8 LCI Data Compilation'!$AB$7:$AG$7,0)) -> NA | K20: =INDEX('8 LCI Data Compilation'!$AH$6:$AM$32,MATCH(D20,'8 LCI Data Compilation'!$C$6:$C$32,0),MATCH('4 SMM Input'!$E$3,'8 LCI Data Compilation'!$AH$7:$AM$7,0)) -> 0.3926635174 | L20: =INDEX('8 LCI Data Compilation'!$AN$6:$AS$32,MATCH(D20,'8 LCI Data Compilation'!$C$6:$C$32,0),MATCH('4 SMM Input'!$E$3,'8 LCI Data Compilation'!$AN$7:$AS$7,0)) -> -0.2651543763
B21: Other | C21: 17 | D21: Tires | E21: =INDEX('8 LCI Data Compilation'!$D$6:$I$32,MATCH(D21,'8 LCI Data Compilation'!$C$6:$C$32,0),MATCH('4 SMM Input'!$E$3,'8 LCI Data Compilation'!$D$7:$I$7,0)) -> NA | F21: NA | G21: =INDEX('8 LCI Data Compilation'!$J$6:$O$32,MATCH(D21,'8 LCI Data Compilation'!$C$6:$C$32,0),MATCH('4 SMM Input'!$E$3,'8 LCI Data Compilation'!$J$7:$O$7,0)) -> NA | H21: =INDEX('8 LCI Data Compilation'!$P$6:$U$32,MATCH(D21,'8 LCI Data Compilation'!$C$6:$C$32,0),MATCH('4 SMM Input'!$E$3,'8 LCI Data Compilation'!$P$7:$U$7,0)) -> NA | I21: =INDEX('8 LCI Data Compilation'!$V$6:$AA$32,MATCH(D21,'8 LCI Data Compilation'!$C$6:$C$32,0),MATCH('4 SMM Input'!$E$3,'8 LCI Data Compilation'!$V$7:$AA$7,0)) -> NA | J21: =INDEX('8 LCI Data Compilation'!$AB$6:$AG$32,MATCH(D21,'8 LCI Data Compilation'!$C$6:$C$32,0),MATCH('4 SMM Input'!$E$3,'8 LCI Data Compilation'!$AB$7:$AG$7,0)) -> NA | K21: =INDEX('8 LCI Data Compilation'!$AH$6:$AM$32,MATCH(D21,'8 LCI Data Compilation'!$C$6:$C$32,0),MATCH('4 SMM Input'!$E$3,'8 LCI Data Compilation'!$AH$7:$AM$7,0)) -> NA | L21: =INDEX('8 LCI Data Compilation'!$AN$6:$AS$32,MATCH(D21,'8 LCI Data Compilation'!$C$6:$C$32,0),MATCH('4 SMM Input'!$E$3,'8 LCI Data Compilation'!$AN$7:$AS$7,0)) -> NA
C22: 18 | D22: Clothing and Footwear | E22: =INDEX('8 LCI Data Compilation'!$D$6:$I$32,MATCH(D22,'8 LCI Data Compilation'!$C$6:$C$32,0),MATCH('4 SMM Input'!$E$3,'8 LCI Data Compilation'!$D$7:$I$7,0)) -> NA | F22: =IFERROR(E22*-1,"NA") -> NA | G22: =INDEX('8 LCI Data Compilation'!$J$6:$O$32,MATCH(D22,'8 LCI Data Compilation'!$C$6:$C$32,0),MATCH('4 SMM Input'!$E$3,'8 LCI Data Compilation'!$J$7:$O$7,0)) -> NA | H22: =INDEX('8 LCI Data Compilation'!$P$6:$U$32,MATCH(D22,'8 LCI Data Compilation'!$C$6:$C$32,0),MATCH('4 SMM Input'!$E$3,'8 LCI Data Compilation'!$P$7:$U$7,0)) -> NA | I22: =INDEX('8 LCI Data Compilation'!$V$6:$AA$32,MATCH(D22,'8 LCI Data Compilation'!$C$6:$C$32,0),MATCH('4 SMM Input'!$E$3,'8 LCI Data Compilation'!$V$7:$AA$7,0)) -> NA | J22: =INDEX('8 LCI Data Compilation'!$AB$6:$AG$32,MATCH(D22,'8 LCI Data Compilation'!$C$6:$C$32,0),MATCH('4 SMM Input'!$E$3,'8 LCI Data Compilation'!$AB$7:$AG$7,0)) -> NA | K22: =INDEX('8 LCI Data Compilation'!$AH$6:$AM$32,MATCH(D22,'8 LCI Data Compilation'!$C$6:$C$32,0),MATCH('4 SMM Input'!$E$3,'8 LCI Data Compilation'!$AH$7:$AM$7,0)) -> NA | L22: =INDEX('8 LCI Data Compilation'!$AN$6:$AS$32,MATCH(D22,'8 LCI Data Compilation'!$C$6:$C$32,0),MATCH('4 SMM Input'!$E$3,'8 LCI Data Compilation'!$AN$7:$AS$7,0)) -> NA
C23: 19 | D23: Furniture | E23: =INDEX('8 LCI Data Compilation'!$D$6:$I$32,MATCH(D23,'8 LCI Data Compilation'!$C$6:$C$32,0),MATCH('4 SMM Input'!$E$3,'8 LCI Data Compilation'!$D$7:$I$7,0)) -> NA | F23: =IFERROR(E23*-1,"NA") -> NA | G23: =INDEX('8 LCI Data Compilation'!$J$6:$O$32,MATCH(D23,'8 LCI Data Compilation'!$C$6:$C$32,0),MATCH('4 SMM Input'!$E$3,'8 LCI Data Compilation'!$J$7:$O$7,0)) -> NA | H23: =INDEX('8 LCI Data Compilation'!$P$6:$U$32,MATCH(D23,'8 LCI Data Compilation'!$C$6:$C$32,0),MATCH('4 SMM Input'!$E$3,'8 LCI Data Compilation'!$P$7:$U$7,0)) -> NA | I23: =INDEX('8 LCI Data Compilation'!$V$6:$AA$32,MATCH(D23,'8 LCI Data Compilation'!$C$6:$C$32,0),MATCH('4 SMM Input'!$E$3,'8 LCI Data Compilation'!$V$7:$AA$7,0)) -> NA | J23: =INDEX('8 LCI Data Compilation'!$AB$6:$AG$32,MATCH(D23,'8 LCI Data Compilation'!$C$6:$C$32,0),MATCH('4 SMM Input'!$E$3,'8 LCI Data Compilation'!$AB$7:$AG$7,0)) -> NA | K23: =INDEX('8 LCI Data Compilation'!$AH$6:$AM$32,MATCH(D23,'8 LCI Data Compilation'!$C$6:$C$32,0),MATCH('4 SMM Input'!$E$3,'8 LCI Data Compilation'!$AH$7:$AM$7,0)) -> NA | L23: =INDEX('8 LCI Data Compilation'!$AN$6:$AS$32,MATCH(D23,'8 LCI Data Compilation'!$C$6:$C$32,0),MATCH('4 SMM Input'!$E$3,'8 LCI Data Compilation'!$AN$7:$AS$7,0)) -> NA
C24: 20 | D24: Electronics | E24: =INDEX('8 LCI Data Compilation'!$D$6:$I$32,MATCH(D24,'8 LCI Data Compilation'!$C$6:$C$32,0),MATCH('4 SMM Input'!$E$3,'8 LCI Data Compilation'!$D$7:$I$7,0)) -> NA | F24: =IFERROR(E24*-1,"NA") -> NA | G24: =INDEX('8 LCI Data Compilation'!$J$6:$O$32,MATCH(D24,'8 LCI Data Compilation'!$C$6:$C$32,0),MATCH('4 SMM Input'!$E$3,'8 LCI Data Compilation'!$J$7:$O$7,0)) -> NA | H24: =INDEX('8 LCI Data Compilation'!$P$6:$U$32,MATCH(D24,'8 LCI Data Compilation'!$C$6:$C$32,0),MATCH('4 SMM Input'!$E$3,'8 LCI Data Compilation'!$P$7:$U$7,0)) -> NA | I24: =INDEX('8 LCI Data Compilation'!$V$6:$AA$32,MATCH(D24,'8 LCI Data Compilation'!$C$6:$C$32,0),MATCH('4 SMM Input'!$E$3,'8 LCI Data Compilation'!$V$7:$AA$7,0)) -> NA | J24: =INDEX('8 LCI Data Compilation'!$AB$6:$AG$32,MATCH(D24,'8 LCI Data Compilation'!$C$6:$C$32,0),MATCH('4 SMM Input'!$E$3,'8 LCI Data Compilation'!$AB$7:$AG$7,0)) -> NA | K24: =INDEX('8 LCI Data Compilation'!$AH$6:$AM$32,MATCH(D24,'8 LCI Data Compilation'!$C$6:$C$32,0),MATCH('4 SMM Input'!$E$3,'8 LCI Data Compilation'!$AH$7:$AM$7,0)) -> NA | L24: =INDEX('8 LCI Data Compilation'!$AN$6:$AS$32,MATCH(D24,'8 LCI Data Compilation'!$C$6:$C$32,0),MATCH('4 SMM Input'!$E$3,'8 LCI Data Compilation'!$AN$7:$AS$7,0)) -> NA
B25: C&D Debris | C25: 21 | D25: Wood Products | E25: =INDEX('8 LCI Data Compilation'!$D$6:$I$32,MATCH(D25,'8 LCI Data Compilation'!$C$6:$C$32,0),MATCH('4 SMM Input'!$E$3,'8 LCI Data Compilation'!$D$7:$I$7,0)) -> NA | F25: NA | G25: =INDEX('8 LCI Data Compilation'!$J$6:$O$32,MATCH(D25,'8 LCI Data Compilation'!$C$6:$C$32,0),MATCH('4 SMM Input'!$E$3,'8 LCI Data Compilation'!$J$7:$O$7,0)) -> NA | H25: =INDEX('8 LCI Data Compilation'!$P$6:$U$32,MATCH(D25,'8 LCI Data Compilation'!$C$6:$C$32,0),MATCH('4 SMM Input'!$E$3,'8 LCI Data Compilation'!$P$7:$U$7,0)) -> NA | I25: =INDEX('8 LCI Data Compilation'!$V$6:$AA$32,MATCH(D25,'8 LCI Data Compilation'!$C$6:$C$32,0),MATCH('4 SMM Input'!$E$3,'8 LCI Data Compilation'!$V$7:$AA$7,0)) -> NA | J25: =INDEX('8 LCI Data Compilation'!$AB$6:$AG$32,MATCH(D25,'8 LCI Data Compilation'!$C$6:$C$32,0),MATCH('4 SMM Input'!$E$3,'8 LCI Data Compilation'!$AB$7:$AG$7,0)) -> NA | K25: =INDEX('8 LCI Data Compilation'!$AH$6:$AM$32,MATCH(D25,'8 LCI Data Compilation'!$C$6:$C$32,0),MATCH('4 SMM Input'!$E$3,'8 LCI Data Compilation'!$AH$7:$AM$7,0)) -> NA | L25: =INDEX('8 LCI Data Compilation'!$AN$6:$AS$32,MATCH(D25,'8 LCI Data Compilation'!$C$6:$C$32,0),MATCH('4 SMM Input'!$E$3,'8 LCI Data Compilation'!$AN$7:$AS$7,0)) -> NA
C26: 22 | D26: Asphalt Shingles | E26: =INDEX('8 LCI Data Compilation'!$D$6:$I$32,MATCH(D26,'8 LCI Data Compilation'!$C$6:$C$32,0),MATCH('4 SMM Input'!$E$3,'8 LCI Data Compilation'!$D$7:$I$7,0)) -> NA | F26: NA | G26: =INDEX('8 LCI Data Compilation'!$J$6:$O$32,MATCH(D26,'8 LCI Data Compilation'!$C$6:$C$32,0),MATCH('4 SMM Input'!$E$3,'8 LCI Data Compilation'!$J$7:$O$7,0)) -> NA | H26: =INDEX('8 LCI Data Compilation'!$P$6:$U$32,MATCH(D26,'8 LCI Data Compilation'!$C$6:$C$32,0),MATCH('4 SMM Input'!$E$3,'8 LCI Data Compilation'!$P$7:$U$7,0)) -> NA | I26: =INDEX('8 LCI Data Compilation'!$V$6:$AA$32,MATCH(D26,'8 LCI Data Compilation'!$C$6:$C$32,0),MATCH('4 SMM Input'!$E$3,'8 LCI Data Compilation'!$V$7:$AA$7,0)) -> NA | J26: =INDEX('8 LCI Data Compilation'!$AB$6:$AG$32,MATCH(D26,'8 LCI Data Compilation'!$C$6:$C$32,0),MATCH('4 SMM Input'!$E$3,'8 LCI Data Compilation'!$AB$7:$AG$7,0)) -> NA | K26: =INDEX('8 LCI Data Compilation'!$AH$6:$AM$32,MATCH(D26,'8 LCI Data Compilation'!$C$6:$C$32,0),MATCH('4 SMM Input'!$E$3,'8 LCI Data Compilation'!$AH$7:$AM$7,0)) -> NA | L26: =INDEX('8 LCI Data Compilation'!$AN$6:$AS$32,MATCH(D26,'8 LCI Data Compilation'!$C$6:$C$32,0),MATCH('4 SMM Input'!$E$3,'8 LCI Data Compilation'!$AN$7:$AS$7,0)) -> NA
C27: 23 | D27: Gypsum Drywall | E27: =INDEX('8 LCI Data Compilation'!$D$6:$I$32,MATCH(D27,'8 LCI Data Compilation'!$C$6:$C$32,0),MATCH('4 SMM Input'!$E$3,'8 LCI Data Compilation'!$D$7:$I$7,0)) -> NA | F27: NA | G27: =INDEX('8 LCI Data Compilation'!$J$6:$O$32,MATCH(D27,'8 LCI Data Compilation'!$C$6:$C$32,0),MATCH('4 SMM Input'!$E$3,'8 LCI Data Compilation'!$J$7:$O$7,0)) -> NA | H27: =INDEX('8 LCI Data Compilation'!$P$6:$U$32,MATCH(D27,'8 LCI Data Compilation'!$C$6:$C$32,0),MATCH('4 SMM Input'!$E$3,'8 LCI Data Compilation'!$P$7:$U$7,0)) -> NA | I27: =INDEX('8 LCI Data Compilation'!$V$6:$AA$32,MATCH(D27,'8 LCI Data Compilation'!$C$6:$C$32,0),MATCH('4 SMM Input'!$E$3,'8 LCI Data Compilation'!$V$7:$AA$7,0)) -> NA | J27: =INDEX('8 LCI Data Compilation'!$AB$6:$AG$32,MATCH(D27,'8 LCI Data Compilation'!$C$6:$C$32,0),MATCH('4 SMM Input'!$E$3,'8 LCI Data Compilation'!$AB$7:$AG$7,0)) -> NA | K27: =INDEX('8 LCI Data Compilation'!$AH$6:$AM$32,MATCH(D27,'8 LCI Data Compilation'!$C$6:$C$32,0),MATCH('4 SMM Input'!$E$3,'8 LCI Data Compilation'!$AH$7:$AM$7,0)) -> NA | L27: =INDEX('8 LCI Data Compilation'!$AN$6:$AS$32,MATCH(D27,'8 LCI Data Compilation'!$C$6:$C$32,0),MATCH('4 SMM Input'!$E$3,'8 LCI Data Compilation'!$AN$7:$AS$7,0)) -> NA
C28: 24 | D28: Concrete | E28: =INDEX('8 LCI Data Compilation'!$D$6:$I$32,MATCH(D28,'8 LCI Data Compilation'!$C$6:$C$32,0),MATCH('4 SMM Input'!$E$3,'8 LCI Data Compilation'!$D$7:$I$7,0)) -> NA | F28: NA | G28: =INDEX('8 LCI Data Compilation'!$J$6:$O$32,MATCH(D28,'8 LCI Data Compilation'!$C$6:$C$32,0),MATCH('4 SMM Input'!$E$3,'8 LCI Data Compilation'!$J$7:$O$7,0)) -> NA | H28: =INDEX('8 LCI Data Compilation'!$P$6:$U$32,MATCH(D28,'8 LCI Data Compilation'!$C$6:$C$32,0),MATCH('4 SMM Input'!$E$3,'8 LCI Data Compilation'!$P$7:$U$7,0)) -> NA | I28: =INDEX('8 LCI Data Compilation'!$V$6:$AA$32,MATCH(D28,'8 LCI Data Compilation'!$C$6:$C$32,0),MATCH('4 SMM Input'!$E$3,'8 LCI Data Compilation'!$V$7:$AA$7,0)) -> NA | J28: =INDEX('8 LCI Data Compilation'!$AB$6:$AG$32,MATCH(D28,'8 LCI Data Compilation'!$C$6:$C$32,0),MATCH('4 SMM Input'!$E$3,'8 LCI Data Compilation'!$AB$7:$AG$7,0)) -> NA | K28: =INDEX('8 LCI Data Compilation'!$AH$6:$AM$32,MATCH(D28,'8 LCI Data Compilation'!$C$6:$C$32,0),MATCH('4 SMM Input'!$E$3,'8 LCI Data Compilation'!$AH$7:$AM$7,0)) -> NA | L28: =INDEX('8 LCI Data Compilation'!$AN$6:$AS$32,MATCH(D28,'8 LCI Data Compilation'!$C$6:$C$32,0),MATCH('4 SMM Input'!$E$3,'8 LCI Data Compilation'!$AN$7:$AS$7,0)) -> NA
C29: 25 | D29: Reclaimed Asphalt Pavement | E29: =INDEX('8 LCI Data Compilation'!$D$6:$I$32,MATCH(D29,'8 LCI Data Compilation'!$C$6:$C$32,0),MATCH('4 SMM Input'!$E$3,'8 LCI Data Compilation'!$D$7:$I$7,0)) -> NA | F29: NA | G29: =INDEX('8 LCI Data Compilation'!$J$6:$O$32,MATCH(D29,'8 LCI Data Compilation'!$C$6:$C$32,0),MATCH('4 SMM Input'!$E$3,'8 LCI Data Compilation'!$J$7:$O$7,0)) -> NA | H29: =INDEX('8 LCI Data Compilation'!$P$6:$U$32,MATCH(D29,'8 LCI Data Compilation'!$C$6:$C$32,0),MATCH('4 SMM Input'!$E$3,'8 LCI Data Compilation'!$P$7:$U$7,0)) -> NA | I29: =INDEX('8 LCI Data Compilation'!$V$6:$AA$32,MATCH(D29,'8 LCI Data Compilation'!$C$6:$C$32,0),MATCH('4 SMM Input'!$E$3,'8 LCI Data Compilation'!$V$7:$AA$7,0)) -> NA | J29: =INDEX('8 LCI Data Compilation'!$AB$6:$AG$32,MATCH(D29,'8 LCI Data Compilation'!$C$6:$C$32,0),MATCH('4 SMM Input'!$E$3,'8 LCI Data Compilation'!$AB$7:$AG$7,0)) -> NA | K29: =INDEX('8 LCI Data Compilation'!$AH$6:$AM$32,MATCH(D29,'8 LCI Data Compilation'!$C$6:$C$32,0),MATCH('4 SMM Input'!$E$3,'8 LCI Data Compilation'!$AH$7:$AM$7,0)) -> NA | L29: =INDEX('8 LCI Data Compilation'!$AN$6:$AS$32,MATCH(D29,'8 LCI Data Compilation'!$C$6:$C$32,0),MATCH('4 SMM Input'!$E$3,'8 LCI Data Compilation'!$AN$7:$AS$7,0)) -> NA
B32: All Units (MJ/ Short Ton)
B33: ='5 SMM Results'!B36:M36 -> Energy Use (MJ): Energy is consumed by different processes, the units are expressed as MJ. This is a measure of the direct and indirect energy use throughout the life cycle and can include both renewable and non-renewable energy source.
B34: Material Category | C34: Item No. | D34: Material Type | E34: Produced | F34: Donated | G34: Collection | H34: Recycling | I34: Composting | J34: Anaerobic Digestion | K34: Landfill | L34: Combustion
B35: MSW | C35: 1 | D35: Mixed MSW | E35: =INDEX('8 LCI Data Compilation'!$D$36:$I$62,MATCH(D35,'8 LCI Data Compilation'!$C$36:$C$62,0),MATCH('4 SMM Input'!$E$3,'8 LCI Data Compilation'!$D$37:$I$37,0)) -> NA | F35: NA | G35: =INDEX('8 LCI Data Compilation'!$J$36:$O$62,MATCH(D35,'8 LCI Data Compilation'!$C$36:$C$62,0),MATCH('4 SMM Input'!$E$3,'8 LCI Data Compilation'!$J$37:$O$37,0)) -> 321.3124642 | H35: =INDEX('8 LCI Data Compilation'!$P$36:$U$62,MATCH(D35,'8 LCI Data Compilation'!$C$36:$C$62,0),MATCH('4 SMM Input'!$E$3,'8 LCI Data Compilation'!$P$37:$U$37,0)) -> NA | I35: =INDEX('8 LCI Data Compilation'!$V$36:$AA$62,MATCH(D35,'8 LCI Data Compilation'!$C$36:$C$62,0),MATCH('4 SMM Input'!$E$3,'8 LCI Data Compilation'!$V$37:$AA$37,0)) -> NA | J35: =INDEX('8 LCI Data Compilation'!$AB$36:$AG$62,MATCH(D35,'8 LCI Data Compilation'!$C$36:$C$62,0),MATCH('4 SMM Input'!$E$3,'8 LCI Data Compilation'!$AB$37:$AG$37,0)) -> NA | K35: =INDEX('8 LCI Data Compilation'!$AH$36:$AM$62,MATCH(D35,'8 LCI Data Compilation'!$C$36:$C$62,0),MATCH('4 SMM Input'!$E$3,'8 LCI Data Compilation'!$AH$37:$AM$37,0)) -> -1177.346417 | L35: =INDEX('8 LCI Data Compilation'!$AN$36:$AS$62,MATCH(D35,'8 LCI Data Compilation'!$C$36:$C$62,0),MATCH('4 SMM Input'!$E$3,'8 LCI Data Compilation'!$AN$37:$AS$37,0)) -> -2076.10377
B36: Paper | C36: 2 | D36: Newspaper | E36: =INDEX('8 LCI Data Compilation'!$D$36:$I$62,MATCH(D36,'8 LCI Data Compilation'!$C$36:$C$62,0),MATCH('4 SMM Input'!$E$3,'8 LCI Data Compilation'!$D$37:$I$37,0)) -> NA | F36: NA | G36: =INDEX('8 LCI Data Compilation'!$J$36:$O$62,MATCH(D36,'8 LCI Data Compilation'!$C$36:$C$62,0),MATCH('4 SMM Input'!$E$3,'8 LCI Data Compilation'!$J$37:$O$37,0)) -> 321.3124642 | H36: =INDEX('8 LCI Data Compilation'!$P$36:$U$62,MATCH(D36,'8 LCI Data Compilation'!$C$36:$C$62,0),MATCH('4 SMM Input'!$E$3,'8 LCI Data Compilation'!$P$37:$U$37,0)) -> -17820.02098 | I36: =INDEX('8 LCI Data Compilation'!$V$36:$AA$62,MATCH(D36,'8 LCI Data Compilation'!$C$36:$C$62,0),MATCH('4 SMM Input'!$E$3,'8 LCI Data Compilation'!$V$37:$AA$37,0)) -> NA | J36: =INDEX('8 LCI Data Compilation'!$AB$36:$AG$62,MATCH(D36,'8 LCI Data Compilation'!$C$36:$C$62,0),MATCH('4 SMM Input'!$E$3,'8 LCI Data Compilation'!$AB$37:$AG$37,0)) -> NA | K36: =INDEX('8 LCI Data Compilation'!$AH$36:$AM$62,MATCH(D36,'8 LCI Data Compilation'!$C$36:$C$62,0),MATCH('4 SMM Input'!$E$3,'8 LCI Data Compilation'!$AH$37:$AM$37,0)) -> -25.41725463 | L36: =INDEX('8 LCI Data Compilation'!$AN$36:$AS$62,MATCH(D36,'8 LCI Data Compilation'!$C$36:$C$62,0),MATCH('4 SMM Input'!$E$3,'8 LCI Data Compilation'!$AN$37:$AS$37,0)) -> -8986.707794
C37: 3 | D37: Corrugated Cardboard (OCC) | E37: =INDEX('8 LCI Data Compilation'!$D$36:$I$62,MATCH(D37,'8 LCI Data Compilation'!$C$36:$C$62,0),MATCH('4 SMM Input'!$E$3,'8 LCI Data Compilation'!$D$37:$I$37,0)) -> NA | F37: NA | G37: =INDEX('8 LCI Data Compilation'!$J$36:$O$62,MATCH(D37,'8 LCI Data Compilation'!$C$36:$C$62,0),MATCH('4 SMM Input'!$E$3,'8 LCI Data Compilation'!$J$37:$O$37,0)) -> 321.3124642 | H37: =INDEX('8 LCI Data Compilation'!$P$36:$U$62,MATCH(D37,'8 LCI Data Compilation'!$C$36:$C$62,0),MATCH('4 SMM Input'!$E$3,'8 LCI Data Compilation'!$P$37:$U$37,0)) -> -13171.0535 | I37: =INDEX('8 LCI Data Compilation'!$V$36:$AA$62,MATCH(D37,'8 LCI Data Compilation'!$C$36:$C$62,0),MATCH('4 SMM Input'!$E$3,'8 LCI Data Compilation'!$V$37:$AA$37,0)) -> NA | J37: =INDEX('8 LCI Data Compilation'!$AB$36:$AG$62,MATCH(D37,'8 LCI Data Compilation'!$C$36:$C$62,0),MATCH('4 SMM Input'!$E$3,'8 LCI Data Compilation'!$AB$37:$AG$37,0)) -> NA | K37: =INDEX('8 LCI Data Compilation'!$AH$36:$AM$62,MATCH(D37,'8 LCI Data Compilation'!$C$36:$C$62,0),MATCH('4 SMM Input'!$E$3,'8 LCI Data Compilation'!$AH$37:$AM$37,0)) -> -1064.647269 | L37: =INDEX('8 LCI Data Compilation'!$AN$36:$AS$62,MATCH(D37,'8 LCI Data Compilation'!$C$36:$C$62,0),MATCH('4 SMM Input'!$E$3,'8 LCI Data Compilation'!$AN$37:$AS$37,0)) -> -8198.521144
C38: 4 | D38: High Grade Paper (Office Type Paper) | E38: =INDEX('8 LCI Data Compilation'!$D$36:$I$62,MATCH(D38,'8 LCI Data Compilation'!$C$36:$C$62,0),MATCH('4 SMM Input'!$E$3,'8 LCI Data Compilation'!$D$37:$I$37,0)) -> NA | F38: NA | G38: =INDEX('8 LCI Data Compilation'!$J$36:$O$62,MATCH(D38,'8 LCI Data Compilation'!$C$36:$C$62,0),MATCH('4 SMM Input'!$E$3,'8 LCI Data Compilation'!$J$37:$O$37,0)) -> 321.3124642 | H38: =INDEX('8 LCI Data Compilation'!$P$36:$U$62,MATCH(D38,'8 LCI Data Compilation'!$C$36:$C$62,0),MATCH('4 SMM Input'!$E$3,'8 LCI Data Compilation'!$P$37:$U$37,0)) -> -11257.44595 | I38: =INDEX('8 LCI Data Compilation'!$V$36:$AA$62,MATCH(D38,'8 LCI Data Compilation'!$C$36:$C$62,0),MATCH('4 SMM Input'!$E$3,'8 LCI Data Compilation'!$V$37:$AA$37,0)) -> NA | J38: =INDEX('8 LCI Data Compilation'!$AB$36:$AG$62,MATCH(D38,'8 LCI Data Compilation'!$C$36:$C$62,0),MATCH('4 SMM Input'!$E$3,'8 LCI Data Compilation'!$AB$37:$AG$37,0)) -> NA | K38: =INDEX('8 LCI Data Compilation'!$AH$36:$AM$62,MATCH(D38,'8 LCI Data Compilation'!$C$36:$C$62,0),MATCH('4 SMM Input'!$E$3,'8 LCI Data Compilation'!$AH$37:$AM$37,0)) -> -1640.13228 | L38: =INDEX('8 LCI Data Compilation'!$AN$36:$AS$62,MATCH(D38,'8 LCI Data Compilation'!$C$36:$C$62,0),MATCH('4 SMM Input'!$E$3,'8 LCI Data Compilation'!$AN$37:$AS$37,0)) -> -7498.793487
C39: 5 | D39: Magazines/third-class mail | E39: =INDEX('8 LCI Data Compilation'!$D$36:$I$62,MATCH(D39,'8 LCI Data Compilation'!$C$36:$C$62,0),MATCH('4 SMM Input'!$E$3,'8 LCI Data Compilation'!$D$37:$I$37,0)) -> NA | F39: NA | G39: =INDEX('8 LCI Data Compilation'!$J$36:$O$62,MATCH(D39,'8 LCI Data Compilation'!$C$36:$C$62,0),MATCH('4 SMM Input'!$E$3,'8 LCI Data Compilation'!$J$37:$O$37,0)) -> 321.3124642 | H39: =INDEX('8 LCI Data Compilation'!$P$36:$U$62,MATCH(D39,'8 LCI Data Compilation'!$C$36:$C$62,0),MATCH('4 SMM Input'!$E$3,'8 LCI Data Compilation'!$P$37:$U$37,0)) -> -282.9894254 | I39: =INDEX('8 LCI Data Compilation'!$V$36:$AA$62,MATCH(D39,'8 LCI Data Compilation'!$C$36:$C$62,0),MATCH('4 SMM Input'!$E$3,'8 LCI Data Compilation'!$V$37:$AA$37,0)) -> NA | J39: =INDEX('8 LCI Data Compilation'!$AB$36:$AG$62,MATCH(D39,'8 LCI Data Compilation'!$C$36:$C$62,0),MATCH('4 SMM Input'!$E$3,'8 LCI Data Compilation'!$AB$37:$AG$37,0)) -> NA | K39: =INDEX('8 LCI Data Compilation'!$AH$36:$AM$62,MATCH(D39,'8 LCI Data Compilation'!$C$36:$C$62,0),MATCH('4 SMM Input'!$E$3,'8 LCI Data Compilation'!$AH$37:$AM$37,0)) -> -274.4583929 | L39: =INDEX('8 LCI Data Compilation'!$AN$36:$AS$62,MATCH(D39,'8 LCI Data Compilation'!$C$36:$C$62,0),MATCH('4 SMM Input'!$E$3,'8 LCI Data Compilation'!$AN$37:$AS$37,0)) -> -6787.495217
C40: 6 | D40: Books | E40: =INDEX('8 LCI Data Compilation'!$D$36:$I$62,MATCH(D40,'8 LCI Data Compilation'!$C$36:$C$62,0),MATCH('4 SMM Input'!$E$3,'8 LCI Data Compilation'!$D$37:$I$37,0)) -> NA | F40: NA | G40: =INDEX('8 LCI Data Compilation'!$J$36:$O$62,MATCH(D40,'8 LCI Data Compilation'!$C$36:$C$62,0),MATCH('4 SMM Input'!$E$3,'8 LCI Data Compilation'!$J$37:$O$37,0)) -> 321.3124642 | H40: =INDEX('8 LCI Data Compilation'!$P$36:$U$62,MATCH(D40,'8 LCI Data Compilation'!$C$36:$C$62,0),MATCH('4 SMM Input'!$E$3,'8 LCI Data Compilation'!$P$37:$U$37,0)) -> NA | I40: =INDEX('8 LCI Data Compilation'!$V$36:$AA$62,MATCH(D40,'8 LCI Data Compilation'!$C$36:$C$62,0),MATCH('4 SMM Input'!$E$3,'8 LCI Data Compilation'!$V$37:$AA$37,0)) -> NA | J40: =INDEX('8 LCI Data Compilation'!$AB$36:$AG$62,MATCH(D40,'8 LCI Data Compilation'!$C$36:$C$62,0),MATCH('4 SMM Input'!$E$3,'8 LCI Data Compilation'!$AB$37:$AG$37,0)) -> NA | K40: =INDEX('8 LCI Data Compilation'!$AH$36:$AM$62,MATCH(D40,'8 LCI Data Compilation'!$C$36:$C$62,0),MATCH('4 SMM Input'!$E$3,'8 LCI Data Compilation'!$AH$37:$AM$37,0)) -> -25.3098098 | L40: =INDEX('8 LCI Data Compilation'!$AN$36:$AS$62,MATCH(D40,'8 LCI Data Compilation'!$C$36:$C$62,0),MATCH('4 SMM Input'!$E$3,'8 LCI Data Compilation'!$AN$37:$AS$37,0)) -> -7378.464747
C41: 7 | D41: Mixed Paper | E41: =INDEX('8 LCI Data Compilation'!$D$36:$I$62,MATCH(D41,'8 LCI Data Compilation'!$C$36:$C$62,0),MATCH('4 SMM Input'!$E$3,'8 LCI Data Compilation'!$D$37:$I$37,0)) -> NA | F41: NA | G41: =INDEX('8 LCI Data Compilation'!$J$36:$O$62,MATCH(D41,'8 LCI Data Compilation'!$C$36:$C$62,0),MATCH('4 SMM Input'!$E$3,'8 LCI Data Compilation'!$J$37:$O$37,0)) -> 321.3124642 | H41: =INDEX('8 LCI Data Compilation'!$P$36:$U$62,MATCH(D41,'8 LCI Data Compilation'!$C$36:$C$62,0),MATCH('4 SMM Input'!$E$3,'8 LCI Data Compilation'!$P$37:$U$37,0)) -> -10632.87746 | I41: =INDEX('8 LCI Data Compilation'!$V$36:$AA$62,MATCH(D41,'8 LCI Data Compilation'!$C$36:$C$62,0),MATCH('4 SMM Input'!$E$3,'8 LCI Data Compilation'!$V$37:$AA$37,0)) -> NA | J41: =INDEX('8 LCI Data Compilation'!$AB$36:$AG$62,MATCH(D41,'8 LCI Data Compilation'!$C$36:$C$62,0),MATCH('4 SMM Input'!$E$3,'8 LCI Data Compilation'!$AB$37:$AG$37,0)) -> NA | K41: =INDEX('8 LCI Data Compilation'!$AH$36:$AM$62,MATCH(D41,'8 LCI Data Compilation'!$C$36:$C$62,0),MATCH('4 SMM Input'!$E$3,'8 LCI Data Compilation'!$AH$37:$AM$37,0)) -> -751.1637993 | L41: =INDEX('8 LCI Data Compilation'!$AN$36:$AS$62,MATCH(D41,'8 LCI Data Compilation'!$C$36:$C$62,0),MATCH('4 SMM Input'!$E$3,'8 LCI Data Compilation'!$AN$37:$AS$37,0)) -> -7867.87941
B42: Plastic | C42: 8 | D42: HDPE | E42: =INDEX('8 LCI Data Compilation'!$D$36:$I$62,MATCH(D42,'8 LCI Data Compilation'!$C$36:$C$62,0),MATCH('4 SMM Input'!$E$3,'8 LCI Data Compilation'!$D$37:$I$37,0)) -> NA | F42: NA | G42: =INDEX('8 LCI Data Compilation'!$J$36:$O$62,MATCH(D42,'8 LCI Data Compilation'!$C$36:$C$62,0),MATCH('4 SMM Input'!$E$3,'8 LCI Data Compilation'!$J$37:$O$37,0)) -> 321.3124642 | H42: =INDEX('8 LCI Data Compilation'!$P$36:$U$62,MATCH(D42,'8 LCI Data Compilation'!$C$36:$C$62,0),MATCH('4 SMM Input'!$E$3,'8 LCI Data Compilation'!$P$37:$U$37,0)) -> -20396.50566 | I42: =INDEX('8 LCI Data Compilation'!$V$36:$AA$62,MATCH(D42,'8 LCI Data Compilation'!$C$36:$C$62,0),MATCH('4 SMM Input'!$E$3,'8 LCI Data Compilation'!$V$37:$AA$37,0)) -> NA | J42: =INDEX('8 LCI Data Compilation'!$AB$36:$AG$62,MATCH(D42,'8 LCI Data Compilation'!$C$36:$C$62,0),MATCH('4 SMM Input'!$E$3,'8 LCI Data Compilation'!$AB$37:$AG$37,0)) -> NA | K42: =INDEX('8 LCI Data Compilation'!$AH$36:$AM$62,MATCH(D42,'8 LCI Data Compilation'!$C$36:$C$62,0),MATCH('4 SMM Input'!$E$3,'8 LCI Data Compilation'!$AH$37:$AM$37,0)) -> 551.5064684 | L42: =INDEX('8 LCI Data Compilation'!$AN$36:$AS$62,MATCH(D42,'8 LCI Data Compilation'!$C$36:$C$62,0),MATCH('4 SMM Input'!$E$3,'8 LCI Data Compilation'!$AN$37:$AS$37,0)) -> -22515.88373
C43: 9 | D43: PET | E43: =INDEX('8 LCI Data Compilation'!$D$36:$I$62,MATCH(D43,'8 LCI Data Compilation'!$C$36:$C$62,0),MATCH('4 SMM Input'!$E$3,'8 LCI Data Compilation'!$D$37:$I$37,0)) -> NA | F43: NA | G43: =INDEX('8 LCI Data Compilation'!$J$36:$O$62,MATCH(D43,'8 LCI Data Compilation'!$C$36:$C$62,0),MATCH('4 SMM Input'!$E$3,'8 LCI Data Compilation'!$J$37:$O$37,0)) -> 321.3124642 | H43: =INDEX('8 LCI Data Compilation'!$P$36:$U$62,MATCH(D43,'8 LCI Data Compilation'!$C$36:$C$62,0),MATCH('4 SMM Input'!$E$3,'8 LCI Data Compilation'!$P$37:$U$37,0)) -> -24098.24144 | I43: =INDEX('8 LCI Data Compilation'!$V$36:$AA$62,MATCH(D43,'8 LCI Data Compilation'!$C$36:$C$62,0),MATCH('4 SMM Input'!$E$3,'8 LCI Data Compilation'!$V$37:$AA$37,0)) -> NA | J43: =INDEX('8 LCI Data Compilation'!$AB$36:$AG$62,MATCH(D43,'8 LCI Data Compilation'!$C$36:$C$62,0),MATCH('4 SMM Input'!$E$3,'8 LCI Data Compilation'!$AB$37:$AG$37,0)) -> NA | K43: =INDEX('8 LCI Data Compilation'!$AH$36:$AM$62,MATCH(D43,'8 LCI Data Compilation'!$C$36:$C$62,0),MATCH('4 SMM Input'!$E$3,'8 LCI Data Compilation'!$AH$37:$AM$37,0)) -> 551.5064684 | L43: =INDEX('8 LCI Data Compilation'!$AN$36:$AS$62,MATCH(D43,'8 LCI Data Compilation'!$C$36:$C$62,0),MATCH('4 SMM Input'!$E$3,'8 LCI Data Compilation'!$AN$37:$AS$37,0)) -> -22515.88373
C44: 10 | D44: Mixed Plastic | E44: =INDEX('8 LCI Data Compilation'!$D$36:$I$62,MATCH(D44,'8 LCI Data Compilation'!$C$36:$C$62,0),MATCH('4 SMM Input'!$E$3,'8 LCI Data Compilation'!$D$37:$I$37,0)) -> NA | F44: NA | G44: =INDEX('8 LCI Data Compilation'!$J$36:$O$62,MATCH(D44,'8 LCI Data Compilation'!$C$36:$C$62,0),MATCH('4 SMM Input'!$E$3,'8 LCI Data Compilation'!$J$37:$O$37,0)) -> 321.3124642 | H44: =INDEX('8 LCI Data Compilation'!$P$36:$U$62,MATCH(D44,'8 LCI Data Compilation'!$C$36:$C$62,0),MATCH('4 SMM Input'!$E$3,'8 LCI Data Compilation'!$P$37:$U$37,0)) -> -22247.37355 | I44: =INDEX('8 LCI Data Compilation'!$V$36:$AA$62,MATCH(D44,'8 LCI Data Compilation'!$C$36:$C$62,0),MATCH('4 SMM Input'!$E$3,'8 LCI Data Compilation'!$V$37:$AA$37,0)) -> NA | J44: =INDEX('8 LCI Data Compilation'!$AB$36:$AG$62,MATCH(D44,'8 LCI Data Compilation'!$C$36:$C$62,0),MATCH('4 SMM Input'!$E$3,'8 LCI Data Compilation'!$AB$37:$AG$37,0)) -> NA | K44: =INDEX('8 LCI Data Compilation'!$AH$36:$AM$62,MATCH(D44,'8 LCI Data Compilation'!$C$36:$C$62,0),MATCH('4 SMM Input'!$E$3,'8 LCI Data Compilation'!$AH$37:$AM$37,0)) -> 551.5064684 | L44: =INDEX('8 LCI Data Compilation'!$AN$36:$AS$62,MATCH(D44,'8 LCI Data Compilation'!$C$36:$C$62,0),MATCH('4 SMM Input'!$E$3,'8 LCI Data Compilation'!$AN$37:$AS$37,0)) -> -22515.88373
B45: Glass | C45: 11 | D45: Glass | E45: =INDEX('8 LCI Data Compilation'!$D$36:$I$62,MATCH(D45,'8 LCI Data Compilation'!$C$36:$C$62,0),MATCH('4 SMM Input'!$E$3,'8 LCI Data Compilation'!$D$37:$I$37,0)) -> NA | F45: NA | G45: =INDEX('8 LCI Data Compilation'!$J$36:$O$62,MATCH(D45,'8 LCI Data Compilation'!$C$36:$C$62,0),MATCH('4 SMM Input'!$E$3,'8 LCI Data Compilation'!$J$37:$O$37,0)) -> 321.3124642 | H45: =INDEX('8 LCI Data Compilation'!$P$36:$U$62,MATCH(D45,'8 LCI Data Compilation'!$C$36:$C$62,0),MATCH('4 SMM Input'!$E$3,'8 LCI Data Compilation'!$P$37:$U$37,0)) -> -2018.64517 | I45: =INDEX('8 LCI Data Compilation'!$V$36:$AA$62,MATCH(D45,'8 LCI Data Compilation'!$C$36:$C$62,0),MATCH('4 SMM Input'!$E$3,'8 LCI Data Compilation'!$V$37:$AA$37,0)) -> NA | J45: =INDEX('8 LCI Data Compilation'!$AB$36:$AG$62,MATCH(D45,'8 LCI Data Compilation'!$C$36:$C$62,0),MATCH('4 SMM Input'!$E$3,'8 LCI Data Compilation'!$AB$37:$AG$37,0)) -> NA | K45: =INDEX('8 LCI Data Compilation'!$AH$36:$AM$62,MATCH(D45,'8 LCI Data Compilation'!$C$36:$C$62,0),MATCH('4 SMM Input'!$E$3,'8 LCI Data Compilation'!$AH$37:$AM$37,0)) -> 551.5064684 | L45: =INDEX('8 LCI Data Compilation'!$AN$36:$AS$62,MATCH(D45,'8 LCI Data Compilation'!$C$36:$C$62,0),MATCH('4 SMM Input'!$E$3,'8 LCI Data Compilation'!$AN$37:$AS$37,0)) -> 76.86632505
B46: Metals | C46: 12 | D46: Aluminum Cans | E46: =INDEX('8 LCI Data Compilation'!$D$36:$I$62,MATCH(D46,'8 LCI Data Compilation'!$C$36:$C$62,0),MATCH('4 SMM Input'!$E$3,'8 LCI Data Compilation'!$D$37:$I$37,0)) -> NA | F46: NA | G46: =INDEX('8 LCI Data Compilation'!$J$36:$O$62,MATCH(D46,'8 LCI Data Compilation'!$C$36:$C$62,0),MATCH('4 SMM Input'!$E$3,'8 LCI Data Compilation'!$J$37:$O$37,0)) -> 321.3124642 | H46: =INDEX('8 LCI Data Compilation'!$P$36:$U$62,MATCH(D46,'8 LCI Data Compilation'!$C$36:$C$62,0),MATCH('4 SMM Input'!$E$3,'8 LCI Data Compilation'!$P$37:$U$37,0)) -> -212962.8111 | I46: =INDEX('8 LCI Data Compilation'!$V$36:$AA$62,MATCH(D46,'8 LCI Data Compilation'!$C$36:$C$62,0),MATCH('4 SMM Input'!$E$3,'8 LCI Data Compilation'!$V$37:$AA$37,0)) -> NA | J46: =INDEX('8 LCI Data Compilation'!$AB$36:$AG$62,MATCH(D46,'8 LCI Data Compilation'!$C$36:$C$62,0),MATCH('4 SMM Input'!$E$3,'8 LCI Data Compilation'!$AB$37:$AG$37,0)) -> NA | K46: =INDEX('8 LCI Data Compilation'!$AH$36:$AM$62,MATCH(D46,'8 LCI Data Compilation'!$C$36:$C$62,0),MATCH('4 SMM Input'!$E$3,'8 LCI Data Compilation'!$AH$37:$AM$37,0)) -> 551.5064684 | L46: =INDEX('8 LCI Data Compilation'!$AN$36:$AS$62,MATCH(D46,'8 LCI Data Compilation'!$C$36:$C$62,0),MATCH('4 SMM Input'!$E$3,'8 LCI Data Compilation'!$AN$37:$AS$37,0)) -> 178.4872189
C47: 13 | D47: Steel/Tin Cans | E47: =INDEX('8 LCI Data Compilation'!$D$36:$I$62,MATCH(D47,'8 LCI Data Compilation'!$C$36:$C$62,0),MATCH('4 SMM Input'!$E$3,'8 LCI Data Compilation'!$D$37:$I$37,0)) -> NA | F47: NA | G47: =INDEX('8 LCI Data Compilation'!$J$36:$O$62,MATCH(D47,'8 LCI Data Compilation'!$C$36:$C$62,0),MATCH('4 SMM Input'!$E$3,'8 LCI Data Compilation'!$J$37:$O$37,0)) -> 321.3124642 | H47: =INDEX('8 LCI Data Compilation'!$P$36:$U$62,MATCH(D47,'8 LCI Data Compilation'!$C$36:$C$62,0),MATCH('4 SMM Input'!$E$3,'8 LCI Data Compilation'!$P$37:$U$37,0)) -> -10816.44962 | I47: =INDEX('8 LCI Data Compilation'!$V$36:$AA$62,MATCH(D47,'8 LCI Data Compilation'!$C$36:$C$62,0),MATCH('4 SMM Input'!$E$3,'8 LCI Data Compilation'!$V$37:$AA$37,0)) -> NA | J47: =INDEX('8 LCI Data Compilation'!$AB$36:$AG$62,MATCH(D47,'8 LCI Data Compilation'!$C$36:$C$62,0),MATCH('4 SMM Input'!$E$3,'8 LCI Data Compilation'!$AB$37:$AG$37,0)) -> NA | K47: =INDEX('8 LCI Data Compilation'!$AH$36:$AM$62,MATCH(D47,'8 LCI Data Compilation'!$C$36:$C$62,0),MATCH('4 SMM Input'!$E$3,'8 LCI Data Compilation'!$AH$37:$AM$37,0)) -> 551.5064684 | L47: =INDEX('8 LCI Data Compilation'!$AN$36:$AS$62,MATCH(D47,'8 LCI Data Compilation'!$C$36:$C$62,0),MATCH('4 SMM Input'!$E$3,'8 LCI Data Compilation'!$AN$37:$AS$37,0)) -> -10357.77105
C48: 14 | D48: Mixed Metals | E48: =INDEX('8 LCI Data Compilation'!$D$36:$I$62,MATCH(D48,'8 LCI Data Compilation'!$C$36:$C$62,0),MATCH('4 SMM Input'!$E$3,'8 LCI Data Compilation'!$D$37:$I$37,0)) -> NA | F48: NA | G48: =INDEX('8 LCI Data Compilation'!$J$36:$O$62,MATCH(D48,'8 LCI Data Compilation'!$C$36:$C$62,0),MATCH('4 SMM Input'!$E$3,'8 LCI Data Compilation'!$J$37:$O$37,0)) -> 321.3124642 | H48: =INDEX('8 LCI Data Compilation'!$P$36:$U$62,MATCH(D48,'8 LCI Data Compilation'!$C$36:$C$62,0),MATCH('4 SMM Input'!$E$3,'8 LCI Data Compilation'!$P$37:$U$37,0)) -> -111847.0878 | I48: =INDEX('8 LCI Data Compilation'!$V$36:$AA$62,MATCH(D48,'8 LCI Data Compilation'!$C$36:$C$62,0),MATCH('4 SMM Input'!$E$3,'8 LCI Data Compilation'!$V$37:$AA$37,0)) -> NA | J48: =INDEX('8 LCI Data Compilation'!$AB$36:$AG$62,MATCH(D48,'8 LCI Data Compilation'!$C$36:$C$62,0),MATCH('4 SMM Input'!$E$3,'8 LCI Data Compilation'!$AB$37:$AG$37,0)) -> NA | K48: =INDEX('8 LCI Data Compilation'!$AH$36:$AM$62,MATCH(D48,'8 LCI Data Compilation'!$C$36:$C$62,0),MATCH('4 SMM Input'!$E$3,'8 LCI Data Compilation'!$AH$37:$AM$37,0)) -> 551.5064684 | L48: =INDEX('8 LCI Data Compilation'!$AN$36:$AS$62,MATCH(D48,'8 LCI Data Compilation'!$C$36:$C$62,0),MATCH('4 SMM Input'!$E$3,'8 LCI Data Compilation'!$AN$37:$AS$37,0)) -> -4907.069295
B49: Organic | C49: 15 | D49: Yard Waste | E49: =INDEX('8 LCI Data Compilation'!$D$36:$I$62,MATCH(D49,'8 LCI Data Compilation'!$C$36:$C$62,0),MATCH('4 SMM Input'!$E$3,'8 LCI Data Compilation'!$D$37:$I$37,0)) -> NA | F49: NA | G49: =INDEX('8 LCI Data Compilation'!$J$36:$O$62,MATCH(D49,'8 LCI Data Compilation'!$C$36:$C$62,0),MATCH('4 SMM Input'!$E$3,'8 LCI Data Compilation'!$J$37:$O$37,0)) -> 321.3124642 | H49: =INDEX('8 LCI Data Compilation'!$P$36:$U$62,MATCH(D49,'8 LCI Data Compilation'!$C$36:$C$62,0),MATCH('4 SMM Input'!$E$3,'8 LCI Data Compilation'!$P$37:$U$37,0)) -> NA | I49: =INDEX('8 LCI Data Compilation'!$V$36:$AA$62,MATCH(D49,'8 LCI Data Compilation'!$C$36:$C$62,0),MATCH('4 SMM Input'!$E$3,'8 LCI Data Compilation'!$V$37:$AA$37,0)) -> 306.9253389 | J49: =INDEX('8 LCI Data Compilation'!$AB$36:$AG$62,MATCH(D49,'8 LCI Data Compilation'!$C$36:$C$62,0),MATCH('4 SMM Input'!$E$3,'8 LCI Data Compilation'!$AB$37:$AG$37,0)) -> NA | K49: =INDEX('8 LCI Data Compilation'!$AH$36:$AM$62,MATCH(D49,'8 LCI Data Compilation'!$C$36:$C$62,0),MATCH('4 SMM Input'!$E$3,'8 LCI Data Compilation'!$AH$37:$AM$37,0)) -> 244.2614156 | L49: =INDEX('8 LCI Data Compilation'!$AN$36:$AS$62,MATCH(D49,'8 LCI Data Compilation'!$C$36:$C$62,0),MATCH('4 SMM Input'!$E$3,'8 LCI Data Compilation'!$AN$37:$AS$37,0)) -> -4658.932983
C50: 16 | D50: Food Waste | E50: =INDEX('8 LCI Data Compilation'!$D$36:$I$62,MATCH(D50,'8 LCI Data Compilation'!$C$36:$C$62,0),MATCH('4 SMM Input'!$E$3,'8 LCI Data Compilation'!$D$37:$I$37,0)) -> NA | F50: =IFERROR(E50*-1,"NA") -> NA | G50: =INDEX('8 LCI Data Compilation'!$J$36:$O$62,MATCH(D50,'8 LCI Data Compilation'!$C$36:$C$62,0),MATCH('4 SMM Input'!$E$3,'8 LCI Data Compilation'!$J$37:$O$37,0)) -> 321.3124642 | H50: =INDEX('8 LCI Data Compilation'!$P$36:$U$62,MATCH(D50,'8 LCI Data Compilation'!$C$36:$C$62,0),MATCH('4 SMM Input'!$E$3,'8 LCI Data Compilation'!$P$37:$U$37,0)) -> NA | I50: =INDEX('8 LCI Data Compilation'!$V$36:$AA$62,MATCH(D50,'8 LCI Data Compilation'!$C$36:$C$62,0),MATCH('4 SMM Input'!$E$3,'8 LCI Data Compilation'!$V$37:$AA$37,0)) -> 306.9253389 | J50: =INDEX('8 LCI Data Compilation'!$AB$36:$AG$62,MATCH(D50,'8 LCI Data Compilation'!$C$36:$C$62,0),MATCH('4 SMM Input'!$E$3,'8 LCI Data Compilation'!$AB$37:$AG$37,0)) -> NA | K50: =INDEX('8 LCI Data Compilation'!$AH$36:$AM$62,MATCH(D50,'8 LCI Data Compilation'!$C$36:$C$62,0),MATCH('4 SMM Input'!$E$3,'8 LCI Data Compilation'!$AH$37:$AM$37,0)) -> -229.2348625 | L50: =INDEX('8 LCI Data Compilation'!$AN$36:$AS$62,MATCH(D50,'8 LCI Data Compilation'!$C$36:$C$62,0),MATCH('4 SMM Input'!$E$3,'8 LCI Data Compilation'!$AN$37:$AS$37,0)) -> -2066.926638
B51: Other | C51: 17 | D51: Tires | E51: =INDEX('8 LCI Data Compilation'!$D$36:$I$62,MATCH(D51,'8 LCI Data Compilation'!$C$36:$C$62,0),MATCH('4 SMM Input'!$E$3,'8 LCI Data Compilation'!$D$37:$I$37,0)) -> NA | F51: NA | G51: =INDEX('8 LCI Data Compilation'!$J$36:$O$62,MATCH(D51,'8 LCI Data Compilation'!$C$36:$C$62,0),MATCH('4 SMM Input'!$E$3,'8 LCI Data Compilation'!$J$37:$O$37,0)) -> NA | H51: =INDEX('8 LCI Data Compilation'!$P$36:$U$62,MATCH(D51,'8 LCI Data Compilation'!$C$36:$C$62,0),MATCH('4 SMM Input'!$E$3,'8 LCI Data Compilation'!$P$37:$U$37,0)) -> NA | I51: =INDEX('8 LCI Data Compilation'!$V$36:$AA$62,MATCH(D51,'8 LCI Data Compilation'!$C$36:$C$62,0),MATCH('4 SMM Input'!$E$3,'8 LCI Data Compilation'!$V$37:$AA$37,0)) -> NA | J51: =INDEX('8 LCI Data Compilation'!$AB$36:$AG$62,MATCH(D51,'8 LCI Data Compilation'!$C$36:$C$62,0),MATCH('4 SMM Input'!$E$3,'8 LCI Data Compilation'!$AB$37:$AG$37,0)) -> NA | K51: =INDEX('8 LCI Data Compilation'!$AH$36:$AM$62,MATCH(D51,'8 LCI Data Compilation'!$C$36:$C$62,0),MATCH('4 SMM Input'!$E$3,'8 LCI Data Compilation'!$AH$37:$AM$37,0)) -> NA | L51: =INDEX('8 LCI Data Compilation'!$AN$36:$AS$62,MATCH(D51,'8 LCI Data Compilation'!$C$36:$C$62,0),MATCH('4 SMM Input'!$E$3,'8 LCI Data Compilation'!$AN$37:$AS$37,0)) -> NA
C52: 18 | D52: Clothing and Footwear | E52: =INDEX('8 LCI Data Compilation'!$D$36:$I$62,MATCH(D52,'8 LCI Data Compilation'!$C$36:$C$62,0),MATCH('4 SMM Input'!$E$3,'8 LCI Data Compilation'!$D$37:$I$37,0)) -> NA | F52: =IFERROR(E52*-1,"NA") -> NA | G52: =INDEX('8 LCI Data Compilation'!$J$36:$O$62,MATCH(D52,'8 LCI Data Compilation'!$C$36:$C$62,0),MATCH('4 SMM Input'!$E$3,'8 LCI Data Compilation'!$J$37:$O$37,0)) -> NA | H52: =INDEX('8 LCI Data Compilation'!$P$36:$U$62,MATCH(D52,'8 LCI Data Compilation'!$C$36:$C$62,0),MATCH('4 SMM Input'!$E$3,'8 LCI Data Compilation'!$P$37:$U$37,0)) -> NA | I52: =INDEX('8 LCI Data Compilation'!$V$36:$AA$62,MATCH(D52,'8 LCI Data Compilation'!$C$36:$C$62,0),MATCH('4 SMM Input'!$E$3,'8 LCI Data Compilation'!$V$37:$AA$37,0)) -> NA | J52: =INDEX('8 LCI Data Compilation'!$AB$36:$AG$62,MATCH(D52,'8 LCI Data Compilation'!$C$36:$C$62,0),MATCH('4 SMM Input'!$E$3,'8 LCI Data Compilation'!$AB$37:$AG$37,0)) -> NA | K52: =INDEX('8 LCI Data Compilation'!$AH$36:$AM$62,MATCH(D52,'8 LCI Data Compilation'!$C$36:$C$62,0),MATCH('4 SMM Input'!$E$3,'8 LCI Data Compilation'!$AH$37:$AM$37,0)) -> NA | L52: =INDEX('8 LCI Data Compilation'!$AN$36:$AS$62,MATCH(D52,'8 LCI Data Compilation'!$C$36:$C$62,0),MATCH('4 SMM Input'!$E$3,'8 LCI Data Compilation'!$AN$37:$AS$37,0)) -> NA
C53: 19 | D53: Furniture | E53: =INDEX('8 LCI Data Compilation'!$D$36:$I$62,MATCH(D53,'8 LCI Data Compilation'!$C$36:$C$62,0),MATCH('4 SMM Input'!$E$3,'8 LCI Data Compilation'!$D$37:$I$37,0)) -> NA | F53: =IFERROR(E53*-1,"NA") -> NA | G53: =INDEX('8 LCI Data Compilation'!$J$36:$O$62,MATCH(D53,'8 LCI Data Compilation'!$C$36:$C$62,0),MATCH('4 SMM Input'!$E$3,'8 LCI Data Compilation'!$J$37:$O$37,0)) -> NA | H53: =INDEX('8 LCI Data Compilation'!$P$36:$U$62,MATCH(D53,'8 LCI Data Compilation'!$C$36:$C$62,0),MATCH('4 SMM Input'!$E$3,'8 LCI Data Compilation'!$P$37:$U$37,0)) -> NA | I53: =INDEX('8 LCI Data Compilation'!$V$36:$AA$62,MATCH(D53,'8 LCI Data Compilation'!$C$36:$C$62,0),MATCH('4 SMM Input'!$E$3,'8 LCI Data Compilation'!$V$37:$AA$37,0)) -> NA | J53: =INDEX('8 LCI Data Compilation'!$AB$36:$AG$62,MATCH(D53,'8 LCI Data Compilation'!$C$36:$C$62,0),MATCH('4 SMM Input'!$E$3,'8 LCI Data Compilation'!$AB$37:$AG$37,0)) -> NA | K53: =INDEX('8 LCI Data Compilation'!$AH$36:$AM$62,MATCH(D53,'8 LCI Data Compilation'!$C$36:$C$62,0),MATCH('4 SMM Input'!$E$3,'8 LCI Data Compilation'!$AH$37:$AM$37,0)) -> NA | L53: =INDEX('8 LCI Data Compilation'!$AN$36:$AS$62,MATCH(D53,'8 LCI Data Compilation'!$C$36:$C$62,0),MATCH('4 SMM Input'!$E$3,'8 LCI Data Compilation'!$AN$37:$AS$37,0)) -> NA
C54: 20 | D54: Electronics | E54: =INDEX('8 LCI Data Compilation'!$D$36:$I$62,MATCH(D54,'8 LCI Data Compilation'!$C$36:$C$62,0),MATCH('4 SMM Input'!$E$3,'8 LCI Data Compilation'!$D$37:$I$37,0)) -> NA | F54: =IFERROR(E54*-1,"NA") -> NA | G54: =INDEX('8 LCI Data Compilation'!$J$36:$O$62,MATCH(D54,'8 LCI Data Compilation'!$C$36:$C$62,0),MATCH('4 SMM Input'!$E$3,'8 LCI Data Compilation'!$J$37:$O$37,0)) -> NA | H54: =INDEX('8 LCI Data Compilation'!$P$36:$U$62,MATCH(D54,'8 LCI Data Compilation'!$C$36:$C$62,0),MATCH('4 SMM Input'!$E$3,'8 LCI Data Compilation'!$P$37:$U$37,0)) -> NA | I54: =INDEX('8 LCI Data Compilation'!$V$36:$AA$62,MATCH(D54,'8 LCI Data Compilation'!$C$36:$C$62,0),MATCH('4 SMM Input'!$E$3,'8 LCI Data Compilation'!$V$37:$AA$37,0)) -> NA | J54: =INDEX('8 LCI Data Compilation'!$AB$36:$AG$62,MATCH(D54,'8 LCI Data Compilation'!$C$36:$C$62,0),MATCH('4 SMM Input'!$E$3,'8 LCI Data Compilation'!$AB$37:$AG$37,0)) -> NA | K54: =INDEX('8 LCI Data Compilation'!$AH$36:$AM$62,MATCH(D54,'8 LCI Data Compilation'!$C$36:$C$62,0),MATCH('4 SMM Input'!$E$3,'8 LCI Data Compilation'!$AH$37:$AM$37,0)) -> NA | L54: =INDEX('8 LCI Data Compilation'!$AN$36:$AS$62,MATCH(D54,'8 LCI Data Compilation'!$C$36:$C$62,0),MATCH('4 SMM Input'!$E$3,'8 LCI Data Compilation'!$AN$37:$AS$37,0)) -> NA
B55: C&D Debris | C55: 21 | D55: Wood Products | E55: =INDEX('8 LCI Data Compilation'!$D$36:$I$62,MATCH(D55,'8 LCI Data Compilation'!$C$36:$C$62,0),MATCH('4 SMM Input'!$E$3,'8 LCI Data Compilation'!$D$37:$I$37,0)) -> NA | F55: NA | G55: =INDEX('8 LCI Data Compilation'!$J$36:$O$62,MATCH(D55,'8 LCI Data Compilation'!$C$36:$C$62,0),MATCH('4 SMM Input'!$E$3,'8 LCI Data Compilation'!$J$37:$O$37,0)) -> NA | H55: =INDEX('8 LCI Data Compilation'!$P$36:$U$62,MATCH(D55,'8 LCI Data Compilation'!$C$36:$C$62,0),MATCH('4 SMM Input'!$E$3,'8 LCI Data Compilation'!$P$37:$U$37,0)) -> NA | I55: =INDEX('8 LCI Data Compilation'!$V$36:$AA$62,MATCH(D55,'8 LCI Data Compilation'!$C$36:$C$62,0),MATCH('4 SMM Input'!$E$3,'8 LCI Data Compilation'!$V$37:$AA$37,0)) -> NA | J55: =INDEX('8 LCI Data Compilation'!$AB$36:$AG$62,MATCH(D55,'8 LCI Data Compilation'!$C$36:$C$62,0),MATCH('4 SMM Input'!$E$3,'8 LCI Data Compilation'!$AB$37:$AG$37,0)) -> NA | K55: =INDEX('8 LCI Data Compilation'!$AH$36:$AM$62,MATCH(D55,'8 LCI Data Compilation'!$C$36:$C$62,0),MATCH('4 SMM Input'!$E$3,'8 LCI Data Compilation'!$AH$37:$AM$37,0)) -> NA | L55: =INDEX('8 LCI Data Compilation'!$AN$36:$AS$62,MATCH(D55,'8 LCI Data Compilation'!$C$36:$C$62,0),MATCH('4 SMM Input'!$E$3,'8 LCI Data Compilation'!$AN$37:$AS$37,0)) -> NA
C56: 22 | D56: Asphalt Shingles | E56: =INDEX('8 LCI Data Compilation'!$D$36:$I$62,MATCH(D56,'8 LCI Data Compilation'!$C$36:$C$62,0),MATCH('4 SMM Input'!$E$3,'8 LCI Data Compilation'!$D$37:$I$37,0)) -> NA | F56: NA | G56: =INDEX('8 LCI Data Compilation'!$J$36:$O$62,MATCH(D56,'8 LCI Data Compilation'!$C$36:$C$62,0),MATCH('4 SMM Input'!$E$3,'8 LCI Data Compilation'!$J$37:$O$37,0)) -> NA | H56: =INDEX('8 LCI Data Compilation'!$P$36:$U$62,MATCH(D56,'8 LCI Data Compilation'!$C$36:$C$62,0),MATCH('4 SMM Input'!$E$3,'8 LCI Data Compilation'!$P$37:$U$37,0)) -> NA | I56: =INDEX('8 LCI Data Compilation'!$V$36:$AA$62,MATCH(D56,'8 LCI Data Compilation'!$C$36:$C$62,0),MATCH('4 SMM Input'!$E$3,'8 LCI Data Compilation'!$V$37:$AA$37,0)) -> NA | J56: =INDEX('8 LCI Data Compilation'!$AB$36:$AG$62,MATCH(D56,'8 LCI Data Compilation'!$C$36:$C$62,0),MATCH('4 SMM Input'!$E$3,'8 LCI Data Compilation'!$AB$37:$AG$37,0)) -> NA | K56: =INDEX('8 LCI Data Compilation'!$AH$36:$AM$62,MATCH(D56,'8 LCI Data Compilation'!$C$36:$C$62,0),MATCH('4 SMM Input'!$E$3,'8 LCI Data Compilation'!$AH$37:$AM$37,0)) -> NA | L56: =INDEX('8 LCI Data Compilation'!$AN$36:$AS$62,MATCH(D56,'8 LCI Data Compilation'!$C$36:$C$62,0),MATCH('4 SMM Input'!$E$3,'8 LCI Data Compilation'!$AN$37:$AS$37,0)) -> NA
C57: 23 | D57: Gypsum Drywall | E57: =INDEX('8 LCI Data Compilation'!$D$36:$I$62,MATCH(D57,'8 LCI Data Compilation'!$C$36:$C$62,0),MATCH('4 SMM Input'!$E$3,'8 LCI Data Compilation'!$D$37:$I$37,0)) -> NA | F57: NA | G57: =INDEX('8 LCI Data Compilation'!$J$36:$O$62,MATCH(D57,'8 LCI Data Compilation'!$C$36:$C$62,0),MATCH('4 SMM Input'!$E$3,'8 LCI Data Compilation'!$J$37:$O$37,0)) -> NA | H57: =INDEX('8 LCI Data Compilation'!$P$36:$U$62,MATCH(D57,'8 LCI Data Compilation'!$C$36:$C$62,0),MATCH('4 SMM Input'!$E$3,'8 LCI Data Compilation'!$P$37:$U$37,0)) -> NA | I57: =INDEX('8 LCI Data Compilation'!$V$36:$AA$62,MATCH(D57,'8 LCI Data Compilation'!$C$36:$C$62,0),MATCH('4 SMM Input'!$E$3,'8 LCI Data Compilation'!$V$37:$AA$37,0)) -> NA | J57: =INDEX('8 LCI Data Compilation'!$AB$36:$AG$62,MATCH(D57,'8 LCI Data Compilation'!$C$36:$C$62,0),MATCH('4 SMM Input'!$E$3,'8 LCI Data Compilation'!$AB$37:$AG$37,0)) -> NA | K57: =INDEX('8 LCI Data Compilation'!$AH$36:$AM$62,MATCH(D57,'8 LCI Data Compilation'!$C$36:$C$62,0),MATCH('4 SMM Input'!$E$3,'8 LCI Data Compilation'!$AH$37:$AM$37,0)) -> NA | L57: =INDEX('8 LCI Data Compilation'!$AN$36:$AS$62,MATCH(D57,'8 LCI Data Compilation'!$C$36:$C$62,0),MATCH('4 SMM Input'!$E$3,'8 LCI Data Compilation'!$AN$37:$AS$37,0)) -> NA
C58: 24 | D58: Concrete | E58: =INDEX('8 LCI Data Compilation'!$D$36:$I$62,MATCH(D58,'8 LCI Data Compilation'!$C$36:$C$62,0),MATCH('4 SMM Input'!$E$3,'8 LCI Data Compilation'!$D$37:$I$37,0)) -> NA | F58: NA | G58: =INDEX('8 LCI Data Compilation'!$J$36:$O$62,MATCH(D58,'8 LCI Data Compilation'!$C$36:$C$62,0),MATCH('4 SMM Input'!$E$3,'8 LCI Data Compilation'!$J$37:$O$37,0)) -> NA | H58: =INDEX('8 LCI Data Compilation'!$P$36:$U$62,MATCH(D58,'8 LCI Data Compilation'!$C$36:$C$62,0),MATCH('4 SMM Input'!$E$3,'8 LCI Data Compilation'!$P$37:$U$37,0)) -> NA | I58: =INDEX('8 LCI Data Compilation'!$V$36:$AA$62,MATCH(D58,'8 LCI Data Compilation'!$C$36:$C$62,0),MATCH('4 SMM Input'!$E$3,'8 LCI Data Compilation'!$V$37:$AA$37,0)) -> NA | J58: =INDEX('8 LCI Data Compilation'!$AB$36:$AG$62,MATCH(D58,'8 LCI Data Compilation'!$C$36:$C$62,0),MATCH('4 SMM Input'!$E$3,'8 LCI Data Compilation'!$AB$37:$AG$37,0)) -> NA | K58: =INDEX('8 LCI Data Compilation'!$AH$36:$AM$62,MATCH(D58,'8 LCI Data Compilation'!$C$36:$C$62,0),MATCH('4 SMM Input'!$E$3,'8 LCI Data Compilation'!$AH$37:$AM$37,0)) -> NA | L58: =INDEX('8 LCI Data Compilation'!$AN$36:$AS$62,MATCH(D58,'8 LCI Data Compilation'!$C$36:$C$62,0),MATCH('4 SMM Input'!$E$3,'8 LCI Data Compilation'!$AN$37:$AS$37,0)) -> NA
C59: 25 | D59: Reclaimed Asphalt Pavement | E59: =INDEX('8 LCI Data Compilation'!$D$36:$I$62,MATCH(D59,'8 LCI Data Compilation'!$C$36:$C$62,0),MATCH('4 SMM Input'!$E$3,'8 LCI Data Compilation'!$D$37:$I$37,0)) -> NA | F59: NA | G59: =INDEX('8 LCI Data Compilation'!$J$36:$O$62,MATCH(D59,'8 LCI Data Compilation'!$C$36:$C$62,0),MATCH('4 SMM Input'!$E$3,'8 LCI Data Compilation'!$J$37:$O$37,0)) -> NA | H59: =INDEX('8 LCI Data Compilation'!$P$36:$U$62,MATCH(D59,'8 LCI Data Compilation'!$C$36:$C$62,0),MATCH('4 SMM Input'!$E$3,'8 LCI Data Compilation'!$P$37:$U$37,0)) -> NA | I59: =INDEX('8 LCI Data Compilation'!$V$36:$AA$62,MATCH(D59,'8 LCI Data Compilation'!$C$36:$C$62,0),MATCH('4 SMM Input'!$E$3,'8 LCI Data Compilation'!$V$37:$AA$37,0)) -> NA | J59: =INDEX('8 LCI Data Compilation'!$AB$36:$AG$62,MATCH(D59,'8 LCI Data Compilation'!$C$36:$C$62,0),MATCH('4 SMM Input'!$E$3,'8 LCI Data Compilation'!$AB$37:$AG$37,0)) -> NA | K59: =INDEX('8 LCI Data Compilation'!$AH$36:$AM$62,MATCH(D59,'8 LCI Data Compilation'!$C$36:$C$62,0),MATCH('4 SMM Input'!$E$3,'8 LCI Data Compilation'!$AH$37:$AM$37,0)) -> NA | L59: =INDEX('8 LCI Data Compilation'!$AN$36:$AS$62,MATCH(D59,'8 LCI Data Compilation'!$C$36:$C$62,0),MATCH('4 SMM Input'!$E$3,'8 LCI Data Compilation'!$AN$37:$AS$37,0)) -> NA
B62: All Units (Gal./ Short Ton)
B63: ='5 SMM Results'!B66:M66 -> Water Use (Gallons): Freshwater from lakes, rivers, and wells are consumed by different processes. The units are expressed as units of gallons. This a measure of the water used in such way that the water is evaporated, incorporated into products, transferred to other watersheds, or disposed into the sea.
B64: Material Category | C64: Item No. | D64: Material Type | E64: Produced | F64: Donated | G64: Collection | H64: Recycling | I64: Composting | J64: Anaerobic Digestion | K64: Landfill | L64: Combustion
B65: MSW | C65: 1 | D65: Mixed MSW | E65: =INDEX('8 LCI Data Compilation'!$D$66:$I$92,MATCH(D65,'8 LCI Data Compilation'!$C$66:$C$92,0),MATCH('4 SMM Input'!$E$3,'8 LCI Data Compilation'!$D$67:$I$67,0)) -> NA | F65: NA | G65: =INDEX('8 LCI Data Compilation'!$J$66:$O$92,MATCH(D65,'8 LCI Data Compilation'!$C$66:$C$92,0),MATCH('4 SMM Input'!$E$3,'8 LCI Data Compilation'!$J$67:$O$67,0)) -> NA | H65: =INDEX('8 LCI Data Compilation'!$P$66:$U$92,MATCH(D65,'8 LCI Data Compilation'!$C$66:$C$92,0),MATCH('4 SMM Input'!$E$3,'8 LCI Data Compilation'!$P$67:$U$67,0)) -> NA | I65: =INDEX('8 LCI Data Compilation'!$V$66:$AA$92,MATCH(D65,'8 LCI Data Compilation'!$C$66:$C$92,0),MATCH('4 SMM Input'!$E$3,'8 LCI Data Compilation'!$V$67:$AA$67,0)) -> NA | J65: =INDEX('8 LCI Data Compilation'!$AB$66:$AG$92,MATCH(D65,'8 LCI Data Compilation'!$C$66:$C$92,0),MATCH('4 SMM Input'!$E$3,'8 LCI Data Compilation'!$AB$67:$AG$67,0)) -> NA | K65: =INDEX('8 LCI Data Compilation'!$AH$66:$AM$92,MATCH(D65,'8 LCI Data Compilation'!$C$66:$C$92,0),MATCH('4 SMM Input'!$E$3,'8 LCI Data Compilation'!$AH$67:$AM$67,0)) -> NA | L65: =INDEX('8 LCI Data Compilation'!$AN$66:$AS$92,MATCH(D65,'8 LCI Data Compilation'!$C$66:$C$92,0),MATCH('4 SMM Input'!$E$3,'8 LCI Data Compilation'!$AN$67:$AS$67,0)) -> NA
B66: Paper | C66: 2 | D66: Newspaper | E66: =INDEX('8 LCI Data Compilation'!$D$66:$I$92,MATCH(D66,'8 LCI Data Compilation'!$C$66:$C$92,0),MATCH('4 SMM Input'!$E$3,'8 LCI Data Compilation'!$D$67:$I$67,0)) -> NA | F66: NA | G66: =INDEX('8 LCI Data Compilation'!$J$66:$O$92,MATCH(D66,'8 LCI Data Compilation'!$C$66:$C$92,0),MATCH('4 SMM Input'!$E$3,'8 LCI Data Compilation'!$J$67:$O$67,0)) -> NA | H66: =INDEX('8 LCI Data Compilation'!$P$66:$U$92,MATCH(D66,'8 LCI Data Compilation'!$C$66:$C$92,0),MATCH('4 SMM Input'!$E$3,'8 LCI Data Compilation'!$P$67:$U$67,0)) -> NA | I66: =INDEX('8 LCI Data Compilation'!$V$66:$AA$92,MATCH(D66,'8 LCI Data Compilation'!$C$66:$C$92,0),MATCH('4 SMM Input'!$E$3,'8 LCI Data Compilation'!$V$67:$AA$67,0)) -> NA | J66: =INDEX('8 LCI Data Compilation'!$AB$66:$AG$92,MATCH(D66,'8 LCI Data Compilation'!$C$66:$C$92,0),MATCH('4 SMM Input'!$E$3,'8 LCI Data Compilation'!$AB$67:$AG$67,0)) -> NA | K66: =INDEX('8 LCI Data Compilation'!$AH$66:$AM$92,MATCH(D66,'8 LCI Data Compilation'!$C$66:$C$92,0),MATCH('4 SMM Input'!$E$3,'8 LCI Data Compilation'!$AH$67:$AM$67,0)) -> NA | L66: =INDEX('8 LCI Data Compilation'!$AN$66:$AS$92,MATCH(D66,'8 LCI Data Compilation'!$C$66:$C$92,0),MATCH('4 SMM Input'!$E$3,'8 LCI Data Compilation'!$AN$67:$AS$67,0)) -> NA
C67: 3 | D67: Corrugated Cardboard (OCC) | E67: =INDEX('8 LCI Data Compilation'!$D$66:$I$92,MATCH(D67,'8 LCI Data Compilation'!$C$66:$C$92,0),MATCH('4 SMM Input'!$E$3,'8 LCI Data Compilation'!$D$67:$I$67,0)) -> NA | F67: NA | G67: =INDEX('8 LCI Data Compilation'!$J$66:$O$92,MATCH(D67,'8 LCI Data Compilation'!$C$66:$C$92,0),MATCH('4 SMM Input'!$E$3,'8 LCI Data Compilation'!$J$67:$O$67,0)) -> NA | H67: =INDEX('8 LCI Data Compilation'!$P$66:$U$92,MATCH(D67,'8 LCI Data Compilation'!$C$66:$C$92,0),MATCH('4 SMM Input'!$E$3,'8 LCI Data Compilation'!$P$67:$U$67,0)) -> NA | I67: =INDEX('8 LCI Data Compilation'!$V$66:$AA$92,MATCH(D67,'8 LCI Data Compilation'!$C$66:$C$92,0),MATCH('4 SMM Input'!$E$3,'8 LCI Data Compilation'!$V$67:$AA$67,0)) -> NA | J67: =INDEX('8 LCI Data Compilation'!$AB$66:$AG$92,MATCH(D67,'8 LCI Data Compilation'!$C$66:$C$92,0),MATCH('4 SMM Input'!$E$3,'8 LCI Data Compilation'!$AB$67:$AG$67,0)) -> NA | K67: =INDEX('8 LCI Data Compilation'!$AH$66:$AM$92,MATCH(D67,'8 LCI Data Compilation'!$C$66:$C$92,0),MATCH('4 SMM Input'!$E$3,'8 LCI Data Compilation'!$AH$67:$AM$67,0)) -> NA | L67: =INDEX('8 LCI Data Compilation'!$AN$66:$AS$92,MATCH(D67,'8 LCI Data Compilation'!$C$66:$C$92,0),MATCH('4 SMM Input'!$E$3,'8 LCI Data Compilation'!$AN$67:$AS$67,0)) -> NA
C68: 4 | D68: High Grade Paper (Office Type Paper) | E68: =INDEX('8 LCI Data Compilation'!$D$66:$I$92,MATCH(D68,'8 LCI Data Compilation'!$C$66:$C$92,0),MATCH('4 SMM Input'!$E$3,'8 LCI Data Compilation'!$D$67:$I$67,0)) -> NA | F68: NA | G68: =INDEX('8 LCI Data Compilation'!$J$66:$O$92,MATCH(D68,'8 LCI Data Compilation'!$C$66:$C$92,0),MATCH('4 SMM Input'!$E$3,'8 LCI Data Compilation'!$J$67:$O$67,0)) -> NA | H68: =INDEX('8 LCI Data Compilation'!$P$66:$U$92,MATCH(D68,'8 LCI Data Compilation'!$C$66:$C$92,0),MATCH('4 SMM Input'!$E$3,'8 LCI Data Compilation'!$P$67:$U$67,0)) -> NA | I68: =INDEX('8 LCI Data Compilation'!$V$66:$AA$92,MATCH(D68,'8 LCI Data Compilation'!$C$66:$C$92,0),MATCH('4 SMM Input'!$E$3,'8 LCI Data Compilation'!$V$67:$AA$67,0)) -> NA | J68: =INDEX('8 LCI Data Compilation'!$AB$66:$AG$92,MATCH(D68,'8 LCI Data Compilation'!$C$66:$C$92,0),MATCH('4 SMM Input'!$E$3,'8 LCI Data Compilation'!$AB$67:$AG$67,0)) -> NA | K68: =INDEX('8 LCI Data Compilation'!$AH$66:$AM$92,MATCH(D68,'8 LCI Data Compilation'!$C$66:$C$92,0),MATCH('4 SMM Input'!$E$3,'8 LCI Data Compilation'!$AH$67:$AM$67,0)) -> NA | L68: =INDEX('8 LCI Data Compilation'!$AN$66:$AS$92,MATCH(D68,'8 LCI Data Compilation'!$C$66:$C$92,0),MATCH('4 SMM Input'!$E$3,'8 LCI Data Compilation'!$AN$67:$AS$67,0)) -> NA
C69: 5 | D69: Magazines/third-class mail | E69: =INDEX('8 LCI Data Compilation'!$D$66:$I$92,MATCH(D69,'8 LCI Data Compilation'!$C$66:$C$92,0),MATCH('4 SMM Input'!$E$3,'8 LCI Data Compilation'!$D$67:$I$67,0)) -> NA | F69: NA | G69: =INDEX('8 LCI Data Compilation'!$J$66:$O$92,MATCH(D69,'8 LCI Data Compilation'!$C$66:$C$92,0),MATCH('4 SMM Input'!$E$3,'8 LCI Data Compilation'!$J$67:$O$67,0)) -> NA | H69: =INDEX('8 LCI Data Compilation'!$P$66:$U$92,MATCH(D69,'8 LCI Data Compilation'!$C$66:$C$92,0),MATCH('4 SMM Input'!$E$3,'8 LCI Data Compilation'!$P$67:$U$67,0)) -> NA | I69: =INDEX('8 LCI Data Compilation'!$V$66:$AA$92,MATCH(D69,'8 LCI Data Compilation'!$C$66:$C$92,0),MATCH('4 SMM Input'!$E$3,'8 LCI Data Compilation'!$V$67:$AA$67,0)) -> NA | J69: =INDEX('8 LCI Data Compilation'!$AB$66:$AG$92,MATCH(D69,'8 LCI Data Compilation'!$C$66:$C$92,0),MATCH('4 SMM Input'!$E$3,'8 LCI Data Compilation'!$AB$67:$AG$67,0)) -> NA | K69: =INDEX('8 LCI Data Compilation'!$AH$66:$AM$92,MATCH(D69,'8 LCI Data Compilation'!$C$66:$C$92,0),MATCH('4 SMM Input'!$E$3,'8 LCI Data Compilation'!$AH$67:$AM$67,0)) -> NA | L69: =INDEX('8 LCI Data Compilation'!$AN$66:$AS$92,MATCH(D69,'8 LCI Data Compilation'!$C$66:$C$92,0),MATCH('4 SMM Input'!$E$3,'8 LCI Data Compilation'!$AN$67:$AS$67,0)) -> NA
C70: 6 | D70: Books | E70: =INDEX('8 LCI Data Compilation'!$D$66:$I$92,MATCH(D70,'8 LCI Data Compilation'!$C$66:$C$92,0),MATCH('4 SMM Input'!$E$3,'8 LCI Data Compilation'!$D$67:$I$67,0)) -> NA | F70: NA | G70: =INDEX('8 LCI Data Compilation'!$J$66:$O$92,MATCH(D70,'8 LCI Data Compilation'!$C$66:$C$92,0),MATCH('4 SMM Input'!$E$3,'8 LCI Data Compilation'!$J$67:$O$67,0)) -> NA | H70: =INDEX('8 LCI Data Compilation'!$P$66:$U$92,MATCH(D70,'8 LCI Data Compilation'!$C$66:$C$92,0),MATCH('4 SMM Input'!$E$3,'8 LCI Data Compilation'!$P$67:$U$67,0)) -> NA | I70: =INDEX('8 LCI Data Compilation'!$V$66:$AA$92,MATCH(D70,'8 LCI Data Compilation'!$C$66:$C$92,0),MATCH('4 SMM Input'!$E$3,'8 LCI Data Compilation'!$V$67:$AA$67,0)) -> NA | J70: =INDEX('8 LCI Data Compilation'!$AB$66:$AG$92,MATCH(D70,'8 LCI Data Compilation'!$C$66:$C$92,0),MATCH('4 SMM Input'!$E$3,'8 LCI Data Compilation'!$AB$67:$AG$67,0)) -> NA | K70: =INDEX('8 LCI Data Compilation'!$AH$66:$AM$92,MATCH(D70,'8 LCI Data Compilation'!$C$66:$C$92,0),MATCH('4 SMM Input'!$E$3,'8 LCI Data Compilation'!$AH$67:$AM$67,0)) -> NA | L70: =INDEX('8 LCI Data Compilation'!$AN$66:$AS$92,MATCH(D70,'8 LCI Data Compilation'!$C$66:$C$92,0),MATCH('4 SMM Input'!$E$3,'8 LCI Data Compilation'!$AN$67:$AS$67,0)) -> NA
C71: 7 | D71: Mixed Paper | E71: =INDEX('8 LCI Data Compilation'!$D$66:$I$92,MATCH(D71,'8 LCI Data Compilation'!$C$66:$C$92,0),MATCH('4 SMM Input'!$E$3,'8 LCI Data Compilation'!$D$67:$I$67,0)) -> NA | F71: NA | G71: =INDEX('8 LCI Data Compilation'!$J$66:$O$92,MATCH(D71,'8 LCI Data Compilation'!$C$66:$C$92,0),MATCH('4 SMM Input'!$E$3,'8 LCI Data Compilation'!$J$67:$O$67,0)) -> NA | H71: =INDEX('8 LCI Data Compilation'!$P$66:$U$92,MATCH(D71,'8 LCI Data Compilation'!$C$66:$C$92,0),MATCH('4 SMM Input'!$E$3,'8 LCI Data Compilation'!$P$67:$U$67,0)) -> NA | I71: =INDEX('8 LCI Data Compilation'!$V$66:$AA$92,MATCH(D71,'8 LCI Data Compilation'!$C$66:$C$92,0),MATCH('4 SMM Input'!$E$3,'8 LCI Data Compilation'!$V$67:$AA$67,0)) -> NA | J71: =INDEX('8 LCI Data Compilation'!$AB$66:$AG$92,MATCH(D71,'8 LCI Data Compilation'!$C$66:$C$92,0),MATCH('4 SMM Input'!$E$3,'8 LCI Data Compilation'!$AB$67:$AG$67,0)) -> NA | K71: =INDEX('8 LCI Data Compilation'!$AH$66:$AM$92,MATCH(D71,'8 LCI Data Compilation'!$C$66:$C$92,0),MATCH('4 SMM Input'!$E$3,'8 LCI Data Compilation'!$AH$67:$AM$67,0)) -> NA | L71: =INDEX('8 LCI Data Compilation'!$AN$66:$AS$92,MATCH(D71,'8 LCI Data Compilation'!$C$66:$C$92,0),MATCH('4 SMM Input'!$E$3,'8 LCI Data Compilation'!$AN$67:$AS$67,0)) -> NA
B72: Plastic | C72: 8 | D72: HDPE | E72: =INDEX('8 LCI Data Compilation'!$D$66:$I$92,MATCH(D72,'8 LCI Data Compilation'!$C$66:$C$92,0),MATCH('4 SMM Input'!$E$3,'8 LCI Data Compilation'!$D$67:$I$67,0)) -> NA | F72: NA | G72: =INDEX('8 LCI Data Compilation'!$J$66:$O$92,MATCH(D72,'8 LCI Data Compilation'!$C$66:$C$92,0),MATCH('4 SMM Input'!$E$3,'8 LCI Data Compilation'!$J$67:$O$67,0)) -> NA | H72: =INDEX('8 LCI Data Compilation'!$P$66:$U$92,MATCH(D72,'8 LCI Data Compilation'!$C$66:$C$92,0),MATCH('4 SMM Input'!$E$3,'8 LCI Data Compilation'!$P$67:$U$67,0)) -> NA | I72: =INDEX('8 LCI Data Compilation'!$V$66:$AA$92,MATCH(D72,'8 LCI Data Compilation'!$C$66:$C$92,0),MATCH('4 SMM Input'!$E$3,'8 LCI Data Compilation'!$V$67:$AA$67,0)) -> NA | J72: =INDEX('8 LCI Data Compilation'!$AB$66:$AG$92,MATCH(D72,'8 LCI Data Compilation'!$C$66:$C$92,0),MATCH('4 SMM Input'!$E$3,'8 LCI Data Compilation'!$AB$67:$AG$67,0)) -> NA | K72: =INDEX('8 LCI Data Compilation'!$AH$66:$AM$92,MATCH(D72,'8 LCI Data Compilation'!$C$66:$C$92,0),MATCH('4 SMM Input'!$E$3,'8 LCI Data Compilation'!$AH$67:$AM$67,0)) -> NA | L72: =INDEX('8 LCI Data Compilation'!$AN$66:$AS$92,MATCH(D72,'8 LCI Data Compilation'!$C$66:$C$92,0),MATCH('4 SMM Input'!$E$3,'8 LCI Data Compilation'!$AN$67:$AS$67,0)) -> NA
C73: 9 | D73: PET | E73: =INDEX('8 LCI Data Compilation'!$D$66:$I$92,MATCH(D73,'8 LCI Data Compilation'!$C$66:$C$92,0),MATCH('4 SMM Input'!$E$3,'8 LCI Data Compilation'!$D$67:$I$67,0)) -> NA | F73: NA | G73: =INDEX('8 LCI Data Compilation'!$J$66:$O$92,MATCH(D73,'8 LCI Data Compilation'!$C$66:$C$92,0),MATCH('4 SMM Input'!$E$3,'8 LCI Data Compilation'!$J$67:$O$67,0)) -> NA | H73: =INDEX('8 LCI Data Compilation'!$P$66:$U$92,MATCH(D73,'8 LCI Data Compilation'!$C$66:$C$92,0),MATCH('4 SMM Input'!$E$3,'8 LCI Data Compilation'!$P$67:$U$67,0)) -> NA | I73: =INDEX('8 LCI Data Compilation'!$V$66:$AA$92,MATCH(D73,'8 LCI Data Compilation'!$C$66:$C$92,0),MATCH('4 SMM Input'!$E$3,'8 LCI Data Compilation'!$V$67:$AA$67,0)) -> NA | J73: =INDEX('8 LCI Data Compilation'!$AB$66:$AG$92,MATCH(D73,'8 LCI Data Compilation'!$C$66:$C$92,0),MATCH('4 SMM Input'!$E$3,'8 LCI Data Compilation'!$AB$67:$AG$67,0)) -> NA | K73: =INDEX('8 LCI Data Compilation'!$AH$66:$AM$92,MATCH(D73,'8 LCI Data Compilation'!$C$66:$C$92,0),MATCH('4 SMM Input'!$E$3,'8 LCI Data Compilation'!$AH$67:$AM$67,0)) -> NA | L73: =INDEX('8 LCI Data Compilation'!$AN$66:$AS$92,MATCH(D73,'8 LCI Data Compilation'!$C$66:$C$92,0),MATCH('4 SMM Input'!$E$3,'8 LCI Data Compilation'!$AN$67:$AS$67,0)) -> NA
C74: 10 | D74: Mixed Plastic | E74: =INDEX('8 LCI Data Compilation'!$D$66:$I$92,MATCH(D74,'8 LCI Data Compilation'!$C$66:$C$92,0),MATCH('4 SMM Input'!$E$3,'8 LCI Data Compilation'!$D$67:$I$67,0)) -> NA | F74: NA | G74: =INDEX('8 LCI Data Compilation'!$J$66:$O$92,MATCH(D74,'8 LCI Data Compilation'!$C$66:$C$92,0),MATCH('4 SMM Input'!$E$3,'8 LCI Data Compilation'!$J$67:$O$67,0)) -> NA | H74: =INDEX('8 LCI Data Compilation'!$P$66:$U$92,MATCH(D74,'8 LCI Data Compilation'!$C$66:$C$92,0),MATCH('4 SMM Input'!$E$3,'8 LCI Data Compilation'!$P$67:$U$67,0)) -> NA | I74: =INDEX('8 LCI Data Compilation'!$V$66:$AA$92,MATCH(D74,'8 LCI Data Compilation'!$C$66:$C$92,0),MATCH('4 SMM Input'!$E$3,'8 LCI Data Compilation'!$V$67:$AA$67,0)) -> NA | J74: =INDEX('8 LCI Data Compilation'!$AB$66:$AG$92,MATCH(D74,'8 LCI Data Compilation'!$C$66:$C$92,0),MATCH('4 SMM Input'!$E$3,'8 LCI Data Compilation'!$AB$67:$AG$67,0)) -> NA | K74: =INDEX('8 LCI Data Compilation'!$AH$66:$AM$92,MATCH(D74,'8 LCI Data Compilation'!$C$66:$C$92,0),MATCH('4 SMM Input'!$E$3,'8 LCI Data Compilation'!$AH$67:$AM$67,0)) -> NA | L74: =INDEX('8 LCI Data Compilation'!$AN$66:$AS$92,MATCH(D74,'8 LCI Data Compilation'!$C$66:$C$92,0),MATCH('4 SMM Input'!$E$3,'8 LCI Data Compilation'!$AN$67:$AS$67,0)) -> NA
B75: Glass | C75: 11 | D75: Glass | E75: =INDEX('8 LCI Data Compilation'!$D$66:$I$92,MATCH(D75,'8 LCI Data Compilation'!$C$66:$C$92,0),MATCH('4 SMM Input'!$E$3,'8 LCI Data Compilation'!$D$67:$I$67,0)) -> NA | F75: NA | G75: =INDEX('8 LCI Data Compilation'!$J$66:$O$92,MATCH(D75,'8 LCI Data Compilation'!$C$66:$C$92,0),MATCH('4 SMM Input'!$E$3,'8 LCI Data Compilation'!$J$67:$O$67,0)) -> NA | H75: =INDEX('8 LCI Data Compilation'!$P$66:$U$92,MATCH(D75,'8 LCI Data Compilation'!$C$66:$C$92,0),MATCH('4 SMM Input'!$E$3,'8 LCI Data Compilation'!$P$67:$U$67,0)) -> NA | I75: =INDEX('8 LCI Data Compilation'!$V$66:$AA$92,MATCH(D75,'8 LCI Data Compilation'!$C$66:$C$92,0),MATCH('4 SMM Input'!$E$3,'8 LCI Data Compilation'!$V$67:$AA$67,0)) -> NA | J75: =INDEX('8 LCI Data Compilation'!$AB$66:$AG$92,MATCH(D75,'8 LCI Data Compilation'!$C$66:$C$92,0),MATCH('4 SMM Input'!$E$3,'8 LCI Data Compilation'!$AB$67:$AG$67,0)) -> NA | K75: =INDEX('8 LCI Data Compilation'!$AH$66:$AM$92,MATCH(D75,'8 LCI Data Compilation'!$C$66:$C$92,0),MATCH('4 SMM Input'!$E$3,'8 LCI Data Compilation'!$AH$67:$AM$67,0)) -> NA | L75: =INDEX('8 LCI Data Compilation'!$AN$66:$AS$92,MATCH(D75,'8 LCI Data Compilation'!$C$66:$C$92,0),MATCH('4 SMM Input'!$E$3,'8 LCI Data Compilation'!$AN$67:$AS$67,0)) -> NA
B76: Metals | C76: 12 | D76: Aluminum Cans | E76: =INDEX('8 LCI Data Compilation'!$D$66:$I$92,MATCH(D76,'8 LCI Data Compilation'!$C$66:$C$92,0),MATCH('4 SMM Input'!$E$3,'8 LCI Data Compilation'!$D$67:$I$67,0)) -> NA | F76: NA | G76: =INDEX('8 LCI Data Compilation'!$J$66:$O$92,MATCH(D76,'8 LCI Data Compilation'!$C$66:$C$92,0),MATCH('4 SMM Input'!$E$3,'8 LCI Data Compilation'!$J$67:$O$67,0)) -> NA | H76: =INDEX('8 LCI Data Compilation'!$P$66:$U$92,MATCH(D76,'8 LCI Data Compilation'!$C$66:$C$92,0),MATCH('4 SMM Input'!$E$3,'8 LCI Data Compilation'!$P$67:$U$67,0)) -> NA | I76: =INDEX('8 LCI Data Compilation'!$V$66:$AA$92,MATCH(D76,'8 LCI Data Compilation'!$C$66:$C$92,0),MATCH('4 SMM Input'!$E$3,'8 LCI Data Compilation'!$V$67:$AA$67,0)) -> NA | J76: =INDEX('8 LCI Data Compilation'!$AB$66:$AG$92,MATCH(D76,'8 LCI Data Compilation'!$C$66:$C$92,0),MATCH('4 SMM Input'!$E$3,'8 LCI Data Compilation'!$AB$67:$AG$67,0)) -> NA | K76: =INDEX('8 LCI Data Compilation'!$AH$66:$AM$92,MATCH(D76,'8 LCI Data Compilation'!$C$66:$C$92,0),MATCH('4 SMM Input'!$E$3,'8 LCI Data Compilation'!$AH$67:$AM$67,0)) -> NA | L76: =INDEX('8 LCI Data Compilation'!$AN$66:$AS$92,MATCH(D76,'8 LCI Data Compilation'!$C$66:$C$92,0),MATCH('4 SMM Input'!$E$3,'8 LCI Data Compilation'!$AN$67:$AS$67,0)) -> NA
C77: 13 | D77: Steel/Tin Cans | E77: =INDEX('8 LCI Data Compilation'!$D$66:$I$92,MATCH(D77,'8 LCI Data Compilation'!$C$66:$C$92,0),MATCH('4 SMM Input'!$E$3,'8 LCI Data Compilation'!$D$67:$I$67,0)) -> NA | F77: NA | G77: =INDEX('8 LCI Data Compilation'!$J$66:$O$92,MATCH(D77,'8 LCI Data Compilation'!$C$66:$C$92,0),MATCH('4 SMM Input'!$E$3,'8 LCI Data Compilation'!$J$67:$O$67,0)) -> NA | H77: =INDEX('8 LCI Data Compilation'!$P$66:$U$92,MATCH(D77,'8 LCI Data Compilation'!$C$66:$C$92,0),MATCH('4 SMM Input'!$E$3,'8 LCI Data Compilation'!$P$67:$U$67,0)) -> NA | I77: =INDEX('8 LCI Data Compilation'!$V$66:$AA$92,MATCH(D77,'8 LCI Data Compilation'!$C$66:$C$92,0),MATCH('4 SMM Input'!$E$3,'8 LCI Data Compilation'!$V$67:$AA$67,0)) -> NA | J77: =INDEX('8 LCI Data Compilation'!$AB$66:$AG$92,MATCH(D77,'8 LCI Data Compilation'!$C$66:$C$92,0),MATCH('4 SMM Input'!$E$3,'8 LCI Data Compilation'!$AB$67:$AG$67,0)) -> NA | K77: =INDEX('8 LCI Data Compilation'!$AH$66:$AM$92,MATCH(D77,'8 LCI Data Compilation'!$C$66:$C$92,0),MATCH('4 SMM Input'!$E$3,'8 LCI Data Compilation'!$AH$67:$AM$67,0)) -> NA | L77: =INDEX('8 LCI Data Compilation'!$AN$66:$AS$92,MATCH(D77,'8 LCI Data Compilation'!$C$66:$C$92,0),MATCH('4 SMM Input'!$E$3,'8 LCI Data Compilation'!$AN$67:$AS$67,0)) -> NA
C78: 14 | D78: Mixed Metals | E78: =INDEX('8 LCI Data Compilation'!$D$66:$I$92,MATCH(D78,'8 LCI Data Compilation'!$C$66:$C$92,0),MATCH('4 SMM Input'!$E$3,'8 LCI Data Compilation'!$D$67:$I$67,0)) -> NA | F78: NA | G78: =INDEX('8 LCI Data Compilation'!$J$66:$O$92,MATCH(D78,'8 LCI Data Compilation'!$C$66:$C$92,0),MATCH('4 SMM Input'!$E$3,'8 LCI Data Compilation'!$J$67:$O$67,0)) -> NA | H78: =INDEX('8 LCI Data Compilation'!$P$66:$U$92,MATCH(D78,'8 LCI Data Compilation'!$C$66:$C$92,0),MATCH('4 SMM Input'!$E$3,'8 LCI Data Compilation'!$P$67:$U$67,0)) -> NA | I78: =INDEX('8 LCI Data Compilation'!$V$66:$AA$92,MATCH(D78,'8 LCI Data Compilation'!$C$66:$C$92,0),MATCH('4 SMM Input'!$E$3,'8 LCI Data Compilation'!$V$67:$AA$67,0)) -> NA | J78: =INDEX('8 LCI Data Compilation'!$AB$66:$AG$92,MATCH(D78,'8 LCI Data Compilation'!$C$66:$C$92,0),MATCH('4 SMM Input'!$E$3,'8 LCI Data Compilation'!$AB$67:$AG$67,0)) -> NA | K78: =INDEX('8 LCI Data Compilation'!$AH$66:$AM$92,MATCH(D78,'8 LCI Data Compilation'!$C$66:$C$92,0),MATCH('4 SMM Input'!$E$3,'8 LCI Data Compilation'!$AH$67:$AM$67,0)) -> NA | L78: =INDEX('8 LCI Data Compilation'!$AN$66:$AS$92,MATCH(D78,'8 LCI Data Compilation'!$C$66:$C$92,0),MATCH('4 SMM Input'!$E$3,'8 LCI Data Compilation'!$AN$67:$AS$67,0)) -> NA
B79: Organic | C79: 15 | D79: Yard Waste | E79: =INDEX('8 LCI Data Compilation'!$D$66:$I$92,MATCH(D79,'8 LCI Data Compilation'!$C$66:$C$92,0),MATCH('4 SMM Input'!$E$3,'8 LCI Data Compilation'!$D$67:$I$67,0)) -> NA | F79: NA | G79: =INDEX('8 LCI Data Compilation'!$J$66:$O$92,MATCH(D79,'8 LCI Data Compilation'!$C$66:$C$92,0),MATCH('4 SMM Input'!$E$3,'8 LCI Data Compilation'!$J$67:$O$67,0)) -> NA | H79: =INDEX('8 LCI Data Compilation'!$P$66:$U$92,MATCH(D79,'8 LCI Data Compilation'!$C$66:$C$92,0),MATCH('4 SMM Input'!$E$3,'8 LCI Data Compilation'!$P$67:$U$67,0)) -> NA | I79: =INDEX('8 LCI Data Compilation'!$V$66:$AA$92,MATCH(D79,'8 LCI Data Compilation'!$C$66:$C$92,0),MATCH('4 SMM Input'!$E$3,'8 LCI Data Compilation'!$V$67:$AA$67,0)) -> NA | J79: =INDEX('8 LCI Data Compilation'!$AB$66:$AG$92,MATCH(D79,'8 LCI Data Compilation'!$C$66:$C$92,0),MATCH('4 SMM Input'!$E$3,'8 LCI Data Compilation'!$AB$67:$AG$67,0)) -> NA | K79: =INDEX('8 LCI Data Compilation'!$AH$66:$AM$92,MATCH(D79,'8 LCI Data Compilation'!$C$66:$C$92,0),MATCH('4 SMM Input'!$E$3,'8 LCI Data Compilation'!$AH$67:$AM$67,0)) -> NA | L79: =INDEX('8 LCI Data Compilation'!$AN$66:$AS$92,MATCH(D79,'8 LCI Data Compilation'!$C$66:$C$92,0),MATCH('4 SMM Input'!$E$3,'8 LCI Data Compilation'!$AN$67:$AS$67,0)) -> NA
C80: 16 | D80: Food Waste | E80: =INDEX('8 LCI Data Compilation'!$D$66:$I$92,MATCH(D80,'8 LCI Data Compilation'!$C$66:$C$92,0),MATCH('4 SMM Input'!$E$3,'8 LCI Data Compilation'!$D$67:$I$67,0)) -> NA | F80: =IFERROR(E80*-1,"NA") -> NA | G80: =INDEX('8 LCI Data Compilation'!$J$66:$O$92,MATCH(D80,'8 LCI Data Compilation'!$C$66:$C$92,0),MATCH('4 SMM Input'!$E$3,'8 LCI Data Compilation'!$J$67:$O$67,0)) -> NA | H80: =INDEX('8 LCI Data Compilation'!$P$66:$U$92,MATCH(D80,'8 LCI Data Compilation'!$C$66:$C$92,0),MATCH('4 SMM Input'!$E$3,'8 LCI Data Compilation'!$P$67:$U$67,0)) -> NA | I80: =INDEX('8 LCI Data Compilation'!$V$66:$AA$92,MATCH(D80,'8 LCI Data Compilation'!$C$66:$C$92,0),MATCH('4 SMM Input'!$E$3,'8 LCI Data Compilation'!$V$67:$AA$67,0)) -> NA | J80: =INDEX('8 LCI Data Compilation'!$AB$66:$AG$92,MATCH(D80,'8 LCI Data Compilation'!$C$66:$C$92,0),MATCH('4 SMM Input'!$E$3,'8 LCI Data Compilation'!$AB$67:$AG$67,0)) -> NA | K80: =INDEX('8 LCI Data Compilation'!$AH$66:$AM$92,MATCH(D80,'8 LCI Data Compilation'!$C$66:$C$92,0),MATCH('4 SMM Input'!$E$3,'8 LCI Data Compilation'!$AH$67:$AM$67,0)) -> NA | L80: =INDEX('8 LCI Data Compilation'!$AN$66:$AS$92,MATCH(D80,'8 LCI Data Compilation'!$C$66:$C$92,0),MATCH('4 SMM Input'!$E$3,'8 LCI Data Compilation'!$AN$67:$AS$67,0)) -> NA
B81: Other | C81: 17 | D81: Tires | E81: =INDEX('8 LCI Data Compilation'!$D$66:$I$92,MATCH(D81,'8 LCI Data Compilation'!$C$66:$C$92,0),MATCH('4 SMM Input'!$E$3,'8 LCI Data Compilation'!$D$67:$I$67,0)) -> NA | F81: NA | G81: =INDEX('8 LCI Data Compilation'!$J$66:$O$92,MATCH(D81,'8 LCI Data Compilation'!$C$66:$C$92,0),MATCH('4 SMM Input'!$E$3,'8 LCI Data Compilation'!$J$67:$O$67,0)) -> NA | H81: =INDEX('8 LCI Data Compilation'!$P$66:$U$92,MATCH(D81,'8 LCI Data Compilation'!$C$66:$C$92,0),MATCH('4 SMM Input'!$E$3,'8 LCI Data Compilation'!$P$67:$U$67,0)) -> NA | I81: =INDEX('8 LCI Data Compilation'!$V$66:$AA$92,MATCH(D81,'8 LCI Data Compilation'!$C$66:$C$92,0),MATCH('4 SMM Input'!$E$3,'8 LCI Data Compilation'!$V$67:$AA$67,0)) -> NA | J81: =INDEX('8 LCI Data Compilation'!$AB$66:$AG$92,MATCH(D81,'8 LCI Data Compilation'!$C$66:$C$92,0),MATCH('4 SMM Input'!$E$3,'8 LCI Data Compilation'!$AB$67:$AG$67,0)) -> NA | K81: =INDEX('8 LCI Data Compilation'!$AH$66:$AM$92,MATCH(D81,'8 LCI Data Compilation'!$C$66:$C$92,0),MATCH('4 SMM Input'!$E$3,'8 LCI Data Compilation'!$AH$67:$AM$67,0)) -> NA | L81: =INDEX('8 LCI Data Compilation'!$AN$66:$AS$92,MATCH(D81,'8 LCI Data Compilation'!$C$66:$C$92,0),MATCH('4 SMM Input'!$E$3,'8 LCI Data Compilation'!$AN$67:$AS$67,0)) -> NA
C82: 18 | D82: Clothing and Footwear | E82: =INDEX('8 LCI Data Compilation'!$D$66:$I$92,MATCH(D82,'8 LCI Data Compilation'!$C$66:$C$92,0),MATCH('4 SMM Input'!$E$3,'8 LCI Data Compilation'!$D$67:$I$67,0)) -> NA | F82: =IFERROR(E82*-1,"NA") -> NA | G82: =INDEX('8 LCI Data Compilation'!$J$66:$O$92,MATCH(D82,'8 LCI Data Compilation'!$C$66:$C$92,0),MATCH('4 SMM Input'!$E$3,'8 LCI Data Compilation'!$J$67:$O$67,0)) -> NA | H82: =INDEX('8 LCI Data Compilation'!$P$66:$U$92,MATCH(D82,'8 LCI Data Compilation'!$C$66:$C$92,0),MATCH('4 SMM Input'!$E$3,'8 LCI Data Compilation'!$P$67:$U$67,0)) -> NA | I82: =INDEX('8 LCI Data Compilation'!$V$66:$AA$92,MATCH(D82,'8 LCI Data Compilation'!$C$66:$C$92,0),MATCH('4 SMM Input'!$E$3,'8 LCI Data Compilation'!$V$67:$AA$67,0)) -> NA | J82: =INDEX('8 LCI Data Compilation'!$AB$66:$AG$92,MATCH(D82,'8 LCI Data Compilation'!$C$66:$C$92,0),MATCH('4 SMM Input'!$E$3,'8 LCI Data Compilation'!$AB$67:$AG$67,0)) -> NA | K82: =INDEX('8 LCI Data Compilation'!$AH$66:$AM$92,MATCH(D82,'8 LCI Data Compilation'!$C$66:$C$92,0),MATCH('4 SMM Input'!$E$3,'8 LCI Data Compilation'!$AH$67:$AM$67,0)) -> NA | L82: =INDEX('8 LCI Data Compilation'!$AN$66:$AS$92,MATCH(D82,'8 LCI Data Compilation'!$C$66:$C$92,0),MATCH('4 SMM Input'!$E$3,'8 LCI Data Compilation'!$AN$67:$AS$67,0)) -> NA
C83: 19 | D83: Furniture | E83: =INDEX('8 LCI Data Compilation'!$D$66:$I$92,MATCH(D83,'8 LCI Data Compilation'!$C$66:$C$92,0),MATCH('4 SMM Input'!$E$3,'8 LCI Data Compilation'!$D$67:$I$67,0)) -> NA | F83: =IFERROR(E83*-1,"NA") -> NA | G83: =INDEX('8 LCI Data Compilation'!$J$66:$O$92,MATCH(D83,'8 LCI Data Compilation'!$C$66:$C$92,0),MATCH('4 SMM Input'!$E$3,'8 LCI Data Compilation'!$J$67:$O$67,0)) -> NA | H83: =INDEX('8 LCI Data Compilation'!$P$66:$U$92,MATCH(D83,'8 LCI Data Compilation'!$C$66:$C$92,0),MATCH('4 SMM Input'!$E$3,'8 LCI Data Compilation'!$P$67:$U$67,0)) -> NA | I83: =INDEX('8 LCI Data Compilation'!$V$66:$AA$92,MATCH(D83,'8 LCI Data Compilation'!$C$66:$C$92,0),MATCH('4 SMM Input'!$E$3,'8 LCI Data Compilation'!$V$67:$AA$67,0)) -> NA | J83: =INDEX('8 LCI Data Compilation'!$AB$66:$AG$92,MATCH(D83,'8 LCI Data Compilation'!$C$66:$C$92,0),MATCH('4 SMM Input'!$E$3,'8 LCI Data Compilation'!$AB$67:$AG$67,0)) -> NA | K83: =INDEX('8 LCI Data Compilation'!$AH$66:$AM$92,MATCH(D83,'8 LCI Data Compilation'!$C$66:$C$92,0),MATCH('4 SMM Input'!$E$3,'8 LCI Data Compilation'!$AH$67:$AM$67,0)) -> NA | L83: =INDEX('8 LCI Data Compilation'!$AN$66:$AS$92,MATCH(D83,'8 LCI Data Compilation'!$C$66:$C$92,0),MATCH('4 SMM Input'!$E$3,'8 LCI Data Compilation'!$AN$67:$AS$67,0)) -> NA
C84: 20 | D84: Electronics | E84: =INDEX('8 LCI Data Compilation'!$D$66:$I$92,MATCH(D84,'8 LCI Data Compilation'!$C$66:$C$92,0),MATCH('4 SMM Input'!$E$3,'8 LCI Data Compilation'!$D$67:$I$67,0)) -> NA | F84: =IFERROR(E84*-1,"NA") -> NA | G84: =INDEX('8 LCI Data Compilation'!$J$66:$O$92,MATCH(D84,'8 LCI Data Compilation'!$C$66:$C$92,0),MATCH('4 SMM Input'!$E$3,'8 LCI Data Compilation'!$J$67:$O$67,0)) -> NA | H84: =INDEX('8 LCI Data Compilation'!$P$66:$U$92,MATCH(D84,'8 LCI Data Compilation'!$C$66:$C$92,0),MATCH('4 SMM Input'!$E$3,'8 LCI Data Compilation'!$P$67:$U$67,0)) -> NA | I84: =INDEX('8 LCI Data Compilation'!$V$66:$AA$92,MATCH(D84,'8 LCI Data Compilation'!$C$66:$C$92,0),MATCH('4 SMM Input'!$E$3,'8 LCI Data Compilation'!$V$67:$AA$67,0)) -> NA | J84: =INDEX('8 LCI Data Compilation'!$AB$66:$AG$92,MATCH(D84,'8 LCI Data Compilation'!$C$66:$C$92,0),MATCH('4 SMM Input'!$E$3,'8 LCI Data Compilation'!$AB$67:$AG$67,0)) -> NA | K84: =INDEX('8 LCI Data Compilation'!$AH$66:$AM$92,MATCH(D84,'8 LCI Data Compilation'!$C$66:$C$92,0),MATCH('4 SMM Input'!$E$3,'8 LCI Data Compilation'!$AH$67:$AM$67,0)) -> NA | L84: =INDEX('8 LCI Data Compilation'!$AN$66:$AS$92,MATCH(D84,'8 LCI Data Compilation'!$C$66:$C$92,0),MATCH('4 SMM Input'!$E$3,'8 LCI Data Compilation'!$AN$67:$AS$67,0)) -> NA
B85: C&D Debris | C85: 21 | D85: Wood Products | E85: =INDEX('8 LCI Data Compilation'!$D$66:$I$92,MATCH(D85,'8 LCI Data Compilation'!$C$66:$C$92,0),MATCH('4 SMM Input'!$E$3,'8 LCI Data Compilation'!$D$67:$I$67,0)) -> NA | F85: NA | G85: =INDEX('8 LCI Data Compilation'!$J$66:$O$92,MATCH(D85,'8 LCI Data Compilation'!$C$66:$C$92,0),MATCH('4 SMM Input'!$E$3,'8 LCI Data Compilation'!$J$67:$O$67,0)) -> NA | H85: =INDEX('8 LCI Data Compilation'!$P$66:$U$92,MATCH(D85,'8 LCI Data Compilation'!$C$66:$C$92,0),MATCH('4 SMM Input'!$E$3,'8 LCI Data Compilation'!$P$67:$U$67,0)) -> NA | I85: =INDEX('8 LCI Data Compilation'!$V$66:$AA$92,MATCH(D85,'8 LCI Data Compilation'!$C$66:$C$92,0),MATCH('4 SMM Input'!$E$3,'8 LCI Data Compilation'!$V$67:$AA$67,0)) -> NA | J85: =INDEX('8 LCI Data Compilation'!$AB$66:$AG$92,MATCH(D85,'8 LCI Data Compilation'!$C$66:$C$92,0),MATCH('4 SMM Input'!$E$3,'8 LCI Data Compilation'!$AB$67:$AG$67,0)) -> NA | K85: =INDEX('8 LCI Data Compilation'!$AH$66:$AM$92,MATCH(D85,'8 LCI Data Compilation'!$C$66:$C$92,0),MATCH('4 SMM Input'!$E$3,'8 LCI Data Compilation'!$AH$67:$AM$67,0)) -> NA | L85: =INDEX('8 LCI Data Compilation'!$AN$66:$AS$92,MATCH(D85,'8 LCI Data Compilation'!$C$66:$C$92,0),MATCH('4 SMM Input'!$E$3,'8 LCI Data Compilation'!$AN$67:$AS$67,0)) -> NA
C86: 22 | D86: Asphalt Shingles | E86: =INDEX('8 LCI Data Compilation'!$D$66:$I$92,MATCH(D86,'8 LCI Data Compilation'!$C$66:$C$92,0),MATCH('4 SMM Input'!$E$3,'8 LCI Data Compilation'!$D$67:$I$67,0)) -> NA | F86: NA | G86: =INDEX('8 LCI Data Compilation'!$J$66:$O$92,MATCH(D86,'8 LCI Data Compilation'!$C$66:$C$92,0),MATCH('4 SMM Input'!$E$3,'8 LCI Data Compilation'!$J$67:$O$67,0)) -> NA | H86: =INDEX('8 LCI Data Compilation'!$P$66:$U$92,MATCH(D86,'8 LCI Data Compilation'!$C$66:$C$92,0),MATCH('4 SMM Input'!$E$3,'8 LCI Data Compilation'!$P$67:$U$67,0)) -> NA | I86: =INDEX('8 LCI Data Compilation'!$V$66:$AA$92,MATCH(D86,'8 LCI Data Compilation'!$C$66:$C$92,0),MATCH('4 SMM Input'!$E$3,'8 LCI Data Compilation'!$V$67:$AA$67,0)) -> NA | J86: =INDEX('8 LCI Data Compilation'!$AB$66:$AG$92,MATCH(D86,'8 LCI Data Compilation'!$C$66:$C$92,0),MATCH('4 SMM Input'!$E$3,'8 LCI Data Compilation'!$AB$67:$AG$67,0)) -> NA | K86: =INDEX('8 LCI Data Compilation'!$AH$66:$AM$92,MATCH(D86,'8 LCI Data Compilation'!$C$66:$C$92,0),MATCH('4 SMM Input'!$E$3,'8 LCI Data Compilation'!$AH$67:$AM$67,0)) -> NA | L86: =INDEX('8 LCI Data Compilation'!$AN$66:$AS$92,MATCH(D86,'8 LCI Data Compilation'!$C$66:$C$92,0),MATCH('4 SMM Input'!$E$3,'8 LCI Data Compilation'!$AN$67:$AS$67,0)) -> NA
C87: 23 | D87: Gypsum Drywall | E87: =INDEX('8 LCI Data Compilation'!$D$66:$I$92,MATCH(D87,'8 LCI Data Compilation'!$C$66:$C$92,0),MATCH('4 SMM Input'!$E$3,'8 LCI Data Compilation'!$D$67:$I$67,0)) -> NA | F87: NA | G87: =INDEX('8 LCI Data Compilation'!$J$66:$O$92,MATCH(D87,'8 LCI Data Compilation'!$C$66:$C$92,0),MATCH('4 SMM Input'!$E$3,'8 LCI Data Compilation'!$J$67:$O$67,0)) -> NA | H87: =INDEX('8 LCI Data Compilation'!$P$66:$U$92,MATCH(D87,'8 LCI Data Compilation'!$C$66:$C$92,0),MATCH('4 SMM Input'!$E$3,'8 LCI Data Compilation'!$P$67:$U$67,0)) -> NA | I87: =INDEX('8 LCI Data Compilation'!$V$66:$AA$92,MATCH(D87,'8 LCI Data Compilation'!$C$66:$C$92,0),MATCH('4 SMM Input'!$E$3,'8 LCI Data Compilation'!$V$67:$AA$67,0)) -> NA | J87: =INDEX('8 LCI Data Compilation'!$AB$66:$AG$92,MATCH(D87,'8 LCI Data Compilation'!$C$66:$C$92,0),MATCH('4 SMM Input'!$E$3,'8 LCI Data Compilation'!$AB$67:$AG$67,0)) -> NA | K87: =INDEX('8 LCI Data Compilation'!$AH$66:$AM$92,MATCH(D87,'8 LCI Data Compilation'!$C$66:$C$92,0),MATCH('4 SMM Input'!$E$3,'8 LCI Data Compilation'!$AH$67:$AM$67,0)) -> NA | L87: =INDEX('8 LCI Data Compilation'!$AN$66:$AS$92,MATCH(D87,'8 LCI Data Compilation'!$C$66:$C$92,0),MATCH('4 SMM Input'!$E$3,'8 LCI Data Compilation'!$AN$67:$AS$67,0)) -> NA
C88: 24 | D88: Concrete | E88: =INDEX('8 LCI Data Compilation'!$D$66:$I$92,MATCH(D88,'8 LCI Data Compilation'!$C$66:$C$92,0),MATCH('4 SMM Input'!$E$3,'8 LCI Data Compilation'!$D$67:$I$67,0)) -> NA | F88: NA | G88: =INDEX('8 LCI Data Compilation'!$J$66:$O$92,MATCH(D88,'8 LCI Data Compilation'!$C$66:$C$92,0),MATCH('4 SMM Input'!$E$3,'8 LCI Data Compilation'!$J$67:$O$67,0)) -> NA | H88: =INDEX('8 LCI Data Compilation'!$P$66:$U$92,MATCH(D88,'8 LCI Data Compilation'!$C$66:$C$92,0),MATCH('4 SMM Input'!$E$3,'8 LCI Data Compilation'!$P$67:$U$67,0)) -> NA | I88: =INDEX('8 LCI Data Compilation'!$V$66:$AA$92,MATCH(D88,'8 LCI Data Compilation'!$C$66:$C$92,0),MATCH('4 SMM Input'!$E$3,'8 LCI Data Compilation'!$V$67:$AA$67,0)) -> NA | J88: =INDEX('8 LCI Data Compilation'!$AB$66:$AG$92,MATCH(D88,'8 LCI Data Compilation'!$C$66:$C$92,0),MATCH('4 SMM Input'!$E$3,'8 LCI Data Compilation'!$AB$67:$AG$67,0)) -> NA | K88: =INDEX('8 LCI Data Compilation'!$AH$66:$AM$92,MATCH(D88,'8 LCI Data Compilation'!$C$66:$C$92,0),MATCH('4 SMM Input'!$E$3,'8 LCI Data Compilation'!$AH$67:$AM$67,0)) -> NA | L88: =INDEX('8 LCI Data Compilation'!$AN$66:$AS$92,MATCH(D88,'8 LCI Data Compilation'!$C$66:$C$92,0),MATCH('4 SMM Input'!$E$3,'8 LCI Data Compilation'!$AN$67:$AS$67,0)) -> NA
C89: 25 | D89: Reclaimed Asphalt Pavement | E89: =INDEX('8 LCI Data Compilation'!$D$66:$I$92,MATCH(D89,'8 LCI Data Compilation'!$C$66:$C$92,0),MATCH('4 SMM Input'!$E$3,'8 LCI Data Compilation'!$D$67:$I$67,0)) -> NA | F89: NA | G89: =INDEX('8 LCI Data Compilation'!$J$66:$O$92,MATCH(D89,'8 LCI Data Compilation'!$C$66:$C$92,0),MATCH('4 SMM Input'!$E$3,'8 LCI Data Compilation'!$J$67:$O$67,0)) -> NA | H89: =INDEX('8 LCI Data Compilation'!$P$66:$U$92,MATCH(D89,'8 LCI Data Compilation'!$C$66:$C$92,0),MATCH('4 SMM Input'!$E$3,'8 LCI Data Compilation'!$P$67:$U$67,0)) -> NA | I89: =INDEX('8 LCI Data Compilation'!$V$66:$AA$92,MATCH(D89,'8 LCI Data Compilation'!$C$66:$C$92,0),MATCH('4 SMM Input'!$E$3,'8 LCI Data Compilation'!$V$67:$AA$67,0)) -> NA | J89: =INDEX('8 LCI Data Compilation'!$AB$66:$AG$92,MATCH(D89,'8 LCI Data Compilation'!$C$66:$C$92,0),MATCH('4 SMM Input'!$E$3,'8 LCI Data Compilation'!$AB$67:$AG$67,0)) -> NA | K89: =INDEX('8 LCI Data Compilation'!$AH$66:$AM$92,MATCH(D89,'8 LCI Data Compilation'!$C$66:$C$92,0),MATCH('4 SMM Input'!$E$3,'8 LCI Data Compilation'!$AH$67:$AM$67,0)) -> NA | L89: =INDEX('8 LCI Data Compilation'!$AN$66:$AS$92,MATCH(D89,'8 LCI Data Compilation'!$C$66:$C$92,0),MATCH('4 SMM Input'!$E$3,'8 LCI Data Compilation'!$AN$67:$AS$67,0)) -> NA
B92: All Units (CTUh/ Short Ton)
B93: ='5 SMM Results'!B96:M96 -> Human Toxicity (CTUh): Release of toxic materials to humans due to inhalation or ingestion by humans. The units are expressed as comparative toxic units (CTUh) which is interpreted as disease cases per kg of substance emitted. This is a measure of adverse impacts include causing cancer and other non-cancer diseases.
B94: Material Category | C94: Item No. | D94: Material Type | E94: Produced | F94: Donated | G94: Collection | H94: Recycling | I94: Composting | J94: Anaerobic Digestion | K94: Landfill | L94: Combustion
B95: MSW | C95: 1 | D95: Mixed MSW | E95: =INDEX('8 LCI Data Compilation'!$D$96:$I$122,MATCH(D95,'8 LCI Data Compilation'!$C$96:$C$122,0),MATCH('4 SMM Input'!$E$3,'8 LCI Data Compilation'!$D$97:$I$97,0)) -> NA | F95: NA | G95: =INDEX('8 LCI Data Compilation'!$J$96:$O$122,MATCH(D95,'8 LCI Data Compilation'!$C$96:$C$122,0),MATCH('4 SMM Input'!$E$3,'8 LCI Data Compilation'!$J$97:$O$97,0)) -> 1.287538808e-09 | H95: =INDEX('8 LCI Data Compilation'!$P$96:$U$122,MATCH(D95,'8 LCI Data Compilation'!$C$96:$C$122,0),MATCH('4 SMM Input'!$E$3,'8 LCI Data Compilation'!$P$97:$U$97,0)) -> NA | I95: =INDEX('8 LCI Data Compilation'!$V$96:$AA$122,MATCH(D95,'8 LCI Data Compilation'!$C$96:$C$122,0),MATCH('4 SMM Input'!$E$3,'8 LCI Data Compilation'!$V$97:$AA$97,0)) -> NA | J95: =INDEX('8 LCI Data Compilation'!$AB$96:$AG$122,MATCH(D95,'8 LCI Data Compilation'!$C$96:$C$122,0),MATCH('4 SMM Input'!$E$3,'8 LCI Data Compilation'!$AB$97:$AG$97,0)) -> NA | K95: =INDEX('8 LCI Data Compilation'!$AH$96:$AM$122,MATCH(D95,'8 LCI Data Compilation'!$C$96:$C$122,0),MATCH('4 SMM Input'!$E$3,'8 LCI Data Compilation'!$AH$97:$AM$97,0)) -> -7.927635527e-07 | L95: =INDEX('8 LCI Data Compilation'!$AN$96:$AS$122,MATCH(D95,'8 LCI Data Compilation'!$C$96:$C$122,0),MATCH('4 SMM Input'!$E$3,'8 LCI Data Compilation'!$AN$97:$AS$97,0)) -> -0.000171553863
B96: Paper | C96: 2 | D96: Newspaper | E96: =INDEX('8 LCI Data Compilation'!$D$96:$I$122,MATCH(D96,'8 LCI Data Compilation'!$C$96:$C$122,0),MATCH('4 SMM Input'!$E$3,'8 LCI Data Compilation'!$D$97:$I$97,0)) -> NA | F96: NA | G96: =INDEX('8 LCI Data Compilation'!$J$96:$O$122,MATCH(D96,'8 LCI Data Compilation'!$C$96:$C$122,0),MATCH('4 SMM Input'!$E$3,'8 LCI Data Compilation'!$J$97:$O$97,0)) -> 1.287538808e-09 | H96: =INDEX('8 LCI Data Compilation'!$P$96:$U$122,MATCH(D96,'8 LCI Data Compilation'!$C$96:$C$122,0),MATCH('4 SMM Input'!$E$3,'8 LCI Data Compilation'!$P$97:$U$97,0)) -> -2.500454521e-06 | I96: =INDEX('8 LCI Data Compilation'!$V$96:$AA$122,MATCH(D96,'8 LCI Data Compilation'!$C$96:$C$122,0),MATCH('4 SMM Input'!$E$3,'8 LCI Data Compilation'!$V$97:$AA$97,0)) -> NA | J96: =INDEX('8 LCI Data Compilation'!$AB$96:$AG$122,MATCH(D96,'8 LCI Data Compilation'!$C$96:$C$122,0),MATCH('4 SMM Input'!$E$3,'8 LCI Data Compilation'!$AB$97:$AG$97,0)) -> NA | K96: =INDEX('8 LCI Data Compilation'!$AH$96:$AM$122,MATCH(D96,'8 LCI Data Compilation'!$C$96:$C$122,0),MATCH('4 SMM Input'!$E$3,'8 LCI Data Compilation'!$AH$97:$AM$97,0)) -> -2.813970506e-07 | L96: =INDEX('8 LCI Data Compilation'!$AN$96:$AS$122,MATCH(D96,'8 LCI Data Compilation'!$C$96:$C$122,0),MATCH('4 SMM Input'!$E$3,'8 LCI Data Compilation'!$AN$97:$AS$97,0)) -> -0.001384983724
C97: 3 | D97: Corrugated Cardboard (OCC) | E97: =INDEX('8 LCI Data Compilation'!$D$96:$I$122,MATCH(D97,'8 LCI Data Compilation'!$C$96:$C$122,0),MATCH('4 SMM Input'!$E$3,'8 LCI Data Compilation'!$D$97:$I$97,0)) -> NA | F97: NA | G97: =INDEX('8 LCI Data Compilation'!$J$96:$O$122,MATCH(D97,'8 LCI Data Compilation'!$C$96:$C$122,0),MATCH('4 SMM Input'!$E$3,'8 LCI Data Compilation'!$J$97:$O$97,0)) -> 1.287538808e-09 | H97: =INDEX('8 LCI Data Compilation'!$P$96:$U$122,MATCH(D97,'8 LCI Data Compilation'!$C$96:$C$122,0),MATCH('4 SMM Input'!$E$3,'8 LCI Data Compilation'!$P$97:$U$97,0)) -> -5.029498746e-06 | I97: =INDEX('8 LCI Data Compilation'!$V$96:$AA$122,MATCH(D97,'8 LCI Data Compilation'!$C$96:$C$122,0),MATCH('4 SMM Input'!$E$3,'8 LCI Data Compilation'!$V$97:$AA$97,0)) -> NA | J97: =INDEX('8 LCI Data Compilation'!$AB$96:$AG$122,MATCH(D97,'8 LCI Data Compilation'!$C$96:$C$122,0),MATCH('4 SMM Input'!$E$3,'8 LCI Data Compilation'!$AB$97:$AG$97,0)) -> NA | K97: =INDEX('8 LCI Data Compilation'!$AH$96:$AM$122,MATCH(D97,'8 LCI Data Compilation'!$C$96:$C$122,0),MATCH('4 SMM Input'!$E$3,'8 LCI Data Compilation'!$AH$97:$AM$97,0)) -> -7.574861038e-07 | L97: =INDEX('8 LCI Data Compilation'!$AN$96:$AS$122,MATCH(D97,'8 LCI Data Compilation'!$C$96:$C$122,0),MATCH('4 SMM Input'!$E$3,'8 LCI Data Compilation'!$AN$97:$AS$97,0)) -> -0.001268460351
C98: 4 | D98: High Grade Paper (Office Type Paper) | E98: =INDEX('8 LCI Data Compilation'!$D$96:$I$122,MATCH(D98,'8 LCI Data Compilation'!$C$96:$C$122,0),MATCH('4 SMM Input'!$E$3,'8 LCI Data Compilation'!$D$97:$I$97,0)) -> NA | F98: NA | G98: =INDEX('8 LCI Data Compilation'!$J$96:$O$122,MATCH(D98,'8 LCI Data Compilation'!$C$96:$C$122,0),MATCH('4 SMM Input'!$E$3,'8 LCI Data Compilation'!$J$97:$O$97,0)) -> 1.287538808e-09 | H98: =INDEX('8 LCI Data Compilation'!$P$96:$U$122,MATCH(D98,'8 LCI Data Compilation'!$C$96:$C$122,0),MATCH('4 SMM Input'!$E$3,'8 LCI Data Compilation'!$P$97:$U$97,0)) -> 2.160930668e-07 | I98: =INDEX('8 LCI Data Compilation'!$V$96:$AA$122,MATCH(D98,'8 LCI Data Compilation'!$C$96:$C$122,0),MATCH('4 SMM Input'!$E$3,'8 LCI Data Compilation'!$V$97:$AA$97,0)) -> NA | J98: =INDEX('8 LCI Data Compilation'!$AB$96:$AG$122,MATCH(D98,'8 LCI Data Compilation'!$C$96:$C$122,0),MATCH('4 SMM Input'!$E$3,'8 LCI Data Compilation'!$AB$97:$AG$97,0)) -> NA | K98: =INDEX('8 LCI Data Compilation'!$AH$96:$AM$122,MATCH(D98,'8 LCI Data Compilation'!$C$96:$C$122,0),MATCH('4 SMM Input'!$E$3,'8 LCI Data Compilation'!$AH$97:$AM$97,0)) -> -1.021978918e-06 | L98: =INDEX('8 LCI Data Compilation'!$AN$96:$AS$122,MATCH(D98,'8 LCI Data Compilation'!$C$96:$C$122,0),MATCH('4 SMM Input'!$E$3,'8 LCI Data Compilation'!$AN$97:$AS$97,0)) -> -0.001160036722
C99: 5 | D99: Magazines/third-class mail | E99: =INDEX('8 LCI Data Compilation'!$D$96:$I$122,MATCH(D99,'8 LCI Data Compilation'!$C$96:$C$122,0),MATCH('4 SMM Input'!$E$3,'8 LCI Data Compilation'!$D$97:$I$97,0)) -> NA | F99: NA | G99: =INDEX('8 LCI Data Compilation'!$J$96:$O$122,MATCH(D99,'8 LCI Data Compilation'!$C$96:$C$122,0),MATCH('4 SMM Input'!$E$3,'8 LCI Data Compilation'!$J$97:$O$97,0)) -> 1.287538808e-09 | H99: =INDEX('8 LCI Data Compilation'!$P$96:$U$122,MATCH(D99,'8 LCI Data Compilation'!$C$96:$C$122,0),MATCH('4 SMM Input'!$E$3,'8 LCI Data Compilation'!$P$97:$U$97,0)) -> 1.587055554e-07 | I99: =INDEX('8 LCI Data Compilation'!$V$96:$AA$122,MATCH(D99,'8 LCI Data Compilation'!$C$96:$C$122,0),MATCH('4 SMM Input'!$E$3,'8 LCI Data Compilation'!$V$97:$AA$97,0)) -> NA | J99: =INDEX('8 LCI Data Compilation'!$AB$96:$AG$122,MATCH(D99,'8 LCI Data Compilation'!$C$96:$C$122,0),MATCH('4 SMM Input'!$E$3,'8 LCI Data Compilation'!$AB$97:$AG$97,0)) -> NA | K99: =INDEX('8 LCI Data Compilation'!$AH$96:$AM$122,MATCH(D99,'8 LCI Data Compilation'!$C$96:$C$122,0),MATCH('4 SMM Input'!$E$3,'8 LCI Data Compilation'!$AH$97:$AM$97,0)) -> -3.963064094e-07 | L99: =INDEX('8 LCI Data Compilation'!$AN$96:$AS$122,MATCH(D99,'8 LCI Data Compilation'!$C$96:$C$122,0),MATCH('4 SMM Input'!$E$3,'8 LCI Data Compilation'!$AN$97:$AS$97,0)) -> -0.001005445714
C100: 6 | D100: Books | E100: =INDEX('8 LCI Data Compilation'!$D$96:$I$122,MATCH(D100,'8 LCI Data Compilation'!$C$96:$C$122,0),MATCH('4 SMM Input'!$E$3,'8 LCI Data Compilation'!$D$97:$I$97,0)) -> NA | F100: NA | G100: =INDEX('8 LCI Data Compilation'!$J$96:$O$122,MATCH(D100,'8 LCI Data Compilation'!$C$96:$C$122,0),MATCH('4 SMM Input'!$E$3,'8 LCI Data Compilation'!$J$97:$O$97,0)) -> 1.287538808e-09 | H100: =INDEX('8 LCI Data Compilation'!$P$96:$U$122,MATCH(D100,'8 LCI Data Compilation'!$C$96:$C$122,0),MATCH('4 SMM Input'!$E$3,'8 LCI Data Compilation'!$P$97:$U$97,0)) -> NA | I100: =INDEX('8 LCI Data Compilation'!$V$96:$AA$122,MATCH(D100,'8 LCI Data Compilation'!$C$96:$C$122,0),MATCH('4 SMM Input'!$E$3,'8 LCI Data Compilation'!$V$97:$AA$97,0)) -> NA | J100: =INDEX('8 LCI Data Compilation'!$AB$96:$AG$122,MATCH(D100,'8 LCI Data Compilation'!$C$96:$C$122,0),MATCH('4 SMM Input'!$E$3,'8 LCI Data Compilation'!$AB$97:$AG$97,0)) -> NA | K100: =INDEX('8 LCI Data Compilation'!$AH$96:$AM$122,MATCH(D100,'8 LCI Data Compilation'!$C$96:$C$122,0),MATCH('4 SMM Input'!$E$3,'8 LCI Data Compilation'!$AH$97:$AM$97,0)) -> -2.804286853e-07 | L100: =INDEX('8 LCI Data Compilation'!$AN$96:$AS$122,MATCH(D100,'8 LCI Data Compilation'!$C$96:$C$122,0),MATCH('4 SMM Input'!$E$3,'8 LCI Data Compilation'!$AN$97:$AS$97,0)) -> -0.001143050955
C101: 7 | D101: Mixed Paper | E101: =INDEX('8 LCI Data Compilation'!$D$96:$I$122,MATCH(D101,'8 LCI Data Compilation'!$C$96:$C$122,0),MATCH('4 SMM Input'!$E$3,'8 LCI Data Compilation'!$D$97:$I$97,0)) -> NA | F101: NA | G101: =INDEX('8 LCI Data Compilation'!$J$96:$O$122,MATCH(D101,'8 LCI Data Compilation'!$C$96:$C$122,0),MATCH('4 SMM Input'!$E$3,'8 LCI Data Compilation'!$J$97:$O$97,0)) -> 1.287538808e-09 | H101: =INDEX('8 LCI Data Compilation'!$P$96:$U$122,MATCH(D101,'8 LCI Data Compilation'!$C$96:$C$122,0),MATCH('4 SMM Input'!$E$3,'8 LCI Data Compilation'!$P$97:$U$97,0)) -> -1.788788661e-06 | I101: =INDEX('8 LCI Data Compilation'!$V$96:$AA$122,MATCH(D101,'8 LCI Data Compilation'!$C$96:$C$122,0),MATCH('4 SMM Input'!$E$3,'8 LCI Data Compilation'!$V$97:$AA$97,0)) -> NA | J101: =INDEX('8 LCI Data Compilation'!$AB$96:$AG$122,MATCH(D101,'8 LCI Data Compilation'!$C$96:$C$122,0),MATCH('4 SMM Input'!$E$3,'8 LCI Data Compilation'!$AB$97:$AG$97,0)) -> NA | K101: =INDEX('8 LCI Data Compilation'!$AH$96:$AM$122,MATCH(D101,'8 LCI Data Compilation'!$C$96:$C$122,0),MATCH('4 SMM Input'!$E$3,'8 LCI Data Compilation'!$AH$97:$AM$97,0)) -> -6.142921205e-07 | L101: =INDEX('8 LCI Data Compilation'!$AN$96:$AS$122,MATCH(D101,'8 LCI Data Compilation'!$C$96:$C$122,0),MATCH('4 SMM Input'!$E$3,'8 LCI Data Compilation'!$AN$97:$AS$97,0)) -> -0.001204731628
B102: Plastic | C102: 8 | D102: HDPE | E102: =INDEX('8 LCI Data Compilation'!$D$96:$I$122,MATCH(D102,'8 LCI Data Compilation'!$C$96:$C$122,0),MATCH('4 SMM Input'!$E$3,'8 LCI Data Compilation'!$D$97:$I$97,0)) -> NA | F102: NA | G102: =INDEX('8 LCI Data Compilation'!$J$96:$O$122,MATCH(D102,'8 LCI Data Compilation'!$C$96:$C$122,0),MATCH('4 SMM Input'!$E$3,'8 LCI Data Compilation'!$J$97:$O$97,0)) -> 1.287538808e-09 | H102: =INDEX('8 LCI Data Compilation'!$P$96:$U$122,MATCH(D102,'8 LCI Data Compilation'!$C$96:$C$122,0),MATCH('4 SMM Input'!$E$3,'8 LCI Data Compilation'!$P$97:$U$97,0)) -> 3.181980914e-07 | I102: =INDEX('8 LCI Data Compilation'!$V$96:$AA$122,MATCH(D102,'8 LCI Data Compilation'!$C$96:$C$122,0),MATCH('4 SMM Input'!$E$3,'8 LCI Data Compilation'!$V$97:$AA$97,0)) -> NA | J102: =INDEX('8 LCI Data Compilation'!$AB$96:$AG$122,MATCH(D102,'8 LCI Data Compilation'!$C$96:$C$122,0),MATCH('4 SMM Input'!$E$3,'8 LCI Data Compilation'!$AB$97:$AG$97,0)) -> NA | K102: =INDEX('8 LCI Data Compilation'!$AH$96:$AM$122,MATCH(D102,'8 LCI Data Compilation'!$C$96:$C$122,0),MATCH('4 SMM Input'!$E$3,'8 LCI Data Compilation'!$AH$97:$AM$97,0)) -> 4.280241231e-10 | L102: =INDEX('8 LCI Data Compilation'!$AN$96:$AS$122,MATCH(D102,'8 LCI Data Compilation'!$C$96:$C$122,0),MATCH('4 SMM Input'!$E$3,'8 LCI Data Compilation'!$AN$97:$AS$97,0)) -> -0.003417678167
C103: 9 | D103: PET | E103: =INDEX('8 LCI Data Compilation'!$D$96:$I$122,MATCH(D103,'8 LCI Data Compilation'!$C$96:$C$122,0),MATCH('4 SMM Input'!$E$3,'8 LCI Data Compilation'!$D$97:$I$97,0)) -> NA | F103: NA | G103: =INDEX('8 LCI Data Compilation'!$J$96:$O$122,MATCH(D103,'8 LCI Data Compilation'!$C$96:$C$122,0),MATCH('4 SMM Input'!$E$3,'8 LCI Data Compilation'!$J$97:$O$97,0)) -> 1.287538808e-09 | H103: =INDEX('8 LCI Data Compilation'!$P$96:$U$122,MATCH(D103,'8 LCI Data Compilation'!$C$96:$C$122,0),MATCH('4 SMM Input'!$E$3,'8 LCI Data Compilation'!$P$97:$U$97,0)) -> 2.983327013e-07 | I103: =INDEX('8 LCI Data Compilation'!$V$96:$AA$122,MATCH(D103,'8 LCI Data Compilation'!$C$96:$C$122,0),MATCH('4 SMM Input'!$E$3,'8 LCI Data Compilation'!$V$97:$AA$97,0)) -> NA | J103: =INDEX('8 LCI Data Compilation'!$AB$96:$AG$122,MATCH(D103,'8 LCI Data Compilation'!$C$96:$C$122,0),MATCH('4 SMM Input'!$E$3,'8 LCI Data Compilation'!$AB$97:$AG$97,0)) -> NA | K103: =INDEX('8 LCI Data Compilation'!$AH$96:$AM$122,MATCH(D103,'8 LCI Data Compilation'!$C$96:$C$122,0),MATCH('4 SMM Input'!$E$3,'8 LCI Data Compilation'!$AH$97:$AM$97,0)) -> 4.280241231e-10 | L103: =INDEX('8 LCI Data Compilation'!$AN$96:$AS$122,MATCH(D103,'8 LCI Data Compilation'!$C$96:$C$122,0),MATCH('4 SMM Input'!$E$3,'8 LCI Data Compilation'!$AN$97:$AS$97,0)) -> -0.003417714935
C104: 10 | D104: Mixed Plastic | E104: =INDEX('8 LCI Data Compilation'!$D$96:$I$122,MATCH(D104,'8 LCI Data Compilation'!$C$96:$C$122,0),MATCH('4 SMM Input'!$E$3,'8 LCI Data Compilation'!$D$97:$I$97,0)) -> NA | F104: NA | G104: =INDEX('8 LCI Data Compilation'!$J$96:$O$122,MATCH(D104,'8 LCI Data Compilation'!$C$96:$C$122,0),MATCH('4 SMM Input'!$E$3,'8 LCI Data Compilation'!$J$97:$O$97,0)) -> 1.287538808e-09 | H104: =INDEX('8 LCI Data Compilation'!$P$96:$U$122,MATCH(D104,'8 LCI Data Compilation'!$C$96:$C$122,0),MATCH('4 SMM Input'!$E$3,'8 LCI Data Compilation'!$P$97:$U$97,0)) -> 3.082653964e-07 | I104: =INDEX('8 LCI Data Compilation'!$V$96:$AA$122,MATCH(D104,'8 LCI Data Compilation'!$C$96:$C$122,0),MATCH('4 SMM Input'!$E$3,'8 LCI Data Compilation'!$V$97:$AA$97,0)) -> NA | J104: =INDEX('8 LCI Data Compilation'!$AB$96:$AG$122,MATCH(D104,'8 LCI Data Compilation'!$C$96:$C$122,0),MATCH('4 SMM Input'!$E$3,'8 LCI Data Compilation'!$AB$97:$AG$97,0)) -> NA | K104: =INDEX('8 LCI Data Compilation'!$AH$96:$AM$122,MATCH(D104,'8 LCI Data Compilation'!$C$96:$C$122,0),MATCH('4 SMM Input'!$E$3,'8 LCI Data Compilation'!$AH$97:$AM$97,0)) -> 4.280241231e-10 | L104: =INDEX('8 LCI Data Compilation'!$AN$96:$AS$122,MATCH(D104,'8 LCI Data Compilation'!$C$96:$C$122,0),MATCH('4 SMM Input'!$E$3,'8 LCI Data Compilation'!$AN$97:$AS$97,0)) -> -0.003417696551
B105: Glass | C105: 11 | D105: Glass | E105: =INDEX('8 LCI Data Compilation'!$D$96:$I$122,MATCH(D105,'8 LCI Data Compilation'!$C$96:$C$122,0),MATCH('4 SMM Input'!$E$3,'8 LCI Data Compilation'!$D$97:$I$97,0)) -> NA | F105: NA | G105: =INDEX('8 LCI Data Compilation'!$J$96:$O$122,MATCH(D105,'8 LCI Data Compilation'!$C$96:$C$122,0),MATCH('4 SMM Input'!$E$3,'8 LCI Data Compilation'!$J$97:$O$97,0)) -> 1.287538808e-09 | H105: =INDEX('8 LCI Data Compilation'!$P$96:$U$122,MATCH(D105,'8 LCI Data Compilation'!$C$96:$C$122,0),MATCH('4 SMM Input'!$E$3,'8 LCI Data Compilation'!$P$97:$U$97,0)) -> -5.698540766e-09 | I105: =INDEX('8 LCI Data Compilation'!$V$96:$AA$122,MATCH(D105,'8 LCI Data Compilation'!$C$96:$C$122,0),MATCH('4 SMM Input'!$E$3,'8 LCI Data Compilation'!$V$97:$AA$97,0)) -> NA | J105: =INDEX('8 LCI Data Compilation'!$AB$96:$AG$122,MATCH(D105,'8 LCI Data Compilation'!$C$96:$C$122,0),MATCH('4 SMM Input'!$E$3,'8 LCI Data Compilation'!$AB$97:$AG$97,0)) -> NA | K105: =INDEX('8 LCI Data Compilation'!$AH$96:$AM$122,MATCH(D105,'8 LCI Data Compilation'!$C$96:$C$122,0),MATCH('4 SMM Input'!$E$3,'8 LCI Data Compilation'!$AH$97:$AM$97,0)) -> 4.280241231e-10 | L105: =INDEX('8 LCI Data Compilation'!$AN$96:$AS$122,MATCH(D105,'8 LCI Data Compilation'!$C$96:$C$122,0),MATCH('4 SMM Input'!$E$3,'8 LCI Data Compilation'!$AN$97:$AS$97,0)) -> 3.537932977e-05
B106: Metals | C106: 12 | D106: Aluminum Cans | E106: =INDEX('8 LCI Data Compilation'!$D$96:$I$122,MATCH(D106,'8 LCI Data Compilation'!$C$96:$C$122,0),MATCH('4 SMM Input'!$E$3,'8 LCI Data Compilation'!$D$97:$I$97,0)) -> NA | F106: NA | G106: =INDEX('8 LCI Data Compilation'!$J$96:$O$122,MATCH(D106,'8 LCI Data Compilation'!$C$96:$C$122,0),MATCH('4 SMM Input'!$E$3,'8 LCI Data Compilation'!$J$97:$O$97,0)) -> 1.287538808e-09 | H106: =INDEX('8 LCI Data Compilation'!$P$96:$U$122,MATCH(D106,'8 LCI Data Compilation'!$C$96:$C$122,0),MATCH('4 SMM Input'!$E$3,'8 LCI Data Compilation'!$P$97:$U$97,0)) -> -3.685006545e-06 | I106: =INDEX('8 LCI Data Compilation'!$V$96:$AA$122,MATCH(D106,'8 LCI Data Compilation'!$C$96:$C$122,0),MATCH('4 SMM Input'!$E$3,'8 LCI Data Compilation'!$V$97:$AA$97,0)) -> NA | J106: =INDEX('8 LCI Data Compilation'!$AB$96:$AG$122,MATCH(D106,'8 LCI Data Compilation'!$C$96:$C$122,0),MATCH('4 SMM Input'!$E$3,'8 LCI Data Compilation'!$AB$97:$AG$97,0)) -> NA | K106: =INDEX('8 LCI Data Compilation'!$AH$96:$AM$122,MATCH(D106,'8 LCI Data Compilation'!$C$96:$C$122,0),MATCH('4 SMM Input'!$E$3,'8 LCI Data Compilation'!$AH$97:$AM$97,0)) -> 4.280241231e-10 | L106: =INDEX('8 LCI Data Compilation'!$AN$96:$AS$122,MATCH(D106,'8 LCI Data Compilation'!$C$96:$C$122,0),MATCH('4 SMM Input'!$E$3,'8 LCI Data Compilation'!$AN$97:$AS$97,0)) -> 2.412565568e-05
C107: 13 | D107: Steel/Tin Cans | E107: =INDEX('8 LCI Data Compilation'!$D$96:$I$122,MATCH(D107,'8 LCI Data Compilation'!$C$96:$C$122,0),MATCH('4 SMM Input'!$E$3,'8 LCI Data Compilation'!$D$97:$I$97,0)) -> NA | F107: NA | G107: =INDEX('8 LCI Data Compilation'!$J$96:$O$122,MATCH(D107,'8 LCI Data Compilation'!$C$96:$C$122,0),MATCH('4 SMM Input'!$E$3,'8 LCI Data Compilation'!$J$97:$O$97,0)) -> 1.287538808e-09 | H107: =INDEX('8 LCI Data Compilation'!$P$96:$U$122,MATCH(D107,'8 LCI Data Compilation'!$C$96:$C$122,0),MATCH('4 SMM Input'!$E$3,'8 LCI Data Compilation'!$P$97:$U$97,0)) -> 6.193000565e-06 | I107: =INDEX('8 LCI Data Compilation'!$V$96:$AA$122,MATCH(D107,'8 LCI Data Compilation'!$C$96:$C$122,0),MATCH('4 SMM Input'!$E$3,'8 LCI Data Compilation'!$V$97:$AA$97,0)) -> NA | J107: =INDEX('8 LCI Data Compilation'!$AB$96:$AG$122,MATCH(D107,'8 LCI Data Compilation'!$C$96:$C$122,0),MATCH('4 SMM Input'!$E$3,'8 LCI Data Compilation'!$AB$97:$AG$97,0)) -> NA | K107: =INDEX('8 LCI Data Compilation'!$AH$96:$AM$122,MATCH(D107,'8 LCI Data Compilation'!$C$96:$C$122,0),MATCH('4 SMM Input'!$E$3,'8 LCI Data Compilation'!$AH$97:$AM$97,0)) -> 4.280241231e-10 | L107: =INDEX('8 LCI Data Compilation'!$AN$96:$AS$122,MATCH(D107,'8 LCI Data Compilation'!$C$96:$C$122,0),MATCH('4 SMM Input'!$E$3,'8 LCI Data Compilation'!$AN$97:$AS$97,0)) -> 0.002591198347
C108: 14 | D108: Mixed Metals | E108: =INDEX('8 LCI Data Compilation'!$D$96:$I$122,MATCH(D108,'8 LCI Data Compilation'!$C$96:$C$122,0),MATCH('4 SMM Input'!$E$3,'8 LCI Data Compilation'!$D$97:$I$97,0)) -> NA | F108: NA | G108: =INDEX('8 LCI Data Compilation'!$J$96:$O$122,MATCH(D108,'8 LCI Data Compilation'!$C$96:$C$122,0),MATCH('4 SMM Input'!$E$3,'8 LCI Data Compilation'!$J$97:$O$97,0)) -> 1.287538808e-09 | H108: =INDEX('8 LCI Data Compilation'!$P$96:$U$122,MATCH(D108,'8 LCI Data Compilation'!$C$96:$C$122,0),MATCH('4 SMM Input'!$E$3,'8 LCI Data Compilation'!$P$97:$U$97,0)) -> 1.257362808e-06 | I108: =INDEX('8 LCI Data Compilation'!$V$96:$AA$122,MATCH(D108,'8 LCI Data Compilation'!$C$96:$C$122,0),MATCH('4 SMM Input'!$E$3,'8 LCI Data Compilation'!$V$97:$AA$97,0)) -> NA | J108: =INDEX('8 LCI Data Compilation'!$AB$96:$AG$122,MATCH(D108,'8 LCI Data Compilation'!$C$96:$C$122,0),MATCH('4 SMM Input'!$E$3,'8 LCI Data Compilation'!$AB$97:$AG$97,0)) -> NA | K108: =INDEX('8 LCI Data Compilation'!$AH$96:$AM$122,MATCH(D108,'8 LCI Data Compilation'!$C$96:$C$122,0),MATCH('4 SMM Input'!$E$3,'8 LCI Data Compilation'!$AH$97:$AM$97,0)) -> 4.280241231e-10 | L108: =INDEX('8 LCI Data Compilation'!$AN$96:$AS$122,MATCH(D108,'8 LCI Data Compilation'!$C$96:$C$122,0),MATCH('4 SMM Input'!$E$3,'8 LCI Data Compilation'!$AN$97:$AS$97,0)) -> 0.001415279451
B109: Organic | C109: 15 | D109: Yard Waste | E109: =INDEX('8 LCI Data Compilation'!$D$96:$I$122,MATCH(D109,'8 LCI Data Compilation'!$C$96:$C$122,0),MATCH('4 SMM Input'!$E$3,'8 LCI Data Compilation'!$D$97:$I$97,0)) -> NA | F109: NA | G109: =INDEX('8 LCI Data Compilation'!$J$96:$O$122,MATCH(D109,'8 LCI Data Compilation'!$C$96:$C$122,0),MATCH('4 SMM Input'!$E$3,'8 LCI Data Compilation'!$J$97:$O$97,0)) -> 1.287538808e-09 | H109: =INDEX('8 LCI Data Compilation'!$P$96:$U$122,MATCH(D109,'8 LCI Data Compilation'!$C$96:$C$122,0),MATCH('4 SMM Input'!$E$3,'8 LCI Data Compilation'!$P$97:$U$97,0)) -> NA | I109: =INDEX('8 LCI Data Compilation'!$V$96:$AA$122,MATCH(D109,'8 LCI Data Compilation'!$C$96:$C$122,0),MATCH('4 SMM Input'!$E$3,'8 LCI Data Compilation'!$V$97:$AA$97,0)) -> 1.452800256e-07 | J109: =INDEX('8 LCI Data Compilation'!$AB$96:$AG$122,MATCH(D109,'8 LCI Data Compilation'!$C$96:$C$122,0),MATCH('4 SMM Input'!$E$3,'8 LCI Data Compilation'!$AB$97:$AG$97,0)) -> NA | K109: =INDEX('8 LCI Data Compilation'!$AH$96:$AM$122,MATCH(D109,'8 LCI Data Compilation'!$C$96:$C$122,0),MATCH('4 SMM Input'!$E$3,'8 LCI Data Compilation'!$AH$97:$AM$97,0)) -> -1.571197726e-07 | L109: =INDEX('8 LCI Data Compilation'!$AN$96:$AS$122,MATCH(D109,'8 LCI Data Compilation'!$C$96:$C$122,0),MATCH('4 SMM Input'!$E$3,'8 LCI Data Compilation'!$AN$97:$AS$97,0)) -> -0.0006722435225
C110: 16 | D110: Food Waste | E110: =INDEX('8 LCI Data Compilation'!$D$96:$I$122,MATCH(D110,'8 LCI Data Compilation'!$C$96:$C$122,0),MATCH('4 SMM Input'!$E$3,'8 LCI Data Compilation'!$D$97:$I$97,0)) -> NA | F110: =IFERROR(E110*-1,"NA") -> NA | G110: =INDEX('8 LCI Data Compilation'!$J$96:$O$122,MATCH(D110,'8 LCI Data Compilation'!$C$96:$C$122,0),MATCH('4 SMM Input'!$E$3,'8 LCI Data Compilation'!$J$97:$O$97,0)) -> 1.287538808e-09 | H110: =INDEX('8 LCI Data Compilation'!$P$96:$U$122,MATCH(D110,'8 LCI Data Compilation'!$C$96:$C$122,0),MATCH('4 SMM Input'!$E$3,'8 LCI Data Compilation'!$P$97:$U$97,0)) -> NA | I110: =INDEX('8 LCI Data Compilation'!$V$96:$AA$122,MATCH(D110,'8 LCI Data Compilation'!$C$96:$C$122,0),MATCH('4 SMM Input'!$E$3,'8 LCI Data Compilation'!$V$97:$AA$97,0)) -> 5.717883833e-08 | J110: =INDEX('8 LCI Data Compilation'!$AB$96:$AG$122,MATCH(D110,'8 LCI Data Compilation'!$C$96:$C$122,0),MATCH('4 SMM Input'!$E$3,'8 LCI Data Compilation'!$AB$97:$AG$97,0)) -> NA | K110: =INDEX('8 LCI Data Compilation'!$AH$96:$AM$122,MATCH(D110,'8 LCI Data Compilation'!$C$96:$C$122,0),MATCH('4 SMM Input'!$E$3,'8 LCI Data Compilation'!$AH$97:$AM$97,0)) -> -3.586996096e-07 | L110: =INDEX('8 LCI Data Compilation'!$AN$96:$AS$122,MATCH(D110,'8 LCI Data Compilation'!$C$96:$C$122,0),MATCH('4 SMM Input'!$E$3,'8 LCI Data Compilation'!$AN$97:$AS$97,0)) -> -0.0002979645514
B111: Other | C111: 17 | D111: Tires | E111: =INDEX('8 LCI Data Compilation'!$D$96:$I$122,MATCH(D111,'8 LCI Data Compilation'!$C$96:$C$122,0),MATCH('4 SMM Input'!$E$3,'8 LCI Data Compilation'!$D$97:$I$97,0)) -> NA | F111: NA | G111: =INDEX('8 LCI Data Compilation'!$J$96:$O$122,MATCH(D111,'8 LCI Data Compilation'!$C$96:$C$122,0),MATCH('4 SMM Input'!$E$3,'8 LCI Data Compilation'!$J$97:$O$97,0)) -> NA | H111: =INDEX('8 LCI Data Compilation'!$P$96:$U$122,MATCH(D111,'8 LCI Data Compilation'!$C$96:$C$122,0),MATCH('4 SMM Input'!$E$3,'8 LCI Data Compilation'!$P$97:$U$97,0)) -> NA | I111: =INDEX('8 LCI Data Compilation'!$V$96:$AA$122,MATCH(D111,'8 LCI Data Compilation'!$C$96:$C$122,0),MATCH('4 SMM Input'!$E$3,'8 LCI Data Compilation'!$V$97:$AA$97,0)) -> NA | J111: =INDEX('8 LCI Data Compilation'!$AB$96:$AG$122,MATCH(D111,'8 LCI Data Compilation'!$C$96:$C$122,0),MATCH('4 SMM Input'!$E$3,'8 LCI Data Compilation'!$AB$97:$AG$97,0)) -> NA | K111: =INDEX('8 LCI Data Compilation'!$AH$96:$AM$122,MATCH(D111,'8 LCI Data Compilation'!$C$96:$C$122,0),MATCH('4 SMM Input'!$E$3,'8 LCI Data Compilation'!$AH$97:$AM$97,0)) -> NA | L111: =INDEX('8 LCI Data Compilation'!$AN$96:$AS$122,MATCH(D111,'8 LCI Data Compilation'!$C$96:$C$122,0),MATCH('4 SMM Input'!$E$3,'8 LCI Data Compilation'!$AN$97:$AS$97,0)) -> NA
C112: 18 | D112: Clothing and Footwear | E112: =INDEX('8 LCI Data Compilation'!$D$96:$I$122,MATCH(D112,'8 LCI Data Compilation'!$C$96:$C$122,0),MATCH('4 SMM Input'!$E$3,'8 LCI Data Compilation'!$D$97:$I$97,0)) -> NA | F112: =IFERROR(E112*-1,"NA") -> NA | G112: =INDEX('8 LCI Data Compilation'!$J$96:$O$122,MATCH(D112,'8 LCI Data Compilation'!$C$96:$C$122,0),MATCH('4 SMM Input'!$E$3,'8 LCI Data Compilation'!$J$97:$O$97,0)) -> NA | H112: =INDEX('8 LCI Data Compilation'!$P$96:$U$122,MATCH(D112,'8 LCI Data Compilation'!$C$96:$C$122,0),MATCH('4 SMM Input'!$E$3,'8 LCI Data Compilation'!$P$97:$U$97,0)) -> NA | I112: =INDEX('8 LCI Data Compilation'!$V$96:$AA$122,MATCH(D112,'8 LCI Data Compilation'!$C$96:$C$122,0),MATCH('4 SMM Input'!$E$3,'8 LCI Data Compilation'!$V$97:$AA$97,0)) -> NA | J112: =INDEX('8 LCI Data Compilation'!$AB$96:$AG$122,MATCH(D112,'8 LCI Data Compilation'!$C$96:$C$122,0),MATCH('4 SMM Input'!$E$3,'8 LCI Data Compilation'!$AB$97:$AG$97,0)) -> NA | K112: =INDEX('8 LCI Data Compilation'!$AH$96:$AM$122,MATCH(D112,'8 LCI Data Compilation'!$C$96:$C$122,0),MATCH('4 SMM Input'!$E$3,'8 LCI Data Compilation'!$AH$97:$AM$97,0)) -> NA | L112: =INDEX('8 LCI Data Compilation'!$AN$96:$AS$122,MATCH(D112,'8 LCI Data Compilation'!$C$96:$C$122,0),MATCH('4 SMM Input'!$E$3,'8 LCI Data Compilation'!$AN$97:$AS$97,0)) -> NA
C113: 19 | D113: Furniture | E113: =INDEX('8 LCI Data Compilation'!$D$96:$I$122,MATCH(D113,'8 LCI Data Compilation'!$C$96:$C$122,0),MATCH('4 SMM Input'!$E$3,'8 LCI Data Compilation'!$D$97:$I$97,0)) -> NA | F113: =IFERROR(E113*-1,"NA") -> NA | G113: =INDEX('8 LCI Data Compilation'!$J$96:$O$122,MATCH(D113,'8 LCI Data Compilation'!$C$96:$C$122,0),MATCH('4 SMM Input'!$E$3,'8 LCI Data Compilation'!$J$97:$O$97,0)) -> NA | H113: =INDEX('8 LCI Data Compilation'!$P$96:$U$122,MATCH(D113,'8 LCI Data Compilation'!$C$96:$C$122,0),MATCH('4 SMM Input'!$E$3,'8 LCI Data Compilation'!$P$97:$U$97,0)) -> NA | I113: =INDEX('8 LCI Data Compilation'!$V$96:$AA$122,MATCH(D113,'8 LCI Data Compilation'!$C$96:$C$122,0),MATCH('4 SMM Input'!$E$3,'8 LCI Data Compilation'!$V$97:$AA$97,0)) -> NA | J113: =INDEX('8 LCI Data Compilation'!$AB$96:$AG$122,MATCH(D113,'8 LCI Data Compilation'!$C$96:$C$122,0),MATCH('4 SMM Input'!$E$3,'8 LCI Data Compilation'!$AB$97:$AG$97,0)) -> NA | K113: =INDEX('8 LCI Data Compilation'!$AH$96:$AM$122,MATCH(D113,'8 LCI Data Compilation'!$C$96:$C$122,0),MATCH('4 SMM Input'!$E$3,'8 LCI Data Compilation'!$AH$97:$AM$97,0)) -> NA | L113: =INDEX('8 LCI Data Compilation'!$AN$96:$AS$122,MATCH(D113,'8 LCI Data Compilation'!$C$96:$C$122,0),MATCH('4 SMM Input'!$E$3,'8 LCI Data Compilation'!$AN$97:$AS$97,0)) -> NA
C114: 20 | D114: Electronics | E114: =INDEX('8 LCI Data Compilation'!$D$96:$I$122,MATCH(D114,'8 LCI Data Compilation'!$C$96:$C$122,0),MATCH('4 SMM Input'!$E$3,'8 LCI Data Compilation'!$D$97:$I$97,0)) -> NA | F114: =IFERROR(E114*-1,"NA") -> NA | G114: =INDEX('8 LCI Data Compilation'!$J$96:$O$122,MATCH(D114,'8 LCI Data Compilation'!$C$96:$C$122,0),MATCH('4 SMM Input'!$E$3,'8 LCI Data Compilation'!$J$97:$O$97,0)) -> NA | H114: =INDEX('8 LCI Data Compilation'!$P$96:$U$122,MATCH(D114,'8 LCI Data Compilation'!$C$96:$C$122,0),MATCH('4 SMM Input'!$E$3,'8 LCI Data Compilation'!$P$97:$U$97,0)) -> NA | I114: =INDEX('8 LCI Data Compilation'!$V$96:$AA$122,MATCH(D114,'8 LCI Data Compilation'!$C$96:$C$122,0),MATCH('4 SMM Input'!$E$3,'8 LCI Data Compilation'!$V$97:$AA$97,0)) -> NA | J114: =INDEX('8 LCI Data Compilation'!$AB$96:$AG$122,MATCH(D114,'8 LCI Data Compilation'!$C$96:$C$122,0),MATCH('4 SMM Input'!$E$3,'8 LCI Data Compilation'!$AB$97:$AG$97,0)) -> NA | K114: =INDEX('8 LCI Data Compilation'!$AH$96:$AM$122,MATCH(D114,'8 LCI Data Compilation'!$C$96:$C$122,0),MATCH('4 SMM Input'!$E$3,'8 LCI Data Compilation'!$AH$97:$AM$97,0)) -> NA | L114: =INDEX('8 LCI Data Compilation'!$AN$96:$AS$122,MATCH(D114,'8 LCI Data Compilation'!$C$96:$C$122,0),MATCH('4 SMM Input'!$E$3,'8 LCI Data Compilation'!$AN$97:$AS$97,0)) -> NA
B115: C&D Debris | C115: 21 | D115: Wood Products | E115: =INDEX('8 LCI Data Compilation'!$D$96:$I$122,MATCH(D115,'8 LCI Data Compilation'!$C$96:$C$122,0),MATCH('4 SMM Input'!$E$3,'8 LCI Data Compilation'!$D$97:$I$97,0)) -> NA | F115: NA | G115: =INDEX('8 LCI Data Compilation'!$J$96:$O$122,MATCH(D115,'8 LCI Data Compilation'!$C$96:$C$122,0),MATCH('4 SMM Input'!$E$3,'8 LCI Data Compilation'!$J$97:$O$97,0)) -> NA | H115: =INDEX('8 LCI Data Compilation'!$P$96:$U$122,MATCH(D115,'8 LCI Data Compilation'!$C$96:$C$122,0),MATCH('4 SMM Input'!$E$3,'8 LCI Data Compilation'!$P$97:$U$97,0)) -> NA | I115: =INDEX('8 LCI Data Compilation'!$V$96:$AA$122,MATCH(D115,'8 LCI Data Compilation'!$C$96:$C$122,0),MATCH('4 SMM Input'!$E$3,'8 LCI Data Compilation'!$V$97:$AA$97,0)) -> NA | J115: =INDEX('8 LCI Data Compilation'!$AB$96:$AG$122,MATCH(D115,'8 LCI Data Compilation'!$C$96:$C$122,0),MATCH('4 SMM Input'!$E$3,'8 LCI Data Compilation'!$AB$97:$AG$97,0)) -> NA | K115: =INDEX('8 LCI Data Compilation'!$AH$96:$AM$122,MATCH(D115,'8 LCI Data Compilation'!$C$96:$C$122,0),MATCH('4 SMM Input'!$E$3,'8 LCI Data Compilation'!$AH$97:$AM$97,0)) -> NA | L115: =INDEX('8 LCI Data Compilation'!$AN$96:$AS$122,MATCH(D115,'8 LCI Data Compilation'!$C$96:$C$122,0),MATCH('4 SMM Input'!$E$3,'8 LCI Data Compilation'!$AN$97:$AS$97,0)) -> NA
C116: 22 | D116: Asphalt Shingles | E116: =INDEX('8 LCI Data Compilation'!$D$96:$I$122,MATCH(D116,'8 LCI Data Compilation'!$C$96:$C$122,0),MATCH('4 SMM Input'!$E$3,'8 LCI Data Compilation'!$D$97:$I$97,0)) -> NA | F116: NA | G116: =INDEX('8 LCI Data Compilation'!$J$96:$O$122,MATCH(D116,'8 LCI Data Compilation'!$C$96:$C$122,0),MATCH('4 SMM Input'!$E$3,'8 LCI Data Compilation'!$J$97:$O$97,0)) -> NA | H116: =INDEX('8 LCI Data Compilation'!$P$96:$U$122,MATCH(D116,'8 LCI Data Compilation'!$C$96:$C$122,0),MATCH('4 SMM Input'!$E$3,'8 LCI Data Compilation'!$P$97:$U$97,0)) -> NA | I116: =INDEX('8 LCI Data Compilation'!$V$96:$AA$122,MATCH(D116,'8 LCI Data Compilation'!$C$96:$C$122,0),MATCH('4 SMM Input'!$E$3,'8 LCI Data Compilation'!$V$97:$AA$97,0)) -> NA | J116: =INDEX('8 LCI Data Compilation'!$AB$96:$AG$122,MATCH(D116,'8 LCI Data Compilation'!$C$96:$C$122,0),MATCH('4 SMM Input'!$E$3,'8 LCI Data Compilation'!$AB$97:$AG$97,0)) -> NA | K116: =INDEX('8 LCI Data Compilation'!$AH$96:$AM$122,MATCH(D116,'8 LCI Data Compilation'!$C$96:$C$122,0),MATCH('4 SMM Input'!$E$3,'8 LCI Data Compilation'!$AH$97:$AM$97,0)) -> NA | L116: =INDEX('8 LCI Data Compilation'!$AN$96:$AS$122,MATCH(D116,'8 LCI Data Compilation'!$C$96:$C$122,0),MATCH('4 SMM Input'!$E$3,'8 LCI Data Compilation'!$AN$97:$AS$97,0)) -> NA
C117: 23 | D117: Gypsum Drywall | E117: =INDEX('8 LCI Data Compilation'!$D$96:$I$122,MATCH(D117,'8 LCI Data Compilation'!$C$96:$C$122,0),MATCH('4 SMM Input'!$E$3,'8 LCI Data Compilation'!$D$97:$I$97,0)) -> NA | F117: NA | G117: =INDEX('8 LCI Data Compilation'!$J$96:$O$122,MATCH(D117,'8 LCI Data Compilation'!$C$96:$C$122,0),MATCH('4 SMM Input'!$E$3,'8 LCI Data Compilation'!$J$97:$O$97,0)) -> NA | H117: =INDEX('8 LCI Data Compilation'!$P$96:$U$122,MATCH(D117,'8 LCI Data Compilation'!$C$96:$C$122,0),MATCH('4 SMM Input'!$E$3,'8 LCI Data Compilation'!$P$97:$U$97,0)) -> NA | I117: =INDEX('8 LCI Data Compilation'!$V$96:$AA$122,MATCH(D117,'8 LCI Data Compilation'!$C$96:$C$122,0),MATCH('4 SMM Input'!$E$3,'8 LCI Data Compilation'!$V$97:$AA$97,0)) -> NA | J117: =INDEX('8 LCI Data Compilation'!$AB$96:$AG$122,MATCH(D117,'8 LCI Data Compilation'!$C$96:$C$122,0),MATCH('4 SMM Input'!$E$3,'8 LCI Data Compilation'!$AB$97:$AG$97,0)) -> NA | K117: =INDEX('8 LCI Data Compilation'!$AH$96:$AM$122,MATCH(D117,'8 LCI Data Compilation'!$C$96:$C$122,0),MATCH('4 SMM Input'!$E$3,'8 LCI Data Compilation'!$AH$97:$AM$97,0)) -> NA | L117: =INDEX('8 LCI Data Compilation'!$AN$96:$AS$122,MATCH(D117,'8 LCI Data Compilation'!$C$96:$C$122,0),MATCH('4 SMM Input'!$E$3,'8 LCI Data Compilation'!$AN$97:$AS$97,0)) -> NA
C118: 24 | D118: Concrete | E118: =INDEX('8 LCI Data Compilation'!$D$96:$I$122,MATCH(D118,'8 LCI Data Compilation'!$C$96:$C$122,0),MATCH('4 SMM Input'!$E$3,'8 LCI Data Compilation'!$D$97:$I$97,0)) -> NA | F118: NA | G118: =INDEX('8 LCI Data Compilation'!$J$96:$O$122,MATCH(D118,'8 LCI Data Compilation'!$C$96:$C$122,0),MATCH('4 SMM Input'!$E$3,'8 LCI Data Compilation'!$J$97:$O$97,0)) -> NA | H118: =INDEX('8 LCI Data Compilation'!$P$96:$U$122,MATCH(D118,'8 LCI Data Compilation'!$C$96:$C$122,0),MATCH('4 SMM Input'!$E$3,'8 LCI Data Compilation'!$P$97:$U$97,0)) -> NA | I118: =INDEX('8 LCI Data Compilation'!$V$96:$AA$122,MATCH(D118,'8 LCI Data Compilation'!$C$96:$C$122,0),MATCH('4 SMM Input'!$E$3,'8 LCI Data Compilation'!$V$97:$AA$97,0)) -> NA | J118: =INDEX('8 LCI Data Compilation'!$AB$96:$AG$122,MATCH(D118,'8 LCI Data Compilation'!$C$96:$C$122,0),MATCH('4 SMM Input'!$E$3,'8 LCI Data Compilation'!$AB$97:$AG$97,0)) -> NA | K118: =INDEX('8 LCI Data Compilation'!$AH$96:$AM$122,MATCH(D118,'8 LCI Data Compilation'!$C$96:$C$122,0),MATCH('4 SMM Input'!$E$3,'8 LCI Data Compilation'!$AH$97:$AM$97,0)) -> NA | L118: =INDEX('8 LCI Data Compilation'!$AN$96:$AS$122,MATCH(D118,'8 LCI Data Compilation'!$C$96:$C$122,0),MATCH('4 SMM Input'!$E$3,'8 LCI Data Compilation'!$AN$97:$AS$97,0)) -> NA
C119: 25 | D119: Reclaimed Asphalt Pavement | E119: =INDEX('8 LCI Data Compilation'!$D$96:$I$122,MATCH(D119,'8 LCI Data Compilation'!$C$96:$C$122,0),MATCH('4 SMM Input'!$E$3,'8 LCI Data Compilation'!$D$97:$I$97,0)) -> NA | F119: NA | G119: =INDEX('8 LCI Data Compilation'!$J$96:$O$122,MATCH(D119,'8 LCI Data Compilation'!$C$96:$C$122,0),MATCH('4 SMM Input'!$E$3,'8 LCI Data Compilation'!$J$97:$O$97,0)) -> NA | H119: =INDEX('8 LCI Data Compilation'!$P$96:$U$122,MATCH(D119,'8 LCI Data Compilation'!$C$96:$C$122,0),MATCH('4 SMM Input'!$E$3,'8 LCI Data Compilation'!$P$97:$U$97,0)) -> NA | I119: =INDEX('8 LCI Data Compilation'!$V$96:$AA$122,MATCH(D119,'8 LCI Data Compilation'!$C$96:$C$122,0),MATCH('4 SMM Input'!$E$3,'8 LCI Data Compilation'!$V$97:$AA$97,0)) -> NA | J119: =INDEX('8 LCI Data Compilation'!$AB$96:$AG$122,MATCH(D119,'8 LCI Data Compilation'!$C$96:$C$122,0),MATCH('4 SMM Input'!$E$3,'8 LCI Data Compilation'!$AB$97:$AG$97,0)) -> NA | K119: =INDEX('8 LCI Data Compilation'!$AH$96:$AM$122,MATCH(D119,'8 LCI Data Compilation'!$C$96:$C$122,0),MATCH('4 SMM Input'!$E$3,'8 LCI Data Compilation'!$AH$97:$AM$97,0)) -> NA | L119: =INDEX('8 LCI Data Compilation'!$AN$96:$AS$122,MATCH(D119,'8 LCI Data Compilation'!$C$96:$C$122,0),MATCH('4 SMM Input'!$E$3,'8 LCI Data Compilation'!$AN$97:$AS$97,0)) -> NA
B122: All Units (CTUe/ Short Ton)
B123: ='5 SMM Results'!B126:M126 -> Marine Ecotoxicity (CTUe): Release of toxic materials to aquatic ecosystem. The units are expressed as comparative toxic units (CTUe) which is interpreted as the potentially affected fraction of species over time and volume per kg of substance emitted.
B124: Material Category | C124: Item No. | D124: Material Type | E124: Produced | F124: Donated | G124: Collection | H124: Recycling | I124: Composting | J124: Anaerobic Digestion | K124: Landfill | L124: Combustion
B125: MSW | C125: 1 | D125: Mixed MSW | E125: =INDEX('8 LCI Data Compilation'!$D$126:$I$152,MATCH(D125,'8 LCI Data Compilation'!$C$126:$C$152,0),MATCH('4 SMM Input'!$E$3,'8 LCI Data Compilation'!$D$127:$I$127,0)) -> NA | F125: NA | G125: =INDEX('8 LCI Data Compilation'!$J$126:$O$152,MATCH(D125,'8 LCI Data Compilation'!$C$126:$C$152,0),MATCH('4 SMM Input'!$E$3,'8 LCI Data Compilation'!$J$127:$O$127,0)) -> 0.04330262607 | H125: =INDEX('8 LCI Data Compilation'!$P$126:$U$152,MATCH(D125,'8 LCI Data Compilation'!$C$126:$C$152,0),MATCH('4 SMM Input'!$E$3,'8 LCI Data Compilation'!$P$127:$U$127,0)) -> NA | I125: =INDEX('8 LCI Data Compilation'!$V$126:$AA$152,MATCH(D125,'8 LCI Data Compilation'!$C$126:$C$152,0),MATCH('4 SMM Input'!$E$3,'8 LCI Data Compilation'!$V$127:$AA$127,0)) -> NA | J125: =INDEX('8 LCI Data Compilation'!$AB$126:$AG$152,MATCH(D125,'8 LCI Data Compilation'!$C$126:$C$152,0),MATCH('4 SMM Input'!$E$3,'8 LCI Data Compilation'!$AB$127:$AG$127,0)) -> NA | K125: =INDEX('8 LCI Data Compilation'!$AH$126:$AM$152,MATCH(D125,'8 LCI Data Compilation'!$C$126:$C$152,0),MATCH('4 SMM Input'!$E$3,'8 LCI Data Compilation'!$AH$127:$AM$127,0)) -> -39.63040959 | L125: =INDEX('8 LCI Data Compilation'!$AN$126:$AS$152,MATCH(D125,'8 LCI Data Compilation'!$C$126:$C$152,0),MATCH('4 SMM Input'!$E$3,'8 LCI Data Compilation'!$AN$127:$AS$127,0)) -> -0.01025124476
B126: Paper | C126: 2 | D126: Newspaper | E126: =INDEX('8 LCI Data Compilation'!$D$126:$I$152,MATCH(D126,'8 LCI Data Compilation'!$C$126:$C$152,0),MATCH('4 SMM Input'!$E$3,'8 LCI Data Compilation'!$D$127:$I$127,0)) -> NA | F126: NA | G126: =INDEX('8 LCI Data Compilation'!$J$126:$O$152,MATCH(D126,'8 LCI Data Compilation'!$C$126:$C$152,0),MATCH('4 SMM Input'!$E$3,'8 LCI Data Compilation'!$J$127:$O$127,0)) -> 0.04330262607 | H126: =INDEX('8 LCI Data Compilation'!$P$126:$U$152,MATCH(D126,'8 LCI Data Compilation'!$C$126:$C$152,0),MATCH('4 SMM Input'!$E$3,'8 LCI Data Compilation'!$P$127:$U$127,0)) -> -98.6260484 | I126: =INDEX('8 LCI Data Compilation'!$V$126:$AA$152,MATCH(D126,'8 LCI Data Compilation'!$C$126:$C$152,0),MATCH('4 SMM Input'!$E$3,'8 LCI Data Compilation'!$V$127:$AA$127,0)) -> NA | J126: =INDEX('8 LCI Data Compilation'!$AB$126:$AG$152,MATCH(D126,'8 LCI Data Compilation'!$C$126:$C$152,0),MATCH('4 SMM Input'!$E$3,'8 LCI Data Compilation'!$AB$127:$AG$127,0)) -> NA | K126: =INDEX('8 LCI Data Compilation'!$AH$126:$AM$152,MATCH(D126,'8 LCI Data Compilation'!$C$126:$C$152,0),MATCH('4 SMM Input'!$E$3,'8 LCI Data Compilation'!$AH$127:$AM$127,0)) -> -14.09207127 | L126: =INDEX('8 LCI Data Compilation'!$AN$126:$AS$152,MATCH(D126,'8 LCI Data Compilation'!$C$126:$C$152,0),MATCH('4 SMM Input'!$E$3,'8 LCI Data Compilation'!$AN$127:$AS$127,0)) -> -0.04368854876
C127: 3 | D127: Corrugated Cardboard (OCC) | E127: =INDEX('8 LCI Data Compilation'!$D$126:$I$152,MATCH(D127,'8 LCI Data Compilation'!$C$126:$C$152,0),MATCH('4 SMM Input'!$E$3,'8 LCI Data Compilation'!$D$127:$I$127,0)) -> NA | F127: NA | G127: =INDEX('8 LCI Data Compilation'!$J$126:$O$152,MATCH(D127,'8 LCI Data Compilation'!$C$126:$C$152,0),MATCH('4 SMM Input'!$E$3,'8 LCI Data Compilation'!$J$127:$O$127,0)) -> 0.04330262607 | H127: =INDEX('8 LCI Data Compilation'!$P$126:$U$152,MATCH(D127,'8 LCI Data Compilation'!$C$126:$C$152,0),MATCH('4 SMM Input'!$E$3,'8 LCI Data Compilation'!$P$127:$U$127,0)) -> 624.2081681 | I127: =INDEX('8 LCI Data Compilation'!$V$126:$AA$152,MATCH(D127,'8 LCI Data Compilation'!$C$126:$C$152,0),MATCH('4 SMM Input'!$E$3,'8 LCI Data Compilation'!$V$127:$AA$127,0)) -> NA | J127: =INDEX('8 LCI Data Compilation'!$AB$126:$AG$152,MATCH(D127,'8 LCI Data Compilation'!$C$126:$C$152,0),MATCH('4 SMM Input'!$E$3,'8 LCI Data Compilation'!$AB$127:$AG$127,0)) -> NA | K127: =INDEX('8 LCI Data Compilation'!$AH$126:$AM$152,MATCH(D127,'8 LCI Data Compilation'!$C$126:$C$152,0),MATCH('4 SMM Input'!$E$3,'8 LCI Data Compilation'!$AH$127:$AM$127,0)) -> -37.85557456 | L127: =INDEX('8 LCI Data Compilation'!$AN$126:$AS$152,MATCH(D127,'8 LCI Data Compilation'!$C$126:$C$152,0),MATCH('4 SMM Input'!$E$3,'8 LCI Data Compilation'!$AN$127:$AS$127,0)) -> -0.03995007199
C128: 4 | D128: High Grade Paper (Office Type Paper) | E128: =INDEX('8 LCI Data Compilation'!$D$126:$I$152,MATCH(D128,'8 LCI Data Compilation'!$C$126:$C$152,0),MATCH('4 SMM Input'!$E$3,'8 LCI Data Compilation'!$D$127:$I$127,0)) -> NA | F128: NA | G128: =INDEX('8 LCI Data Compilation'!$J$126:$O$152,MATCH(D128,'8 LCI Data Compilation'!$C$126:$C$152,0),MATCH('4 SMM Input'!$E$3,'8 LCI Data Compilation'!$J$127:$O$127,0)) -> 0.04330262607 | H128: =INDEX('8 LCI Data Compilation'!$P$126:$U$152,MATCH(D128,'8 LCI Data Compilation'!$C$126:$C$152,0),MATCH('4 SMM Input'!$E$3,'8 LCI Data Compilation'!$P$127:$U$127,0)) -> 21.01593588 | I128: =INDEX('8 LCI Data Compilation'!$V$126:$AA$152,MATCH(D128,'8 LCI Data Compilation'!$C$126:$C$152,0),MATCH('4 SMM Input'!$E$3,'8 LCI Data Compilation'!$V$127:$AA$127,0)) -> NA | J128: =INDEX('8 LCI Data Compilation'!$AB$126:$AG$152,MATCH(D128,'8 LCI Data Compilation'!$C$126:$C$152,0),MATCH('4 SMM Input'!$E$3,'8 LCI Data Compilation'!$AB$127:$AG$127,0)) -> NA | K128: =INDEX('8 LCI Data Compilation'!$AH$126:$AM$152,MATCH(D128,'8 LCI Data Compilation'!$C$126:$C$152,0),MATCH('4 SMM Input'!$E$3,'8 LCI Data Compilation'!$AH$127:$AM$127,0)) -> -51.11646041 | L128: =INDEX('8 LCI Data Compilation'!$AN$126:$AS$152,MATCH(D128,'8 LCI Data Compilation'!$C$126:$C$152,0),MATCH('4 SMM Input'!$E$3,'8 LCI Data Compilation'!$AN$127:$AS$127,0)) -> -0.0365797388
C129: 5 | D129: Magazines/third-class mail | E129: =INDEX('8 LCI Data Compilation'!$D$126:$I$152,MATCH(D129,'8 LCI Data Compilation'!$C$126:$C$152,0),MATCH('4 SMM Input'!$E$3,'8 LCI Data Compilation'!$D$127:$I$127,0)) -> NA | F129: NA | G129: =INDEX('8 LCI Data Compilation'!$J$126:$O$152,MATCH(D129,'8 LCI Data Compilation'!$C$126:$C$152,0),MATCH('4 SMM Input'!$E$3,'8 LCI Data Compilation'!$J$127:$O$127,0)) -> 0.04330262607 | H129: =INDEX('8 LCI Data Compilation'!$P$126:$U$152,MATCH(D129,'8 LCI Data Compilation'!$C$126:$C$152,0),MATCH('4 SMM Input'!$E$3,'8 LCI Data Compilation'!$P$127:$U$127,0)) -> 7.321809237 | I129: =INDEX('8 LCI Data Compilation'!$V$126:$AA$152,MATCH(D129,'8 LCI Data Compilation'!$C$126:$C$152,0),MATCH('4 SMM Input'!$E$3,'8 LCI Data Compilation'!$V$127:$AA$127,0)) -> NA | J129: =INDEX('8 LCI Data Compilation'!$AB$126:$AG$152,MATCH(D129,'8 LCI Data Compilation'!$C$126:$C$152,0),MATCH('4 SMM Input'!$E$3,'8 LCI Data Compilation'!$AB$127:$AG$127,0)) -> NA | K129: =INDEX('8 LCI Data Compilation'!$AH$126:$AM$152,MATCH(D129,'8 LCI Data Compilation'!$C$126:$C$152,0),MATCH('4 SMM Input'!$E$3,'8 LCI Data Compilation'!$AH$127:$AM$127,0)) -> -19.83888206 | L129: =INDEX('8 LCI Data Compilation'!$AN$126:$AS$152,MATCH(D129,'8 LCI Data Compilation'!$C$126:$C$152,0),MATCH('4 SMM Input'!$E$3,'8 LCI Data Compilation'!$AN$127:$AS$127,0)) -> -0.03314113553
